Workbook

Sheet LDC Info
AA3: Algoma Power Inc.
AA4: Atikokan Hydro Inc.
AA5: Attawapiskat Power Corporation
AA6: Bluewater Power Distribution Corp.
AA7: Brant County Power
AA8: Brantford Power Inc.
AA9: Burlington Hydro Inc.
AA10: Cambridge and North Dumfries Hydro
AA11: Canadian Niagara Power Inc. – Eastern Ontario Power/Fort Erie/Port Colborne
AA12: Centre Wellington Hydro Ltd.
AA13: Chapleau Public Utilities Corporation
D14: Utility Name | E14: Kingston Hydro Corporation | AA14: COLLUS Power Corp.
AA15: Cooperative Hydro Embrun Inc.
D16: Assigned EB Number | E16: EB-2015-0083 | AA16: E.L.K. Energy Inc.
AA17: Enersource Hydro Mississauga Inc.
D18: Name of Contact and Title | AA18: Entegrus Powerlines Inc.
AA19: ENWIN Utilities Ltd.
D20: Phone Number | AA20: Erie Thames Powerlines Corp.
AA21: Espanola Regional Hydro Distribution Corporation
D22: Email Address | AA22: Essex Powerlines Corporation
AA23: Festival Hydro Inc.
D24: Test Year | E24: 2016 | AA24: Fort Albany Power Corporation
AA25: Fort Frances Power Corporation
D26: Bridge Year | E26: =IF(ISBLANK(E24), "", E24-1) -> 2015 | AA26: Greater Sudbury Hydro Inc.
AA27: Grimsby Power Inc.
D28: Last Rebasing Year | E28: 2011 | AA28: Guelph Hydro Electric Systems Inc.
AA29: Haldimand County Hydro Inc.
A30: Identify the accounting standard used for the test year
A33: Did you update your depreciation and capitalization policies?
A36: When did you update your depreciation and capitalization policies?
E37: 2001-01-01
A39: Identify the year that the applicant has adopted or is expected to adopt IFRS for financial reporting purposes
A43: Are you applying for cost recovery for the test and/or future year(s) for Green Energy initiatives?
A46: ="Is " & E14 & " an embedded distributor?" -> Is Kingston Hydro Corporation an embedded distributor?
B49: Notes | AA49: Guelph Hydro Electric Systems Inc.
AA50: Halton Hills Hydro Inc.
C51: Pale green cells represent input cells. | AA51: Hearst Power Distribution Co. Ltd.
AA52: Horizon Utilities Corporation
C53: Pale blue cells represent drop-down lists. The applicant should select the appropriate item from the drop-down list. | AA53: Hydro 2000 Inc.
AA54: Hydro Hawkesbury Inc.
C55: White cells contain fixed values, automatically generated values or formulae. | AA55: Hydro One Brampton Networks Inc.
AA56: Hydro One Networks Inc.
AA57: Hydro One Remote Communities Inc.
AA58: Hydro Ottawa Limited
AA59: Innisfil Hydro Dist. Systems Limited
AA60: Kashechewan Power Corporation
AA61: Kenora Hydro Electric Corporation Ltd.
AA62: Kingston Hydro Corporation
AA63: Kitchener-Wilmot Hydro Inc.
AA64: Lakefront Utilities Inc.
AA65: Lakeland Power Distribution Ltd.
AA66: London Hydro Inc.
AA67: Midland Power Utility Corporation
AA68: Milton Hydro Distribution Inc.
AA69: Newmarket – Tay Power Distribution Ltd.
AA70: Niagara Peninsula Energy Inc.
AA71: Niagara-on-the-Lake Hydro Inc.
AA72: Norfolk Power Distribution Ltd.
AA73: North Bay Hydro Distribution Limited
AA74: Northern Ontario Wires Inc.
AA75: Oakville Hydro Distribution Inc.
AA76: Orangeville Hydro Limited
AA77: Orillia Power Distribution Corp.
AA78: Oshawa PUC Networks Inc.
AA79: Ottawa River Power Corporation
AA80: Parry Sound Power Corporation
AA81: Peterborough Distribution Inc.
AA82: PowerStream Inc.
AA83: PUC Distribution Inc.
AA84: Renfrew Hydro Inc.
AA85: Rideau St. Lawrence Distribution Inc.
AA86: St. Thomas Energy Inc.
AA87: Sioux Lookout Hydro Inc.
AA88: Thunder Bay Hydro Electricity Distribution
AA89: Tillsonburg Hydro Inc.
AA90: Toronto Hydro-Electric System Limited
AA91: Veridian Connections Inc.
AA92: Wasaga Distribution Inc.
AA93: Waterloo North Hydro Inc.
AA94: Welland Hydro Electric System Corp.
AA95: Wellington North Power Inc.
AA96: West Coast Huron Energy Inc.
AA97: Westario Power Inc.
AA98: Whitby Hydro Electric Corporation
AA99: Woodstock Hydro Services Inc.

Sheet App.2-W_Bill Impacts _Resi
M1: File Number: | N1: =EBNUMBER -> EB-2015-0083 | S1: 1
M2: Exhibit: | N2: 8
M3: Tab: | N3: 4
M4: Schedule: | N4: 3
M5: Page: | N5: 1
N7: 1-Staff-4 IRR
A10: Appendix 2-W
A11: Bill Impacts
A14: Customer Class: | C14: Residential | P14: =C14 -> Residential | AK14: =P14 -> Residential
A16: TOU / non-TOU: | C16: TOU
C18: Consumption | E18: 800 | F18: kWh
E20: 2015 Current Board-Approved | I20: 2016 Test Year 1 Proposed | M20: Impact 2016 TEST vs. 2015 Bridge | P20: 2017 Test Year 2 Proposed | T20: Impact 2017 TEST 2 vs. 2016 Test 1 | W20: 2018 Test Year 3 Proposed | AA20: Impact 2018 TEST 3 vs. 2017 Test 2 | AD20: 2019 Test Year 4 Proposed | AH20: Impact 2019 TEST 4 vs. 2018 Test 3 | AK20: 2020 Test Year 5 Proposed | AO20: Impact 2020 TEST 5 vs. 2019 Test 4
C21: Charge Unit | E21: Rate | F21: Volume | G21: Charge | I21: Rate | J21: Volume | K21: Charge | M21: $ Change | N21: % Change | P21: Rate | Q21: Volume | R21: Charge | T21: $ Change | U21: % Change | W21: Rate | X21: Volume | Y21: Charge | AA21: $ Change | AB21: % Change | AD21: Rate | AE21: Volume | AF21: Charge | AH21: $ Change | AI21: % Change | AK21: Rate | AL21: Volume | AM21: Charge | AO21: $ Change | AP21: % Change
E22: ($) | G22: ($) | I22: ($) | K22: ($) | P22: ($) | R22: ($) | W22: ($) | Y22: ($) | AD22: ($) | AF22: ($) | AK22: ($) | AM22: ($)
A23: Monthly Service Charge | C23: Monthly | E23: 12.56 | F23: 1 | G23: =F23*E23 -> 12.56 | I23: 16.4 | J23: 1 | K23: =J23*I23 -> 16.4 | M23: =K23-G23 -> 3.84 | N23: =IF((G23)=0,"",(M23/G23)) -> 0.3057324841 | P23: 19.78 | Q23: 1 | R23: =Q23*P23 -> 19.78 | T23: =R23-K23 -> 3.38 | U23: =IF((K23)=0,"",(T23/K23)) -> 0.206097561 | W23: 23.3 | X23: 1 | Y23: =X23*W23 -> 23.3 | AA23: =Y23-R23 -> 3.52 | AB23: =IF((R23)=0,"",(AA23/R23)) -> 0.1779575329 | AD23: 26.97 | AE23: 1 | AF23: =AE23*AD23 -> 26.97 | AH23: =AF23-Y23 -> 3.67 | AI23: =IF((Y23)=0,"",(AH23/Y23)) -> 0.1575107296 | AK23: 27.61 | AL23: 1 | AM23: =AL23*AK23 -> 27.61 | AO23: =AM23-AF23 -> 0.64 | AP23: =IF((AF23)=0,"",(AO23/AF23)) -> 0.02373007045
A24: Smart Meter (SMIRR) Rate Rider | C24: Monthly | E24: 2.63 | F24: 1 | G24: =F24*E24 -> 2.63 | I24: 0 | J24: 1 | K24: =J24*I24 -> 0 | M24: =K24-G24 -> -2.63 | N24: =IF((G24)=0,"",(M24/G24)) -> -1 | P24: 0 | Q24: 1 | R24: =Q24*P24 -> 0 | T24: 0 | U24: =IF((K24)=0,"",(T24/K24)) ->  | W24: 0 | X24: 1 | Y24: =X24*W24 -> 0 | AA24: 0 | AB24: =IF((R24)=0,"",(AA24/R24)) ->  | AD24: 0 | AE24: 1 | AF24: =AE24*AD24 -> 0 | AH24: 0 | AI24: =IF((Y24)=0,"",(AH24/Y24)) ->  | AK24: 0 | AL24: 1 | AM24: =AL24*AK24 -> 0 | AO24: 0 | AP24: =IF((AF24)=0,"",(AO24/AF24)) -> 
A25: Rate Rider Smart Meters Capital (2016) | C25: Monthly | E25: 0 | F25: 1 | G25: 0 | I25: 0.25 | J25: 1 | K25: =J25*I25 -> 0.25 | M25: =K25-G25 -> 0.25 | P25: 0 | Q25: 1 | R25: =Q25*P25 -> 0 | T25: -0.25 | U25: -1 | W25: 0 | X25: 1 | Y25: =X25*W25 -> 0 | AA25: 0 | AD25: 0 | AE25: 1 | AF25: =AE25*AD25 -> 0 | AH25: 0 | AK25: 0 | AL25: 1 | AM25: =AL25*AK25 -> 0 | AO25: 0
A26: Rate Rider Recovery of Stranded Meters | C26: Monthly | E26: 0 | F26: 1 | G26: 0 | I26: 1.08 | J26: 1 | K26: 1.08 | M26: 1.08 | P26: 1.08 | Q26: 1 | R26: 1.08 | T26: 0 | U26: 0 | W26: 1.08 | X26: 1 | Y26: 1.08 | AA26: 0 | AB26: 0 | AD26: 1.08 | AE26: 1 | AF26: 1.08 | AH26: 0 | AI26: 0 | AK26: 1.08 | AL26: 1 | AM26: 1.08 | AO26: 0 | AP26: 0
F27: 1 | G27: 0 | J27: 1 | K27: 0 | M27: 0 | N27: =IF((G27)=0,"",(M27/G27)) ->  | Q27: 1 | R27: 0 | T27: 0 | X27: 1 | Y27: 0 | AA27: 0 | AE27: 1 | AF27: 0 | AH27: 0 | AL27: 1 | AM27: 0 | AO27: 0
F28: 1 | G28: 0 | J28: 1 | K28: 0 | M28: 0 | Q28: 1 | R28: 0 | T28: 0 | X28: 1 | Y28: 0 | AA28: 0 | AE28: 1 | AF28: 0 | AH28: 0 | AL28: 1 | AM28: 0 | AO28: 0
A29: Distribution Volumetric Rate | C29: per kWh | E29: 0.0154 | F29: =$E$18 -> 800 | G29: =F29*E29 -> 12.32 | I29: 0.0126 | J29: =$E$18 -> 800 | K29: 10.08 | M29: -2.24 | N29: -0.1818181818 | P29: 0.0087 | Q29: =$E$18 -> 800 | R29: 6.96 | T29: -3.12 | U29: -0.3095238095 | W29: 0.0045 | X29: =$E$18 -> 800 | Y29: 3.6 | AA29: -3.36 | AB29: -0.4827586207 | AD29: 0 | AE29: =$E$18 -> 800 | AF29: 0 | AH29: -3.6 | AI29: -1 | AK29: 0 | AL29: =$E$18 -> 800 | AM29: 0 | AO29: 0
A30: Rate Rider Tax Change (2015) | C30: per kWh | E30: -0.0001 | F30: =$E$18 -> 800 | G30: =F30*E30 -> -0.08 | I30: 0 | J30: =$E$18 -> 800 | K30: 0 | M30: 0.08 | N30: =IF((G30)=0,"",(M30/G30)) -> -1 | P30: 0 | Q30: =$E$18 -> 800 | R30: 0 | T30: 0 | W30: 0 | X30: =$E$18 -> 800 | Y30: 0 | AA30: 0 | AD30: 0 | AE30: =$E$18 -> 800 | AF30: 0 | AH30: 0 | AK30: 0 | AL30: =$E$18 -> 800 | AM30: 0 | AO30: 0
A31: LRAM VA (2016) | C31: per kWh | E31: 0 | F31: =$E$18 -> 800 | G31: 0 | I31: 0.0003 | J31: 800 | K31: 0.24 | M31: 0.24 | P31: 0 | Q31: 800 | R31: 0 | T31: -0.24 | U31: =IF((K31)=0,"",(T31/K31)) -> -1 | W31: 0 | X31: 800 | Y31: 0 | AA31: 0 | AD31: 0 | AE31: 800 | AF31: 0 | AH31: 0 | AK31: 0 | AL31: 800 | AM31: 0 | AO31: 0
A32: Rate Rider Incremental Capital 2012 True-Up (2016) | C32: per kWh | E32: 0 | F32: =$E$18 -> 800 | G32: 0 | I32: 0.0004 | J32: 800 | K32: 0.32 | M32: 0.32 | P32: 0 | Q32: 800 | R32: 0 | T32: -0.32 | U32: =IF((K32)=0,"",(T32/K32)) -> -1 | W32: 0 | X32: 800 | Y32: 0 | AA32: 0 | AD32: 0 | AE32: 800 | AF32: 0 | AH32: 0 | AK32: 0 | AL32: 800 | AM32: 0 | AO32: 0
C33: per kWh | E33: 0 | F33: =$E$19 -> 0 | G33: 0 | J33: =$E$19 -> 0 | K33: 0 | M33: 0 | N33: =IF((G33)=0,"",(M33/G33)) ->  | Q33: =$E$19 -> 0 | R33: 0 | T33: 0 | X33: =$E$19 -> 0 | Y33: 0 | AA33: 0 | AE33: =$E$19 -> 0 | AF33: 0 | AH33: 0 | AL33: =$E$19 -> 0 | AM33: 0 | AO33: 0
E34: 0 | F34: 800 | G34: 0 | J34: 800 | K34: 0 | M34: 0 | Q34: 800 | R34: 0 | T34: 0 | X34: 800 | Y34: 0 | AA34: 0 | AE34: 800 | AF34: 0 | AH34: 0 | AL34: 800 | AM34: 0 | AO34: 0
F35: 800 | G35: 0 | J35: 800 | K35: 0 | M35: 0 | Q35: 800 | R35: 0 | T35: 0 | X35: 800 | Y35: 0 | AA35: 0 | AE35: 800 | AF35: 0 | AH35: 0 | AL35: 800 | AM35: 0 | AO35: 0
F36: 800 | G36: 0 | J36: 800 | K36: 0 | M36: 0 | Q36: 800 | R36: 0 | T36: 0 | X36: 800 | Y36: 0 | AA36: 0 | AE36: 800 | AF36: 0 | AH36: 0 | AL36: 800 | AM36: 0 | AO36: 0
F37: 800 | G37: 0 | J37: 800 | K37: 0 | M37: 0 | Q37: 800 | R37: 0 | T37: 0 | X37: 800 | Y37: 0 | AA37: 0 | AE37: 800 | AF37: 0 | AH37: 0 | AL37: 800 | AM37: 0 | AO37: 0
F38: 800 | G38: 0 | J38: 800 | K38: 0 | M38: 0 | Q38: 800 | R38: 0 | T38: 0 | X38: 800 | Y38: 0 | AA38: 0 | AE38: 800 | AF38: 0 | AH38: 0 | AL38: 800 | AM38: 0 | AO38: 0
A39: Sub-Total A (excluding pass through) | G39: =SUM(G23:G38) -> 27.43 | K39: =SUM(K23:K38) -> 28.37 | M39: =K39-G39 -> 0.94 | N39: 0.03426904849 | R39: =SUM(R23:R38) -> 27.82 | T39: -0.55 | U39: -0.01938667607 | Y39: =SUM(Y23:Y38) -> 27.98 | AA39: 0.16 | AB39: 0.005751258088 | AF39: =SUM(AF23:AF38) -> 28.05 | AH39: 0.07 | AI39: 0.002501786991 | AM39: =SUM(AM23:AM38) -> 28.69 | AO39: 0.64 | AP39: 0.02281639929
A40: Deferral/Variance Account Disposition Rate Rider (2016) | C40: per kWh | E40: 0 | F40: =$E$18 -> 800 | G40: =F40*E40 -> 0 | I40: 0.001 | J40: =$E$18 -> 800 | K40: =J40*I40 -> 0.8 | M40: =K40-G40 -> 0.8 | N40: =IF((G40)=0,"",(M40/G40)) ->  | P40: 0 | Q40: =$E$18 -> 800 | R40: =Q40*P40 -> 0 | T40: =R40-K40 -> -0.8 | U40: -1 | W40: 0 | X40: =$E$18 -> 800 | Y40: =X40*W40 -> 0 | AA40: 0 | AD40: 0 | AE40: =$E$18 -> 800 | AF40: =AE40*AD40 -> 0 | AH40: 0 | AK40: 0 | AL40: =$E$18 -> 800 | AM40: =AL40*AK40 -> 0 | AO40: 0
F41: =$E$18 -> 800 | G41: =F41*E41 -> 0 | I41: 0 | J41: =$E$18 -> 800 | K41: =J41*I41 -> 0 | M41: =K41-G41 -> 0 | N41: =IF((G41)=0,"",(M41/G41)) ->  | Q41: =$E$18 -> 800 | R41: =Q41*P41 -> 0 | T41: =R41-K41 -> 0 | U41: =IF((K41)=0,"",(T41/K41)) ->  | X41: =$E$18 -> 800 | Y41: =X41*W41 -> 0 | AA41: =Y41-R41 -> 0 | AB41: =IF((R41)=0,"",(AA41/R41)) ->  | AE41: =$E$18 -> 800 | AF41: =AE41*AD41 -> 0 | AH41: =AF41-Y41 -> 0 | AI41: =IF((Y41)=0,"",(AH41/Y41)) ->  | AL41: =$E$18 -> 800 | AM41: =AL41*AK41 -> 0 | AO41: =AM41-AF41 -> 0 | AP41: =IF((AF41)=0,"",(AO41/AF41)) -> 
A42: Rate Rider CGAAP Account 1576 (2016) | C42: per kWh | E42: 0 | F42: 800 | G42: 0 | I42: -0.0024 | J42: 800 | K42: -1.92 | M42: -1.92 | P42: -0.0024 | Q42: 800 | R42: -1.92 | T42: 0 | U42: 0 | W42: -0.0024 | X42: 800 | Y42: -1.92 | AA42: 0 | AB42: 0 | AD42: -0.0024 | AE42: 800 | AF42: -1.92 | AH42: 0 | AI42: 0 | AK42: -0.0024 | AL42: 800 | AM42: -1.92 | AO42: 0 | AP42: 0
A43: Disposition of Global Adjustment (2015) Applicable to Non-RPP Customers | C43: per kWh | E43: 0.0156 | F43: 0 | G43: =F43*E43 -> 0 | I43: 0 | J43: 800 | K43: =J43*I43 -> 0 | M43: =K43-G43 -> 0 | N43: =IF((G43)=0,"",(M43/G43)) ->  | P43: 0 | Q43: 800 | R43: =Q43*P43 -> 0 | T43: 0 | W43: 0 | X43: 800 | Y43: =X43*W43 -> 0 | AA43: 0 | AD43: 0 | AE43: 800 | AF43: =AE43*AD43 -> 0 | AH43: 0 | AK43: 0 | AL43: 800 | AM43: =AL43*AK43 -> 0 | AO43: 0
A44: Disposition of Global Adjustment (2016) Applicable to Non-RPP Customers | C44: per kWh | E44: 0 | F44: 800 | G44: 0 | I44: 0.0137 | J44: 0 | K44: 0 | M44: 0 | P44: 0 | Q44: 800 | R44: 0 | T44: 0 | W44: 0 | X44: 800 | Y44: 0 | AA44: 0 | AD44: 0 | AE44: 800 | AF44: 0 | AH44: 0 | AK44: 0 | AL44: 800 | AM44: 0 | AO44: 0
A45: Low Voltage Service Charge | C45: per kWh | E45: 0.0007 | F45: 800 | G45: =F45*E45 -> 0.56 | I45: 0.0012 | J45: 800 | K45: =J45*I45 -> 0.96 | M45: =K45-G45 -> 0.4 | N45: =IF((G45)=0,"",(M45/G45)) -> 0.7142857143 | P45: 0.0012 | Q45: 800 | R45: =Q45*P45 -> 0.96 | T45: =R45-K45 -> 0 | U45: 0 | W45: 0.0012 | X45: 800 | Y45: =X45*W45 -> 0.96 | AA45: =Y45-R45 -> 0 | AB45: 0 | AD45: 0.0012 | AE45: 800 | AF45: =AE45*AD45 -> 0.96 | AH45: =AF45-Y45 -> 0 | AI45: 0 | AK45: 0.0012 | AL45: 800 | AM45: =AL45*AK45 -> 0.96 | AO45: =AM45-AF45 -> 0 | AP45: 0
A46: Line Losses on Cost of Power | C46: per kWh | E46: 0.095 | F46: =$E$18*(1+$E$75)-$E$18 -> 27.52 | G46: 2.6144 | I46: 0.095 | J46: =$E$18*(1+$I$75)-$E$18 -> 31.44 | K46: 2.9868 | M46: 0.3724 | N46: 0.1424418605 | P46: 0.095 | Q46: =$E$18*(1+$I$75)-$E$18 -> 31.44 | R46: =Q46*P46 -> 2.9868 | T46: =R46-K46 -> 0 | U46: 0 | W46: 0.095 | X46: =$E$18*(1+$I$75)-$E$18 -> 31.44 | Y46: =X46*W46 -> 2.9868 | AA46: =Y46-R46 -> 0 | AB46: 0 | AD46: 0.095 | AE46: =$E$18*(1+$I$75)-$E$18 -> 31.44 | AF46: =AE46*AD46 -> 2.9868 | AH46: =AF46-Y46 -> 0 | AI46: 0 | AK46: 0.095 | AL46: =$E$18*(1+$I$75)-$E$18 -> 31.44 | AM46: =AL46*AK46 -> 2.9868 | AO46: =AM46-AF46 -> 0 | AP46: 0
A47: Smart Meter Entity Charge | C47: Monthly | E47: 0.79 | F47: 1 | G47: =F47*E47 -> 0.79 | I47: 0.79 | J47: 1 | K47: =J47*I47 -> 0.79 | M47: =K47-G47 -> 0 | P47: 0.79 | Q47: 1 | R47: =Q47*P47 -> 0.79 | T47: =R47-K47 -> 0 | U47: 0 | W47: 0.79 | X47: 1 | Y47: =X47*W47 -> 0.79 | AA47: =Y47-R47 -> 0 | AB47: 0 | AD47: 0.79 | AE47: 1 | AF47: =AE47*AD47 -> 0.79 | AH47: =AF47-Y47 -> 0 | AI47: 0 | AK47: 0.79 | AL47: 1 | AM47: =AL47*AK47 -> 0.79 | AO47: =AM47-AF47 -> 0 | AP47: 0
A48: Sub-Total B - Distribution (includes Sub-Total A) | G48: =SUM(G40:G47)+G39 -> 31.3944 | K48: =SUM(K40:K47)+K39 -> 31.9868 | M48: =K48-G48 -> 0.5924 | N48: =IF((G48)=0,"",(M48/G48)) -> 0.01886960732 | R48: =SUM(R40:R47)+R39 -> 30.6368 | T48: =R48-K48 -> -1.35 | U48: -0.04220490953 | Y48: =SUM(Y40:Y47)+Y39 -> 30.7968 | AA48: =Y48-R48 -> 0.16 | AB48: 0.005222477543 | AF48: =SUM(AF40:AF47)+AF39 -> 30.8668 | AH48: =AF48-Y48 -> 0.07 | AI48: 0.002272963425 | AM48: =SUM(AM40:AM47)+AM39 -> 31.5068 | AO48: =AM48-AF48 -> 0.64 | AP48: 0.02073425169
A49: RTSR - Network | C49: per kWh | E49: 0.0067 | F49: =$E$18*(1+$E$75) -> 827.52 | G49: =F49*E49 -> 5.544384 | I49: 0.0071 | J49: =$E$18*(1+$I$75) -> 831.44 | K49: =J49*I49 -> 5.903224 | M49: 0.35884 | N49: 0.06472134686 | P49: 0.0071 | Q49: =$E$18*(1+P75) -> 831.44 | R49: =Q49*P49 -> 5.903224 | T49: 0 | U49: 0 | W49: 0.0071 | X49: =$E$18*(1+W75) -> 831.44 | Y49: =X49*W49 -> 5.903224 | AA49: 0 | AB49: 0 | AD49: 0.0071 | AE49: =$E$18*(1+AD75) -> 831.44 | AF49: =AE49*AD49 -> 5.903224 | AH49: 0 | AI49: 0 | AK49: 0.0071 | AL49: =$E$18*(1+AK75) -> 831.44 | AM49: =AL49*AK49 -> 5.903224 | AO49: 0 | AP49: 0
A50: RTSR - Line and Transformation Connection | C50: per kWh | E50: 0.0051 | F50: =F49 -> 827.52 | G50: =F50*E50 -> 4.220352 | I50: 0.0056 | J50: =J49 -> 831.44 | K50: =J50*I50 -> 4.656064 | M50: 0.435712 | N50: 0.1032406776 | P50: 0.0056 | Q50: =Q49 -> 831.44 | R50: =Q50*P50 -> 4.656064 | T50: 0 | U50: 0 | W50: 0.0056 | X50: =X49 -> 831.44 | Y50: =X50*W50 -> 4.656064 | AA50: 0 | AB50: 0 | AD50: 0.0056 | AE50: =AE49 -> 831.44 | AF50: =AE50*AD50 -> 4.656064 | AH50: 0 | AI50: 0 | AK50: 0.0056 | AL50: =AL49 -> 831.44 | AM50: =AL50*AK50 -> 4.656064 | AO50: 0 | AP50: 0
A51: Sub-Total C - Delivery (including Sub-Total B) | G51: =SUM(G48:G50) -> 41.159136 | K51: =SUM(K48:K50) -> 42.546088 | M51: 1.386952 | N51: 0.03369730599 | R51: =SUM(R48:R50) -> 41.196088 | T51: -1.35 | U51: -0.0317302968 | Y51: =SUM(Y48:Y50) -> 41.356088 | AA51: 0.16 | AB51: 0.003883863924 | AF51: =SUM(AF48:AF50) -> 41.426088 | AH51: 0.07 | AI51: 0.001692616574 | AM51: =SUM(AM48:AM50) -> 42.066088 | AO51: 0.64 | AP51: 0.01544920196
A52: Wholesale Market Service Charge (WMSC) | C52: per kWh | E52: 0.0044 | F52: =F50 -> 827.52 | G52: =F52*E52 -> 3.641088 | I52: 0.0044 | J52: =J50 -> 831.44 | K52: =J52*I52 -> 3.658336 | M52: 0.017248 | N52: 0.00473704563 | P52: 0.0044 | Q52: =Q50 -> 831.44 | R52: =Q52*P52 -> 3.658336 | T52: 0 | U52: 0 | W52: 0.0044 | X52: =X50 -> 831.44 | Y52: =X52*W52 -> 3.658336 | AA52: 0 | AB52: 0 | AD52: 0.0044 | AE52: =AE50 -> 831.44 | AF52: =AE52*AD52 -> 3.658336 | AH52: 0 | AI52: 0 | AK52: 0.0044 | AL52: =AL50 -> 831.44 | AM52: =AL52*AK52 -> 3.658336 | AO52: 0 | AP52: 0
A53: Rural and Remote Rate Protection (RRRP) | C53: per kWh | E53: 0.0013 | F53: =F50 -> 827.52 | G53: 1.075776 | I53: 0.0013 | J53: =J50 -> 831.44 | K53: 1.080872 | M53: 0.005096 | N53: 0.00473704563 | P53: 0.0013 | Q53: =Q50 -> 831.44 | R53: 1.080872 | T53: 0 | U53: 0 | W53: 0.0013 | X53: =X50 -> 831.44 | Y53: 1.080872 | AA53: 0 | AB53: 0 | AD53: 0.0013 | AE53: =AE50 -> 831.44 | AF53: 1.080872 | AH53: 0 | AI53: 0 | AK53: 0.0013 | AL53: =AL50 -> 831.44 | AM53: 1.080872 | AO53: 0 | AP53: 0
A54: Standard Supply Service Charge | C54: Monthly | E54: 0.25 | F54: 1 | G54: 0.25 | I54: 0.25 | J54: 1 | K54: 0.25 | M54: 0 | N54: 0 | P54: 0.25 | Q54: 1 | R54: 0.25 | T54: 0 | U54: 0 | W54: 0.25 | X54: 1 | Y54: 0.25 | AA54: 0 | AB54: 0 | AD54: 0.25 | AE54: 1 | AF54: 0.25 | AH54: 0 | AI54: 0 | AK54: 0.25 | AL54: 1 | AM54: 0.25 | AO54: 0 | AP54: 0
A55: Debt Retirement Charge (DRC) | C55: per kWh | E55: 0.007 | F55: =E18 -> 800 | G55: 5.6 | I55: 0.007 | J55: =E18 -> 800 | K55: 5.6 | M55: 0 | N55: 0 | P55: 0.007 | Q55: =J55 -> 800 | R55: 5.6 | T55: 0 | U55: 0 | W55: 0.007 | X55: =Q55 -> 800 | Y55: 5.6 | AA55: 0 | AB55: 0 | AD55: 0.007 | AE55: =X55 -> 800 | AF55: 5.6 | AH55: 0 | AI55: 0 | AK55: 0.007 | AL55: =AE55 -> 800 | AM55: 5.6 | AO55: 0 | AP55: 0
A56: TOU - Off Peak | C56: per kWh | E56: 0.077 | F56: =0.64*$E$18 -> 512 | G56: 39.424 | I56: 0.077 | J56: =F56 -> 512 | K56: 39.424 | M56: 0 | N56: 0 | P56: 0.077 | Q56: =J56 -> 512 | R56: 39.424 | T56: 0 | U56: 0 | W56: 0.077 | X56: =Q56 -> 512 | Y56: 39.424 | AA56: 0 | AB56: 0 | AD56: 0.077 | AE56: =X56 -> 512 | AF56: 39.424 | AH56: 0 | AI56: 0 | AK56: 0.077 | AL56: =AE56 -> 512 | AM56: 39.424 | AO56: 0 | AP56: 0
A57: TOU - Mid Peak | C57: per kWh | E57: 0.114 | F57: =0.18*$E$18 -> 144 | G57: 16.416 | I57: 0.114 | J57: =F57 -> 144 | K57: 16.416 | M57: 0 | N57: 0 | P57: 0.114 | Q57: =J57 -> 144 | R57: 16.416 | T57: 0 | U57: 0 | W57: 0.114 | X57: =Q57 -> 144 | Y57: 16.416 | AA57: 0 | AB57: 0 | AD57: 0.114 | AE57: =X57 -> 144 | AF57: 16.416 | AH57: 0 | AI57: 0 | AK57: 0.114 | AL57: =AE57 -> 144 | AM57: 16.416 | AO57: 0 | AP57: 0
A58: TOU - On Peak | C58: per kWh | E58: 0.14 | F58: =0.18*$E$18 -> 144 | G58: 20.16 | I58: 0.14 | J58: =F58 -> 144 | K58: 20.16 | M58: 0 | N58: 0 | P58: 0.14 | Q58: 144 | R58: 20.16 | T58: 0 | U58: 0 | W58: 0.14 | X58: 144 | Y58: 20.16 | AA58: 0 | AB58: 0 | AD58: 0.14 | AE58: 144 | AF58: 20.16 | AH58: 0 | AI58: 0 | AK58: 0.14 | AL58: 144 | AM58: 20.16 | AO58: 0 | AP58: 0
A59: Energy - RPP - Tier 1 | C59: per kWh | E59: 0.088 | F59: =IF(AND($S$1=1, E18>=600), 600, IF(AND($S$1=1, AND(E18<600, E18>=0)), E18, IF(AND($S$1=2, E18>=1000), 1000, IF(AND($S$1=2, AND(E18<1000, E18>=0)), E18)))) -> 600 | G59: =F59*E59 -> 52.8 | I59: 0.088 | J59: =F59 -> 600 | K59: =J59*I59 -> 52.8 | M59: 0 | N59: 0 | P59: 0.088 | Q59: 600 | R59: =Q59*P59 -> 52.8 | T59: 0 | U59: 0 | W59: 0.088 | X59: 600 | Y59: =X59*W59 -> 52.8 | AA59: 0 | AB59: 0 | AD59: 0.088 | AE59: 600 | AF59: =AE59*AD59 -> 52.8 | AH59: 0 | AI59: 0 | AK59: 0.088 | AL59: 600 | AM59: =AL59*AK59 -> 52.8 | AO59: 0 | AP59: 0
A60: Energy - RPP - Tier 2 | C60: per kWh | E60: 0.103 | F60: =IF(AND($S$1=1, E18>=600), E18-600, IF(AND($S$1=1, AND(E18<600, E18>=0)), 0, IF(AND($S$1=2, E18>=1000), E18-1000, IF(AND($S$1=2, AND(E18<1000, E18>=0)), 0)))) -> 200 | G60: =F60*E60 -> 20.6 | I60: 0.103 | J60: =F60 -> 200 | K60: =J60*I60 -> 20.6 | M60: 0 | N60: 0 | P60: 0.103 | Q60: 200 | R60: =Q60*P60 -> 20.6 | T60: 0 | U60: 0 | W60: 0.103 | X60: 200 | Y60: =X60*W60 -> 20.6 | AA60: 0 | AB60: 0 | AD60: 0.103 | AE60: 200 | AF60: =AE60*AD60 -> 20.6 | AH60: 0 | AI60: 0 | AK60: 0.103 | AL60: 200 | AM60: =AL60*AK60 -> 20.6 | AO60: 0 | AP60: 0
A62: Total Bill on TOU (before Taxes) | G62: =SUM(G52:G58,G51) -> 127.726 | K62: =SUM(K52:K58,K51) -> 129.135296 | M62: =K62-G62 -> 1.409296 | N62: =IF((G62)=0,"",(M62/G62)) -> 0.01103374411 | R62: =SUM(R52:R58,R51) -> 127.785296 | T62: =R62-K62 -> -1.35 | U62: -0.0104541519 | Y62: =SUM(Y52:Y58,Y51) -> 127.945296 | AA62: =Y62-R62 -> 0.16 | AB62: 0.001252100242 | AF62: =SUM(AF52:AF58,AF51) -> 128.015296 | AH62: =AF62-Y62 -> 0.07 | AI62: 0.0005471088206 | AM62: =SUM(AM52:AM58,AM51) -> 128.655296 | AO62: =AM62-AF62 -> 0.64 | AP62: 0.004999402571
A63: HST | E63: 0.13 | G63: =G62*E63 -> 16.60438 | I63: 0.13 | K63: =K62*I63 -> 16.78758848 | M63: 0.18320848 | N63: 0.01103374411 | P63: 0.13 | R63: =R62*P63 -> 16.61208848 | T63: =R63-K63 -> -0.1755 | U63: -0.0104541519 | W63: 0.13 | Y63: =Y62*W63 -> 16.63288848 | AA63: =Y63-R63 -> 0.0208 | AB63: 0.001252100242 | AD63: 0.13 | AF63: =AF62*AD63 -> 16.64198848 | AH63: =AF63-Y63 -> 0.0091 | AI63: 0.0005471088206 | AK63: 0.13 | AM63: =AM62*AK63 -> 16.72518848 | AO63: =AM63-AF63 -> 0.0832 | AP63: 0.004999402571
A64: Total Bill (including HST) | G64: =G62+G63 -> 144.33038 | K64: =K62+K63 -> 145.9228845 | M64: 1.59250448 | N64: 0.01103374411 | R64: =R62+R63 -> 144.3973845 | T64: -1.5255 | U64: -0.0104541519 | Y64: =Y62+Y63 -> 144.5781845 | AA64: 0.1808 | AB64: 0.001252100242 | AF64: =AF62+AF63 -> 144.6572845 | AH64: 0.0791 | AI64: 0.0005471088206 | AM64: =AM62+AM63 -> 145.3804845 | AO64: 0.7232 | AP64: 0.004999402571
A65: Ontario Clean Energy Benefit 1 | G65: =ROUND(-G64*10%,2) -> -14.43 | K65: =ROUND(-K64*10%,2) -> -14.59 | M65: -0.16 | N65: 0.01108801109 | R65: =ROUND(-R64*10%,2) -> -14.44 | T65: 0.15 | U65: -0.01028101439 | Y65: =ROUND(-Y64*10%,2) -> -14.46 | AA65: -0.02 | AB65: 0.001385041551 | AF65: =ROUND(-AF64*10%,2) -> -14.47 | AH65: -0.01 | AI65: 0.0006915629322 | AM65: =ROUND(-AM64*10%,2) -> -14.54 | AO65: -0.07 | AP65: 0.004837595024
A66: Total Bill on TOU (including OCEB) | G66: =G64+G65 -> 129.90038 | K66: =K64+K65 -> 131.3328845 | M66: 1.43250448 | N66: 0.01102771585 | R66: =R64+R65 -> 129.9573845 | T66: -1.3755 | U66: -0.01047338605 | Y66: =Y64+Y65 -> 130.1181845 | AA66: 0.1608 | AB66: 0.001237328688 | AF66: =AF64+AF65 -> 130.1872845 | AH66: 0.0691 | AI66: 0.0005310556728 | AM66: =AM64+AM65 -> 130.8404845 | AO66: 0.6532 | AP66: 0.005017387087
A68: Total Bill on RPP (before Taxes) | G68: =SUM(G59:G60,G52:G55,G51) -> 125.126 | K68: =SUM(K59:K60,K52:K55,K51) -> 126.535296 | M68: =K68-G68 -> 1.409296 | N68: =IF((G68)=0,"",(M68/G68)) -> 0.01126301488 | R68: =SUM(R59:R60,R52:R55,R51) -> 125.185296 | T68: =R68-K68 -> -1.35 | U68: -0.01066895991 | Y68: =SUM(Y59:Y60,Y52:Y55,Y51) -> 125.345296 | AA68: =Y68-R68 -> 0.16 | AB68: 0.001278105377 | AF68: =SUM(AF59:AF60,AF52:AF55,AF51) -> 125.415296 | AH68: =AF68-Y68 -> 0.07 | AI68: 0.0005584573353 | AM68: =SUM(AM59:AM60,AM52:AM55,AM51) -> 126.055296 | AO68: =AM68-AF68 -> 0.64 | AP68: 0.005103045804
A69: HST | E69: 0.13 | G69: =G68*E69 -> 16.26638 | I69: 0.13 | K69: =K68*I69 -> 16.44958848 | M69: 0.18320848 | N69: =IF((G69)=0,"",(M69/G69)) -> 0.01126301488 | P69: 0.13 | R69: =R68*P69 -> 16.27408848 | T69: =R69-K69 -> -0.1755 | U69: -0.01066895991 | W69: 0.13 | Y69: =Y68*W69 -> 16.29488848 | AA69: =Y69-R69 -> 0.0208 | AB69: 0.001278105377 | AD69: 0.13 | AF69: =AF68*AD69 -> 16.30398848 | AH69: =AF69-Y69 -> 0.0091 | AI69: 0.0005584573353 | AK69: 0.13 | AM69: =AM68*AK69 -> 16.38718848 | AO69: =AM69-AF69 -> 0.0832 | AP69: 0.005103045804
A70: Total Bill (including HST) | G70: =G68+G69 -> 141.39238 | K70: =K68+K69 -> 142.9848845 | M70: 1.59250448 | N70: 0.01126301488 | R70: =R68+R69 -> 141.4593845 | T70: -1.5255 | U70: -0.01066895991 | Y70: =Y68+Y69 -> 141.6401845 | AA70: 0.1808 | AB70: 0.001278105377 | AF70: =AF68+AF69 -> 141.7192845 | AH70: 0.0791 | AI70: 0.0005584573353 | AM70: =AM68+AM69 -> 142.4424845 | AO70: 0.7232 | AP70: 0.005103045804
A71: Ontario Clean Energy Benefit 1 | G71: =ROUND(-G70*10%,2) -> -14.14 | K71: =ROUND(-K70*10%,2) -> -14.3 | M71: -0.16 | N71: 0.01131541726 | R71: =ROUND(-R70*10%,2) -> -14.15 | T71: 0.15 | U71: -0.01048951049 | Y71: =ROUND(-Y70*10%,2) -> -14.16 | AA71: -0.01 | AB71: 0.0007067137809 | AF71: =ROUND(-AF70*10%,2) -> -14.17 | AH71: -0.01 | AI71: 0.0007062146893 | AM71: =ROUND(-AM70*10%,2) -> -14.24 | AO71: -0.07 | AP71: 0.004940014114
A72: Total Bill on RPP (including OCEB) | G72: =SUM(G70:G71) -> 127.25238 | K72: =SUM(K70:K71) -> 128.6848845 | M72: 1.43250448 | N72: 0.01125719205 | R72: =SUM(R70:R71) -> 127.3093845 | T72: -1.3755 | U72: -0.01068890107 | Y72: =SUM(Y70:Y71) -> 127.4801845 | AA72: 0.1708 | AB72: 0.001341613587 | AF72: =SUM(AF70:AF71) -> 127.5492845 | AH72: 0.0691 | AI72: 0.0005420450267 | AM72: =SUM(AM70:AM71) -> 128.2024845 | AO72: 0.6532 | AP72: 0.005121157697
A75: Loss Factor (%) | E75: 0.0344 | I75: 0.0393 | P75: 0.0393 | W75: 0.0393 | AD75: 0.0393 | AK75: 0.0393
A77: Distribution Excluding Rate Riders | E77: 2015 Current Board-Approved | I77: 2016 Test Year 1 Proposed | M77: Impact 2016 TEST vs. 2015 Bridge | P77: 2017 Test Year 2 Proposed | T77: Impact 2017 TEST 2 vs. 2016 Test 1 | W77: 2018 Test Year 3 Proposed | AA77: Impact 2018 TEST 3 vs. 2017 Test 2 | AD77: 2019 Test Year 4 Proposed | AH77: Impact 2019 TEST 4 vs. 2018 Test 3 | AK77: 2020 Test Year 5 Proposed | AO77: Impact 2020 TEST 5 vs. 2019 Test 4
C78: Charge Unit | E78: Rate | F78: Volume | G78: Charge | I78: Rate | J78: Volume | K78: Charge | M78: $ Change | N78: % Change | P78: Rate | Q78: Volume | R78: Charge | T78: $ Change | U78: % Change | W78: Rate | X78: Volume | Y78: Charge | AA78: $ Change | AB78: % Change | AD78: Rate | AE78: Volume | AF78: Charge | AH78: $ Change | AI78: % Change | AK78: Rate | AL78: Volume | AM78: Charge | AO78: $ Change | AP78: % Change
E79: ($) | G79: ($) | I79: ($) | K79: ($) | P79: ($) | R79: ($) | W79: ($) | Y79: ($) | AD79: ($) | AF79: ($) | AK79: ($) | AM79: ($)
A80: Monthly Service Charge | C80: Monthly | E80: 12.56 | F80: 1 | G80: =F80*E80 -> 12.56 | I80: 16.4 | J80: 1 | K80: =J80*I80 -> 16.4 | M80: =K80-G80 -> 3.84 | N80: =IF((G80)=0,"",(M80/G80)) -> 0.3057324841 | P80: 19.78 | Q80: 1 | R80: =Q80*P80 -> 19.78 | T80: =R80-K80 -> 3.38 | U80: =IF((K80)=0,"",(T80/K80)) -> 0.206097561 | W80: 23.3 | X80: 1 | Y80: =X80*W80 -> 23.3 | AA80: =Y80-R80 -> 3.52 | AB80: =IF((R80)=0,"",(AA80/R80)) -> 0.1779575329 | AD80: 26.97 | AE80: 1 | AF80: =AE80*AD80 -> 26.97 | AH80: =AF80-Y80 -> 3.67 | AI80: =IF((Y80)=0,"",(AH80/Y80)) -> 0.1575107296 | AK80: 27.61 | AL80: 1 | AM80: =AL80*AK80 -> 27.61 | AO80: =AM80-AF80 -> 0.64 | AP80: =IF((AF80)=0,"",(AO80/AF80)) -> 0.02373007045
A81: Distribution Volumetric Rate | C81: per kWh | E81: 0.0154 | F81: =$E$18 -> 800 | G81: =F81*E81 -> 12.32 | I81: 0.0126 | J81: =$E$18 -> 800 | K81: =J81*I81 -> 10.08 | M81: =K81-G81 -> -2.24 | N81: =IF((G81)=0,"",(M81/G81)) -> -0.1818181818 | P81: 0.0087 | Q81: =$E$18 -> 800 | R81: =Q81*P81 -> 6.96 | T81: -3.12 | U81: =IF((K81)=0,"",(T81/K81)) -> -0.3095238095 | W81: 0.0045 | X81: =$E$18 -> 800 | Y81: =X81*W81 -> 3.6 | AA81: -3.36 | AB81: =IF((R81)=0,"",(AA81/R81)) -> -0.4827586207 | AD81: 0 | AE81: =$E$18 -> 800 | AF81: =AE81*AD81 -> 0 | AH81: -3.6 | AI81: =IF((Y81)=0,"",(AH81/Y81)) -> -1 | AK81: 0 | AL81: =$E$18 -> 800 | AM81: =AL81*AK81 -> 0 | AO81: 0 | AP81: =IF((AF81)=0,"",(AO81/AF81)) -> 
A82: "Regular" Distribution Only | G82: =SUM(G80:G81) -> 24.88 | K82: =SUM(K80:K81) -> 26.48 | M82: =K82-G82 -> 1.6 | N82: =IF((G82)=0,"",(M82/G82)) -> 0.06430868167 | R82: =SUM(R80:R81) -> 26.74 | T82: =R82-K82 -> 0.26 | U82: =IF((K82)=0,"",(T82/K82)) -> 0.009818731118 | Y82: =SUM(Y80:Y81) -> 26.9 | AA82: =Y82-R82 -> 0.16 | AB82: =IF((R82)=0,"",(AA82/R82)) -> 0.005983545251 | AF82: =SUM(AF80:AF81) -> 26.97 | AH82: =AF82-Y82 -> 0.07 | AI82: =IF((Y82)=0,"",(AH82/Y82)) -> 0.002602230483 | AM82: =SUM(AM80:AM81) -> 27.61 | AO82: =AM82-AF82 -> 0.64 | AP82: =IF((AF82)=0,"",(AO82/AF82)) -> 0.02373007045
B84: Residential (kWh) - 100, 250, 500, 800, 1000, 1500, 2000
B85: GS<50kW (kWh) - 1000, 2000, 5000, 10000, 15000
B86: GS>50kW (kW) - 60, 100, 500, 1000
B87: Large User - range appropriate for utility
B88: Lighting Classes and USL - 150 kWh and 1 kW, range appropriate for utility.
C90: Note that cells with the highlighted color shown to the left indicate quantities that are loss adjusted.

Sheet App. 2-W Bill Impacts GS < 50
M1: File Number: | N1: =EBNUMBER -> EB-2015-0083 | S1: 1
M2: Exhibit: | N2: ='App.2-W_Bill Impacts _Resi'!$N$2 -> 8
M3: Tab: | N3: ='App.2-W_Bill Impacts _Resi'!$N$3 -> 4
M4: Schedule: | N4: ='App.2-W_Bill Impacts _Resi'!$N$4 -> 3
M5: Page: | N5: ='App.2-W_Bill Impacts _Resi'!N5+1 -> 2
N7: ='App.2-W_Bill Impacts _Resi'!$N$7 -> 1-Staff-4 IRR
A10: Appendix 2-W
A11: Bill Impacts
A14: Customer Class: | C14: General Service Less Than 50 kW | P14: =C14 -> General Service Less Than 50 kW | AK14: =P14 -> General Service Less Than 50 kW
A16: TOU / non-TOU: | C16: TOU
C18: Consumption | E18: 2000 | F18: kWh
E20: 2015 Current Board-Approved | I20: 2016 Test Year 1 Proposed | M20: Impact 2016 TEST vs. 2015 Bridge | P20: 2017 Test Year 2 Proposed | T20: Impact 2017 TEST 2 vs. 2016 Test 1 | W20: 2018 Test Year 3 Proposed | AA20: Impact 2018 TEST 3 vs. 2017 Test 2 | AD20: 2019 Test Year 4 Proposed | AH20: Impact 2019 TEST 4 vs. 2018 Test 3 | AK20: 2020 Test Year 5 Proposed | AO20: Impact 2020 TEST 5 vs. 2019 Test 4
C21: Charge Unit | E21: Rate | F21: Volume | G21: Charge | I21: Rate | J21: Volume | K21: Charge | M21: $ Change | N21: % Change | P21: Rate | Q21: Volume | R21: Charge | T21: $ Change | U21: % Change | W21: Rate | X21: Volume | Y21: Charge | AA21: $ Change | AB21: % Change | AD21: Rate | AE21: Volume | AF21: Charge | AH21: $ Change | AI21: % Change | AK21: Rate | AL21: Volume | AM21: Charge | AO21: $ Change | AP21: % Change
E22: ($) | G22: ($) | I22: ($) | K22: ($) | P22: ($) | R22: ($) | W22: ($) | Y22: ($) | AD22: ($) | AF22: ($) | AK22: ($) | AM22: ($)
A23: Monthly Service Charge | C23: Monthly | E23: 25.85 | F23: 1 | G23: =F23*E23 -> 25.85 | I23: 26.84 | J23: 1 | K23: =J23*I23 -> 26.84 | M23: =K23-G23 -> 0.99 | N23: =IF((G23)=0,"",(M23/G23)) -> 0.03829787234 | P23: 27.6 | Q23: 1 | R23: =Q23*P23 -> 27.6 | T23: =R23-K23 -> 0.76 | U23: =IF((K23)=0,"",(T23/K23)) -> 0.02831594635 | W23: 28.16 | X23: 1 | Y23: =X23*W23 -> 28.16 | AA23: =Y23-R23 -> 0.56 | AB23: =IF((R23)=0,"",(AA23/R23)) -> 0.02028985507 | AD23: 28.6 | AE23: 1 | AF23: =AE23*AD23 -> 28.6 | AH23: =AF23-Y23 -> 0.44 | AI23: =IF((Y23)=0,"",(AH23/Y23)) -> 0.015625 | AK23: 28.83 | AL23: 1 | AM23: =AL23*AK23 -> 28.83 | AO23: =AM23-AF23 -> 0.23 | AP23: =IF((AF23)=0,"",(AO23/AF23)) -> 0.008041958042
A24: Smart Meter (SMIRR) Rate Rider | C24: Monthly | E24: 3.65 | F24: 1 | G24: =F24*E24 -> 3.65 | I24: 0 | J24: 1 | K24: 0 | M24: -3.65 | N24: =IF((G24)=0,"",(M24/G24)) -> -1 | P24: 0 | Q24: 1 | R24: 0 | T24: 0 | U24: =IF((K24)=0,"",(T24/K24)) ->  | W24: 0 | X24: 1 | Y24: 0 | AA24: 0 | AB24: =IF((R24)=0,"",(AA24/R24)) ->  | AD24: 0 | AE24: 1 | AF24: 0 | AH24: 0 | AI24: =IF((Y24)=0,"",(AH24/Y24)) ->  | AK24: 0 | AL24: 1 | AM24: 0 | AO24: 0 | AP24: =IF((AF24)=0,"",(AO24/AF24)) -> 
A25: Rate Rider Smart Meters Capital (2016) | C25: Monthly | E25: 0 | F25: 1 | G25: 0 | I25: 0.43 | J25: 1 | K25: 0.43 | M25: 0.43 | N25: 1 | P25: 0 | Q25: 1 | R25: 0 | T25: -0.43 | U25: -1 | W25: 0 | X25: 1 | Y25: 0 | AA25: 0 | AD25: 0 | AE25: 1 | AF25: 0 | AH25: 0 | AK25: 0 | AL25: 1 | AM25: 0 | AO25: 0
A26: Rate Rider Recovery of Stranded Meters (2016) | C26: Monthly | E26: 0 | F26: 1 | G26: 0 | I26: 1.87 | J26: 1 | K26: 1.87 | M26: 1.87 | N26: 1 | P26: 1.87 | Q26: 1 | R26: 1.87 | T26: 0 | U26: 0 | W26: 1.87 | X26: 1 | Y26: 1.87 | AA26: 0 | AB26: 0 | AD26: 1.87 | AE26: 1 | AF26: 1.87 | AH26: 0 | AI26: 0 | AK26: 1.87 | AL26: 1 | AM26: 1.87 | AO26: 0 | AP26: 0
F27: 1 | G27: 0 | I27: 0 | J27: 1 | K27: 0 | M27: 0 | N27: =IF((G27)=0,"",(M27/G27)) ->  | P27: 0 | Q27: 1 | R27: 0 | T27: 0 | W27: 0 | X27: 1 | Y27: 0 | AA27: 0 | AD27: 0 | AE27: 1 | AF27: 0 | AH27: 0 | AK27: 0 | AL27: 1 | AM27: 0 | AO27: 0
F28: 1 | G28: 0 | I28: 0 | J28: 1 | K28: 0 | M28: 0 | N28: =IF((G28)=0,"",(M28/G28)) ->  | P28: 0 | Q28: 1 | R28: 0 | T28: 0 | W28: 0 | X28: 1 | Y28: 0 | AA28: 0 | AD28: 0 | AE28: 1 | AF28: 0 | AH28: 0 | AK28: 0 | AL28: 1 | AM28: 0 | AO28: 0
A29: Distribution Volumetric Rate | C29: per kWh | E29: 0.0106 | F29: =$E$18 -> 2000 | G29: 21.2 | I29: 0.0109 | J29: =$E$18 -> 2000 | K29: =J29*I29 -> 21.8 | M29: =K29-G29 -> 0.6 | N29: =IF((G29)=0,"",(M29/G29)) -> 0.02830188679 | P29: 0.0112 | Q29: =$E$18 -> 2000 | R29: =Q29*P29 -> 22.4 | T29: 0.6 | U29: 0.02752293578 | W29: 0.0116 | X29: =$E$18 -> 2000 | Y29: =X29*W29 -> 23.2 | AA29: 0.8 | AB29: 0.03571428571 | AD29: 0.0121 | AE29: =$E$18 -> 2000 | AF29: =AE29*AD29 -> 24.2 | AH29: 1 | AI29: 0.04310344828 | AK29: 0.0125 | AL29: =$E$18 -> 2000 | AM29: =AL29*AK29 -> 25 | AO29: 0.8 | AP29: 0.03305785124
A30: Rate Rider Tax Change (2015) | C30: per kWh | E30: -0.0001 | F30: =$E$18 -> 2000 | G30: -0.2 | I30: 0 | J30: =$E$18 -> 2000 | K30: 0 | M30: 0.2 | N30: =IF((G30)=0,"",(M30/G30)) -> -1 | P30: 0 | Q30: =$E$18 -> 2000 | R30: 0 | T30: 0 | W30: 0 | X30: =$E$18 -> 2000 | Y30: 0 | AA30: 0 | AD30: 0 | AE30: =$E$18 -> 2000 | AF30: 0 | AH30: 0 | AK30: 0 | AL30: =$E$18 -> 2000 | AM30: 0 | AO30: 0
A31: LRAM VA (2016) | C31: per kWh | E31: 0 | F31: =$E$18 -> 2000 | G31: 0 | I31: 0.0008 | J31: 2000 | K31: 1.6 | M31: 1.6 | N31: 1 | P31: 0 | Q31: 2000 | R31: 0 | T31: -1.6 | U31: =IF((K31)=0,"",(T31/K31)) -> -1 | W31: 0 | X31: 2000 | Y31: 0 | AA31: 0 | AD31: 0 | AE31: 2000 | AF31: 0 | AH31: 0 | AK31: 0 | AL31: 2000 | AM31: 0 | AO31: 0
A32: Rate Rider Incremental Capital 2012 True-Up (2016) | C32: per kWh | E32: 0 | F32: =$E$18 -> 2000 | G32: 0 | I32: 0.0002 | J32: 2000 | K32: 0.4 | M32: 0.4 | N32: 1 | P32: 0 | Q32: 2000 | R32: 0 | T32: -0.4 | U32: =IF((K32)=0,"",(T32/K32)) -> -1 | W32: 0 | X32: 2000 | Y32: 0 | AA32: 0 | AD32: 0 | AE32: 2000 | AF32: 0 | AH32: 0 | AK32: 0 | AL32: 2000 | AM32: 0 | AO32: 0
C33: per kWh | F33: 2000 | G33: =F33*E33 -> 0 | J33: 2000 | K33: =J33*I33 -> 0 | M33: =K33-G33 -> 0 | N33: =IF((G33)=0,"",(M33/G33)) ->  | Q33: 2000 | R33: =Q33*P33 -> 0 | T33: =R33-K33 -> 0 | U33: =IF((K33)=0,"",(T33/K33)) ->  | X33: 2000 | Y33: =X33*W33 -> 0 | AA33: =Y33-R33 -> 0 | AB33: =IF((R33)=0,"",(AA33/R33)) ->  | AE33: 2000 | AF33: =AE33*AD33 -> 0 | AH33: =AF33-Y33 -> 0 | AI33: =IF((Y33)=0,"",(AH33/Y33)) ->  | AL33: 2000 | AM33: =AL33*AK33 -> 0 | AO33: =AM33-AF33 -> 0 | AP33: =IF((AF33)=0,"",(AO33/AF33)) -> 
C34: per kWh | F34: 2000 | G34: 0 | J34: 2000 | K34: 0 | M34: 0 | Q34: 2000 | R34: 0 | T34: 0 | X34: 2000 | Y34: 0 | AA34: 0 | AE34: 2000 | AF34: 0 | AH34: 0 | AL34: 2000 | AM34: 0 | AO34: 0
F35: 2000 | G35: 0 | J35: 2000 | K35: 0 | M35: 0 | Q35: 2000 | R35: 0 | T35: 0 | X35: 2000 | Y35: 0 | AA35: 0 | AE35: 2000 | AF35: 0 | AH35: 0 | AL35: 2000 | AM35: 0 | AO35: 0
F36: 2000 | G36: 0 | J36: 2000 | K36: 0 | M36: 0 | Q36: 2000 | R36: 0 | T36: 0 | X36: 2000 | Y36: 0 | AA36: 0 | AE36: 2000 | AF36: 0 | AH36: 0 | AL36: 2000 | AM36: 0 | AO36: 0
F37: 2000 | G37: 0 | J37: 2000 | K37: 0 | M37: 0 | Q37: 2000 | R37: 0 | T37: 0 | X37: 2000 | Y37: 0 | AA37: 0 | AE37: 2000 | AF37: 0 | AH37: 0 | AL37: 2000 | AM37: 0 | AO37: 0
F38: 2000 | G38: 0 | J38: 2000 | K38: 0 | M38: 0 | Q38: 2000 | R38: 0 | T38: 0 | X38: 2000 | Y38: 0 | AA38: 0 | AE38: 2000 | AF38: 0 | AH38: 0 | AL38: 2000 | AM38: 0 | AO38: 0
A39: Sub-Total A (excluding pass through) | G39: =SUM(G23:G38) -> 50.5 | K39: =SUM(K23:K38) -> 52.94 | M39: =K39-G39 -> 2.44 | N39: =IF((G39)=0,"",(M39/G39)) -> 0.04831683168 | R39: =SUM(R23:R38) -> 51.87 | T39: -1.07 | U39: -0.02021156026 | Y39: =SUM(Y23:Y38) -> 53.23 | AA39: 1.36 | AB39: 0.02621939464 | AF39: =SUM(AF23:AF38) -> 54.67 | AH39: 1.44 | AI39: =IF((Y39)=0,"",(AH39/Y39)) -> 0.02705241405 | AM39: =SUM(AM23:AM38) -> 55.7 | AO39: 1.03 | AP39: 0.01884031461
A40: Deferral/Variance Account Disposition Rate Rider (2016) | C40: per kWh | E40: 0 | F40: =$E$18 -> 2000 | G40: =F40*E40 -> 0 | I40: -0.0005 | J40: =$E$18 -> 2000 | K40: =J40*I40 -> -1 | M40: =K40-G40 -> -1 | N40: 1 | P40: 0 | Q40: =$E$18 -> 2000 | R40: =Q40*P40 -> 0 | T40: 1 | U40: -1 | W40: 0 | X40: =$E$18 -> 2000 | Y40: =X40*W40 -> 0 | AA40: 0 | AD40: 0 | AE40: =$E$18 -> 2000 | AF40: =AE40*AD40 -> 0 | AH40: 0 | AI40: =IF((Y40)=0,"",(AH40/Y40)) ->  | AK40: 0 | AL40: =$E$18 -> 2000 | AM40: =AL40*AK40 -> 0 | AO40: 0
F41: =$E$18 -> 2000 | G41: =F41*E41 -> 0 | I41: 0 | J41: =$E$18 -> 2000 | K41: =J41*I41 -> 0 | M41: =K41-G41 -> 0 | N41: =IF((G41)=0,"",(M41/G41)) ->  | Q41: =$E$18 -> 2000 | R41: =Q41*P41 -> 0 | T41: 0 | X41: =$E$18 -> 2000 | Y41: =X41*W41 -> 0 | AA41: 0 | AE41: =$E$18 -> 2000 | AF41: =AE41*AD41 -> 0 | AH41: 0 | AL41: =$E$18 -> 2000 | AM41: =AL41*AK41 -> 0 | AO41: 0
A42: Rate Rider CGAAP Account 1576 (2016) | C42: per kWh | E42: 0 | F42: 2000 | G42: 0 | I42: -0.0015 | J42: 2000 | K42: -3 | M42: -3 | N42: 1 | P42: -0.0015 | Q42: 2000 | R42: -3 | T42: 0 | U42: 0 | W42: -0.0015 | X42: 2000 | Y42: -3 | AA42: 0 | AB42: 0 | AD42: -0.0015 | AE42: 2000 | AF42: -3 | AH42: 0 | AI42: 0 | AK42: -0.0015 | AL42: 2000 | AM42: -3 | AO42: 0 | AP42: 0
A43: Disposition of Global Adjustment (2015) Applicable to Non-RPP Customers | C43: per kWh | E43: 0.0156 | F43: 0 | G43: 0 | I43: 0 | J43: 2000 | K43: 0 | M43: 0 | P43: 0 | Q43: 2000 | R43: 0 | T43: 0 | W43: 0 | X43: 2000 | Y43: 0 | AA43: 0 | AD43: 0 | AE43: 2000 | AF43: 0 | AH43: 0 | AK43: 0 | AL43: 2000 | AM43: 0 | AO43: 0
A44: Disposition of Global Adjustment (2016) Applicable to Non-RPP Customers | C44: per kWh | E44: 0 | F44: 2000 | G44: 0 | I44: 0.0137 | J44: 0 | K44: 0 | M44: 0 | P44: 0 | Q44: 2000 | R44: 0 | T44: 0 | W44: 0 | X44: 2000 | Y44: 0 | AA44: 0 | AD44: 0 | AE44: 2000 | AF44: 0 | AH44: 0 | AK44: 0 | AL44: 2000 | AM44: 0 | AO44: 0
A45: Low Voltage Service Charge | C45: per kWh | E45: 0.0006 | F45: 2000 | G45: =F45*E45 -> 1.2 | I45: 0.0011 | J45: 2000 | K45: =J45*I45 -> 2.2 | M45: =K45-G45 -> 1 | N45: =IF((G45)=0,"",(M45/G45)) -> 0.8333333333 | P45: 0.0011 | Q45: 2000 | R45: =Q45*P45 -> 2.2 | T45: =R45-K45 -> 0 | U45: 0 | W45: 0.0011 | X45: 2000 | Y45: =X45*W45 -> 2.2 | AA45: =Y45-R45 -> 0 | AB45: 0 | AD45: 0.0011 | AE45: 2000 | AF45: =AE45*AD45 -> 2.2 | AH45: =AF45-Y45 -> 0 | AI45: 0 | AK45: 0.0011 | AL45: 2000 | AM45: =AL45*AK45 -> 2.2 | AO45: =AM45-AF45 -> 0 | AP45: 0
A46: Line Losses on Cost of Power | C46: per kWh | E46: 0.095 | F46: =$E$18*(1+$E$75)-$E$18 -> 68.8 | G46: 6.536 | I46: 0.095 | J46: =$E$18*(1+$I$75)-$E$18 -> 78.6 | K46: 7.467 | M46: 0.931 | N46: 0.1424418605 | P46: 0.095 | Q46: =$E$18*(1+$I$75)-$E$18 -> 78.6 | R46: =Q46*P46 -> 7.467 | T46: =R46-K46 -> 0 | U46: 0 | W46: 0.095 | X46: =$E$18*(1+$I$75)-$E$18 -> 78.6 | Y46: =X46*W46 -> 7.467 | AA46: =Y46-R46 -> 0 | AB46: 0 | AD46: 0.095 | AE46: =$E$18*(1+$I$75)-$E$18 -> 78.6 | AF46: =AE46*AD46 -> 7.467 | AH46: =AF46-Y46 -> 0 | AI46: 0 | AK46: 0.095 | AL46: =$E$18*(1+$I$75)-$E$18 -> 78.6 | AM46: =AL46*AK46 -> 7.467 | AO46: =AM46-AF46 -> 0 | AP46: 0
A47: Smart Meter Entity Charge | C47: Monthly | E47: 0.79 | F47: 1 | G47: =F47*E47 -> 0.79 | I47: 0.79 | J47: 1 | K47: =J47*I47 -> 0.79 | M47: =K47-G47 -> 0 | P47: 0.79 | Q47: 1 | R47: =Q47*P47 -> 0.79 | T47: =R47-K47 -> 0 | U47: 0 | W47: 0.79 | X47: 1 | Y47: =X47*W47 -> 0.79 | AA47: =Y47-R47 -> 0 | AB47: 0 | AD47: 0.79 | AE47: 1 | AF47: =AE47*AD47 -> 0.79 | AH47: =AF47-Y47 -> 0 | AI47: 0 | AK47: 0.79 | AL47: 1 | AM47: =AL47*AK47 -> 0.79 | AO47: =AM47-AF47 -> 0 | AP47: 0
A48: Sub-Total B - Distribution (includes Sub-Total A) | G48: =SUM(G40:G47)+G39 -> 59.026 | K48: =SUM(K40:K47)+K39 -> 59.397 | M48: =K48-G48 -> 0.371 | N48: =IF((G48)=0,"",(M48/G48)) -> 0.006285365771 | R48: =SUM(R40:R47)+R39 -> 59.327 | T48: =R48-K48 -> -0.07 | U48: =IF((K48)=0,"",(T48/K48)) -> -0.001178510699 | Y48: =SUM(Y40:Y47)+Y39 -> 60.687 | AA48: =Y48-R48 -> 1.36 | AB48: =IF((R48)=0,"",(AA48/R48)) -> 0.02292379524 | AF48: =SUM(AF40:AF47)+AF39 -> 62.127 | AH48: =AF48-Y48 -> 1.44 | AI48: =IF((Y48)=0,"",(AH48/Y48)) -> 0.02372831084 | AM48: =SUM(AM40:AM47)+AM39 -> 63.157 | AO48: =AM48-AF48 -> 1.03 | AP48: =IF((AF48)=0,"",(AO48/AF48)) -> 0.01657894313
A49: RTSR - Network | C49: per kWh | E49: 0.006 | F49: =$E$18*(1+$E$75) -> 2068.8 | G49: =F49*E49 -> 12.4128 | I49: 0.0063 | J49: =$E$18*(1+$I$75) -> 2078.6 | K49: =J49*I49 -> 13.09518 | M49: =K49-G49 -> 0.68238 | N49: 0.05497389791 | P49: 0.0063 | Q49: =$E$18*(1+P75) -> 2078.6 | R49: =Q49*P49 -> 13.09518 | T49: 0 | U49: 0 | W49: 0.0063 | X49: =$E$18*(1+W75) -> 2078.6 | Y49: =X49*W49 -> 13.09518 | AA49: 0 | AB49: 0 | AD49: 0.0063 | AE49: =$E$18*(1+AD75) -> 2078.6 | AF49: =AE49*AD49 -> 13.09518 | AH49: 0 | AI49: 0 | AK49: 0.0063 | AL49: =$E$18*(1+AK75) -> 2078.6 | AM49: =AL49*AK49 -> 13.09518 | AO49: 0 | AP49: 0
A50: RTSR - Line and Transformation Connection | C50: per kWh | E50: 0.0046 | F50: =F49 -> 2068.8 | G50: =F50*E50 -> 9.51648 | I50: 0.0051 | J50: =J49 -> 2078.6 | K50: =J50*I50 -> 10.60086 | M50: 1.08438 | N50: 0.1139475941 | P50: 0.0051 | Q50: =Q49 -> 2078.6 | R50: =Q50*P50 -> 10.60086 | T50: 0 | U50: 0 | W50: 0.0051 | X50: =X49 -> 2078.6 | Y50: =X50*W50 -> 10.60086 | AA50: 0 | AB50: 0 | AD50: 0.0051 | AE50: =AE49 -> 2078.6 | AF50: =AE50*AD50 -> 10.60086 | AH50: 0 | AI50: 0 | AK50: 0.0051 | AL50: =AL49 -> 2078.6 | AM50: =AL50*AK50 -> 10.60086 | AO50: 0 | AP50: 0
A51: Sub-Total C - Delivery (including Sub-Total B) | G51: =SUM(G48:G50) -> 80.95528 | K51: =SUM(K48:K50) -> 83.09304 | M51: 2.13776 | N51: 0.02640667786 | R51: =SUM(R48:R50) -> 83.02304 | T51: -0.07 | U51: -0.0008424291613 | Y51: =SUM(Y48:Y50) -> 84.38304 | AA51: 1.36 | AB51: 0.01638099496 | AF51: =SUM(AF48:AF50) -> 85.82304 | AH51: 1.44 | AI51: 0.01706504056 | AM51: =SUM(AM48:AM50) -> 86.85304 | AO51: 1.03 | AP51: 0.01200143924
A52: Wholesale Market Service Charge (WMSC) | C52: per kWh | E52: 0.0044 | F52: =F50 -> 2068.8 | G52: =F52*E52 -> 9.10272 | I52: 0.0044 | J52: =J50 -> 2078.6 | K52: =J52*I52 -> 9.14584 | M52: 0.04312 | N52: 0.00473704563 | P52: 0.0044 | Q52: =Q50 -> 2078.6 | R52: =Q52*P52 -> 9.14584 | T52: 0 | U52: 0 | W52: 0.0044 | X52: =X50 -> 2078.6 | Y52: =X52*W52 -> 9.14584 | AA52: 0 | AB52: 0 | AD52: 0.0044 | AE52: =AE50 -> 2078.6 | AF52: =AE52*AD52 -> 9.14584 | AH52: 0 | AI52: 0 | AK52: 0.0044 | AL52: =AL50 -> 2078.6 | AM52: =AL52*AK52 -> 9.14584 | AO52: 0 | AP52: 0
A53: Rural and Remote Rate Protection (RRRP) | C53: per kWh | E53: 0.0013 | F53: =F50 -> 2068.8 | G53: 2.68944 | I53: 0.0013 | J53: =J50 -> 2078.6 | K53: 2.70218 | M53: 0.01274 | N53: 0.00473704563 | P53: 0.0013 | Q53: =Q50 -> 2078.6 | R53: 2.70218 | T53: 0 | U53: 0 | W53: 0.0013 | X53: =X50 -> 2078.6 | Y53: 2.70218 | AA53: 0 | AB53: 0 | AD53: 0.0013 | AE53: =AE50 -> 2078.6 | AF53: 2.70218 | AH53: 0 | AI53: 0 | AK53: 0.0013 | AL53: =AL50 -> 2078.6 | AM53: 2.70218 | AO53: 0 | AP53: 0
A54: Standard Supply Service Charge | C54: Monthly | E54: 0.25 | F54: 1 | G54: 0.25 | I54: 0.25 | J54: 1 | K54: 0.25 | M54: 0 | N54: 0 | P54: 0.25 | Q54: 1 | R54: 0.25 | T54: 0 | U54: 0 | W54: 0.25 | X54: 1 | Y54: 0.25 | AA54: 0 | AB54: 0 | AD54: 0.25 | AE54: 1 | AF54: 0.25 | AH54: 0 | AI54: 0 | AK54: 0.25 | AL54: 1 | AM54: 0.25 | AO54: 0 | AP54: 0
A55: Debt Retirement Charge (DRC) | C55: per kWh | E55: 0.007 | F55: =E18 -> 2000 | G55: 14 | I55: 0.007 | J55: =E18 -> 2000 | K55: 14 | M55: 0 | N55: 0 | P55: 0.007 | Q55: =J55 -> 2000 | R55: 14 | T55: 0 | U55: 0 | W55: 0.007 | X55: =Q55 -> 2000 | Y55: 14 | AA55: 0 | AB55: 0 | AD55: 0.007 | AE55: =X55 -> 2000 | AF55: 14 | AH55: 0 | AI55: 0 | AK55: 0.007 | AL55: =AE55 -> 2000 | AM55: 14 | AO55: 0 | AP55: 0
A56: TOU - Off Peak | C56: per kWh | E56: 0.077 | F56: =0.64*$E$18 -> 1280 | G56: 98.56 | I56: 0.077 | J56: =F56 -> 1280 | K56: 98.56 | M56: 0 | N56: 0 | P56: 0.077 | Q56: =J56 -> 1280 | R56: 98.56 | T56: 0 | U56: 0 | W56: 0.077 | X56: =Q56 -> 1280 | Y56: 98.56 | AA56: 0 | AB56: 0 | AD56: 0.077 | AE56: =X56 -> 1280 | AF56: 98.56 | AH56: 0 | AI56: 0 | AK56: 0.077 | AL56: =AE56 -> 1280 | AM56: 98.56 | AO56: 0 | AP56: 0
A57: TOU - Mid Peak | C57: per kWh | E57: 0.114 | F57: =0.18*$E$18 -> 360 | G57: 41.04 | I57: 0.114 | J57: =F57 -> 360 | K57: 41.04 | M57: 0 | N57: 0 | P57: 0.114 | Q57: =J57 -> 360 | R57: 41.04 | T57: 0 | U57: 0 | W57: 0.114 | X57: =Q57 -> 360 | Y57: 41.04 | AA57: 0 | AB57: 0 | AD57: 0.114 | AE57: =X57 -> 360 | AF57: 41.04 | AH57: 0 | AI57: 0 | AK57: 0.114 | AL57: =AE57 -> 360 | AM57: 41.04 | AO57: 0 | AP57: 0
A58: TOU - On Peak | C58: per kWh | E58: 0.14 | F58: =0.18*$E$18 -> 360 | G58: 50.4 | I58: 0.14 | J58: =F58 -> 360 | K58: 50.4 | M58: 0 | N58: 0 | P58: 0.14 | Q58: 360 | R58: 50.4 | T58: 0 | U58: 0 | W58: 0.14 | X58: 360 | Y58: 50.4 | AA58: 0 | AB58: 0 | AD58: 0.14 | AE58: 360 | AF58: 50.4 | AH58: 0 | AI58: 0 | AK58: 0.14 | AL58: 360 | AM58: 50.4 | AO58: 0 | AP58: 0
A59: Energy - RPP - Tier 1 | C59: per kWh | E59: 0.088 | F59: =IF(AND($S$1=1, E18>=600), 600, IF(AND($S$1=1, AND(E18<600, E18>=0)), E18, IF(AND($S$1=2, E18>=1000), 1000, IF(AND($S$1=2, AND(E18<1000, E18>=0)), E18)))) -> 600 | G59: =F59*E59 -> 52.8 | I59: 0.088 | J59: =F59 -> 600 | K59: =J59*I59 -> 52.8 | M59: 0 | N59: 0 | P59: 0.088 | Q59: 600 | R59: =Q59*P59 -> 52.8 | T59: 0 | U59: 0 | W59: 0.088 | X59: 600 | Y59: =X59*W59 -> 52.8 | AA59: 0 | AB59: 0 | AD59: 0.088 | AE59: 600 | AF59: =AE59*AD59 -> 52.8 | AH59: 0 | AI59: 0 | AK59: 0.088 | AL59: 600 | AM59: =AL59*AK59 -> 52.8 | AO59: 0 | AP59: 0
A60: Energy - RPP - Tier 2 | C60: per kWh | E60: 0.103 | F60: =IF(AND($S$1=1, E18>=600), E18-600, IF(AND($S$1=1, AND(E18<600, E18>=0)), 0, IF(AND($S$1=2, E18>=1000), E18-1000, IF(AND($S$1=2, AND(E18<1000, E18>=0)), 0)))) -> 1400 | G60: =F60*E60 -> 144.2 | I60: 0.103 | J60: =F60 -> 1400 | K60: =J60*I60 -> 144.2 | M60: 0 | N60: 0 | P60: 0.103 | Q60: 1400 | R60: =Q60*P60 -> 144.2 | T60: 0 | U60: 0 | W60: 0.103 | X60: 1400 | Y60: =X60*W60 -> 144.2 | AA60: 0 | AB60: 0 | AD60: 0.103 | AE60: 1400 | AF60: =AE60*AD60 -> 144.2 | AH60: 0 | AI60: 0 | AK60: 0.103 | AL60: 1400 | AM60: =AL60*AK60 -> 144.2 | AO60: 0 | AP60: 0
A62: Total Bill on TOU (before Taxes) | G62: =SUM(G52:G58,G51) -> 296.99744 | K62: =SUM(K52:K58,K51) -> 299.19106 | M62: =K62-G62 -> 2.19362 | N62: =IF((G62)=0,"",(M62/G62)) -> 0.00738598959 | R62: =SUM(R52:R58,R51) -> 299.12106 | T62: =R62-K62 -> -0.07 | U62: -0.00023396421 | Y62: =SUM(Y52:Y58,Y51) -> 300.48106 | AA62: =Y62-R62 -> 1.36 | AB62: 0.004546654121 | AF62: =SUM(AF52:AF58,AF51) -> 301.92106 | AH62: =AF62-Y62 -> 1.44 | AI62: 0.004792315363 | AM62: =SUM(AM52:AM58,AM51) -> 302.95106 | AO62: =AM62-AF62 -> 1.03 | AP62: 0.003411487758
A63: HST | E63: 0.13 | G63: =G62*E63 -> 38.6096672 | I63: 0.13 | K63: =K62*I63 -> 38.8948378 | M63: 0.2851706 | N63: 0.00738598959 | P63: 0.13 | R63: =R62*P63 -> 38.8857378 | T63: =R63-K63 -> -0.0091 | U63: -0.00023396421 | W63: 0.13 | Y63: =Y62*W63 -> 39.0625378 | AA63: =Y63-R63 -> 0.1768 | AB63: 0.004546654121 | AD63: 0.13 | AF63: =AF62*AD63 -> 39.2497378 | AH63: =AF63-Y63 -> 0.1872 | AI63: 0.004792315363 | AK63: 0.13 | AM63: =AM62*AK63 -> 39.3836378 | AO63: =AM63-AF63 -> 0.1339 | AP63: 0.003411487758
A64: Total Bill (including HST) | G64: =G62+G63 -> 335.6071072 | K64: =K62+K63 -> 338.0858978 | M64: 2.4787906 | N64: 0.00738598959 | R64: =R62+R63 -> 338.0067978 | T64: -0.0791 | U64: -0.00023396421 | Y64: =Y62+Y63 -> 339.5435978 | AA64: 1.5368 | AB64: 0.004546654121 | AF64: =AF62+AF63 -> 341.1707978 | AH64: 1.6272 | AI64: 0.004792315363 | AM64: =AM62+AM63 -> 342.3346978 | AO64: 1.1639 | AP64: 0.003411487758
A65: Ontario Clean Energy Benefit 1 | G65: =ROUND(-G64*10%,2) -> -33.56 | K65: =ROUND(-K64*10%,2) -> -33.81 | M65: -0.25 | N65: 0.007449344458 | R65: =ROUND(-R64*10%,2) -> -33.8 | T65: 0.01 | U65: -0.0002957704821 | Y65: =ROUND(-Y64*10%,2) -> -33.95 | AA65: -0.15 | AB65: 0.004437869822 | AF65: =ROUND(-AF64*10%,2) -> -34.12 | AH65: -0.17 | AI65: 0.00500736377 | AM65: =ROUND(-AM64*10%,2) -> -34.23 | AO65: -0.11 | AP65: 0.003223915592
A66: Total Bill on TOU (including OCEB) | G66: =G64+G65 -> 302.0471072 | K66: =K64+K65 -> 304.2758978 | M66: 2.2287906 | N66: 0.007378950326 | R66: =R64+R65 -> 304.2067978 | T66: -0.0691 | U66: -0.0002270965282 | Y66: =Y64+Y65 -> 305.5935978 | AA66: 1.3868 | AB66: 0.004558740995 | AF66: =AF64+AF65 -> 307.0507978 | AH66: 1.4572 | AI66: 0.004768424504 | AM66: =AM64+AM65 -> 308.1046978 | AO66: 1.0539 | AP66: 0.003432331092
A68: Total Bill on RPP (before Taxes) | G68: =SUM(G60:G61,G51,G52:G55) -> 251.19744 | K68: =SUM(K60:K61,K51,K52:K55) -> 253.39106 | M68: =K68-G68 -> 2.19362 | N68: =IF((G68)=0,"",(M68/G68)) -> 0.008732652689 | R68: =SUM(R60:R61,R51,R52:R55) -> 253.32106 | T68: =R68-K68 -> -0.07 | U68: -0.0002762528402 | Y68: =SUM(Y60:Y61,Y51,Y52:Y55) -> 254.68106 | AA68: =Y68-R68 -> 1.36 | AB68: 0.005368681151 | AF68: =SUM(AF60:AF61,AF51,AF52:AF55) -> 256.12106 | AH68: =AF68-Y68 -> 1.44 | AI68: 0.0056541307 | AM68: =SUM(AM60:AM61,AM51,AM52:AM55) -> 257.15106 | AO68: =AM68-AF68 -> 1.03 | AP68: 0.004021535753
A69: HST | E69: 0.13 | G69: =G68*E69 -> 32.6556672 | I69: 0.13 | K69: =K68*I69 -> 32.9408378 | M69: 0.2851706 | N69: =IF((G69)=0,"",(M69/G69)) -> 0.008732652689 | P69: 0.13 | R69: =R68*P69 -> 32.9317378 | T69: =R69-K69 -> -0.0091 | U69: -0.0002762528402 | W69: 0.13 | Y69: =Y68*W69 -> 33.1085378 | AA69: =Y69-R69 -> 0.1768 | AB69: 0.005368681151 | AD69: 0.13 | AF69: =AF68*AD69 -> 33.2957378 | AH69: =AF69-Y69 -> 0.1872 | AI69: 0.0056541307 | AK69: 0.13 | AM69: =AM68*AK69 -> 33.4296378 | AO69: =AM69-AF69 -> 0.1339 | AP69: 0.004021535753
A70: Total Bill (including HST) | G70: =G68+G69 -> 283.8531072 | K70: =K68+K69 -> 286.3318978 | M70: 2.4787906 | N70: 0.008732652689 | R70: =R68+R69 -> 286.2527978 | T70: -0.0791 | U70: -0.0002762528402 | Y70: =Y68+Y69 -> 287.7895978 | AA70: 1.5368 | AB70: 0.005368681151 | AF70: =AF68+AF69 -> 289.4167978 | AH70: 1.6272 | AI70: 0.0056541307 | AM70: =AM68+AM69 -> 290.5806978 | AO70: 1.1639 | AP70: 0.004021535753
A71: Ontario Clean Energy Benefit 1 | G71: =ROUND(-G70*10%,2) -> -28.39 | K71: =ROUND(-K70*10%,2) -> -28.63 | M71: -0.24 | N71: 0.008453680874 | R71: =ROUND(-R70*10%,2) -> -28.63 | T71: 0 | U71: 0 | Y71: =ROUND(-Y70*10%,2) -> -28.78 | AA71: -0.15 | AB71: 0.005239259518 | AF71: =ROUND(-AF70*10%,2) -> -28.94 | AH71: -0.16 | AI71: 0.005559416261 | AM71: =ROUND(-AM70*10%,2) -> -29.06 | AO71: -0.12 | AP71: 0.004146510021
A72: Total Bill on RPP (including OCEB) | G72: =SUM(G70:G71) -> 255.4631072 | K72: =SUM(K70:K71) -> 257.7018978 | M72: 2.2387906 | N72: 0.008763655248 | R72: =SUM(R70:R71) -> 257.6227978 | T72: -0.0791 | U72: -0.0003069438009 | Y72: =SUM(Y70:Y71) -> 259.0095978 | AA72: 1.3868 | AB72: 0.005383063967 | AF72: =SUM(AF70:AF71) -> 260.4767978 | AH72: 1.4672 | AI72: 0.005664654949 | AM72: =SUM(AM70:AM71) -> 261.5206978 | AO72: 1.0439 | AP72: 0.004007650619
A75: Loss Factor (%) | E75: 0.0344 | I75: 0.0393 | P75: 0.0393 | W75: 0.0393 | AD75: 0.0393 | AK75: 0.0393
A77: Distribution Excluding Rate Riders | E77: 2015 Current Board-Approved | I77: 2016 Test Year 1 Proposed | M77: Impact 2016 TEST vs. 2015 Bridge | P77: 2017 Test Year 2 Proposed | T77: Impact 2017 TEST 2 vs. 2016 Test 1 | W77: 2018 Test Year 3 Proposed | AA77: Impact 2018 TEST 3 vs. 2017 Test 2 | AD77: 2019 Test Year 4 Proposed | AH77: Impact 2019 TEST 4 vs. 2018 Test 3 | AK77: 2020 Test Year 5 Proposed | AO77: Impact 2020 TEST 5 vs. 2019 Test 4
C78: Charge Unit | E78: Rate | F78: Volume | G78: Charge | I78: Rate | J78: Volume | K78: Charge | M78: $ Change | N78: % Change | P78: Rate | Q78: Volume | R78: Charge | T78: $ Change | U78: % Change | W78: Rate | X78: Volume | Y78: Charge | AA78: $ Change | AB78: % Change | AD78: Rate | AE78: Volume | AF78: Charge | AH78: $ Change | AI78: % Change | AK78: Rate | AL78: Volume | AM78: Charge | AO78: $ Change | AP78: % Change
E79: ($) | G79: ($) | I79: ($) | K79: ($) | P79: ($) | R79: ($) | W79: ($) | Y79: ($) | AD79: ($) | AF79: ($) | AK79: ($) | AM79: ($)
A80: Monthly Service Charge | C80: Monthly | E80: 25.85 | F80: 1 | G80: =F80*E80 -> 25.85 | I80: 26.84 | J80: 1 | K80: =J80*I80 -> 26.84 | M80: =K80-G80 -> 0.99 | N80: =IF((G80)=0,"",(M80/G80)) -> 0.03829787234 | P80: 27.6 | Q80: 1 | R80: =Q80*P80 -> 27.6 | T80: =R80-K80 -> 0.76 | U80: =IF((K80)=0,"",(T80/K80)) -> 0.02831594635 | W80: 28.16 | X80: 1 | Y80: =X80*W80 -> 28.16 | AA80: =Y80-R80 -> 0.56 | AB80: =IF((R80)=0,"",(AA80/R80)) -> 0.02028985507 | AD80: 28.6 | AE80: 1 | AF80: =AE80*AD80 -> 28.6 | AH80: =AF80-Y80 -> 0.44 | AI80: =IF((Y80)=0,"",(AH80/Y80)) -> 0.015625 | AK80: 28.83 | AL80: 1 | AM80: =AL80*AK80 -> 28.83 | AO80: =AM80-AF80 -> 0.23 | AP80: =IF((AF80)=0,"",(AO80/AF80)) -> 0.008041958042
A81: Distribution Volumetric Rate | C81: per kWh | E81: 0.0106 | F81: =$E$18 -> 2000 | G81: =F81*E81 -> 21.2 | I81: 0.0109 | J81: =$E$18 -> 2000 | K81: 21.8 | M81: 0.6 | N81: =IF((G81)=0,"",(M81/G81)) -> 0.02830188679 | P81: 0.0112 | Q81: =$E$18 -> 2000 | R81: 22.4 | T81: 0.6 | U81: =IF((K81)=0,"",(T81/K81)) -> 0.02752293578 | W81: 0.0116 | X81: =$E$18 -> 2000 | Y81: 23.2 | AA81: 0.8 | AB81: =IF((R81)=0,"",(AA81/R81)) -> 0.03571428571 | AD81: 0.0121 | AE81: =$E$18 -> 2000 | AF81: 24.2 | AH81: 1 | AI81: =IF((Y81)=0,"",(AH81/Y81)) -> 0.04310344828 | AK81: 0.0125 | AL81: =$E$18 -> 2000 | AM81: 25 | AO81: 0.8 | AP81: =IF((AF81)=0,"",(AO81/AF81)) -> 0.03305785124
A82: "Regular" Distribution Only | G82: =SUM(G79:G81) -> 47.05 | K82: =SUM(K79:K81) -> 48.64 | M82: 1.59 | N82: 0.03379383634 | R82: =SUM(R79:R81) -> 50 | T82: 1.36 | U82: 0.02796052632 | Y82: =SUM(Y79:Y81) -> 51.36 | AA82: 1.36 | AB82: 0.0272 | AF82: =SUM(AF79:AF81) -> 52.8 | AH82: 1.44 | AI82: 0.02803738318 | AM82: =SUM(AM79:AM81) -> 53.83 | AO82: 1.03 | AP82: 0.01950757576
B85: Residential (kWh) - 100, 250, 500, 800, 1000, 1500, 2000
B86: GS<50kW (kWh) - 1000, 2000, 5000, 10000, 15000
B87: GS>50kW (kW) - 60, 100, 500, 1000
B88: Large User - range appropriate for utility
B89: Lighting Classes and USL - 150 kWh and 1 kW, range appropriate for utility.
C91: Note that cells with the highlighted color shown to the left indicate quantities that are loss adjusted.

Sheet App. 2-W Bill Impacts GS50-4999
M1: File Number: | N1: =EBNUMBER -> EB-2015-0083 | S1: 1
M2: Exhibit: | N2: ='App.2-W_Bill Impacts _Resi'!$N$2 -> 8
M3: Tab: | N3: ='App.2-W_Bill Impacts _Resi'!$N$3 -> 4
M4: Schedule: | N4: ='App.2-W_Bill Impacts _Resi'!$N$4 -> 3
M5: Page: | N5: ='App. 2-W Bill Impacts GS < 50'!N5+1 -> 3
N7: ='App.2-W_Bill Impacts _Resi'!$N$7 -> 1-Staff-4 IRR
A10: Appendix 2-W
A11: Bill Impacts
A14: Customer Class: | C14: General Service 50 to 4,999 kW | P14: =C14 -> General Service 50 to 4,999 kW | AK14: =P14 -> General Service 50 to 4,999 kW
A16: TOU / non-TOU: | C16: TOU
C18: Consumption | E18: 40000 | F18: kWh
C19: Load | E19: 60 | F19: kW
E20: 2015 Current Board-Approved | I20: 2016 Test Year 1 Proposed | M20: Impact 2016 TEST vs. 2015 Bridge | P20: 2017 Test Year 2 Proposed | T20: Impact 2017 TEST 2 vs. 2016 Test 1 | W20: 2018 Test Year 3 Proposed | AA20: Impact 2018 TEST 3 vs. 2017 Test 2 | AD20: 2019 Test Year 4 Proposed | AH20: Impact 2019 TEST 4 vs. 2018 Test 3 | AK20: 2020 Test Year 5 Proposed | AO20: Impact 2020 TEST 5 vs. 2019 Test 4
C21: Charge Unit | E21: Rate | F21: Volume | G21: Charge | I21: Rate | J21: Volume | K21: Charge | M21: $ Change | N21: % Change | P21: Rate | Q21: Volume | R21: Charge | T21: $ Change | U21: % Change | W21: Rate | X21: Volume | Y21: Charge | AA21: $ Change | AB21: % Change | AD21: Rate | AE21: Volume | AF21: Charge | AH21: $ Change | AI21: % Change | AK21: Rate | AL21: Volume | AM21: Charge | AO21: $ Change | AP21: % Change
E22: ($) | G22: ($) | I22: ($) | K22: ($) | P22: ($) | R22: ($) | W22: ($) | Y22: ($) | AD22: ($) | AF22: ($) | AK22: ($) | AM22: ($)
A23: Monthly Service Charge | C23: Monthly | E23: 280.09 | F23: 1 | G23: =F23*E23 -> 280.09 | I23: 314.28 | J23: 1 | K23: =J23*I23 -> 314.28 | M23: =K23-G23 -> 34.19 | N23: =IF((G23)=0,"",(M23/G23)) -> 0.1220679067 | P23: 322.99 | Q23: 1 | R23: =Q23*P23 -> 322.99 | T23: =R23-K23 -> 8.71 | U23: =IF((K23)=0,"",(T23/K23)) -> 0.02771414026 | W23: 330.54 | X23: 1 | Y23: =X23*W23 -> 330.54 | AA23: =Y23-R23 -> 7.55 | AB23: =IF((R23)=0,"",(AA23/R23)) -> 0.0233753367 | AD23: 337.9 | AE23: 1 | AF23: =AE23*AD23 -> 337.9 | AH23: =AF23-Y23 -> 7.36 | AI23: =IF((Y23)=0,"",(AH23/Y23)) -> 0.02226659406 | AK23: 342.75 | AL23: 1 | AM23: =AL23*AK23 -> 342.75 | AO23: =AM23-AF23 -> 4.85 | AP23: =IF((AF23)=0,"",(AO23/AF23)) -> 0.01435335898
A24: Smart Meter (SMIRR) Rate Rider | C24: Monthly | E24: 0 | F24: 1 | G24: =F24*E24 -> 0 | I24: 0 | J24: 1 | K24: =J24*I24 -> 0 | M24: =K24-G24 -> 0 | N24: =IF((G24)=0,"",(M24/G24)) ->  | P24: 0 | Q24: 1 | R24: =Q24*P24 -> 0 | T24: 0 | U24: =IF((K24)=0,"",(T24/K24)) ->  | W24: 0 | X24: 1 | Y24: =X24*W24 -> 0 | AA24: 0 | AB24: =IF((R24)=0,"",(AA24/R24)) ->  | AD24: 0 | AE24: 1 | AF24: =AE24*AD24 -> 0 | AH24: 0 | AI24: =IF((Y24)=0,"",(AH24/Y24)) ->  | AK24: 0 | AL24: 1 | AM24: =AL24*AK24 -> 0 | AO24: 0 | AP24: =IF((AF24)=0,"",(AO24/AF24)) -> 
A25: Rate Rider Smart Meters Capital (2016) | C25: Monthly | E25: 0 | F25: 1 | G25: 0 | I25: 0 | J25: 1 | K25: =J25*I25 -> 0 | M25: =K25-G25 -> 0 | P25: 0 | Q25: 1 | R25: =Q25*P25 -> 0 | T25: 0 | W25: 0 | X25: 1 | Y25: =X25*W25 -> 0 | AA25: 0 | AD25: 0 | AE25: 1 | AF25: =AE25*AD25 -> 0 | AH25: 0 | AK25: 0 | AL25: 1 | AM25: =AL25*AK25 -> 0 | AO25: 0
A26: Rate Rider Recovery of Stranded Meters | C26: Monthly | E26: 0 | F26: 1 | G26: 0 | I26: 0 | J26: 1 | K26: 0 | M26: 0 | P26: 0 | Q26: 1 | R26: 0 | T26: 0 | W26: 0 | X26: 1 | Y26: 0 | AA26: 0 | AD26: 0 | AE26: 1 | AF26: 0 | AH26: 0 | AK26: 0 | AL26: 1 | AM26: 0 | AO26: 0
F27: 1 | G27: 0 | J27: 1 | K27: 0 | M27: 0 | Q27: 1 | R27: 0 | T27: 0 | X27: 1 | Y27: 0 | AA27: 0 | AE27: 1 | AF27: 0 | AH27: 0 | AL27: 1 | AM27: 0 | AO27: 0
F28: 1 | G28: 0 | J28: 1 | K28: 0 | M28: 0 | Q28: 1 | R28: 0 | T28: 0 | X28: 1 | Y28: 0 | AA28: 0 | AE28: 1 | AF28: 0 | AH28: 0 | AL28: 1 | AM28: 0 | AO28: 0
A29: Distribution Volumetric Rate | C29: per kW | E29: 2.0063 | F29: =$E$19 -> 60 | G29: 120.378 | I29: 2.0517 | J29: =$E$19 -> 60 | K29: 123.102 | M29: 2.724 | N29: 0.02262871953 | P29: 2.1314 | Q29: =$E$19 -> 60 | R29: 127.884 | T29: 4.782 | U29: 0.03884583516 | W29: 2.2143 | X29: =$E$19 -> 60 | Y29: 132.858 | AA29: 4.974 | AB29: 0.03889462325 | AD29: 2.2986 | AE29: =$E$19 -> 60 | AF29: 137.916 | AH29: 5.058 | AI29: 0.03807072212 | AK29: 2.3661 | AL29: =$E$19 -> 60 | AM29: 141.966 | AO29: 4.05 | AP29: 0.02936570086
A30: Rate Rider Tax Change (2015) | C30: per kW | E30: -0.0099 | F30: =$E$19 -> 60 | G30: -0.594 | I30: 0 | J30: =$E$19 -> 60 | K30: 0 | M30: 0.594 | N30: -1 | P30: 0 | Q30: =$E$19 -> 60 | R30: 0 | T30: 0 | W30: 0 | X30: =$E$19 -> 60 | Y30: 0 | AA30: 0 | AD30: 0 | AE30: =$E$19 -> 60 | AF30: 0 | AH30: 0 | AK30: 0 | AL30: =$E$19 -> 60 | AM30: 0 | AO30: 0
A31: LRAM VA (2016) | C31: per kW | E31: 0 | F31: 60 | G31: 0 | I31: 0.0293 | J31: 60 | K31: 1.758 | M31: 1.758 | N31: 1 | P31: 0 | Q31: 60 | R31: 0 | T31: -1.758 | U31: -1 | W31: 0 | X31: 60 | Y31: 0 | AA31: 0 | AD31: 0 | AE31: 60 | AF31: 0 | AH31: 0 | AK31: 0 | AL31: 60 | AM31: 0 | AO31: 0
A32: Rate Rider Incremental Capital 2012 True-Up (2016) | C32: per kW | E32: 0 | F32: 60 | G32: 0 | I32: 0.038 | J32: 60 | K32: 2.28 | M32: 2.28 | N32: 1 | P32: 0 | Q32: 60 | R32: 0 | T32: -2.28 | U32: -1 | W32: 0 | X32: 60 | Y32: 0 | AA32: 0 | AD32: 0 | AE32: 60 | AF32: 0 | AH32: 0 | AK32: 0 | AL32: 60 | AM32: 0 | AO32: 0
F33: 60 | G33: =F33*E33 -> 0 | J33: 60 | K33: =J33*I33 -> 0 | M33: =K33-G33 -> 0 | N33: =IF((G33)=0,"",(M33/G33)) ->  | Q33: 60 | R33: =Q33*P33 -> 0 | T33: =R33-K33 -> 0 | U33: =IF((K33)=0,"",(T33/K33)) ->  | X33: 60 | Y33: =X33*W33 -> 0 | AA33: =Y33-R33 -> 0 | AB33: =IF((R33)=0,"",(AA33/R33)) ->  | AE33: 60 | AF33: =AE33*AD33 -> 0 | AH33: =AF33-Y33 -> 0 | AI33: =IF((Y33)=0,"",(AH33/Y33)) ->  | AL33: 60 | AM33: =AL33*AK33 -> 0 | AO33: =AM33-AF33 -> 0 | AP33: =IF((AF33)=0,"",(AO33/AF33)) -> 
F34: 60 | G34: 0 | J34: 60 | K34: 0 | M34: 0 | Q34: 60 | R34: 0 | T34: 0 | X34: 60 | Y34: 0 | AA34: 0 | AE34: 60 | AF34: 0 | AH34: 0 | AL34: 60 | AM34: 0 | AO34: 0
F35: 60 | G35: 0 | J35: 60 | K35: 0 | M35: 0 | Q35: 60 | R35: 0 | T35: 0 | X35: 60 | Y35: 0 | AA35: 0 | AE35: 60 | AF35: 0 | AH35: 0 | AL35: 60 | AM35: 0 | AO35: 0
F36: 60 | G36: 0 | J36: 60 | K36: 0 | M36: 0 | Q36: 60 | R36: 0 | T36: 0 | X36: 60 | Y36: 0 | AA36: 0 | AE36: 60 | AF36: 0 | AH36: 0 | AL36: 60 | AM36: 0 | AO36: 0
F37: 60 | G37: 0 | J37: 60 | K37: 0 | M37: 0 | Q37: 60 | R37: 0 | T37: 0 | X37: 60 | Y37: 0 | AA37: 0 | AE37: 60 | AF37: 0 | AH37: 0 | AL37: 60 | AM37: 0 | AO37: 0
F38: 60 | G38: 0 | J38: 60 | K38: 0 | M38: 0 | Q38: 60 | R38: 0 | T38: 0 | X38: 60 | Y38: 0 | AA38: 0 | AE38: 60 | AF38: 0 | AH38: 0 | AL38: 60 | AM38: 0 | AO38: 0
A39: Sub-Total A (excluding pass through) | G39: =SUM(G23:G38) -> 399.874 | K39: =SUM(K23:K38) -> 441.42 | M39: 41.546 | N39: 0.1038977278 | R39: =SUM(R23:R38) -> 450.874 | T39: 9.454 | U39: 0.02141724435 | Y39: =SUM(Y23:Y38) -> 463.398 | AA39: 12.524 | AB39: 0.02777716169 | AF39: =SUM(AF23:AF38) -> 475.816 | AH39: 12.418 | AI39: 0.02679769874 | AM39: =SUM(AM23:AM38) -> 484.716 | AO39: 8.9 | AP39: 0.01870470938
A40: Deferral/Variance Account Disposition Rate Rider (2016) | C40: per kW | E40: 0 | F40: 60 | G40: =F40*E40 -> 0 | I40: 0.7402 | J40: 60 | K40: =J40*I40 -> 44.412 | M40: =K40-G40 -> 44.412 | N40: 1 | P40: 0 | Q40: 60 | R40: =Q40*P40 -> 0 | T40: -44.412 | U40: -1 | W40: 0 | X40: 60 | Y40: =X40*W40 -> 0 | AA40: 0 | AD40: 0 | AE40: 60 | AF40: =AE40*AD40 -> 0 | AH40: 0 | AK40: 0 | AL40: 60 | AM40: =AL40*AK40 -> 0 | AO40: 0
A41: Deferral/Variance Account Disposition Rate Rider (2016), excluding Wholesale Market Participants | C41: per kW | E41: 0 | F41: 60 | G41: =F41*E41 -> 0 | I41: -1.1043 | J41: 60 | K41: =J41*I41 -> -66.258 | M41: =K41-G41 -> -66.258 | N41: 1 | P41: 0 | Q41: 60 | R41: =Q41*P41 -> 0 | T41: =R41-K41 -> 66.258 | U41: -1 | W41: 0 | X41: 60 | Y41: =X41*W41 -> 0 | AA41: =Y41-R41 -> 0 | AD41: 0 | AE41: 60 | AF41: =AE41*AD41 -> 0 | AH41: =AF41-Y41 -> 0 | AK41: 0 | AL41: 60 | AM41: =AL41*AK41 -> 0 | AO41: =AM41-AF41 -> 0
A42: Rate Rider CGAAP Account 1576 (2016) | C42: per kW | E42: 0 | F42: 60 | G42: 0 | I42: -0.2245 | J42: 60 | K42: -13.47 | M42: -13.47 | N42: 1 | P42: -0.2245 | Q42: 60 | R42: -13.47 | T42: 0 | U42: 0 | W42: -0.2245 | X42: 60 | Y42: -13.47 | AA42: 0 | AB42: 0 | AD42: -0.2245 | AE42: 60 | AF42: -13.47 | AH42: 0 | AI42: 0 | AK42: -0.2245 | AL42: 60 | AM42: -13.47 | AO42: 0 | AP42: 0
A43: Disposition of Global Adjustment (2015) Applicable to Non-RPP Customers, excluding Wholesale Market Participants | C43: per kW | E43: 5.7342 | G43: =F43*E43 -> 0 | I43: 0 | J43: 60 | K43: =J43*I43 -> 0 | M43: =K43-G43 -> 0 | P43: 0 | Q43: 60 | R43: =Q43*P43 -> 0 | T43: 0 | W43: 0 | X43: 60 | Y43: =X43*W43 -> 0 | AA43: 0 | AD43: 0 | AE43: 60 | AF43: =AE43*AD43 -> 0 | AH43: 0 | AK43: 0 | AL43: 60 | AM43: =AL43*AK43 -> 0 | AO43: 0
A44: Disposition of Global Adjustment (2016) Applicable to Non-RPP Customers, excluding Wholesale Market Participants | C44: per kW | E44: 0 | F44: 60 | G44: 0 | I44: 4.9999 | K44: 0 | M44: 0 | P44: 0 | Q44: 60 | R44: 0 | T44: 0 | W44: 0 | X44: 60 | Y44: 0 | AA44: 0 | AD44: 0 | AE44: 60 | AF44: 0 | AH44: 0 | AK44: 0 | AL44: 60 | AM44: 0 | AO44: 0
A45: Low Voltage Service Charge | C45: per kW | E45: 0.252 | F45: 60 | G45: =F45*E45 -> 15.12 | I45: 0.4669 | J45: 60 | K45: =J45*I45 -> 28.014 | M45: =K45-G45 -> 12.894 | N45: 0.8527777778 | P45: 0.4669 | Q45: 60 | R45: =Q45*P45 -> 28.014 | T45: =R45-K45 -> 0 | U45: 0 | W45: 0.4669 | X45: 60 | Y45: =X45*W45 -> 28.014 | AA45: =Y45-R45 -> 0 | AB45: 0 | AD45: 0.4669 | AE45: 60 | AF45: =AE45*AD45 -> 28.014 | AH45: =AF45-Y45 -> 0 | AI45: 0 | AK45: 0.4669 | AL45: 60 | AM45: =AL45*AK45 -> 28.014 | AO45: =AM45-AF45 -> 0 | AP45: 0
A46: Line Losses on Cost of Power | C46: per kWh | E46: 0.095 | F46: =$E$18*(1+$E$75)-$E$18 -> 1376 | G46: 130.72 | I46: 0.095 | J46: =$E$18*(1+$I$75)-$E$18 -> 1572 | K46: 149.34 | M46: 18.62 | N46: 0.1424418605 | P46: 0.095 | Q46: =$E$18*(1+$I$75)-$E$18 -> 1572 | R46: =Q46*P46 -> 149.34 | T46: =R46-K46 -> 0 | U46: 0 | W46: 0.095 | X46: =$E$18*(1+$I$75)-$E$18 -> 1572 | Y46: =X46*W46 -> 149.34 | AA46: =Y46-R46 -> 0 | AB46: 0 | AD46: 0.095 | AE46: =$E$18*(1+$I$75)-$E$18 -> 1572 | AF46: =AE46*AD46 -> 149.34 | AH46: =AF46-Y46 -> 0 | AI46: 0 | AK46: 0.095 | AL46: =$E$18*(1+$I$75)-$E$18 -> 1572 | AM46: =AL46*AK46 -> 149.34 | AO46: =AM46-AF46 -> 0 | AP46: 0
A47: Smart Meter Entity Charge | E47: 0 | F47: 1 | G47: =F47*E47 -> 0 | I47: 0 | J47: 1 | K47: =J47*I47 -> 0 | M47: =I47 -> 0 | P47: 0 | Q47: 1 | R47: =Q47*P47 -> 0 | T47: =R47-K47 -> 0 | W47: 0 | X47: 1 | Y47: =X47*W47 -> 0 | AA47: =Y47-R47 -> 0 | AD47: 0 | AE47: 1 | AF47: =AE47*AD47 -> 0 | AH47: =AF47-Y47 -> 0 | AK47: 0 | AL47: 1 | AM47: =AL47*AK47 -> 0 | AO47: =AM47-AF47 -> 0
A48: Sub-Total B - Distribution (includes Sub-Total A) | G48: =SUM(G40:G47)+G39 -> 545.714 | K48: =SUM(K40:K47)+K39 -> 583.458 | M48: =K48-G48 -> 37.744 | N48: 0.06916443412 | R48: =SUM(R40:R47)+R39 -> 614.758 | T48: =R48-K48 -> 31.3 | U48: 0.05364567801 | Y48: =SUM(Y40:Y47)+Y39 -> 627.282 | AA48: =Y48-R48 -> 12.524 | AB48: 0.02037224404 | AF48: =SUM(AF40:AF47)+AF39 -> 639.7 | AH48: =AF48-Y48 -> 12.418 | AI48: 0.01979651895 | AM48: =SUM(AM40:AM47)+AM39 -> 648.6 | AO48: =AM48-AF48 -> 8.9 | AP48: 0.01391277161
A49: RTSR - Network | C49: per kW | E49: 2.6313 | F49: =$E$19 -> 60 | G49: =F49*E49 -> 157.878 | I49: 2.7797 | J49: =$E$19 -> 60 | K49: =J49*I49 -> 166.782 | M49: 8.904 | N49: 0.05639797819 | P49: 2.7797 | Q49: =$E$19 -> 60 | R49: =Q49*P49 -> 166.782 | T49: 0 | U49: 0 | W49: 2.7797 | X49: =$E$19 -> 60 | Y49: =X49*W49 -> 166.782 | AA49: 0 | AB49: 0 | AD49: 2.7797 | AE49: =$E$19 -> 60 | AF49: =AE49*AD49 -> 166.782 | AH49: 0 | AI49: 0 | AK49: 2.7797 | AL49: =$E$19 -> 60 | AM49: =AL49*AK49 -> 166.782 | AO49: 0 | AP49: 0
A50: RTSR - Line and Transformation Connection | C50: per kW | E50: 2.0128 | F50: 60 | G50: =F50*E50 -> 120.768 | I50: 2.2225 | J50: 60 | K50: =J50*I50 -> 133.35 | M50: 12.582 | N50: 0.1041832273 | P50: 2.2225 | Q50: 60 | R50: =Q50*P50 -> 133.35 | T50: 0 | U50: 0 | W50: 2.2225 | X50: 60 | Y50: =X50*W50 -> 133.35 | AA50: 0 | AB50: 0 | AD50: 2.2225 | AE50: 60 | AF50: =AE50*AD50 -> 133.35 | AH50: 0 | AI50: 0 | AK50: 2.2225 | AL50: 60 | AM50: =AL50*AK50 -> 133.35 | AO50: 0 | AP50: 0
A51: Sub-Total C - Delivery (including Sub-Total B) | G51: =SUM(G48:G50) -> 824.36 | K51: =SUM(K48:K50) -> 883.59 | M51: 59.23 | N51: 0.07184967733 | R51: =SUM(R48:R50) -> 914.89 | T51: 31.3 | U51: 0.03542366935 | Y51: =SUM(Y48:Y50) -> 927.414 | AA51: 12.524 | AB51: 0.01368907738 | AF51: =SUM(AF48:AF50) -> 939.832 | AH51: 12.418 | AI51: 0.01338992079 | AM51: =SUM(AM48:AM50) -> 948.732 | AO51: 8.9 | AP51: 0.009469777577
A52: Wholesale Market Service Charge (WMSC) | C52: per kWh | E52: 0.0044 | F52: =$E$18*(1+$E$75) -> 41376 | G52: =F52*E52 -> 182.0544 | I52: 0.0044 | J52: =$E$18*(1+I75) -> 41572 | K52: =J52*I52 -> 182.9168 | M52: 0.8624 | N52: 0.00473704563 | P52: 0.0044 | Q52: =$E$18*(1+P75) -> 41572 | R52: =Q52*P52 -> 182.9168 | T52: 0 | U52: 0 | W52: 0.0044 | X52: =$E$18*(1+W75) -> 41572 | Y52: =X52*W52 -> 182.9168 | AA52: 0 | AB52: 0 | AD52: 0.0044 | AE52: =$E$18*(1+AD75) -> 41572 | AF52: =AE52*AD52 -> 182.9168 | AH52: 0 | AI52: 0 | AK52: 0.0044 | AL52: =$E$18*(1+AK75) -> 41572 | AM52: =AL52*AK52 -> 182.9168 | AO52: 0 | AP52: 0
A53: Rural and Remote Rate Protection (RRRP) | C53: per kWh | E53: 0.0013 | F53: =$E$18*(1+$E$75) -> 41376 | G53: 53.7888 | I53: 0.0013 | J53: =$E$18*(1+I75) -> 41572 | K53: 54.0436 | M53: 0.2548 | N53: 0.00473704563 | P53: 0.0013 | Q53: =$E$18*(1+P75) -> 41572 | R53: 54.0436 | T53: 0 | U53: 0 | W53: 0.0013 | X53: =$E$18*(1+W75) -> 41572 | Y53: 54.0436 | AA53: 0 | AB53: 0 | AD53: 0.0013 | AE53: =$E$18*(1+AD75) -> 41572 | AF53: 54.0436 | AH53: 0 | AI53: 0 | AK53: 0.0013 | AL53: =$E$18*(1+AK75) -> 41572 | AM53: 54.0436 | AO53: 0 | AP53: 0
A54: Standard Supply Service Charge | C54: Monthly | E54: 0.25 | F54: 1 | G54: 0.25 | I54: 0.25 | J54: 1 | K54: 0.25 | M54: 0 | N54: 0 | P54: 0.25 | Q54: 1 | R54: 0.25 | T54: 0 | U54: 0 | W54: 0.25 | X54: 1 | Y54: 0.25 | AA54: 0 | AB54: 0 | AD54: 0.25 | AE54: 1 | AF54: 0.25 | AH54: 0 | AI54: 0 | AK54: 0.25 | AL54: 1 | AM54: 0.25 | AO54: 0 | AP54: 0
A55: Debt Retirement Charge (DRC) | C55: per kWh | E55: 0.007 | F55: =E18 -> 40000 | G55: 280 | I55: 0.007 | J55: =E18 -> 40000 | K55: 280 | M55: 0 | N55: 0 | P55: 0.007 | Q55: =J55 -> 40000 | R55: 280 | T55: 0 | U55: 0 | W55: 0.007 | X55: =Q55 -> 40000 | Y55: 280 | AA55: 0 | AB55: 0 | AD55: 0.007 | AE55: =X55 -> 40000 | AF55: 280 | AH55: 0 | AI55: 0 | AK55: 0.007 | AL55: =AE55 -> 40000 | AM55: 280 | AO55: 0 | AP55: 0
A56: TOU - Off Peak | C56: per kWh | E56: 0.077 | F56: =0.64*$E$18 -> 25600 | G56: 1971.2 | I56: 0.077 | J56: =F56 -> 25600 | K56: 1971.2 | M56: 0 | N56: 0 | P56: 0.077 | Q56: =J56 -> 25600 | R56: 1971.2 | T56: 0 | U56: 0 | W56: 0.077 | X56: =Q56 -> 25600 | Y56: 1971.2 | AA56: 0 | AB56: 0 | AD56: 0.077 | AE56: =X56 -> 25600 | AF56: 1971.2 | AH56: 0 | AI56: 0 | AK56: 0.077 | AL56: =AE56 -> 25600 | AM56: 1971.2 | AO56: 0 | AP56: 0
A57: TOU - Mid Peak | C57: per kWh | E57: 0.114 | F57: =0.18*$E$18 -> 7200 | G57: 820.8 | I57: 0.114 | J57: =F57 -> 7200 | K57: 820.8 | M57: 0 | N57: 0 | P57: 0.114 | Q57: =J57 -> 7200 | R57: 820.8 | T57: 0 | U57: 0 | W57: 0.114 | X57: =Q57 -> 7200 | Y57: 820.8 | AA57: 0 | AB57: 0 | AD57: 0.114 | AE57: =X57 -> 7200 | AF57: 820.8 | AH57: 0 | AI57: 0 | AK57: 0.114 | AL57: =AE57 -> 7200 | AM57: 820.8 | AO57: 0 | AP57: 0
A58: TOU - On Peak | C58: per kWh | E58: 0.14 | F58: =0.18*$E$18 -> 7200 | G58: 1008 | I58: 0.14 | J58: =F58 -> 7200 | K58: 1008 | M58: 0 | N58: 0 | P58: 0.14 | Q58: 7200 | R58: 1008 | T58: 0 | U58: 0 | W58: 0.14 | X58: 7200 | Y58: 1008 | AA58: 0 | AB58: 0 | AD58: 0.14 | AE58: 7200 | AF58: 1008 | AH58: 0 | AI58: 0 | AK58: 0.14 | AL58: 7200 | AM58: 1008 | AO58: 0 | AP58: 0
A59: Energy - RPP - Tier 1 | C59: per kWh | E59: 0.088 | F59: =IF(AND($S$1=1, E18>=600), 600, IF(AND($S$1=1, AND(E18<600, E18>=0)), E18, IF(AND($S$1=2, E18>=1000), 1000, IF(AND($S$1=2, AND(E18<1000, E18>=0)), E18)))) -> 600 | G59: =F59*E59 -> 52.8 | I59: 0.088 | J59: =F59 -> 600 | K59: =J59*I59 -> 52.8 | M59: 0 | N59: =IF((G59)=0,"",(M59/G59)) -> 0 | P59: 0.088 | Q59: 600 | R59: =Q59*P59 -> 52.8 | T59: 0 | U59: =IF((K59)=0,"",(T59/K59)) -> 0 | W59: 0.088 | X59: 600 | Y59: =X59*W59 -> 52.8 | AA59: 0 | AB59: =IF((R59)=0,"",(AA59/R59)) -> 0 | AD59: 0.088 | AE59: 600 | AF59: =AE59*AD59 -> 52.8 | AH59: 0 | AI59: =IF((Y59)=0,"",(AH59/Y59)) -> 0 | AK59: 0.088 | AL59: 600 | AM59: =AL59*AK59 -> 52.8 | AO59: 0 | AP59: =IF((AF59)=0,"",(AO59/AF59)) -> 0
A60: Energy - RPP - Tier 2 | C60: per kWh | E60: 0.103 | F60: =IF(AND($S$1=1, E18>=600), E18-600, IF(AND($S$1=1, AND(E18<600, E18>=0)), 0, IF(AND($S$1=2, E18>=1000), E18-1000, IF(AND($S$1=2, AND(E18<1000, E18>=0)), 0)))) -> 39400 | G60: =F60*E60 -> 4058.2 | I60: 0.103 | J60: =F60 -> 39400 | K60: =J60*I60 -> 4058.2 | M60: 0 | N60: 0 | P60: 0.103 | Q60: 39400 | R60: =Q60*P60 -> 4058.2 | T60: 0 | U60: 0 | W60: 0.103 | X60: 39400 | Y60: =X60*W60 -> 4058.2 | AA60: 0 | AB60: 0 | AD60: 0.103 | AE60: 39400 | AF60: =AE60*AD60 -> 4058.2 | AH60: 0 | AI60: 0 | AK60: 0.103 | AL60: 39400 | AM60: =AL60*AK60 -> 4058.2 | AO60: 0 | AP60: 0
A62: Total Bill on TOU (before Taxes) | G62: =SUM(G52:G58,G51) -> 5140.4532 | K62: =SUM(K52:K58,K51) -> 5200.8004 | M62: =K62-G62 -> 60.3472 | N62: =IF((G62)=0,"",(M62/G62)) -> 0.01173966529 | R62: =SUM(R52:R58,R51) -> 5232.1004 | T62: =R62-K62 -> 31.3 | U62: =IF((K62)=0,"",(T62/K62)) -> 0.006018304413 | Y62: =SUM(Y52:Y58,Y51) -> 5244.6244 | AA62: =Y62-R62 -> 12.524 | AB62: 0.002393684953 | AF62: =SUM(AF52:AF58,AF51) -> 5257.0424 | AH62: =AF62-Y62 -> 12.418 | AI62: 0.002367757737 | AM62: =SUM(AM52:AM58,AM51) -> 5265.9424 | AO62: =AM62-AF62 -> 8.9 | AP62: 0.001692967133
A63: HST | E63: 0.13 | G63: =G62*E63 -> 668.258916 | I63: 0.13 | K63: =K62*I63 -> 676.104052 | M63: 7.845136 | N63: 0.01173966529 | P63: 0.13 | R63: =R62*P63 -> 680.173052 | T63: =R63-K63 -> 4.069 | U63: =IF((K63)=0,"",(T63/K63)) -> 0.006018304413 | W63: 0.13 | Y63: =Y62*W63 -> 681.801172 | AA63: =Y63-R63 -> 1.62812 | AB63: 0.002393684953 | AD63: 0.13 | AF63: =AF62*AD63 -> 683.415512 | AH63: =AF63-Y63 -> 1.61434 | AI63: 0.002367757737 | AK63: 0.13 | AM63: =AM62*AK63 -> 684.572512 | AO63: =AM63-AF63 -> 1.157 | AP63: 0.001692967133
A64: Total Bill (including HST) | G64: =G62+G63 -> 5808.712116 | K64: =K62+K63 -> 5876.904452 | M64: 68.192336 | N64: 0.01173966529 | R64: =R62+R63 -> 5912.273452 | T64: 35.369 | U64: 0.006018304413 | Y64: =Y62+Y63 -> 5926.425572 | AA64: 14.15212 | AB64: 0.002393684953 | AF64: =AF62+AF63 -> 5940.457912 | AH64: 14.03234 | AI64: 0.002367757737 | AM64: =AM62+AM63 -> 5950.514912 | AO64: 10.057 | AP64: 0.001692967133
A65: Ontario Clean Energy Benefit 1 | M65: 0 | T65: 0 | AA65: 0 | AH65: 0 | AO65: 0
A66: Total Bill on TOU (including OCEB) | G66: =G64+G65 -> 5808.712116 | K66: =K64+K65 -> 5876.904452 | M66: 68.192336 | N66: 0.01173966529 | R66: =R64+R65 -> 5912.273452 | T66: 35.369 | U66: =IF((K66)=0,"",(T66/K66)) -> 0.006018304413 | Y66: =Y64+Y65 -> 5926.425572 | AA66: 14.15212 | AB66: =IF((R66)=0,"",(AA66/R66)) -> 0.002393684953 | AF66: =AF64+AF65 -> 5940.457912 | AH66: 14.03234 | AI66: =IF((Y66)=0,"",(AH66/Y66)) -> 0.002367757737 | AM66: =AM64+AM65 -> 5950.514912 | AO66: 10.057 | AP66: =IF((AF66)=0,"",(AO66/AF66)) -> 0.001692967133
A68: Total Bill on RPP (before Taxes) | G68: =SUM(G60:G61,G51,G52:G55) -> 5398.6532 | K68: =SUM(K60:K61,K51,K52:K55) -> 5459.0004 | M68: =K68-G68 -> 60.3472 | N68: =IF((G68)=0,"",(M68/G68)) -> 0.01117819533 | R68: =SUM(R60:R61,R51,R52:R55) -> 5490.3004 | T68: =R68-K68 -> 31.3 | U68: 0.005733650432 | Y68: =SUM(Y60:Y61,Y51,Y52:Y55) -> 5502.8244 | AA68: =SUM(AA60:AA61,AA51,AA52:AA55) -> 12.524 | AB68: 0.002281113798 | AF68: =SUM(AF60:AF61,AF51,AF52:AF55) -> 5515.2424 | AH68: =AF68-Y68 -> 12.418 | AI68: 0.002256659326 | AM68: =SUM(AM60:AM61,AM51,AM52:AM55) -> 5524.1424 | AO68: =AM68-AF68 -> 8.9 | AP68: 0.001613709671
A69: HST | E69: 0.13 | G69: =G68*E69 -> 701.824916 | I69: 0.13 | K69: =K68*I69 -> 709.670052 | M69: 7.845136 | N69: =IF((G69)=0,"",(M69/G69)) -> 0.01117819533 | P69: 0.13 | R69: =R68*P69 -> 713.739052 | T69: =R69-K69 -> 4.069 | U69: 0.005733650432 | W69: 0.13 | Y69: =Y68*W69 -> 715.367172 | AA69: =Y69-R69 -> 1.62812 | AB69: 0.002281113798 | AD69: 0.13 | AF69: =AF68*AD69 -> 716.981512 | AH69: =AF69-Y69 -> 1.61434 | AI69: 0.002256659326 | AK69: 0.13 | AM69: =AM68*AK69 -> 718.138512 | AO69: =AM69-AF69 -> 1.157 | AP69: 0.001613709671
A70: Total Bill (including HST) | G70: =G68+G69 -> 6100.478116 | K70: =K68+K69 -> 6168.670452 | M70: 68.192336 | N70: 0.01117819533 | R70: =R68+R69 -> 6204.039452 | T70: 35.369 | U70: 0.005733650432 | Y70: =Y68+Y69 -> 6218.191572 | AA70: 14.15212 | AB70: 0.002281113798 | AF70: =AF68+AF69 -> 6232.223912 | AH70: 14.03234 | AI70: 0.002256659326 | AM70: =AM68+AM69 -> 6242.280912 | AO70: 10.057 | AP70: 0.001613709671
A71: Ontario Clean Energy Benefit 1 | M71: 0 | T71: 0 | AA71: 0 | AH71: 0 | AO71: 0
A72: Total Bill on RPP (including OCEB) | G72: =SUM(G70:G71) -> 6100.478116 | K72: =SUM(K70:K71) -> 6168.670452 | M72: 68.192336 | N72: 0.01117819533 | R72: =SUM(R70:R71) -> 6204.039452 | T72: 35.369 | U72: 0.005733650432 | Y72: =SUM(Y70:Y71) -> 6218.191572 | AA72: 14.15212 | AB72: 0.002281113798 | AF72: =SUM(AF70:AF71) -> 6232.223912 | AH72: 14.03234 | AI72: 0.002256659326 | AM72: =SUM(AM70:AM71) -> 6242.280912 | AO72: 10.057 | AP72: 0.001613709671
A75: Loss Factor (%) | E75: 0.0344 | I75: 0.0393 | P75: 0.0393 | W75: 0.0393 | AD75: 0.0393 | AK75: 0.0393
A77: Distribution Excluding Rate Riders | E77: 2015 Current Board-Approved | I77: 2016 Test Year 1 Proposed | M77: Impact 2016 TEST vs. 2015 Bridge | P77: 2017 Test Year 2 Proposed | T77: Impact 2017 TEST 2 vs. 2016 Test 1 | W77: 2018 Test Year 3 Proposed | AA77: Impact 2018 TEST 3 vs. 2017 Test 2 | AD77: 2019 Test Year 4 Proposed | AH77: Impact 2019 TEST 4 vs. 2018 Test 3 | AK77: 2020 Test Year 5 Proposed | AO77: Impact 2019 TEST 5 vs. 2019 Test 4
C78: Charge Unit | E78: Rate | F78: Volume | G78: Charge | I78: Rate | J78: Volume | K78: Charge | M78: $ Change | N78: % Change | P78: Rate | Q78: Volume | R78: Charge | T78: $ Change | U78: % Change | W78: Rate | X78: Volume | Y78: Charge | AA78: $ Change | AB78: % Change | AD78: Rate | AE78: Volume | AF78: Charge | AH78: $ Change | AI78: % Change | AK78: Rate | AL78: Volume | AM78: Charge | AO78: $ Change | AP78: % Change
E79: ($) | G79: ($) | I79: ($) | K79: ($) | P79: ($) | R79: ($) | W79: ($) | Y79: ($) | AD79: ($) | AF79: ($) | AK79: ($) | AM79: ($)
A80: Monthly Service Charge | C80: Monthly | E80: 280.09 | F80: 1 | G80: =F80*E80 -> 280.09 | I80: 314.28 | J80: 1 | K80: =J80*I80 -> 314.28 | M80: =K80-G80 -> 34.19 | N80: =IF((G80)=0,"",(M80/G80)) -> 0.1220679067 | P80: 322.99 | Q80: 1 | R80: =Q80*P80 -> 322.99 | T80: =R80-K80 -> 8.71 | U80: =IF((K80)=0,"",(T80/K80)) -> 0.02771414026 | W80: 330.54 | X80: 1 | Y80: =X80*W80 -> 330.54 | AA80: =Y80-R80 -> 7.55 | AB80: =IF((R80)=0,"",(AA80/R80)) -> 0.0233753367 | AD80: 337.9 | AE80: 1 | AF80: =AE80*AD80 -> 337.9 | AH80: =AF80-Y80 -> 7.36 | AI80: =IF((Y80)=0,"",(AH80/Y80)) -> 0.02226659406 | AK80: 342.75 | AL80: 1 | AM80: =AL80*AK80 -> 342.75 | AO80: =AM80-AF80 -> 4.85 | AP80: =IF((AF80)=0,"",(AO80/AF80)) -> 0.01435335898
A81: Distribution Volumetric Rate | C81: per kW | E81: 2.0063 | F81: =$E$19 -> 60 | G81: =F81*E81 -> 120.378 | I81: 2.0517 | J81: =$E$19 -> 60 | K81: =J81*I81 -> 123.102 | M81: =K81-G81 -> 2.724 | N81: =IF((G81)=0,"",(M81/G81)) -> 0.02262871953 | P81: 2.1314 | Q81: =$E$19 -> 60 | R81: =Q81*P81 -> 127.884 | T81: 4.782 | U81: =IF((K81)=0,"",(T81/K81)) -> 0.03884583516 | W81: 2.2143 | X81: =$E$19 -> 60 | Y81: =X81*W81 -> 132.858 | AA81: 4.974 | AB81: =IF((R81)=0,"",(AA81/R81)) -> 0.03889462325 | AD81: 2.2986 | AE81: =$E$19 -> 60 | AF81: =AE81*AD81 -> 137.916 | AH81: 5.058 | AI81: =IF((Y81)=0,"",(AH81/Y81)) -> 0.03807072212 | AK81: 2.3661 | AL81: =$E$19 -> 60 | AM81: =AL81*AK81 -> 141.966 | AO81: 4.05 | AP81: =IF((AF81)=0,"",(AO81/AF81)) -> 0.02936570086
A82: "Regular" Distribution Only | G82: =SUM(G80:G81) -> 400.468 | K82: =SUM(K80:K81) -> 437.382 | M82: =K82-G82 -> 36.914 | N82: =IF((G82)=0,"",(M82/G82)) -> 0.09217715273 | R82: =SUM(R80:R81) -> 450.874 | T82: =R82-K82 -> 13.492 | U82: =IF((K82)=0,"",(T82/K82)) -> 0.03084717707 | Y82: =SUM(Y80:Y81) -> 463.398 | AA82: =Y82-R82 -> 12.524 | AB82: =IF((R82)=0,"",(AA82/R82)) -> 0.02777716169 | AF82: =SUM(AF80:AF81) -> 475.816 | AH82: =AF82-Y82 -> 12.418 | AI82: =IF((Y82)=0,"",(AH82/Y82)) -> 0.02679769874 | AM82: =SUM(AM80:AM81) -> 484.716 | AO82: =AM82-AF82 -> 8.9 | AP82: =IF((AF82)=0,"",(AO82/AF82)) -> 0.01870470938
B85: Residential (kWh) - 100, 250, 500, 800, 1000, 1500, 2000
B86: GS<50kW (kWh) - 1000, 2000, 5000, 10000, 15000
B87: GS>50kW (kW) - 60, 100, 500, 1000
B88: Large User - range appropriate for utility
B89: Lighting Classes and USL - 150 kWh and 1 kW, range appropriate for utility.
C91: Note that cells with the highlighted color shown to the left indicate quantities that are loss adjusted.

Sheet App. 2-W Bill Impacts Large Use
M1: File Number: | N1: =EBNUMBER -> EB-2015-0083 | S1: 1
M2: Exhibit: | N2: ='App.2-W_Bill Impacts _Resi'!$N$2 -> 8
M3: Tab: | N3: ='App.2-W_Bill Impacts _Resi'!$N$3 -> 4
M4: Schedule: | N4: ='App.2-W_Bill Impacts _Resi'!$N$4 -> 3
M5: Page: | N5: ='App. 2-W Bill Impacts GS50-4999'!N5+1 -> 4
N7: ='App.2-W_Bill Impacts _Resi'!$N$7 -> 1-Staff-4 IRR
A10: Appendix 2-W
A11: Bill Impacts
A14: Customer Class: | C14: Large Use | P14: =C14 -> Large Use | AK14: =P14 -> Large Use
A16: TOU / non-TOU: | C16: TOU
C18: Consumption | E18: 5000000 | F18: kWh
C19: Load | E19: 8000 | F19: kW
E20: 2015 Current Board-Approved | I20: 2016 Test Year 1 Proposed | M20: Impact 2016 TEST vs. 2015 Bridge | P20: 2017 Test Year 2 Proposed | T20: Impact 2017 TEST 2 vs. 2016 Test 1 | W20: 2018 Test Year 3 Proposed | AA20: Impact 2018 TEST 3 vs. 2017 Test 2 | AD20: 2019 Test Year 4 Proposed | AH20: Impact 2019 TEST 4 vs. 2018 Test 3 | AK20: 2020 Test Year 5 Proposed | AO20: Impact 2020 TEST 5 vs. 2019 Test 4
C21: Charge Unit | E21: Rate | F21: Volume | G21: Charge | I21: Rate | J21: Volume | K21: Charge | M21: $ Change | N21: % Change | P21: Rate | Q21: Volume | R21: Charge | T21: $ Change | U21: % Change | W21: Rate | X21: Volume | Y21: Charge | AA21: $ Change | AB21: % Change | AD21: Rate | AE21: Volume | AF21: Charge | AH21: $ Change | AI21: % Change | AK21: Rate | AL21: Volume | AM21: Charge | AO21: $ Change | AP21: % Change
E22: ($) | G22: ($) | I22: ($) | K22: ($) | P22: ($) | R22: ($) | W22: ($) | Y22: ($) | AD22: ($) | AF22: ($) | AK22: ($) | AM22: ($)
A23: Monthly Service Charge | C23: Monthly | E23: 5164 | F23: 1 | G23: =F23*E23 -> 5164 | I23: 5734 | J23: 1 | K23: =J23*I23 -> 5734 | M23: =K23-G23 -> 570 | N23: =IF((G23)=0,"",(M23/G23)) -> 0.1103795507 | P23: 5880 | Q23: 1 | R23: =Q23*P23 -> 5880 | T23: =R23-K23 -> 146 | U23: =IF((K23)=0,"",(T23/K23)) -> 0.02546215556 | W23: 6076 | X23: 1 | Y23: =X23*W23 -> 6076 | AA23: =Y23-R23 -> 196 | AB23: =IF((R23)=0,"",(AA23/R23)) -> 0.03333333333 | AD23: 6275.85 | AE23: 1 | AF23: =AE23*AD23 -> 6275.85 | AH23: =AF23-Y23 -> 199.85 | AI23: =IF((Y23)=0,"",(AH23/Y23)) -> 0.03289170507 | AK23: 6430.75 | AL23: 1 | AM23: =AL23*AK23 -> 6430.75 | AO23: =AM23-AF23 -> 154.9 | AP23: =IF((AF23)=0,"",(AO23/AF23)) -> 0.0246819156
A24: Smart Meter (SMIRR) Rate Rider | E24: 0 | F24: 1 | G24: =F24*E24 -> 0 | I24: 0 | J24: 1 | K24: =J24*I24 -> 0 | M24: =K24-G24 -> 0 | N24: =IF((G24)=0,"",(M24/G24)) ->  | P24: 0 | Q24: 1 | R24: =Q24*P24 -> 0 | T24: 0 | U24: =IF((K24)=0,"",(T24/K24)) ->  | W24: 0 | X24: 1 | Y24: =X24*W24 -> 0 | AA24: 0 | AB24: =IF((R24)=0,"",(AA24/R24)) ->  | AD24: 0 | AE24: 1 | AF24: =AE24*AD24 -> 0 | AH24: 0 | AI24: =IF((Y24)=0,"",(AH24/Y24)) ->  | AK24: 0 | AL24: 1 | AM24: =AL24*AK24 -> 0 | AO24: 0 | AP24: =IF((AF24)=0,"",(AO24/AF24)) -> 
A25: Rate Rider Smart Meters Capital (2016) | E25: 0 | F25: 1 | G25: 0 | I25: 0 | J25: 1 | K25: =J25*I25 -> 0 | M25: =K25-G25 -> 0 | N25: =IF((G25)=0,"",(M25/G25)) ->  | P25: 0 | Q25: 1 | R25: =Q25*P25 -> 0 | T25: 0 | W25: 0 | X25: 1 | Y25: =X25*W25 -> 0 | AA25: 0 | AD25: 0 | AE25: 1 | AF25: =AE25*AD25 -> 0 | AH25: 0 | AK25: 0 | AL25: 1 | AM25: =AL25*AK25 -> 0 | AO25: 0
A26: Rate Rider Recovery of Stranded Meters | E26: 0 | F26: 1 | G26: 0 | I26: 0 | J26: 1 | K26: 0 | M26: 0 | P26: 0 | Q26: 1 | R26: 0 | T26: 0 | W26: 0 | X26: 1 | Y26: 0 | AA26: 0 | AD26: 0 | AE26: 1 | AF26: 0 | AH26: 0 | AK26: 0 | AL26: 1 | AM26: 0 | AO26: 0
F27: 1 | G27: 0 | J27: 1 | K27: 0 | M27: 0 | Q27: 1 | R27: 0 | T27: 0 | X27: 1 | Y27: 0 | AA27: 0 | AE27: 1 | AF27: 0 | AH27: 0 | AL27: 1 | AM27: 0 | AO27: 0
F28: 1 | G28: 0 | J28: 1 | K28: 0 | M28: 0 | Q28: 1 | R28: 0 | T28: 0 | X28: 1 | Y28: 0 | AA28: 0 | AE28: 1 | AF28: 0 | AH28: 0 | AL28: 1 | AM28: 0 | AO28: 0
A29: Distribution Volumetric Rate | C29: per kW | E29: 1.0535 | F29: =$E$19 -> 8000 | G29: 8428 | I29: 1.1818 | J29: =$E$19 -> 8000 | K29: 9454.4 | M29: 1026.4 | N29: 0.1217845278 | P29: 1.225 | Q29: =$E$19 -> 8000 | R29: 9800 | T29: 345.6 | U29: 0.03655440853 | W29: 1.2597 | X29: =$E$19 -> 8000 | Y29: 10077.6 | AA29: 277.6 | AB29: 0.02832653061 | AD29: 1.2938 | AE29: =$E$19 -> 8000 | AF29: 10350.4 | AH29: 272.8 | AI29: 0.02706993729 | AK29: 1.3187 | AL29: =$E$19 -> 8000 | AM29: 10549.6 | AO29: 199.2 | AP29: 0.01924563302
A30: Rate Rider Tax Change (2015) | C30: per kW | E30: -0.0045 | F30: =$E$19 -> 8000 | G30: -36 | I30: 0 | J30: =$E$19 -> 8000 | K30: 0 | M30: 36 | N30: -1 | P30: 0 | Q30: =$E$19 -> 8000 | R30: 0 | T30: 0 | W30: 0 | X30: =$E$19 -> 8000 | Y30: 0 | AA30: 0 | AD30: 0 | AE30: =$E$19 -> 8000 | AF30: 0 | AH30: 0 | AK30: 0 | AL30: =$E$19 -> 8000 | AM30: 0 | AO30: 0
A31: LRAM VA (2016) | C31: per kW | E31: 0 | F31: 8000 | G31: 0 | I31: 0.0277 | J31: 8000 | K31: 221.6 | M31: 221.6 | P31: 0 | Q31: 8000 | R31: 0 | T31: -221.6 | U31: -1 | W31: 0 | X31: 8000 | Y31: 0 | AA31: 0 | AD31: 0 | AE31: 8000 | AF31: 0 | AH31: 0 | AK31: 0 | AL31: 8000 | AM31: 0 | AO31: 0
A32: Rate Rider Incremental Capital 2012 True-Up (2016) | C32: per kW | E32: 0 | F32: 8000 | G32: 0 | I32: 0.0182 | J32: 8000 | K32: 145.6 | M32: 145.6 | P32: 0 | Q32: 8000 | R32: 0 | T32: -145.6 | U32: -1 | W32: 0 | X32: 8000 | Y32: 0 | AA32: 0 | AD32: 0 | AE32: 8000 | AF32: 0 | AH32: 0 | AK32: 0 | AL32: 8000 | AM32: 0 | AO32: 0
F33: 8000 | G33: =F33*E33 -> 0 | J33: 8000 | K33: =J33*I33 -> 0 | M33: =K33-G33 -> 0 | N33: =IF((G33)=0,"",(M33/G33)) ->  | Q33: 8000 | R33: =Q33*P33 -> 0 | T33: =R33-K33 -> 0 | U33: =IF((K33)=0,"",(T33/K33)) ->  | X33: 8000 | Y33: =X33*W33 -> 0 | AA33: =Y33-R33 -> 0 | AB33: =IF((R33)=0,"",(AA33/R33)) ->  | AE33: 8000 | AF33: =AE33*AD33 -> 0 | AH33: =AF33-Y33 -> 0 | AI33: =IF((Y33)=0,"",(AH33/Y33)) ->  | AL33: 8000 | AM33: =AL33*AK33 -> 0 | AO33: =AM33-AF33 -> 0 | AP33: =IF((AF33)=0,"",(AO33/AF33)) -> 
F34: 8000 | G34: 0 | J34: 8000 | K34: 0 | M34: 0 | Q34: 8000 | R34: 0 | T34: 0 | X34: 8000 | Y34: 0 | AA34: 0 | AE34: 8000 | AF34: 0 | AH34: 0 | AL34: 8000 | AM34: 0 | AO34: 0
F35: 8000 | G35: 0 | J35: 8000 | K35: 0 | M35: 0 | Q35: 8000 | R35: 0 | T35: 0 | X35: 8000 | Y35: 0 | AA35: 0 | AE35: 8000 | AF35: 0 | AH35: 0 | AL35: 8000 | AM35: 0 | AO35: 0
F36: 8000 | G36: 0 | J36: 8000 | K36: 0 | M36: 0 | Q36: 8000 | R36: 0 | T36: 0 | X36: 8000 | Y36: 0 | AA36: 0 | AE36: 8000 | AF36: 0 | AH36: 0 | AL36: 8000 | AM36: 0 | AO36: 0
F37: 8000 | G37: 0 | J37: 8000 | K37: 0 | M37: 0 | Q37: 8000 | R37: 0 | T37: 0 | X37: 8000 | Y37: 0 | AA37: 0 | AE37: 8000 | AF37: 0 | AH37: 0 | AL37: 8000 | AM37: 0 | AO37: 0
F38: 8000 | G38: 0 | J38: 8000 | K38: 0 | M38: 0 | Q38: 8000 | R38: 0 | T38: 0 | X38: 8000 | Y38: 0 | AA38: 0 | AE38: 8000 | AF38: 0 | AH38: 0 | AL38: 8000 | AM38: 0 | AO38: 0
A39: Sub-Total A (excluding pass through) | G39: =SUM(G23:G38) -> 13556 | K39: =SUM(K23:K38) -> 15555.6 | M39: 1999.6 | N39: 0.1475066391 | R39: =SUM(R23:R38) -> 15680 | T39: 124.4 | U39: 0.007997120008 | Y39: =SUM(Y23:Y38) -> 16153.6 | AA39: 473.6 | AB39: 0.03020408163 | AF39: =SUM(AF23:AF38) -> 16626.25 | AH39: 472.65 | AI39: 0.02925973158 | AM39: =SUM(AM23:AM38) -> 16980.35 | AO39: 354.1 | AP39: 0.02129764679
A40: Deferral/Variance Account Disposition Rate Rider (2016) | C40: per kW | E40: 0 | F40: 8000 | G40: =F40*E40 -> 0 | I40: -0.553 | J40: 8000 | K40: =J40*I40 -> -4424 | M40: =K40-G40 -> -4424 | P40: 0 | Q40: 8000 | R40: =Q40*P40 -> 0 | T40: 4424 | U40: -1 | W40: 0 | X40: 8000 | Y40: =X40*W40 -> 0 | AA40: 0 | AD40: 0 | AE40: 8000 | AF40: =AE40*AD40 -> 0 | AH40: 0 | AK40: 0 | AL40: 8000 | AM40: =AL40*AK40 -> 0 | AO40: 0
F41: 8000 | G41: =F41*E41 -> 0 | J41: 8000 | K41: =J41*I41 -> 0 | M41: =K41-G41 -> 0 | Q41: 8000 | R41: =Q41*P41 -> 0 | T41: =R41-K41 -> 0 | U41: =IF((K41)=0,"",(T41/K41)) ->  | X41: 8000 | Y41: =X41*W41 -> 0 | AA41: =Y41-R41 -> 0 | AB41: =IF((R41)=0,"",(AA41/R41)) ->  | AE41: 8000 | AF41: =AE41*AD41 -> 0 | AH41: =AF41-Y41 -> 0 | AI41: =IF((Y41)=0,"",(AH41/Y41)) ->  | AL41: 8000 | AM41: =AL41*AK41 -> 0 | AO41: =AM41-AF41 -> 0 | AP41: =IF((AF41)=0,"",(AO41/AF41)) -> 
A42: Rate Rider CGAAP Account 1576 (2016) | C42: per kW | E42: 0 | F42: 8000 | G42: 0 | I42: -0.1073 | J42: 8000 | K42: -858.4 | M42: -858.4 | P42: -0.1073 | Q42: 8000 | R42: -858.4 | T42: 0 | U42: 0 | W42: -0.1073 | X42: 8000 | Y42: -858.4 | AA42: 0 | AB42: 0 | AD42: -0.1073 | AE42: 8000 | AF42: -858.4 | AH42: 0 | AI42: 0 | AK42: -0.1073 | AL42: 8000 | AM42: -858.4 | AO42: 0 | AP42: 0
A43: Disposition of Global Adjustment (2015) Applicable to Non-RPP Customers | C43: per kW | F43: 8000 | G43: =F43*E43 -> 0 | J43: 8000 | K43: =J43*I43 -> 0 | M43: =K43-G43 -> 0 | Q43: 8000 | R43: =Q43*P43 -> 0 | T43: 0 | X43: 8000 | Y43: =X43*W43 -> 0 | AA43: 0 | AE43: 8000 | AF43: =AE43*AD43 -> 0 | AH43: 0 | AL43: 8000 | AM43: =AL43*AK43 -> 0 | AO43: 0
A44: Disposition of Global Adjustment (2016) Applicable to Non-RPP Customers | C44: per kW | F44: 8000 | G44: 0 | J44: 8000 | K44: 0 | M44: 0 | N44: =IF((G44)=0,"",(M44/G44)) ->  | Q44: 8000 | R44: 0 | T44: 0 | X44: 8000 | Y44: 0 | AA44: 0 | AE44: 8000 | AF44: 0 | AH44: 0 | AL44: 8000 | AM44: 0 | AO44: 0
A45: Low Voltage Service Charge | C45: per kW | E45: 0.3036 | F45: 8000 | G45: =F45*E45 -> 2428.8 | I45: 0.5625 | J45: 8000 | K45: =J45*I45 -> 4500 | M45: =K45-G45 -> 2071.2 | N45: =IF((G45)=0,"",(M45/G45)) -> 0.8527667984 | P45: 0.5625 | Q45: 8000 | R45: =Q45*P45 -> 4500 | T45: =R45-K45 -> 0 | U45: 0 | W45: 0.5625 | X45: 8000 | Y45: =X45*W45 -> 4500 | AA45: =Y45-R45 -> 0 | AB45: 0 | AD45: 0.5625 | AE45: 8000 | AF45: =AE45*AD45 -> 4500 | AH45: =AF45-Y45 -> 0 | AI45: 0 | AK45: 0.5625 | AL45: 8000 | AM45: =AL45*AK45 -> 4500 | AO45: =AM45-AF45 -> 0 | AP45: 0
A46: Line Losses on Cost of Power | C46: per kWh | E46: 0.095 | F46: =$E$18*(1+$E$75)-$E$18 -> 90000 | G46: 8550 | I46: 0.095 | J46: =$E$18*(1+$I$75)-$E$18 -> 94000 | K46: 8930 | M46: 380 | N46: 0.04444444444 | P46: 0.095 | Q46: =$E$18*(1+$I$75)-$E$18 -> 94000 | R46: =Q46*P46 -> 8930 | T46: =R46-K46 -> 0 | U46: 0 | W46: 0.095 | X46: =$E$18*(1+$I$75)-$E$18 -> 94000 | Y46: =X46*W46 -> 8930 | AA46: =Y46-R46 -> 0 | AB46: 0 | AD46: 0.095 | AE46: =$E$18*(1+$I$75)-$E$18 -> 94000 | AF46: =AE46*AD46 -> 8930 | AH46: =AF46-Y46 -> 0 | AI46: 0 | AK46: 0.095 | AL46: =$E$18*(1+$I$75)-$E$18 -> 94000 | AM46: =AL46*AK46 -> 8930 | AO46: =AM46-AF46 -> 0 | AP46: 0
A47: Smart Meter Entity Charge | E47: 0 | F47: 1 | G47: =F47*E47 -> 0 | I47: 0 | J47: 1 | K47: =J47*I47 -> 0 | M47: =I47 -> 0 | P47: 0 | Q47: 1 | R47: =Q47*P47 -> 0 | T47: =R47-K47 -> 0 | W47: 0 | X47: 1 | Y47: =X47*W47 -> 0 | AA47: =Y47-R47 -> 0 | AD47: 0 | AE47: 1 | AF47: =AE47*AD47 -> 0 | AH47: =AF47-Y47 -> 0 | AK47: 0 | AL47: 1 | AM47: =AL47*AK47 -> 0 | AO47: =AM47-AF47 -> 0
A48: Sub-Total B - Distribution (includes Sub-Total A) | G48: =SUM(G40:G47)+G39 -> 24534.8 | K48: =SUM(K40:K47)+K39 -> 23703.2 | M48: =K48-G48 -> -831.6 | N48: =IF((G48)=0,"",(M48/G48)) -> -0.03389471282 | R48: =SUM(R40:R47)+R39 -> 28251.6 | T48: =R48-K48 -> 4548.4 | U48: 0.1918897027 | Y48: =SUM(Y40:Y47)+Y39 -> 28725.2 | AA48: =Y48-R48 -> 473.6 | AB48: 0.01676365232 | AF48: =SUM(AF40:AF47)+AF39 -> 29197.85 | AH48: =AF48-Y48 -> 472.65 | AI48: 0.01645419353 | AM48: =SUM(AM40:AM47)+AM39 -> 29551.95 | AO48: =AM48-AF48 -> 354.1 | AP48: 0.01212760529
A49: RTSR - Network | C49: per kW | E49: 3.1704 | F49: =$E$19 -> 8000 | G49: =F49*E49 -> 25363.2 | I49: 3.3492 | J49: =$E$19 -> 8000 | K49: =J49*I49 -> 26793.6 | M49: 1430.4 | N49: 0.05639666919 | P49: 3.3492 | Q49: =$E$19 -> 8000 | R49: =Q49*P49 -> 26793.6 | T49: 0 | U49: 0 | W49: 3.3492 | X49: =$E$19 -> 8000 | Y49: =X49*W49 -> 26793.6 | AA49: 0 | AB49: 0 | AD49: 3.3492 | AE49: =$E$19 -> 8000 | AF49: =AE49*AD49 -> 26793.6 | AH49: 0 | AI49: 0 | AK49: 3.3492 | AL49: =$E$19 -> 8000 | AM49: =AL49*AK49 -> 26793.6 | AO49: 0 | AP49: 0
A50: RTSR - Line and Transformation Connection | C50: per kW | E50: 2.4253 | F50: 8000 | G50: =F50*E50 -> 19402.4 | I50: 2.678 | J50: 8000 | K50: =J50*I50 -> 21424 | M50: 2021.6 | N50: 0.1041932957 | P50: 2.678 | Q50: 8000 | R50: =Q50*P50 -> 21424 | T50: 0 | U50: 0 | W50: 2.678 | X50: 8000 | Y50: =X50*W50 -> 21424 | AA50: 0 | AB50: 0 | AD50: 2.678 | AE50: 8000 | AF50: =AE50*AD50 -> 21424 | AH50: 0 | AI50: 0 | AK50: 2.678 | AL50: 8000 | AM50: =AL50*AK50 -> 21424 | AO50: 0 | AP50: 0
A51: Sub-Total C - Delivery (including Sub-Total B) | G51: =SUM(G48:G50) -> 69300.4 | K51: =SUM(K48:K50) -> 71920.8 | M51: 2620.4 | N51: 0.03781219156 | R51: =SUM(R48:R50) -> 76469.2 | T51: 4548.4 | U51: 0.06324178819 | Y51: =SUM(Y48:Y50) -> 76942.8 | AA51: 473.6 | AB51: 0.006193343202 | AF51: =SUM(AF48:AF50) -> 77415.45 | AH51: 472.65 | AI51: 0.006142874967 | AM51: =SUM(AM48:AM50) -> 77769.55 | AO51: 354.1 | AP51: 0.004574022369
A52: Wholesale Market Service Charge (WMSC) | C52: per kWh | E52: 0.0044 | F52: =$E$18*(1+$E$75) -> 5090000 | G52: =F52*E52 -> 22396 | I52: 0.0044 | J52: =$E$18*(1+I75) -> 5094000 | K52: =J52*I52 -> 22413.6 | M52: 17.6 | N52: 0.0007858546169 | P52: 0.0044 | Q52: =$E$18*(1+P75) -> 5094000 | R52: =Q52*P52 -> 22413.6 | T52: 0 | U52: 0 | W52: 0.0044 | X52: =$E$18*(1+W75) -> 5094000 | Y52: =X52*W52 -> 22413.6 | AA52: 0 | AB52: 0 | AD52: 0.0044 | AE52: =$E$18*(1+AD75) -> 5094000 | AF52: =AE52*AD52 -> 22413.6 | AH52: 0 | AI52: 0 | AK52: 0.0044 | AL52: =$E$18*(1+AK75) -> 5094000 | AM52: =AL52*AK52 -> 22413.6 | AO52: 0 | AP52: 0
A53: Rural and Remote Rate Protection (RRRP) | C53: per kWh | E53: 0.0013 | F53: =$E$18*(1+$E$75) -> 5090000 | G53: 6617 | I53: 0.0013 | J53: =$E$18*(1+I75) -> 5094000 | K53: 6622.2 | M53: 5.2 | N53: 0.0007858546169 | P53: 0.0013 | Q53: =$E$18*(1+P75) -> 5094000 | R53: 6622.2 | T53: 0 | U53: 0 | W53: 0.0013 | X53: =$E$18*(1+W75) -> 5094000 | Y53: 6622.2 | AA53: 0 | AB53: 0 | AD53: 0.0013 | AE53: =$E$18*(1+AD75) -> 5094000 | AF53: 6622.2 | AH53: 0 | AI53: 0 | AK53: 0.0013 | AL53: =$E$18*(1+AK75) -> 5094000 | AM53: 6622.2 | AO53: 0 | AP53: 0
A54: Standard Supply Service Charge | C54: Monthly | E54: 0.25 | F54: 1 | G54: 0.25 | I54: 0.25 | J54: 1 | K54: 0.25 | M54: 0 | N54: 0 | P54: 0.25 | Q54: 1 | R54: 0.25 | T54: 0 | U54: 0 | W54: 0.25 | X54: 1 | Y54: 0.25 | AA54: 0 | AB54: 0 | AD54: 0.25 | AE54: 1 | AF54: 0.25 | AH54: 0 | AI54: 0 | AK54: 0.25 | AL54: 1 | AM54: 0.25 | AO54: 0 | AP54: 0
A55: Debt Retirement Charge (DRC) | C55: per kWh | E55: 0.007 | F55: =E18 -> 5000000 | G55: 35000 | I55: 0.007 | J55: =E18 -> 5000000 | K55: 35000 | M55: 0 | N55: 0 | P55: 0.007 | Q55: =J55 -> 5000000 | R55: 35000 | T55: 0 | U55: 0 | W55: 0.007 | X55: =Q55 -> 5000000 | Y55: 35000 | AA55: 0 | AB55: 0 | AD55: 0.007 | AE55: =X55 -> 5000000 | AF55: 35000 | AH55: 0 | AI55: 0 | AK55: 0.007 | AL55: =AE55 -> 5000000 | AM55: 35000 | AO55: 0 | AP55: 0
A56: TOU - Off Peak | C56: per kWh | E56: 0.077 | F56: =0.64*$E$18 -> 3200000 | G56: 246400 | I56: 0.077 | J56: =F56 -> 3200000 | K56: 246400 | M56: 0 | N56: 0 | P56: 0.077 | Q56: =J56 -> 3200000 | R56: 246400 | T56: 0 | U56: 0 | W56: 0.077 | X56: =Q56 -> 3200000 | Y56: 246400 | AA56: 0 | AB56: 0 | AD56: 0.077 | AE56: =X56 -> 3200000 | AF56: 246400 | AH56: 0 | AI56: 0 | AK56: 0.077 | AL56: =AE56 -> 3200000 | AM56: 246400 | AO56: 0 | AP56: 0
A57: TOU - Mid Peak | C57: per kWh | E57: 0.114 | F57: =0.18*$E$18 -> 900000 | G57: 102600 | I57: 0.114 | J57: =F57 -> 900000 | K57: 102600 | M57: 0 | N57: 0 | P57: 0.114 | Q57: =J57 -> 900000 | R57: 102600 | T57: 0 | U57: 0 | W57: 0.114 | X57: =Q57 -> 900000 | Y57: 102600 | AA57: 0 | AB57: 0 | AD57: 0.114 | AE57: =X57 -> 900000 | AF57: 102600 | AH57: 0 | AI57: 0 | AK57: 0.114 | AL57: =AE57 -> 900000 | AM57: 102600 | AO57: 0 | AP57: 0
A58: TOU - On Peak | C58: per kWh | E58: 0.14 | F58: =0.18*$E$18 -> 900000 | G58: 126000 | I58: 0.14 | J58: =F58 -> 900000 | K58: 126000 | M58: 0 | N58: 0 | P58: 0.14 | Q58: 900000 | R58: 126000 | T58: 0 | U58: 0 | W58: 0.14 | X58: 900000 | Y58: 126000 | AA58: 0 | AB58: 0 | AD58: 0.14 | AE58: 900000 | AF58: 126000 | AH58: 0 | AI58: 0 | AK58: 0.14 | AL58: 900000 | AM58: 126000 | AO58: 0 | AP58: 0
A59: Energy - RPP - Tier 1 | C59: per kWh | E59: 0.088 | F59: =IF(AND($S$1=1, E18>=600), 600, IF(AND($S$1=1, AND(E18<600, E18>=0)), E18, IF(AND($S$1=2, E18>=1000), 1000, IF(AND($S$1=2, AND(E18<1000, E18>=0)), E18)))) -> 600 | G59: =F59*E59 -> 52.8 | I59: 0.088 | J59: =F59 -> 600 | K59: =J59*I59 -> 52.8 | M59: 0 | N59: 0 | P59: 0.088 | Q59: 600 | R59: =Q59*P59 -> 52.8 | T59: 0 | U59: 0 | W59: 0.088 | X59: 600 | Y59: =X59*W59 -> 52.8 | AA59: 0 | AB59: 0 | AD59: 0.088 | AE59: 600 | AF59: =AE59*AD59 -> 52.8 | AH59: 0 | AI59: 0 | AK59: 0.088 | AL59: 600 | AM59: =AL59*AK59 -> 52.8 | AO59: 0 | AP59: 0
A60: Energy - RPP - Tier 2 | C60: per kWh | E60: 0.103 | F60: =IF(AND($S$1=1, E18>=600), E18-600, IF(AND($S$1=1, AND(E18<600, E18>=0)), 0, IF(AND($S$1=2, E18>=1000), E18-1000, IF(AND($S$1=2, AND(E18<1000, E18>=0)), 0)))) -> 4999400 | G60: =F60*E60 -> 514938.2 | I60: 0.103 | J60: =F60 -> 4999400 | K60: =J60*I60 -> 514938.2 | M60: 0 | N60: 0 | P60: 0.103 | Q60: 4999400 | R60: =Q60*P60 -> 514938.2 | T60: 0 | U60: 0 | W60: 0.103 | X60: 4999400 | Y60: =X60*W60 -> 514938.2 | AA60: 0 | AB60: 0 | AD60: 0.103 | AE60: 4999400 | AF60: =AE60*AD60 -> 514938.2 | AH60: 0 | AI60: 0 | AK60: 0.103 | AL60: 4999400 | AM60: =AL60*AK60 -> 514938.2 | AO60: 0 | AP60: 0
A62: Total Bill on TOU (before Taxes) | G62: =SUM(G52:G58,G51) -> 608313.65 | K62: =SUM(K52:K58,K51) -> 610956.85 | M62: =K62-G62 -> 2643.2 | N62: =IF((G62)=0,"",(M62/G62)) -> 0.004345126893 | R62: =SUM(R52:R58,R51) -> 615505.25 | T62: =R62-K62 -> 4548.4 | U62: 0.007444715613 | Y62: =SUM(Y52:Y58,Y51) -> 615978.85 | AA62: =Y62-R62 -> 473.6 | AB62: 0.0007694491639 | AF62: =SUM(AF52:AF58,AF51) -> 616451.5 | AH62: =AF62-Y62 -> 472.65 | AI62: 0.0007673153064 | AM62: =SUM(AM52:AM58,AM51) -> 616805.6 | AO62: =AM62-AF62 -> 354.1 | AP62: 0.000574416641
A63: HST | E63: 0.13 | G63: =G62*E63 -> 79080.7745 | I63: 0.13 | K63: =K62*I63 -> 79424.3905 | M63: 343.616 | N63: 0.004345126893 | P63: 0.13 | R63: =R62*P63 -> 80015.6825 | T63: =R63-K63 -> 591.292 | U63: 0.007444715613 | W63: 0.13 | Y63: =Y62*W63 -> 80077.2505 | AA63: =Y63-R63 -> 61.568 | AB63: 0.0007694491639 | AD63: 0.13 | AF63: =AF62*AD63 -> 80138.695 | AH63: =AF63-Y63 -> 61.4445 | AI63: 0.0007673153064 | AK63: 0.13 | AM63: =AM62*AK63 -> 80184.728 | AO63: =AM63-AF63 -> 46.033 | AP63: 0.000574416641
A64: Total Bill (including HST) | G64: =G62+G63 -> 687394.4245 | K64: =K62+K63 -> 690381.2405 | M64: 2986.816 | N64: 0.004345126893 | R64: =R62+R63 -> 695520.9325 | T64: 5139.692 | U64: 0.007444715613 | Y64: =Y62+Y63 -> 696056.1005 | AA64: 535.168 | AB64: 0.0007694491639 | AF64: =AF62+AF63 -> 696590.195 | AH64: 534.0945 | AI64: 0.0007673153064 | AM64: =AM62+AM63 -> 696990.328 | AO64: 400.133 | AP64: 0.000574416641
A65: Ontario Clean Energy Benefit 1 | M65: 0 | T65: 0 | AA65: 0 | AH65: 0 | AO65: 0
A66: Total Bill on TOU (including OCEB) | G66: =G64+G65 -> 687394.4245 | K66: =K64+K65 -> 690381.2405 | M66: 2986.816 | N66: 0.004345126893 | R66: =R64+R65 -> 695520.9325 | T66: 5139.692 | U66: 0.007444715613 | Y66: =Y64+Y65 -> 696056.1005 | AA66: 535.168 | AB66: 0.0007694491639 | AF66: =AF64+AF65 -> 696590.195 | AH66: 534.0945 | AI66: 0.0007673153064 | AM66: =AM64+AM65 -> 696990.328 | AO66: 400.133 | AP66: 0.000574416641
A68: Total Bill on RPP (before Taxes) | G68: =SUM(G60:G61,G51,G52:G55) -> 648251.85 | K68: =SUM(K60:K61,K51,K52:K55) -> 650895.05 | M68: =K68-G68 -> 2643.2 | N68: =IF((G68)=0,"",(M68/G68)) -> 0.004077427623 | R68: =SUM(R60:R61,R51,R52:R55) -> 655443.45 | T68: =R68-K68 -> 4548.4 | U68: 0.006987916101 | Y68: =SUM(Y60:Y61,Y51,Y52:Y55) -> 655917.05 | AA68: =Y68-R68 -> 473.6 | AB68: 0.0007225642426 | AF68: =SUM(AF60:AF61,AF51,AF52:AF55) -> 656389.7 | AH68: =AF68-Y68 -> 472.65 | AI68: 0.0007205941666 | AM68: =SUM(AM60:AM61,AM51,AM52:AM55) -> 656743.8 | AO68: =AM68-AF68 -> 354.1 | AP68: 0.0005394661129
A69: HST | E69: 0.13 | G69: =G68*E69 -> 84272.7405 | I69: 0.13 | K69: =K68*I69 -> 84616.3565 | M69: 343.616 | N69: =IF((G69)=0,"",(M69/G69)) -> 0.004077427623 | P69: 0.13 | R69: =R68*P69 -> 85207.6485 | T69: =R69-K69 -> 591.292 | U69: 0.006987916101 | W69: 0.13 | Y69: =Y68*W69 -> 85269.2165 | AA69: =Y69-R69 -> 61.568 | AB69: 0.0007225642426 | AD69: 0.13 | AF69: =AF68*AD69 -> 85330.661 | AH69: =AF69-Y69 -> 61.4445 | AI69: 0.0007205941666 | AK69: 0.13 | AM69: =AM68*AK69 -> 85376.694 | AO69: =AM69-AF69 -> 46.033 | AP69: 0.0005394661129
A70: Total Bill (including HST) | G70: =G68+G69 -> 732524.5905 | K70: =K68+K69 -> 735511.4065 | M70: 2986.816 | N70: 0.004077427623 | R70: =R68+R69 -> 740651.0985 | T70: 5139.692 | U70: 0.006987916101 | Y70: =Y68+Y69 -> 741186.2665 | AA70: 535.168 | AB70: 0.0007225642426 | AF70: =AF68+AF69 -> 741720.361 | AH70: 534.0945 | AI70: 0.0007205941666 | AM70: =AM68+AM69 -> 742120.494 | AO70: 400.133 | AP70: 0.0005394661129
A71: Ontario Clean Energy Benefit 1 | M71: 0 | T71: 0 | AA71: 0 | AH71: 0 | AO71: 0
A72: Total Bill on RPP (including OCEB) | G72: =SUM(G70:G71) -> 732524.5905 | K72: =SUM(K70:K71) -> 735511.4065 | M72: 2986.816 | N72: 0.004077427623 | R72: =SUM(R70:R71) -> 740651.0985 | T72: 5139.692 | U72: 0.006987916101 | Y72: =SUM(Y70:Y71) -> 741186.2665 | AA72: 535.168 | AB72: 0.0007225642426 | AF72: =SUM(AF70:AF71) -> 741720.361 | AH72: 534.0945 | AI72: 0.0007205941666 | AM72: =SUM(AM70:AM71) -> 742120.494 | AO72: 400.133 | AP72: 0.0005394661129
A75: Loss Factor (%) | E75: 0.018 | I75: 0.0188 | P75: 0.0188 | W75: 0.0188 | AD75: 0.0188 | AK75: 0.0188
A77: Distribution Excluding Rate Riders | E77: 2015 Current Board-Approved | I77: 2016 Test Year 1 Proposed | M77: Impact 2016 TEST vs. 2015 Bridge | P77: 2017 Test Year 2 Proposed | T77: Impact 2017 TEST 2 vs. 2016 Test 1 | W77: 2018 Test Year 3 Proposed | AA77: Impact 2018 TEST 3 vs. 2017 Test 2 | AD77: 2019 Test Year 4 Proposed | AH77: Impact 2019 TEST 4 vs. 2018 Test 3 | AK77: 2020 Test Year 5 Proposed | AO77: Impact 2019 TEST 5 vs. 2019 Test 4
C78: Charge Unit | E78: Rate | F78: Volume | G78: Charge | I78: Rate | J78: Volume | K78: Charge | M78: $ Change | N78: % Change | P78: Rate | Q78: Volume | R78: Charge | T78: $ Change | U78: % Change | W78: Rate | X78: Volume | Y78: Charge | AA78: $ Change | AB78: % Change | AD78: Rate | AE78: Volume | AF78: Charge | AH78: $ Change | AI78: % Change | AK78: Rate | AL78: Volume | AM78: Charge | AO78: $ Change | AP78: % Change
E79: ($) | G79: ($) | I79: ($) | K79: ($) | P79: ($) | R79: ($) | W79: ($) | Y79: ($) | AD79: ($) | AF79: ($) | AK79: ($) | AM79: ($)
A80: Monthly Service Charge | C80: Monthly | E80: 5164 | F80: 1 | G80: =F80*E80 -> 5164 | I80: 5734 | J80: 1 | K80: =J80*I80 -> 5734 | M80: =K80-G80 -> 570 | N80: =IF((G80)=0,"",(M80/G80)) -> 0.1103795507 | P80: 5880 | Q80: 1 | R80: =Q80*P80 -> 5880 | T80: =R80-K80 -> 146 | U80: =IF((K80)=0,"",(T80/K80)) -> 0.02546215556 | W80: 6076 | X80: 1 | Y80: =X80*W80 -> 6076 | AA80: =Y80-R80 -> 196 | AB80: =IF((R80)=0,"",(AA80/R80)) -> 0.03333333333 | AD80: 6275.85 | AE80: 1 | AF80: =AE80*AD80 -> 6275.85 | AH80: =AF80-Y80 -> 199.85 | AI80: =IF((Y80)=0,"",(AH80/Y80)) -> 0.03289170507 | AK80: 6430.75 | AL80: 1 | AM80: =AL80*AK80 -> 6430.75 | AO80: =AM80-AF80 -> 154.9 | AP80: =IF((AF80)=0,"",(AO80/AF80)) -> 0.0246819156
A81: Distribution Volumetric Rate | C81: per kW | E81: 1.0535 | F81: =$E$19 -> 8000 | G81: =F81*E81 -> 8428 | I81: 1.1818 | J81: =$E$19 -> 8000 | K81: =J81*I81 -> 9454.4 | M81: =K81-G81 -> 1026.4 | N81: =IF((G81)=0,"",(M81/G81)) -> 0.1217845278 | P81: 1.225 | Q81: =$E$19 -> 8000 | R81: =Q81*P81 -> 9800 | T81: 345.6 | U81: =IF((K81)=0,"",(T81/K81)) -> 0.03655440853 | W81: 1.2597 | X81: =$E$19 -> 8000 | Y81: =X81*W81 -> 10077.6 | AA81: 277.6 | AB81: =IF((R81)=0,"",(AA81/R81)) -> 0.02832653061 | AD81: 1.2938 | AE81: =$E$19 -> 8000 | AF81: =AE81*AD81 -> 10350.4 | AH81: 272.8 | AI81: =IF((Y81)=0,"",(AH81/Y81)) -> 0.02706993729 | AK81: 1.3187 | AL81: =$E$19 -> 8000 | AM81: =AL81*AK81 -> 10549.6 | AO81: 199.2 | AP81: =IF((AF81)=0,"",(AO81/AF81)) -> 0.01924563302
A82: "Regular" Distribution Only | G82: =SUM(G80:G81) -> 13592 | K82: =SUM(K80:K81) -> 15188.4 | M82: 1596.4 | N82: 0.117451442 | R82: =SUM(R80:R81) -> 15680 | T82: 491.6 | U82: 0.03236680625 | Y82: =SUM(Y80:Y81) -> 16153.6 | AA82: 473.6 | AB82: 0.03020408163 | AF82: =SUM(AF80:AF81) -> 16626.25 | AH82: 472.65 | AI82: 0.02925973158 | AM82: =SUM(AM80:AM81) -> 16980.35 | AO82: 354.1 | AP82: 0.02129764679
B85: Residential (kWh) - 100, 250, 500, 800, 1000, 1500, 2000
B86: GS<50kW (kWh) - 1000, 2000, 5000, 10000, 15000
B87: GS>50kW (kW) - 60, 100, 500, 1000
B88: Large User - range appropriate for utility
B89: Lighting Classes and USL - 150 kWh and 1 kW, range appropriate for utility.
C91: Note that cells with the highlighted color shown to the left indicate quantities that are loss adjusted.

Sheet App. 2-W Bill Impacts USL
M1: File Number: | N1: =EBNUMBER -> EB-2015-0083 | S1: 1
M2: Exhibit: | N2: ='App.2-W_Bill Impacts _Resi'!$N$2 -> 8
M3: Tab: | N3: ='App.2-W_Bill Impacts _Resi'!$N$3 -> 4
M4: Schedule: | N4: ='App.2-W_Bill Impacts _Resi'!$N$4 -> 3
M5: Page: | N5: ='App. 2-W Bill Impacts Large Use'!N5+1 -> 5
N7: ='App.2-W_Bill Impacts _Resi'!$N$7 -> 1-Staff-4 IRR
A10: Appendix 2-W
A11: Bill Impacts
A14: Customer Class: | C14: Unmetered Scattered Load | P14: =C14 -> Unmetered Scattered Load | AK14: =P14 -> Unmetered Scattered Load
A16: TOU / non-TOU: | C16: TOU
C18: Consumption | E18: 750 | F18: kWh
E20: 2015 Current Board-Approved | I20: 2016 Test Year 1 Proposed | M20: Impact 2016 TEST vs. 2015 Bridge | P20: 2017 Test Year 2 Proposed | T20: Impact 2017 TEST 2 vs. 2016 Test 1 | W20: 2018 Test Year 3 Proposed | AA20: Impact 2018 TEST 3 vs. 2017 Test 2 | AD20: 2019 Test Year 4 Proposed | AH20: Impact 2019 TEST 4 vs. 2018 Test 3 | AK20: 2020 Test Year 5 Proposed | AO20: Impact 2020 TEST 5 vs. 2019 Test 4
C21: Charge Unit | E21: Rate | F21: Volume | G21: Charge | I21: Rate | J21: Volume | K21: Charge | M21: $ Change | N21: % Change | P21: Rate | Q21: Volume | R21: Charge | T21: $ Change | U21: % Change | W21: Rate | X21: Volume | Y21: Charge | AA21: $ Change | AB21: % Change | AD21: Rate | AE21: Volume | AF21: Charge | AH21: $ Change | AI21: % Change | AK21: Rate | AL21: Volume | AM21: Charge | AO21: $ Change | AP21: % Change
E22: ($) | G22: ($) | I22: ($) | K22: ($) | P22: ($) | R22: ($) | W22: ($) | Y22: ($) | AD22: ($) | AF22: ($) | AK22: ($) | AM22: ($)
A23: Monthly Service Charge | C23: Monthly | E23: 11.55 | F23: 1 | G23: =F23*E23 -> 11.55 | I23: 6.15 | J23: 1 | K23: =J23*I23 -> 6.15 | M23: =K23-G23 -> -5.4 | N23: =IF((G23)=0,"",(M23/G23)) -> -0.4675324675 | P23: 6.35 | Q23: 1 | R23: =Q23*P23 -> 6.35 | T23: =R23-K23 -> 0.2 | U23: =IF((K23)=0,"",(T23/K23)) -> 0.0325203252 | W23: 6.56 | X23: 1 | Y23: =X23*W23 -> 6.56 | AA23: =Y23-R23 -> 0.21 | AB23: =IF((R23)=0,"",(AA23/R23)) -> 0.03307086614 | AD23: 6.73 | AE23: 1 | AF23: =AE23*AD23 -> 6.73 | AH23: =AF23-Y23 -> 0.17 | AI23: =IF((Y23)=0,"",(AH23/Y23)) -> 0.02591463415 | AK23: 6.85 | AL23: 1 | AM23: =AL23*AK23 -> 6.85 | AO23: =AM23-AF23 -> 0.12 | AP23: =IF((AF23)=0,"",(AO23/AF23)) -> 0.01783060921
A24: Smart Meter (SMIRR) Rate Rider | C24: Monthly | E24: 0 | F24: 1 | G24: =F24*E24 -> 0 | I24: 0 | J24: 1 | K24: =J24*I24 -> 0 | M24: =K24-G24 -> 0 | N24: =IF((G24)=0,"",(M24/G24)) ->  | P24: 0 | Q24: 1 | R24: =Q24*P24 -> 0 | T24: 0 | U24: =IF((K24)=0,"",(T24/K24)) ->  | W24: 0 | X24: 1 | Y24: =X24*W24 -> 0 | AA24: 0 | AB24: =IF((R24)=0,"",(AA24/R24)) ->  | AD24: 0 | AE24: 1 | AF24: =AE24*AD24 -> 0 | AH24: 0 | AI24: =IF((Y24)=0,"",(AH24/Y24)) ->  | AK24: 0 | AL24: 1 | AM24: =AL24*AK24 -> 0 | AO24: 0 | AP24: =IF((AF24)=0,"",(AO24/AF24)) -> 
A25: Rate Rider Smart Meters Capital (2016) | C25: Monthly | E25: 0 | F25: 1 | G25: 0 | I25: 0 | J25: 1 | K25: =J25*I25 -> 0 | M25: =K25-G25 -> 0 | N25: =IF((G25)=0,"",(M25/G25)) ->  | P25: 0 | Q25: 1 | R25: =Q25*P25 -> 0 | T25: 0 | W25: 0 | X25: 1 | Y25: =X25*W25 -> 0 | AA25: 0 | AD25: 0 | AE25: 1 | AF25: =AE25*AD25 -> 0 | AH25: 0 | AK25: 0 | AL25: 1 | AM25: =AL25*AK25 -> 0 | AO25: 0
A26: Rate Rider Recovery of Stranded Meters | C26: Monthly | E26: 0 | F26: 1 | G26: 0 | I26: 0 | J26: 1 | K26: 0 | M26: 0 | P26: 0 | Q26: 1 | R26: 0 | T26: 0 | W26: 0 | X26: 1 | Y26: 0 | AA26: 0 | AE26: 1 | AF26: 0 | AH26: 0 | AL26: 1 | AM26: 0 | AO26: 0
F27: 1 | G27: 0 | J27: 1 | K27: 0 | M27: 0 | Q27: 1 | R27: 0 | T27: 0 | X27: 1 | Y27: 0 | AA27: 0 | AE27: 1 | AF27: 0 | AH27: 0 | AL27: 1 | AM27: 0 | AO27: 0
F28: 1 | G28: 0 | J28: 1 | K28: 0 | M28: 0 | Q28: 1 | R28: 0 | T28: 0 | X28: 1 | Y28: 0 | AA28: 0 | AE28: 1 | AF28: 0 | AH28: 0 | AL28: 1 | AM28: 0 | AO28: 0
A29: Distribution Volumetric Rate | C29: per kWh | E29: 0.0141 | F29: =$E$18 -> 750 | G29: 10.575 | I29: 0.0122 | J29: =$E$18 -> 750 | K29: 9.15 | M29: -1.425 | N29: -0.134751773 | P29: 0.0127 | Q29: =$E$18 -> 750 | R29: 9.525 | T29: 0.375 | U29: 0.04098360656 | W29: 0.013 | X29: =$E$18 -> 750 | Y29: 9.75 | AA29: 0.225 | AB29: 0.02362204724 | AD29: 0.0133 | AE29: =$E$18 -> 750 | AF29: 9.975 | AH29: 0.225 | AI29: 0.02307692308 | AK29: 0.0136 | AL29: =$E$18 -> 750 | AM29: 10.2 | AO29: 0.225 | AP29: 0.02255639098
A30: Rate Rider Tax Change (2015) | C30: per kWh | E30: -0.0001 | F30: =$E$18 -> 750 | G30: -0.075 | I30: 0 | J30: =$E$18 -> 750 | K30: 0 | M30: 0.075 | N30: -1 | P30: 0 | Q30: =$E$18 -> 750 | R30: 0 | T30: 0 | W30: 0 | X30: =$E$18 -> 750 | Y30: 0 | AA30: 0 | AD30: 0 | AE30: =$E$18 -> 750 | AF30: 0 | AH30: 0 | AK30: 0 | AL30: =$E$18 -> 750 | AM30: 0 | AO30: 0
A31: LRAM VA (2016) | C31: per kWh | E31: 0 | F31: =$E$18 -> 750 | G31: 0 | I31: 0 | J31: 750 | K31: 0 | M31: 0 | P31: 0 | Q31: 750 | R31: 0 | T31: 0 | W31: 0 | X31: 750 | Y31: 0 | AA31: 0 | AD31: 0 | AE31: 750 | AF31: 0 | AH31: 0 | AK31: 0 | AL31: 750 | AM31: 0 | AO31: 0
A32: Rate Rider Incremental Capital 2012 True-Up (2016) | C32: per kWh | E32: 0 | F32: =$E$18 -> 750 | G32: 0 | I32: 0.0002 | J32: 750 | K32: 0.15 | M32: 0.15 | P32: 0 | Q32: 750 | R32: 0 | T32: -0.15 | U32: -1 | W32: 0 | X32: 750 | Y32: 0 | AA32: 0 | AD32: 0 | AE32: 750 | AF32: 0 | AH32: 0 | AK32: 0 | AL32: 750 | AM32: 0 | AO32: 0
F33: 750 | G33: =F33*E33 -> 0 | J33: 750 | K33: =J33*I33 -> 0 | M33: =K33-G33 -> 0 | N33: =IF((G33)=0,"",(M33/G33)) ->  | Q33: 750 | R33: =Q33*P33 -> 0 | T33: =R33-K33 -> 0 | U33: =IF((K33)=0,"",(T33/K33)) ->  | X33: 750 | Y33: =X33*W33 -> 0 | AA33: =Y33-R33 -> 0 | AB33: =IF((R33)=0,"",(AA33/R33)) ->  | AE33: 750 | AF33: =AE33*AD33 -> 0 | AH33: =AF33-Y33 -> 0 | AI33: =IF((Y33)=0,"",(AH33/Y33)) ->  | AL33: 750 | AM33: =AL33*AK33 -> 0 | AO33: =AM33-AF33 -> 0 | AP33: =IF((AF33)=0,"",(AO33/AF33)) -> 
F34: 750 | G34: 0 | J34: 750 | K34: 0 | M34: 0 | Q34: 750 | R34: 0 | T34: 0 | X34: 750 | Y34: 0 | AA34: 0 | AE34: 750 | AF34: 0 | AH34: 0 | AL34: 750 | AM34: 0 | AO34: 0
F35: 750 | G35: 0 | J35: 750 | K35: 0 | M35: 0 | Q35: 750 | R35: 0 | T35: 0 | X35: 750 | Y35: 0 | AA35: 0 | AE35: 750 | AF35: 0 | AH35: 0 | AL35: 750 | AM35: 0 | AO35: 0
F36: 750 | G36: 0 | J36: 750 | K36: 0 | M36: 0 | Q36: 750 | R36: 0 | T36: 0 | X36: 750 | Y36: 0 | AA36: 0 | AE36: 750 | AF36: 0 | AH36: 0 | AL36: 750 | AM36: 0 | AO36: 0
F37: 750 | G37: 0 | J37: 750 | K37: 0 | M37: 0 | Q37: 750 | R37: 0 | T37: 0 | X37: 750 | Y37: 0 | AA37: 0 | AE37: 750 | AF37: 0 | AH37: 0 | AL37: 750 | AM37: 0 | AO37: 0
F38: 750 | G38: 0 | J38: 750 | K38: 0 | M38: 0 | Q38: 750 | R38: 0 | T38: 0 | X38: 750 | Y38: 0 | AA38: 0 | AE38: 750 | AF38: 0 | AH38: 0 | AL38: 750 | AM38: 0 | AO38: 0
A39: Sub-Total A (excluding pass through) | G39: =SUM(G23:G38) -> 22.05 | K39: =SUM(K23:K38) -> 15.45 | M39: -6.6 | N39: -0.2993197279 | R39: =SUM(R23:R38) -> 15.875 | T39: 0.425 | U39: 0.02750809061 | Y39: =SUM(Y23:Y38) -> 16.31 | AA39: 0.435 | AB39: 0.0274015748 | AF39: =SUM(AF23:AF38) -> 16.705 | AH39: 0.395 | AI39: 0.024218271 | AM39: =SUM(AM23:AM38) -> 17.05 | AO39: 0.345 | AP39: 0.02065249925
A40: Deferral/Variance Account Disposition Rate Rider (2016) | C40: per kWh | E40: 0 | F40: =$E$18 -> 750 | G40: =F40*E40 -> 0 | I40: 0.0005 | J40: =$E$18 -> 750 | K40: =J40*I40 -> 0.375 | M40: =K40-G40 -> 0.375 | N40: =IF((G40)=0,"",(M40/G40)) ->  | P40: 0 | Q40: =$E$18 -> 750 | R40: =Q40*P40 -> 0 | T40: -0.375 | U40: -1 | W40: 0 | X40: =$E$18 -> 750 | Y40: =X40*W40 -> 0 | AA40: 0 | AD40: 0 | AE40: =$E$18 -> 750 | AF40: =AE40*AD40 -> 0 | AH40: 0 | AK40: 0 | AL40: =$E$18 -> 750 | AM40: =AL40*AK40 -> 0 | AO40: 0
F41: =$E$18 -> 750 | G41: =F41*E41 -> 0 | J41: =$E$18 -> 750 | K41: =J41*I41 -> 0 | M41: =K41-G41 -> 0 | N41: =IF((G41)=0,"",(M41/G41)) ->  | Q41: =$E$18 -> 750 | R41: =Q41*P41 -> 0 | T41: =R41-K41 -> 0 | U41: =IF((K41)=0,"",(T41/K41)) ->  | X41: =$E$18 -> 750 | Y41: =X41*W41 -> 0 | AA41: =Y41-R41 -> 0 | AB41: =IF((R41)=0,"",(AA41/R41)) ->  | AE41: =$E$18 -> 750 | AF41: =AE41*AD41 -> 0 | AH41: =AF41-Y41 -> 0 | AI41: =IF((Y41)=0,"",(AH41/Y41)) ->  | AL41: =$E$18 -> 750 | AM41: =AL41*AK41 -> 0 | AO41: =AM41-AF41 -> 0 | AP41: =IF((AF41)=0,"",(AO41/AF41)) -> 
A42: Rate Rider CGAAP Account 1576 (2016) | C42: per kWh | E42: 0 | F42: 750 | G42: 0 | I42: -0.0013 | J42: 750 | K42: -0.975 | M42: -0.975 | P42: -0.0013 | Q42: 750 | R42: -0.975 | T42: 0 | U42: 0 | W42: -0.0013 | X42: 750 | Y42: -0.975 | AA42: 0 | AB42: 0 | AD42: -0.0013 | AE42: 750 | AF42: -0.975 | AH42: 0 | AI42: 0 | AK42: -0.0013 | AL42: 750 | AM42: -0.975 | AO42: 0 | AP42: 0
A43: Disposition of Global Adjustment (2015) Applicable to Non-RPP Customers | C43: per kWh | E43: 0.0156 | F43: 0 | G43: =F43*E43 -> 0 | I43: 0 | J43: 750 | K43: =J43*I43 -> 0 | M43: =K43-G43 -> 0 | N43: =IF((G43)=0,"",(M43/G43)) ->  | P43: 0 | Q43: 750 | R43: =Q43*P43 -> 0 | T43: 0 | W43: 0 | X43: 750 | Y43: =X43*W43 -> 0 | AA43: 0 | AD43: 0 | AE43: 750 | AF43: =AE43*AD43 -> 0 | AH43: 0 | AK43: 0 | AL43: 750 | AM43: =AL43*AK43 -> 0 | AO43: 0
A44: Disposition of Global Adjustment (2016) Applicable to Non-RPP Customers | C44: per kWh | E44: 0 | F44: 750 | G44: 0 | I44: 0.0137 | J44: 0 | K44: 0 | M44: 0 | P44: 0 | Q44: 750 | R44: 0 | T44: 0 | W44: 0 | X44: 750 | Y44: 0 | AA44: 0 | AD44: 0 | AE44: 750 | AF44: 0 | AH44: 0 | AK44: 0 | AL44: 750 | AM44: 0 | AO44: 0
A45: Low Voltage Service Charge | C45: per kWh | E45: 0.0007 | F45: 750 | G45: =F45*E45 -> 0.525 | I45: 0.0012 | J45: 750 | K45: =J45*I45 -> 0.9 | M45: =K45-G45 -> 0.375 | N45: =IF((G45)=0,"",(M45/G45)) -> 0.7142857143 | P45: 0.0012 | Q45: 750 | R45: =Q45*P45 -> 0.9 | T45: =R45-K45 -> 0 | U45: 0 | W45: 0.0012 | X45: 750 | Y45: =X45*W45 -> 0.9 | AA45: =Y45-R45 -> 0 | AB45: 0 | AD45: 0.0012 | AE45: 750 | AF45: =AE45*AD45 -> 0.9 | AH45: =AF45-Y45 -> 0 | AI45: 0 | AK45: 0.0012 | AL45: 750 | AM45: =AL45*AK45 -> 0.9 | AO45: =AM45-AF45 -> 0 | AP45: 0
A46: Line Losses on Cost of Power | C46: per kWh | E46: 0.095 | F46: =$E$18*(1+$E$75)-$E$18 -> 25.8 | G46: 2.451 | I46: 0.095 | J46: =$E$18*(1+$I$75)-$E$18 -> 29.475 | K46: 2.800125 | M46: 0.349125 | N46: 0.1424418605 | P46: 0.095 | Q46: =$E$18*(1+$I$75)-$E$18 -> 29.475 | R46: =Q46*P46 -> 2.800125 | T46: =R46-K46 -> 0 | U46: 0 | W46: 0.095 | X46: =$E$18*(1+$I$75)-$E$18 -> 29.475 | Y46: =X46*W46 -> 2.800125 | AA46: =Y46-R46 -> 0 | AB46: 0 | AD46: 0.095 | AE46: =$E$18*(1+$I$75)-$E$18 -> 29.475 | AF46: =AE46*AD46 -> 2.800125 | AH46: =AF46-Y46 -> 0 | AI46: 0 | AK46: 0.095 | AL46: =$E$18*(1+$I$75)-$E$18 -> 29.475 | AM46: =AL46*AK46 -> 2.800125 | AO46: =AM46-AF46 -> 0 | AP46: 0
A47: Smart Meter Entity Charge | C47: Monthly | E47: 0 | F47: 1 | G47: =F47*E47 -> 0 | I47: 0 | J47: 1 | K47: =J47*I47 -> 0 | M47: =K47-G47 -> 0 | P47: 0 | Q47: 1 | R47: =Q47*P47 -> 0 | T47: =R47-K47 -> 0 | W47: 0 | X47: 1 | Y47: =X47*W47 -> 0 | AA47: =Y47-R47 -> 0 | AD47: 0 | AE47: 1 | AF47: =AE47*AD47 -> 0 | AH47: =AF47-Y47 -> 0 | AK47: 0 | AL47: 1 | AM47: =AL47*AK47 -> 0 | AO47: =AM47-AF47 -> 0
A48: Sub-Total B - Distribution (includes Sub-Total A) | G48: =SUM(G40:G47)+G39 -> 25.026 | K48: =SUM(K40:K47)+K39 -> 18.550125 | M48: =K48-G48 -> -6.475875 | N48: =IF((G48)=0,"",(M48/G48)) -> -0.2587658835 | R48: =SUM(R40:R47)+R39 -> 18.600125 | T48: =R48-K48 -> 0.05 | U48: 0.002695399627 | Y48: =SUM(Y40:Y47)+Y39 -> 19.035125 | AA48: =Y48-R48 -> 0.435 | AB48: 0.0233869396 | AF48: =SUM(AF40:AF47)+AF39 -> 19.430125 | AH48: =AF48-Y48 -> 0.395 | AI48: 0.02075111143 | AM48: =SUM(AM40:AM47)+AM39 -> 19.775125 | AO48: =AM48-AF48 -> 0.345 | AP48: 0.01775593312
A49: RTSR - Network | C49: per kWh | E49: 0.0067 | F49: =$E$18*(1+$E$75) -> 775.8 | G49: =F49*E49 -> 5.19786 | I49: 0.0071 | J49: =$E$18*(1+$I$75) -> 779.475 | K49: =J49*I49 -> 5.5342725 | M49: 0.3364125 | N49: 0.06472134686 | P49: 0.0071 | Q49: =$E$18*(1+P75) -> 779.475 | R49: =Q49*P49 -> 5.5342725 | T49: 0 | U49: 0 | W49: 0.0071 | X49: =$E$18*(1+W75) -> 779.475 | Y49: =X49*W49 -> 5.5342725 | AA49: 0 | AB49: 0 | AD49: 0.0071 | AE49: =$E$18*(1+AD75) -> 779.475 | AF49: =AE49*AD49 -> 5.5342725 | AH49: 0 | AI49: 0 | AK49: 0.0071 | AL49: =$E$18*(1+AK75) -> 779.475 | AM49: =AL49*AK49 -> 5.5342725 | AO49: 0 | AP49: 0
A50: RTSR - Line and Transformation Connection | C50: per kWh | E50: 0.0051 | F50: =F49 -> 775.8 | G50: =F50*E50 -> 3.95658 | I50: 0.0056 | J50: =J49 -> 779.475 | K50: =J50*I50 -> 4.36506 | M50: 0.40848 | N50: 0.1032406776 | P50: 0.0056 | Q50: =Q49 -> 779.475 | R50: =Q50*P50 -> 4.36506 | T50: 0 | U50: 0 | W50: 0.0056 | X50: =X49 -> 779.475 | Y50: =X50*W50 -> 4.36506 | AA50: 0 | AB50: 0 | AD50: 0.0056 | AE50: =AE49 -> 779.475 | AF50: =AE50*AD50 -> 4.36506 | AH50: 0 | AI50: 0 | AK50: 0.0056 | AL50: =AL49 -> 779.475 | AM50: =AL50*AK50 -> 4.36506 | AO50: 0 | AP50: 0
A51: Sub-Total C - Delivery (including Sub-Total B) | G51: =SUM(G48:G50) -> 34.18044 | K51: =SUM(K48:K50) -> 28.4494575 | M51: -5.7309825 | N51: -0.1676684823 | R51: =SUM(R48:R50) -> 28.4994575 | T51: 0.05 | U51: 0.001757502757 | Y51: =SUM(Y48:Y50) -> 28.9344575 | AA51: 0.435 | AB51: 0.01526344844 | AF51: =SUM(AF48:AF50) -> 29.3294575 | AH51: 0.395 | AI51: 0.01365154332 | AM51: =SUM(AM48:AM50) -> 29.6744575 | AO51: 0.345 | AP51: 0.01176291788
A52: Wholesale Market Service Charge (WMSC) | C52: per kWh | E52: 0.0044 | F52: =F50 -> 775.8 | G52: =F52*E52 -> 3.41352 | I52: 0.0044 | J52: =J50 -> 779.475 | K52: =J52*I52 -> 3.42969 | M52: 0.01617 | N52: 0.00473704563 | P52: 0.0044 | Q52: =Q50 -> 779.475 | R52: =Q52*P52 -> 3.42969 | T52: 0 | U52: 0 | W52: 0.0044 | X52: =X50 -> 779.475 | Y52: =X52*W52 -> 3.42969 | AA52: 0 | AB52: 0 | AD52: 0.0044 | AE52: =AE50 -> 779.475 | AF52: =AE52*AD52 -> 3.42969 | AH52: 0 | AI52: 0 | AK52: 0.0044 | AL52: =AL50 -> 779.475 | AM52: =AL52*AK52 -> 3.42969 | AO52: 0 | AP52: 0
A53: Rural and Remote Rate Protection (RRRP) | C53: per kWh | E53: 0.0013 | F53: =F50 -> 775.8 | G53: 1.00854 | I53: 0.0013 | J53: =J50 -> 779.475 | K53: 1.0133175 | M53: 0.0047775 | N53: 0.00473704563 | P53: 0.0013 | Q53: =Q50 -> 779.475 | R53: 1.0133175 | T53: 0 | U53: 0 | W53: 0.0013 | X53: =X50 -> 779.475 | Y53: 1.0133175 | AA53: 0 | AB53: 0 | AD53: 0.0013 | AE53: =AE50 -> 779.475 | AF53: 1.0133175 | AH53: 0 | AI53: 0 | AK53: 0.0013 | AL53: =AL50 -> 779.475 | AM53: 1.0133175 | AO53: 0 | AP53: 0
A54: Standard Supply Service Charge | C54: Monthly | E54: 0.25 | F54: 1 | G54: 0.25 | I54: 0.25 | J54: 1 | K54: 0.25 | M54: 0 | N54: 0 | P54: 0.25 | Q54: 1 | R54: 0.25 | T54: 0 | U54: 0 | W54: 0.25 | X54: 1 | Y54: 0.25 | AA54: 0 | AB54: 0 | AD54: 0.25 | AE54: 1 | AF54: 0.25 | AH54: 0 | AI54: 0 | AK54: 0.25 | AL54: 1 | AM54: 0.25 | AO54: 0 | AP54: 0
A55: Debt Retirement Charge (DRC) | C55: per kWh | E55: 0.007 | F55: =E18 -> 750 | G55: 5.25 | I55: 0.007 | J55: =E18 -> 750 | K55: 5.25 | M55: 0 | N55: 0 | P55: 0.007 | Q55: =J55 -> 750 | R55: 5.25 | T55: 0 | U55: 0 | W55: 0.007 | X55: =Q55 -> 750 | Y55: 5.25 | AA55: 0 | AB55: 0 | AD55: 0.007 | AE55: =X55 -> 750 | AF55: 5.25 | AH55: 0 | AI55: 0 | AK55: 0.007 | AL55: =AE55 -> 750 | AM55: 5.25 | AO55: 0 | AP55: 0
A56: TOU - Off Peak | C56: per kWh | E56: 0.077 | F56: =0.64*$E$18 -> 480 | G56: 36.96 | I56: 0.077 | J56: =F56 -> 480 | K56: 36.96 | M56: 0 | N56: 0 | P56: 0.077 | Q56: =J56 -> 480 | R56: 36.96 | T56: 0 | U56: 0 | W56: 0.077 | X56: =Q56 -> 480 | Y56: 36.96 | AA56: 0 | AB56: 0 | AD56: 0.077 | AE56: =X56 -> 480 | AF56: 36.96 | AH56: 0 | AI56: 0 | AK56: 0.077 | AL56: =AE56 -> 480 | AM56: 36.96 | AO56: 0 | AP56: 0
A57: TOU - Mid Peak | C57: per kWh | E57: 0.114 | F57: =0.18*$E$18 -> 135 | G57: 15.39 | I57: 0.114 | J57: =F57 -> 135 | K57: 15.39 | M57: 0 | N57: 0 | P57: 0.114 | Q57: =J57 -> 135 | R57: 15.39 | T57: 0 | U57: 0 | W57: 0.114 | X57: =Q57 -> 135 | Y57: 15.39 | AA57: 0 | AB57: 0 | AD57: 0.114 | AE57: =X57 -> 135 | AF57: 15.39 | AH57: 0 | AI57: 0 | AK57: 0.114 | AL57: =AE57 -> 135 | AM57: 15.39 | AO57: 0 | AP57: 0
A58: TOU - On Peak | C58: per kWh | E58: 0.14 | F58: =0.18*$E$18 -> 135 | G58: 18.9 | I58: 0.14 | J58: =F58 -> 135 | K58: 18.9 | M58: 0 | N58: 0 | P58: 0.14 | Q58: 135 | R58: 18.9 | T58: 0 | U58: 0 | W58: 0.14 | X58: 135 | Y58: 18.9 | AA58: 0 | AB58: 0 | AD58: 0.14 | AE58: 135 | AF58: 18.9 | AH58: 0 | AI58: 0 | AK58: 0.14 | AL58: 135 | AM58: 18.9 | AO58: 0 | AP58: 0
A59: Energy - RPP - Tier 1 | C59: per kWh | E59: 0.088 | F59: =IF(AND($S$1=1, E18>=600), 600, IF(AND($S$1=1, AND(E18<600, E18>=0)), E18, IF(AND($S$1=2, E18>=1000), 1000, IF(AND($S$1=2, AND(E18<1000, E18>=0)), E18)))) -> 600 | G59: =F59*E59 -> 52.8 | I59: 0.088 | J59: =F59 -> 600 | K59: =J59*I59 -> 52.8 | M59: 0 | N59: 0 | P59: 0.088 | Q59: 600 | R59: =Q59*P59 -> 52.8 | T59: 0 | U59: 0 | W59: 0.088 | X59: 600 | Y59: =X59*W59 -> 52.8 | AA59: 0 | AB59: 0 | AD59: 0.088 | AE59: 600 | AF59: =AE59*AD59 -> 52.8 | AH59: 0 | AI59: 0 | AK59: 0.088 | AL59: 600 | AM59: =AL59*AK59 -> 52.8 | AO59: 0 | AP59: 0
A60: Energy - RPP - Tier 2 | C60: per kWh | E60: 0.103 | F60: =IF(AND($S$1=1, E18>=600), E18-600, IF(AND($S$1=1, AND(E18<600, E18>=0)), 0, IF(AND($S$1=2, E18>=1000), E18-1000, IF(AND($S$1=2, AND(E18<1000, E18>=0)), 0)))) -> 150 | G60: =F60*E60 -> 15.45 | I60: 0.103 | J60: =F60 -> 150 | K60: =J60*I60 -> 15.45 | M60: 0 | N60: 0 | P60: 0.103 | Q60: 150 | R60: =Q60*P60 -> 15.45 | T60: 0 | U60: 0 | W60: 0.103 | X60: 150 | Y60: =X60*W60 -> 15.45 | AA60: 0 | AB60: 0 | AD60: 0.103 | AE60: 150 | AF60: =AE60*AD60 -> 15.45 | AH60: 0 | AI60: 0 | AK60: 0.103 | AL60: 150 | AM60: =AL60*AK60 -> 15.45 | AO60: 0 | AP60: 0
A62: Total Bill on TOU (before Taxes) | G62: =SUM(G52:G58,G51) -> 115.3525 | K62: =SUM(K52:K58,K51) -> 109.642465 | M62: =K62-G62 -> -5.710035 | N62: =IF((G62)=0,"",(M62/G62)) -> -0.04950074771 | R62: =SUM(R52:R58,R51) -> 109.692465 | T62: =R62-K62 -> 0.05 | U62: 0.0004560276896 | Y62: =SUM(Y52:Y58,Y51) -> 110.127465 | AA62: =Y62-R62 -> 0.435 | AB62: 0.003965632462 | AF62: =SUM(AF52:AF58,AF51) -> 110.522465 | AH62: =AF62-Y62 -> 0.395 | AI62: 0.00358675286 | AM62: =SUM(AM52:AM58,AM51) -> 110.867465 | AO62: =AM62-AF62 -> 0.345 | AP62: 0.003121537327
A63: HST | E63: 0.13 | G63: =G62*E63 -> 14.995825 | I63: 0.13 | K63: =K62*I63 -> 14.25352045 | M63: -0.74230455 | N63: -0.04950074771 | P63: 0.13 | R63: =R62*P63 -> 14.26002045 | T63: =R63-K63 -> 0.0065 | U63: 0.0004560276896 | W63: 0.13 | Y63: =Y62*W63 -> 14.31657045 | AA63: =Y63-R63 -> 0.05655 | AB63: 0.003965632462 | AD63: 0.13 | AF63: =AF62*AD63 -> 14.36792045 | AH63: =AF63-Y63 -> 0.05135 | AI63: 0.00358675286 | AK63: 0.13 | AM63: =AM62*AK63 -> 14.41277045 | AO63: =AM63-AF63 -> 0.04485 | AP63: 0.003121537327
A64: Total Bill (including HST) | G64: =G62+G63 -> 130.348325 | K64: =K62+K63 -> 123.8959854 | M64: -6.45233955 | N64: -0.04950074771 | R64: =R62+R63 -> 123.9524854 | T64: 0.0565 | U64: 0.0004560276896 | Y64: =Y62+Y63 -> 124.4440355 | AA64: 0.49155 | AB64: 0.003965632462 | AF64: =AF62+AF63 -> 124.8903854 | AH64: 0.44635 | AI64: 0.00358675286 | AM64: =AM62+AM63 -> 125.2802354 | AO64: 0.38985 | AP64: 0.003121537327
A65: Ontario Clean Energy Benefit 1 | G65: =ROUND(-G64*10%,2) -> -13.03 | M65: 13.03 | N65: -1 | T65: 0 | AA65: 0 | AH65: 0 | AO65: 0
A66: Total Bill on TOU (including OCEB) | G66: =G64+G65 -> 117.318325 | K66: =K64+K65 -> 123.8959854 | M66: 6.57766045 | N66: 0.05606677772 | R66: =R64+R65 -> 123.9524854 | T66: 0.0565 | U66: 0.0004560276896 | Y66: =Y64+Y65 -> 124.4440355 | AA66: 0.49155 | AB66: 0.003965632462 | AF66: =AF64+AF65 -> 124.8903854 | AH66: 0.44635 | AI66: 0.00358675286 | AM66: =AM64+AM65 -> 125.2802354 | AO66: 0.38985 | AP66: 0.003121537327
A68: Total Bill on RPP (before Taxes) | G68: =SUM(G59:G60,G51,G52:G55) -> 112.3525 | K68: =SUM(K59:K60,K51,K52:K55) -> 106.642465 | M68: =SUM(M60:M61,M51,M52:M55) -> -5.710035 | N68: =IF((G68)=0,"",(M68/G68)) -> -0.05082250061 | R68: =SUM(R59:R60,R51,R52:R55) -> 106.692465 | T68: =R68-K68 -> 0.05 | U68: 0.0004688563791 | Y68: =SUM(Y59:Y60,Y51,Y52:Y55) -> 107.127465 | AA68: =Y68-R68 -> 0.435 | AB68: 0.004077138906 | AF68: =SUM(AF59:AF60,AF51,AF52:AF55) -> 107.522465 | AH68: =AF68-Y68 -> 0.395 | AI68: 0.003687196369 | AM68: =SUM(AM59:AM60,AM51,AM52:AM55) -> 107.867465 | AO68: =AM68-AF68 -> 0.345 | AP68: 0.003208631796
A69: HST | E69: 0.13 | G69: =G68*E69 -> 14.605825 | I69: 0.13 | K69: =K68*I69 -> 13.86352045 | M69: =K69-G69 -> -0.74230455 | N69: =IF((G69)=0,"",(M69/G69)) -> -0.05082250061 | P69: 0.13 | R69: =R68*P69 -> 13.87002045 | T69: =R69-K69 -> 0.0065 | U69: 0.0004688563791 | W69: 0.13 | Y69: =Y68*W69 -> 13.92657045 | AA69: =Y69-R69 -> 0.05655 | AB69: 0.004077138906 | AD69: 0.13 | AF69: =AF68*AD69 -> 13.97792045 | AH69: =AF69-Y69 -> 0.05135 | AI69: 0.003687196369 | AK69: 0.13 | AM69: =AM68*AK69 -> 14.02277045 | AO69: =AM69-AF69 -> 0.04485 | AP69: 0.003208631796
A70: Total Bill (including HST) | G70: =G68+G69 -> 126.958325 | K70: =K68+K69 -> 120.5059854 | M70: -6.45233955 | N70: -0.05082250061 | R70: =R68+R69 -> 120.5624854 | T70: 0.0565 | U70: 0.0004688563791 | Y70: =Y68+Y69 -> 121.0540354 | AA70: 0.49155 | AB70: 0.004077138906 | AF70: =AF68+AF69 -> 121.5003854 | AH70: 0.44635 | AI70: 0.003687196369 | AM70: =AM68+AM69 -> 121.8902354 | AO70: 0.38985 | AP70: 0.003208631796
A71: Ontario Clean Energy Benefit 1 | G71: =ROUND(-G70*10%,2) -> -12.7 | M71: 12.7 | N71: -1 | T71: 0 | AA71: 0 | AH71: 0 | AO71: 0
A72: Total Bill on RPP (including OCEB) | G72: =SUM(G70:G71) -> 114.258325 | K72: =SUM(K70:K71) -> 120.5059854 | M72: 6.24766045 | N72: 0.05468013337 | R72: =SUM(R70:R71) -> 120.5624854 | T72: 0.0565 | U72: 0.0004688563791 | Y72: =SUM(Y70:Y71) -> 121.0540354 | AA72: 0.49155 | AB72: 0.004077138906 | AF72: =SUM(AF70:AF71) -> 121.5003854 | AH72: 0.44635 | AI72: 0.003687196369 | AM72: =SUM(AM70:AM71) -> 121.8902354 | AO72: 0.38985 | AP72: 0.003208631796
A75: Loss Factor (%) | E75: 0.0344 | I75: 0.0393 | P75: 0.0393 | W75: 0.0393 | AD75: 0.0393 | AK75: 0.0393
A77: Distribution Excluding Rate Riders | E77: 2015 Current Board-Approved | I77: 2016 Test Year 1 Proposed | M77: Impact 2016 TEST vs. 2015 Bridge | P77: 2017 Test Year 2 Proposed | T77: Impact 2017 TEST 2 vs. 2016 Test 1 | W77: 2018 Test Year 3 Proposed | AA77: Impact 2018 TEST 3 vs. 2017 Test 2 | AD77: 2019 Test Year 4 Proposed | AH77: Impact 2019 TEST 4 vs. 2018 Test 3 | AK77: 2020 Test Year 5 Proposed | AO77: Impact 2019 TEST 5 vs. 2019 Test 4
C78: Charge Unit | E78: Rate | F78: Volume | G78: Charge | I78: Rate | J78: Volume | K78: Charge | M78: $ Change | N78: % Change | P78: Rate | Q78: Volume | R78: Charge | T78: $ Change | U78: % Change | W78: Rate | X78: Volume | Y78: Charge | AA78: $ Change | AB78: % Change | AD78: Rate | AE78: Volume | AF78: Charge | AH78: $ Change | AI78: % Change | AK78: Rate | AL78: Volume | AM78: Charge | AO78: $ Change | AP78: % Change
E79: ($) | G79: ($) | I79: ($) | K79: ($) | P79: ($) | R79: ($) | W79: ($) | Y79: ($) | AD79: ($) | AF79: ($) | AK79: ($) | AM79: ($)
A80: Monthly Service Charge | C80: Monthly | E80: 11.55 | F80: 1 | G80: =F80*E80 -> 11.55 | I80: 6.15 | J80: 1 | K80: =J80*I80 -> 6.15 | M80: =K80-G80 -> -5.4 | N80: =IF((G80)=0,"",(M80/G80)) -> -0.4675324675 | P80: 6.35 | Q80: 1 | R80: =Q80*P80 -> 6.35 | T80: =R80-K80 -> 0.2 | U80: =IF((K80)=0,"",(T80/K80)) -> 0.0325203252 | W80: 6.56 | X80: 1 | Y80: =X80*W80 -> 6.56 | AA80: =Y80-R80 -> 0.21 | AB80: =IF((R80)=0,"",(AA80/R80)) -> 0.03307086614 | AD80: 6.73 | AE80: 1 | AF80: =AE80*AD80 -> 6.73 | AH80: =AF80-Y80 -> 0.17 | AI80: =IF((Y80)=0,"",(AH80/Y80)) -> 0.02591463415 | AK80: 6.85 | AL80: 1 | AM80: =AL80*AK80 -> 6.85 | AO80: =AM80-AF80 -> 0.12 | AP80: =IF((AF80)=0,"",(AO80/AF80)) -> 0.01783060921
A81: Distribution Volumetric Rate | C81: per kWh | E81: 0.0141 | F81: =$E$18 -> 750 | G81: =F81*E81 -> 10.575 | I81: 0.0122 | J81: =$E$18 -> 750 | K81: =J81*I81 -> 9.15 | M81: =K81-G81 -> -1.425 | N81: =IF((G81)=0,"",(M81/G81)) -> -0.134751773 | P81: 0.0127 | Q81: =$E$18 -> 750 | R81: =Q81*P81 -> 9.525 | T81: 0.375 | U81: =IF((K81)=0,"",(T81/K81)) -> 0.04098360656 | W81: 0.013 | X81: =$E$18 -> 750 | Y81: =X81*W81 -> 9.75 | AA81: 0.225 | AB81: =IF((R81)=0,"",(AA81/R81)) -> 0.02362204724 | AD81: 0.0133 | AE81: =$E$18 -> 750 | AF81: =AE81*AD81 -> 9.975 | AH81: 0.225 | AI81: =IF((Y81)=0,"",(AH81/Y81)) -> 0.02307692308 | AK81: 0.0136 | AL81: =$E$18 -> 750 | AM81: =AL81*AK81 -> 10.2 | AO81: 0.225 | AP81: =IF((AF81)=0,"",(AO81/AF81)) -> 0.02255639098
A82: "Regular" Distribution Only | G82: =SUM(G80:G81) -> 22.125 | K82: =SUM(K80:K81) -> 15.3 | M82: -6.825 | N82: -0.3084745763 | R82: =SUM(R80:R81) -> 15.875 | T82: 0.575 | U82: 0.03758169935 | Y82: =SUM(Y80:Y81) -> 16.31 | AA82: 0.435 | AB82: 0.0274015748 | AF82: =SUM(AF80:AF81) -> 16.705 | AH82: 0.395 | AI82: 0.024218271 | AM82: =SUM(AM80:AM81) -> 17.05 | AO82: 0.345 | AP82: 0.02065249925
B85: Residential (kWh) - 100, 250, 500, 800, 1000, 1500, 2000
B86: GS<50kW (kWh) - 1000, 2000, 5000, 10000, 15000
B87: GS>50kW (kW) - 60, 100, 500, 1000
B88: Large User - range appropriate for utility
B89: Lighting Classes and USL - 150 kWh and 1 kW, range appropriate for utility.
C91: Note that cells with the highlighted color shown to the left indicate quantities that are loss adjusted.

Sheet App. 2-W Bill Impacts St Lights
M1: File Number: | N1: =EBNUMBER -> EB-2015-0083 | S1: 1
M2: Exhibit: | N2: ='App.2-W_Bill Impacts _Resi'!$N$2 -> 8
M3: Tab: | N3: ='App.2-W_Bill Impacts _Resi'!$N$3 -> 4
M4: Schedule: | N4: ='App.2-W_Bill Impacts _Resi'!$N$4 -> 3
M5: Page: | N5: ='App. 2-W Bill Impacts USL'!N5+1 -> 6
N7: ='App.2-W_Bill Impacts _Resi'!$N$7 -> 1-Staff-4 IRR
A10: Appendix 2-W
A11: Bill Impacts
A14: Customer Class: | C14: Street Lighting | P14: =C14 -> Street Lighting | AK14: =P14 -> Street Lighting
A16: TOU / non-TOU: | C16: TOU
C17: Lights | E17: 5000 | F17: number of
C18: Consumption | E18: 150000 | F18: kWh
C19: Load | E19: 375 | F19: kW
E20: 2015 Current Board-Approved | I20: 2016 Test Year 1 Proposed | M20: Impact 2016 TEST vs. 2015 Bridge | P20: 2017 Test Year 2 Proposed | T20: Impact 2017 TEST 2 vs. 2016 Test 1 | W20: 2018 Test Year 3 Proposed | AA20: Impact 2018 TEST 3 vs. 2017 Test 2 | AD20: 2019 Test Year 4 Proposed | AH20: Impact 2019 TEST 4 vs. 2018 Test 3 | AK20: 2020 Test Year 5 Proposed | AO20: Impact 2020 TEST 5 vs. 2019 Test 4
C21: Charge Unit | E21: Rate | F21: Volume | G21: Charge | I21: Rate | J21: Volume | K21: Charge | M21: $ Change | N21: % Change | P21: Rate | Q21: Volume | R21: Charge | T21: $ Change | U21: % Change | W21: Rate | X21: Volume | Y21: Charge | AA21: $ Change | AB21: % Change | AD21: Rate | AE21: Volume | AF21: Charge | AH21: $ Change | AI21: % Change | AK21: Rate | AL21: Volume | AM21: Charge | AO21: $ Change | AP21: % Change
E22: ($) | G22: ($) | I22: ($) | K22: ($) | P22: ($) | R22: ($) | W22: ($) | Y22: ($) | AD22: ($) | AF22: ($) | AK22: ($) | AM22: ($)
A23: Monthly Service Charge (per light) | C23: Monthly | E23: 1.02 | F23: =$E$17 -> 5000 | G23: =F23*E23 -> 5100 | I23: 0.9 | J23: =$E$17 -> 5000 | K23: =J23*I23 -> 4500 | M23: =K23-G23 -> -600 | N23: =IF((G23)=0,"",(M23/G23)) -> -0.1176470588 | P23: 1.03 | Q23: =$E$17 -> 5000 | R23: =Q23*P23 -> 5150 | T23: =R23-K23 -> 650 | U23: =IF((K23)=0,"",(T23/K23)) -> 0.1444444444 | W23: 1.16 | X23: =$E$17 -> 5000 | Y23: =X23*W23 -> 5800 | AA23: =Y23-R23 -> 650 | AB23: =IF((R23)=0,"",(AA23/R23)) -> 0.1262135922 | AD23: 1.28 | AE23: =$E$17 -> 5000 | AF23: =AE23*AD23 -> 6400 | AH23: =AF23-Y23 -> 600 | AI23: =IF((Y23)=0,"",(AH23/Y23)) -> 0.1034482759 | AK23: 1.39 | AL23: =$E$17 -> 5000 | AM23: =AL23*AK23 -> 6950 | AO23: =AM23-AF23 -> 550 | AP23: =IF((AF23)=0,"",(AO23/AF23)) -> 0.0859375
A24: Smart Meter (SMIRR) Rate Rider | E24: 0 | F24: 1 | G24: =F24*E24 -> 0 | I24: 0 | J24: 1 | K24: =J24*I24 -> 0 | M24: =K24-G24 -> 0 | N24: =IF((G24)=0,"",(M24/G24)) ->  | P24: 0 | Q24: 1 | R24: =Q24*P24 -> 0 | T24: 0 | U24: =IF((K24)=0,"",(T24/K24)) ->  | W24: 0 | X24: 1 | Y24: =X24*W24 -> 0 | AA24: 0 | AB24: =IF((R24)=0,"",(AA24/R24)) ->  | AD24: 0 | AE24: 1 | AF24: =AE24*AD24 -> 0 | AH24: 0 | AI24: =IF((Y24)=0,"",(AH24/Y24)) ->  | AK24: 0 | AL24: 1 | AM24: =AL24*AK24 -> 0 | AO24: 0 | AP24: =IF((AF24)=0,"",(AO24/AF24)) -> 
A25: Rate Rider Smart Meters Capital (2016) | E25: 0 | F25: 1 | G25: 0 | I25: 0 | J25: 1 | K25: =J25*I25 -> 0 | M25: =K25-G25 -> 0 | N25: =IF((G25)=0,"",(M25/G25)) ->  | P25: 0 | Q25: 1 | R25: =Q25*P25 -> 0 | T25: 0 | W25: 0 | X25: 1 | Y25: =X25*W25 -> 0 | AA25: 0 | AD25: 0 | AE25: 1 | AF25: =AE25*AD25 -> 0 | AH25: 0 | AK25: 0 | AL25: 1 | AM25: =AL25*AK25 -> 0 | AO25: 0
A26: Rate Rider Recovery of Stranded Meters | E26: 0 | F26: 1 | G26: 0 | I26: 0 | J26: 1 | K26: 0 | M26: 0 | P26: 0 | Q26: 1 | R26: 0 | T26: 0 | W26: 0 | X26: 1 | Y26: 0 | AA26: 0 | AD26: 0 | AE26: 1 | AF26: 0 | AH26: 0 | AK26: 0 | AL26: 1 | AM26: 0 | AO26: 0
F27: 1 | G27: 0 | J27: 1 | K27: 0 | M27: 0 | Q27: 1 | R27: 0 | T27: 0 | X27: 1 | Y27: 0 | AA27: 0 | AE27: 1 | AF27: 0 | AH27: 0 | AL27: 1 | AM27: 0 | AO27: 0
F28: 1 | G28: 0 | J28: 1 | K28: 0 | M28: 0 | Q28: 1 | R28: 0 | T28: 0 | X28: 1 | Y28: 0 | AA28: 0 | AE28: 1 | AF28: 0 | AH28: 0 | AL28: 1 | AM28: 0 | AO28: 0
A29: Distribution Volumetric Rate | C29: per kW | E29: 4.675 | F29: =$E$19 -> 375 | G29: 1753.125 | I29: 9.5484 | J29: =$E$19 -> 375 | K29: 3580.65 | M29: 1827.525 | N29: 1.042438503 | P29: 10.9179 | Q29: =$E$19 -> 375 | R29: 4094.2125 | T29: 513.5625 | U29: 0.143427171 | W29: 12.2662 | X29: =$E$19 -> 375 | Y29: 4599.825 | AA29: 505.6125 | AB29: 0.1234944449 | AD29: 13.5517 | AE29: =$E$19 -> 375 | AF29: 5081.8875 | AH29: 482.0625 | AI29: 0.1048001826 | AK29: 14.7615 | AL29: =$E$19 -> 375 | AM29: 5535.5625 | AO29: 453.675 | AP29: 0.08927293255
A30: Rate Rider Tax Change (2015) | E30: -0.0278 | F30: =$E$19 -> 375 | G30: -10.425 | I30: 0 | J30: =$E$19 -> 375 | K30: 0 | M30: 10.425 | N30: -1 | P30: 0 | Q30: =$E$19 -> 375 | R30: 0 | T30: 0 | W30: 0 | X30: =$E$19 -> 375 | Y30: 0 | AA30: 0 | AD30: 0 | AE30: =$E$19 -> 375 | AF30: 0 | AH30: 0 | AK30: 0 | AL30: =$E$19 -> 375 | AM30: 0 | AO30: 0
A31: LRAM VA (2016) | C31: per kW | E31: 0 | F31: 375 | G31: 0 | I31: 6.6417 | J31: 375 | K31: 2490.6375 | M31: 2490.6375 | P31: 0 | Q31: 375 | R31: 0 | T31: -2490.6375 | U31: -1 | W31: 0 | X31: 375 | Y31: 0 | AA31: 0 | AD31: 0 | AE31: 375 | AF31: 0 | AH31: 0 | AK31: 0 | AL31: 375 | AM31: 0 | AO31: 0
A32: Rate Rider Incremental Capital 2012 True-Up (2016) | C32: per kW | E32: 0 | F32: 375 | G32: 0 | I32: 0.224 | J32: 375 | K32: 84 | M32: 84 | P32: 0 | Q32: 375 | R32: 0 | T32: -84 | U32: -1 | W32: 0 | X32: 375 | Y32: 0 | AA32: 0 | AD32: 0 | AE32: 375 | AF32: 0 | AH32: 0 | AK32: 0 | AL32: 375 | AM32: 0 | AO32: 0
F33: 375 | G33: =F33*E33 -> 0 | J33: 375 | K33: =J33*I33 -> 0 | M33: =K33-G33 -> 0 | N33: =IF((G33)=0,"",(M33/G33)) ->  | Q33: 375 | R33: =Q33*P33 -> 0 | T33: =R33-K33 -> 0 | U33: =IF((K33)=0,"",(T33/K33)) ->  | X33: 375 | Y33: =X33*W33 -> 0 | AA33: =Y33-R33 -> 0 | AB33: =IF((R33)=0,"",(AA33/R33)) ->  | AE33: 375 | AF33: =AE33*AD33 -> 0 | AH33: =AF33-Y33 -> 0 | AI33: =IF((Y33)=0,"",(AH33/Y33)) ->  | AL33: 375 | AM33: =AL33*AK33 -> 0 | AO33: =AM33-AF33 -> 0 | AP33: =IF((AF33)=0,"",(AO33/AF33)) -> 
F34: 375 | G34: 0 | J34: 375 | K34: 0 | M34: 0 | Q34: 375 | R34: 0 | T34: 0 | X34: 375 | Y34: 0 | AA34: 0 | AE34: 375 | AF34: 0 | AH34: 0 | AL34: 375 | AM34: 0 | AO34: 0
F35: 375 | G35: 0 | J35: 375 | K35: 0 | M35: 0 | Q35: 375 | R35: 0 | T35: 0 | X35: 375 | Y35: 0 | AA35: 0 | AE35: 375 | AF35: 0 | AH35: 0 | AL35: 375 | AM35: 0 | AO35: 0
F36: 375 | G36: 0 | J36: 375 | K36: 0 | M36: 0 | Q36: 375 | R36: 0 | T36: 0 | X36: 375 | Y36: 0 | AA36: 0 | AE36: 375 | AF36: 0 | AH36: 0 | AL36: 375 | AM36: 0 | AO36: 0
F37: 375 | G37: 0 | J37: 375 | K37: 0 | M37: 0 | Q37: 375 | R37: 0 | T37: 0 | X37: 375 | Y37: 0 | AA37: 0 | AE37: 375 | AF37: 0 | AH37: 0 | AL37: 375 | AM37: 0 | AO37: 0
F38: 375 | G38: 0 | J38: 375 | K38: 0 | M38: 0 | Q38: 375 | R38: 0 | T38: 0 | X38: 375 | Y38: 0 | AA38: 0 | AE38: 375 | AF38: 0 | AH38: 0 | AL38: 375 | AM38: 0 | AO38: 0
A39: Sub-Total A (excluding pass through) | G39: =SUM(G23:G38) -> 6842.7 | K39: =SUM(K23:K38) -> 10655.2875 | M39: 3812.5875 | N39: 0.5571758955 | R39: =SUM(R23:R38) -> 9244.2125 | T39: -1411.075 | U39: -0.1324295567 | Y39: =SUM(Y23:Y38) -> 10399.825 | AA39: 1155.6125 | AB39: 0.1250092964 | AF39: =SUM(AF23:AF38) -> 11481.8875 | AH39: 1082.0625 | AI39: 0.1040462219 | AM39: =SUM(AM23:AM38) -> 12485.5625 | AO39: 1003.675 | AP39: 0.08741376363
A40: Deferral/Variance Account Disposition Rate Rider (2016) | C40: per kW | E40: 0 | F40: 375 | G40: =F40*E40 -> 0 | I40: 14.1931 | J40: 375 | K40: =J40*I40 -> 5322.4125 | M40: =K40-G40 -> 5322.4125 | N40: =IF((G40)=0,"",(M40/G40)) ->  | P40: 0 | Q40: 375 | R40: =Q40*P40 -> 0 | T40: -5322.4125 | U40: -1 | W40: 0 | X40: 375 | Y40: =X40*W40 -> 0 | AA40: 0 | AD40: 0 | AE40: 375 | AF40: =AE40*AD40 -> 0 | AH40: 0 | AK40: 0 | AL40: 375 | AM40: =AL40*AK40 -> 0 | AO40: 0
F41: 375 | G41: =F41*E41 -> 0 | J41: 375 | K41: =J41*I41 -> 0 | M41: =K41-G41 -> 0 | N41: =IF((G41)=0,"",(M41/G41)) ->  | Q41: 375 | R41: =Q41*P41 -> 0 | T41: 0 | X41: 375 | Y41: =X41*W41 -> 0 | AA41: 0 | AE41: 375 | AF41: =AE41*AD41 -> 0 | AH41: 0 | AL41: 375 | AM41: =AL41*AK41 -> 0 | AO41: 0
A42: Rate Rider CGAAP Account 1576 (2016) | C42: per kW | E42: 0 | F42: 375 | G42: 0 | I42: -1.3222 | J42: 375 | K42: -495.825 | M42: -495.825 | P42: -1.3222 | Q42: 375 | R42: -495.825 | T42: 0 | U42: 0 | W42: -1.3222 | X42: 375 | Y42: -495.825 | AA42: 0 | AB42: 0 | AD42: -1.3222 | AE42: 375 | AF42: -495.825 | AH42: 0 | AI42: 0 | AK42: -1.3222 | AL42: 375 | AM42: -495.825 | AO42: 0 | AP42: 0
A43: Disposition of Global Adjustment (2015) Applicable to Non-RPP Customers | C43: per kW | E43: 5.5544 | G43: 0 | I43: 0 | J43: 375 | K43: 0 | M43: 0 | P43: 0 | Q43: 375 | R43: 0 | T43: 0 | W43: 0 | X43: 375 | Y43: 0 | AA43: 0 | AD43: 0 | AE43: 375 | AF43: 0 | AH43: 0 | AK43: 0 | AL43: 375 | AM43: 0 | AO43: 0
A44: Disposition of Global Adjustment (2016) Applicable to Non-RPP Customers | C44: per kW | E44: 0 | F44: 375 | G44: 0 | I44: 4.9465 | K44: 0 | M44: 0 | P44: 0 | Q44: 375 | R44: 0 | T44: 0 | W44: 0 | X44: 375 | Y44: 0 | AA44: 0 | AD44: 0 | AE44: 375 | AF44: 0 | AH44: 0 | AK44: 0 | AL44: 375 | AM44: 0 | AO44: 0
A45: Low Voltage Service Charge | C45: per kW | E45: 0.182 | F45: 375 | G45: =F45*E45 -> 68.25 | I45: 0.3372 | J45: 375 | K45: =J45*I45 -> 126.45 | M45: =K45-G45 -> 58.2 | N45: =IF((G45)=0,"",(M45/G45)) -> 0.8527472527 | P45: 0.3372 | Q45: 375 | R45: =Q45*P45 -> 126.45 | T45: =R45-K45 -> 0 | U45: 0 | W45: 0.3372 | X45: 375 | Y45: =X45*W45 -> 126.45 | AA45: =Y45-R45 -> 0 | AB45: 0 | AD45: 0.3372 | AE45: 375 | AF45: =AE45*AD45 -> 126.45 | AH45: =AF45-Y45 -> 0 | AI45: 0 | AK45: 0.3372 | AL45: 375 | AM45: =AL45*AK45 -> 126.45 | AO45: =AM45-AF45 -> 0 | AP45: 0
A46: Line Losses on Cost of Power | C46: per kWh | E46: 0.095 | F46: =$E$18*(1+$E$75)-$E$18 -> 5160 | G46: 490.2 | I46: 0.095 | J46: =$E$18*(1+$I$75)-$E$18 -> 5895 | K46: 560.025 | M46: 69.825 | N46: 0.1424418605 | P46: 0.095 | Q46: =$E$18*(1+$I$75)-$E$18 -> 5895 | R46: =Q46*P46 -> 560.025 | T46: =R46-K46 -> 0 | U46: 0 | W46: 0.095 | X46: =$E$18*(1+$I$75)-$E$18 -> 5895 | Y46: =X46*W46 -> 560.025 | AA46: =Y46-R46 -> 0 | AB46: 0 | AD46: 0.095 | AE46: =$E$18*(1+$I$75)-$E$18 -> 5895 | AF46: =AE46*AD46 -> 560.025 | AH46: =AF46-Y46 -> 0 | AI46: 0 | AK46: 0.095 | AL46: =$E$18*(1+$I$75)-$E$18 -> 5895 | AM46: =AL46*AK46 -> 560.025 | AO46: =AM46-AF46 -> 0 | AP46: 0
A47: Smart Meter Entity Charge | F47: 1 | G47: =F47*E47 -> 0 | I47: 0 | J47: 1 | K47: =J47*I47 -> 0 | M47: =I47 -> 0 | P47: 0 | Q47: 1 | R47: =Q47*P47 -> 0 | T47: =R47-K47 -> 0 | W47: 0 | X47: 1 | Y47: =X47*W47 -> 0 | AA47: =Y47-R47 -> 0 | AD47: 0 | AE47: 1 | AF47: =AE47*AD47 -> 0 | AH47: =AF47-Y47 -> 0 | AK47: 0 | AL47: 1 | AM47: =AL47*AK47 -> 0 | AO47: =AM47-AF47 -> 0
A48: Sub-Total B - Distribution (includes Sub-Total A) | G48: =SUM(G40:G47)+G39 -> 7401.15 | K48: =SUM(K40:K47)+K39 -> 16168.35 | M48: =K48-G48 -> 8767.2 | N48: =IF((G48)=0,"",(M48/G48)) -> 1.184572668 | R48: =SUM(R40:R47)+R39 -> 9434.8625 | T48: =R48-K48 -> -6733.4875 | U48: -0.416461018 | Y48: =SUM(Y40:Y47)+Y39 -> 10590.475 | AA48: =Y48-R48 -> 1155.6125 | AB48: 0.122483237 | AF48: =SUM(AF40:AF47)+AF39 -> 11672.5375 | AH48: =AF48-Y48 -> 1082.0625 | AI48: 0.1021731792 | AM48: =SUM(AM40:AM47)+AM39 -> 12676.2125 | AO48: =AM48-AF48 -> 1003.675 | AP48: 0.08598601632
A49: RTSR - Network | C49: per kW | E49: 1.9006 | F49: =$E$19 -> 375 | G49: =F49*E49 -> 712.725 | I49: 2.0078 | J49: =$E$19 -> 375 | K49: =J49*I49 -> 752.925 | M49: 40.2 | N49: 0.05640324108 | P49: 2.0078 | Q49: =$E$19 -> 375 | R49: =Q49*P49 -> 752.925 | T49: 0 | U49: 0 | W49: 2.0078 | X49: =$E$19 -> 375 | Y49: =X49*W49 -> 752.925 | AA49: 0 | AB49: 0 | AD49: 2.0078 | AE49: =$E$19 -> 375 | AF49: =AE49*AD49 -> 752.925 | AH49: 0 | AI49: 0 | AK49: 2.0078 | AL49: =$E$19 -> 375 | AM49: =AL49*AK49 -> 752.925 | AO49: 0 | AP49: 0
A50: RTSR - Line and Transformation Connection | C50: per kW | E50: 1.4538 | F50: 375 | G50: =F50*E50 -> 545.175 | I50: 1.6053 | J50: 375 | K50: =J50*I50 -> 601.9875 | M50: 56.8125 | N50: 0.1042096574 | P50: 1.6053 | Q50: 375 | R50: =Q50*P50 -> 601.9875 | T50: 0 | U50: 0 | W50: 1.6053 | X50: 375 | Y50: =X50*W50 -> 601.9875 | AA50: 0 | AB50: 0 | AD50: 1.6053 | AE50: 375 | AF50: =AE50*AD50 -> 601.9875 | AH50: 0 | AI50: 0 | AK50: 1.6053 | AL50: 375 | AM50: =AL50*AK50 -> 601.9875 | AO50: 0 | AP50: 0
A51: Sub-Total C - Delivery (including Sub-Total B) | G51: =SUM(G48:G50) -> 8659.05 | K51: =SUM(K48:K50) -> 17523.2625 | M51: 8864.2125 | N51: 1.023693419 | R51: =SUM(R48:R50) -> 10789.775 | T51: -6733.4875 | U51: -0.3842599231 | Y51: =SUM(Y48:Y50) -> 11945.3875 | AA51: 1155.6125 | AB51: 0.1071025577 | AF51: =SUM(AF48:AF50) -> 13027.45 | AH51: 1082.0625 | AI51: 0.09058412714 | AM51: =SUM(AM48:AM50) -> 14031.125 | AO51: 1003.675 | AP51: 0.07704308978
A52: Wholesale Market Service Charge (WMSC) | C52: per kWh | E52: 0.0044 | F52: =$E$18*(1+$E$75) -> 155160 | G52: =F52*E52 -> 682.704 | I52: 0.0044 | J52: =$E$18*(1+I75) -> 155895 | K52: =J52*I52 -> 685.938 | M52: 3.234 | N52: 0.00473704563 | P52: 0.0044 | Q52: =$E$18*(1+P75) -> 155895 | R52: =Q52*P52 -> 685.938 | T52: 0 | U52: 0 | W52: 0.0044 | X52: =$E$18*(1+W75) -> 155895 | Y52: =X52*W52 -> 685.938 | AA52: 0 | AB52: 0 | AD52: 0.0044 | AE52: =$E$18*(1+AD75) -> 155895 | AF52: =AE52*AD52 -> 685.938 | AH52: 0 | AI52: 0 | AK52: 0.0044 | AL52: =$E$18*(1+AK75) -> 155895 | AM52: =AL52*AK52 -> 685.938 | AO52: 0 | AP52: 0
A53: Rural and Remote Rate Protection (RRRP) | C53: per kWh | E53: 0.0013 | F53: =$E$18*(1+$E$75) -> 155160 | G53: 201.708 | I53: 0.0013 | J53: =$E$18*(1+I75) -> 155895 | K53: 202.6635 | M53: 0.9555 | N53: 0.00473704563 | P53: 0.0013 | Q53: =$E$18*(1+P75) -> 155895 | R53: 202.6635 | T53: 0 | U53: 0 | W53: 0.0013 | X53: =$E$18*(1+W75) -> 155895 | Y53: 202.6635 | AA53: 0 | AB53: 0 | AD53: 0.0013 | AE53: =$E$18*(1+AD75) -> 155895 | AF53: 202.6635 | AH53: 0 | AI53: 0 | AK53: 0.0013 | AL53: =$E$18*(1+AK75) -> 155895 | AM53: 202.6635 | AO53: 0 | AP53: 0
A54: Standard Supply Service Charge | C54: Monthly | E54: 0.25 | F54: 1 | G54: 0.25 | I54: 0.25 | J54: 1 | K54: 0.25 | M54: 0 | N54: 0 | P54: 0.25 | Q54: 1 | R54: 0.25 | T54: 0 | U54: 0 | W54: 0.25 | X54: 1 | Y54: 0.25 | AA54: 0 | AB54: 0 | AD54: 0.25 | AE54: 1 | AF54: 0.25 | AH54: 0 | AI54: 0 | AK54: 0.25 | AL54: 1 | AM54: 0.25 | AO54: 0 | AP54: 0
A55: Debt Retirement Charge (DRC) | C55: per kWh | E55: 0.007 | F55: =E18 -> 150000 | G55: 1050 | I55: 0.007 | J55: =E18 -> 150000 | K55: 1050 | M55: 0 | N55: 0 | P55: 0.007 | Q55: =J55 -> 150000 | R55: 1050 | T55: 0 | U55: 0 | W55: 0.007 | X55: =Q55 -> 150000 | Y55: 1050 | AA55: 0 | AB55: 0 | AD55: 0.007 | AE55: =X55 -> 150000 | AF55: 1050 | AH55: 0 | AI55: 0 | AK55: 0.007 | AL55: =AE55 -> 150000 | AM55: 1050 | AO55: 0 | AP55: 0
A56: TOU - Off Peak | C56: per kWh | E56: 0.077 | F56: =0.64*$E$18 -> 96000 | G56: 7392 | I56: 0.077 | J56: =F56 -> 96000 | K56: 7392 | M56: 0 | N56: 0 | P56: 0.077 | Q56: =J56 -> 96000 | R56: 7392 | T56: 0 | U56: 0 | W56: 0.077 | X56: =Q56 -> 96000 | Y56: 7392 | AA56: 0 | AB56: 0 | AD56: 0.077 | AE56: =X56 -> 96000 | AF56: 7392 | AH56: 0 | AI56: 0 | AK56: 0.077 | AL56: =AE56 -> 96000 | AM56: 7392 | AO56: 0 | AP56: 0
A57: TOU - Mid Peak | C57: per kWh | E57: 0.114 | F57: =0.18*$E$18 -> 27000 | G57: 3078 | I57: 0.114 | J57: =F57 -> 27000 | K57: 3078 | M57: 0 | N57: 0 | P57: 0.114 | Q57: =J57 -> 27000 | R57: 3078 | T57: 0 | U57: 0 | W57: 0.114 | X57: =Q57 -> 27000 | Y57: 3078 | AA57: 0 | AB57: 0 | AD57: 0.114 | AE57: =X57 -> 27000 | AF57: 3078 | AH57: 0 | AI57: 0 | AK57: 0.114 | AL57: =AE57 -> 27000 | AM57: 3078 | AO57: 0 | AP57: 0
A58: TOU - On Peak | C58: per kWh | E58: 0.14 | F58: =0.18*$E$18 -> 27000 | G58: 3780 | I58: 0.14 | J58: =F58 -> 27000 | K58: 3780 | M58: 0 | N58: 0 | P58: 0.14 | Q58: 27000 | R58: 3780 | T58: 0 | U58: 0 | W58: 0.14 | X58: 27000 | Y58: 3780 | AA58: 0 | AB58: 0 | AD58: 0.14 | AE58: 27000 | AF58: 3780 | AH58: 0 | AI58: 0 | AK58: 0.14 | AL58: 27000 | AM58: 3780 | AO58: 0 | AP58: 0
A59: Energy - RPP - Tier 1 | C59: per kWh | E59: 0.088 | F59: =IF(AND($S$1=1, E18>=600), 600, IF(AND($S$1=1, AND(E18<600, E18>=0)), E18, IF(AND($S$1=2, E18>=1000), 1000, IF(AND($S$1=2, AND(E18<1000, E18>=0)), E18)))) -> 600 | G59: =F59*E59 -> 52.8 | I59: 0.088 | J59: =F59 -> 600 | K59: =J59*I59 -> 52.8 | M59: 0 | N59: 0 | P59: 0.088 | Q59: 600 | R59: =Q59*P59 -> 52.8 | T59: 0 | U59: 0 | W59: 0.088 | X59: 600 | Y59: =X59*W59 -> 52.8 | AA59: 0 | AB59: 0 | AD59: 0.088 | AE59: 600 | AF59: =AE59*AD59 -> 52.8 | AH59: 0 | AI59: 0 | AK59: 0.088 | AL59: 600 | AM59: =AL59*AK59 -> 52.8 | AO59: 0 | AP59: 0
A60: Energy - RPP - Tier 2 | C60: per kWh | E60: 0.103 | F60: =IF(AND($S$1=1, E18>=600), E18-600, IF(AND($S$1=1, AND(E18<600, E18>=0)), 0, IF(AND($S$1=2, E18>=1000), E18-1000, IF(AND($S$1=2, AND(E18<1000, E18>=0)), 0)))) -> 149400 | G60: =F60*E60 -> 15388.2 | I60: 0.103 | J60: =F60 -> 149400 | K60: =J60*I60 -> 15388.2 | M60: 0 | N60: 0 | P60: 0.103 | Q60: 149400 | R60: =Q60*P60 -> 15388.2 | T60: 0 | U60: 0 | W60: 0.103 | X60: 149400 | Y60: =X60*W60 -> 15388.2 | AA60: 0 | AB60: 0 | AD60: 0.103 | AE60: 149400 | AF60: =AE60*AD60 -> 15388.2 | AH60: 0 | AI60: 0 | AK60: 0.103 | AL60: 149400 | AM60: =AL60*AK60 -> 15388.2 | AO60: 0 | AP60: 0
A62: Total Bill on TOU (before Taxes) | G62: =SUM(G52:G58,G51) -> 24843.712 | K62: =SUM(K52:K58,K51) -> 33712.114 | M62: =K62-G62 -> 8868.402 | N62: =IF((G62)=0,"",(M62/G62)) -> 0.3569676705 | R62: =SUM(R52:R58,R51) -> 26978.6265 | T62: =R62-K62 -> -6733.4875 | U62: -0.1997349528 | Y62: =SUM(Y52:Y58,Y51) -> 28134.239 | AA62: =Y62-R62 -> 1155.6125 | AB62: 0.04283437113 | AF62: =SUM(AF52:AF58,AF51) -> 29216.3015 | AH62: =AF62-Y62 -> 1082.0625 | AI62: 0.03846069908 | AM62: =SUM(AM52:AM58,AM51) -> 30219.9765 | AO62: =AM62-AF62 -> 1003.675 | AP62: 0.0343532531
A63: HST | E63: 0.13 | G63: =G62*E63 -> 3229.68256 | I63: 0.13 | K63: =K62*I63 -> 4382.57482 | M63: 1152.89226 | N63: 0.3569676705 | P63: 0.13 | R63: =R62*P63 -> 3507.221445 | T63: =R63-K63 -> -875.353375 | U63: -0.1997349528 | W63: 0.13 | Y63: =Y62*W63 -> 3657.45107 | AA63: =Y63-R63 -> 150.229625 | AB63: 0.04283437113 | AD63: 0.13 | AF63: =AF62*AD63 -> 3798.119195 | AH63: =AF63-Y63 -> 140.668125 | AI63: 0.03846069908 | AK63: 0.13 | AM63: =AM62*AK63 -> 3928.596945 | AO63: =AM63-AF63 -> 130.47775 | AP63: 0.0343532531
A64: Total Bill (including HST) | G64: =G62+G63 -> 28073.39456 | K64: =K62+K63 -> 38094.68882 | M64: 10021.29426 | N64: 0.3569676705 | R64: =R62+R63 -> 30485.84794 | T64: -7608.840875 | U64: -0.1997349528 | Y64: =Y62+Y63 -> 31791.69007 | AA64: 1305.842125 | AB64: 0.04283437113 | AF64: =AF62+AF63 -> 33014.4207 | AH64: 1222.730625 | AI64: 0.03846069908 | AM64: =AM62+AM63 -> 34148.57344 | AO64: 1134.15275 | AP64: 0.0343532531
A65: Ontario Clean Energy Benefit 1 | M65: 0 | T65: 0 | AA65: 0 | AH65: 0 | AO65: 0
A66: Total Bill on TOU (including OCEB) | G66: =G64+G65 -> 28073.39456 | K66: =K64+K65 -> 38094.68882 | M66: 10021.29426 | N66: 0.3569676705 | R66: =R64+R65 -> 30485.84794 | T66: -7608.840875 | U66: -0.1997349528 | Y66: =Y64+Y65 -> 31791.69007 | AA66: 1305.842125 | AB66: 0.04283437113 | AF66: =AF64+AF65 -> 33014.4207 | AH66: 1222.730625 | AI66: 0.03846069908 | AM66: =AM64+AM65 -> 34148.57344 | AO66: 1134.15275 | AP66: 0.0343532531
A68: Total Bill on RPP (before Taxes) | G68: =SUM(G59:G60,G51,G52:G55) -> 26034.712 | K68: =SUM(K59:K60,K51,K52:K55) -> 34903.114 | M68: =K68-G68 -> 8868.402 | N68: =IF((G68)=0,"",(M68/G68)) -> 0.3406376072 | R68: =SUM(R59:R60,R51,R52:R55) -> 28169.6265 | T68: =R68-K68 -> -6733.4875 | U68: -0.1929193911 | Y68: =SUM(Y59:Y60,Y51,Y52:Y55) -> 29325.239 | AA68: =Y68-R68 -> 1155.6125 | AB68: 0.04102335187 | AF68: =SUM(AF59:AF60,AF51,AF52:AF55) -> 30407.3015 | AH68: =AF68-Y68 -> 1082.0625 | AI68: 0.03689867626 | AM68: =SUM(AM59:AM60,AM51,AM52:AM55) -> 31410.9765 | AO68: =AM68-AF68 -> 1003.675 | AP68: 0.03300769718
A69: HST | E69: 0.13 | G69: =G68*E69 -> 3384.51256 | I69: 0.13 | K69: =K68*I69 -> 4537.40482 | M69: 1152.89226 | N69: =IF((G69)=0,"",(M69/G69)) -> 0.3406376072 | P69: 0.13 | R69: =R68*P69 -> 3662.051445 | T69: =R69-K69 -> -875.353375 | U69: -0.1929193911 | W69: 0.13 | Y69: =Y68*W69 -> 3812.28107 | AA69: =Y69-R69 -> 150.229625 | AB69: 0.04102335187 | AD69: 0.13 | AF69: =AF68*AD69 -> 3952.949195 | AH69: =AF69-Y69 -> 140.668125 | AI69: 0.03689867626 | AK69: 0.13 | AM69: =AM68*AK69 -> 4083.426945 | AO69: =AM69-AF69 -> 130.47775 | AP69: 0.03300769718
A70: Total Bill (including HST) | G70: =G68+G69 -> 29419.22456 | K70: =K68+K69 -> 39440.51882 | M70: 10021.29426 | N70: 0.3406376072 | R70: =R68+R69 -> 31831.67794 | T70: -7608.840875 | U70: -0.1929193911 | Y70: =Y68+Y69 -> 33137.52007 | AA70: 1305.842125 | AB70: 0.04102335187 | AF70: =AF68+AF69 -> 34360.25069 | AH70: 1222.730625 | AI70: 0.03689867626 | AM70: =AM68+AM69 -> 35494.40344 | AO70: 1134.15275 | AP70: 0.03300769718
A71: Ontario Clean Energy Benefit 1 | M71: 0 | T71: 0 | AA71: 0 | AH71: 0 | AO71: 0
A72: Total Bill on RPP (including OCEB) | G72: =SUM(G70:G71) -> 29419.22456 | K72: =SUM(K70:K71) -> 39440.51882 | M72: 10021.29426 | N72: 0.3406376072 | R72: =SUM(R70:R71) -> 31831.67794 | T72: -7608.840875 | U72: -0.1929193911 | Y72: =SUM(Y70:Y71) -> 33137.52007 | AA72: 1305.842125 | AB72: 0.04102335187 | AF72: =SUM(AF70:AF71) -> 34360.25069 | AH72: 1222.730625 | AI72: 0.03689867626 | AM72: =SUM(AM70:AM71) -> 35494.40344 | AO72: 1134.15275 | AP72: 0.03300769718
A75: Loss Factor (%) | E75: 0.0344 | I75: 0.0393 | P75: 0.0393 | W75: 0.0393 | AD75: 0.0393 | AK75: 0.0393
A77: Distribution Excluding Rate Riders | E77: 2015 Current Board-Approved | I77: 2016 Test Year 1 Proposed | M77: Impact 2016 TEST vs. 2015 Bridge | P77: 2017 Test Year 2 Proposed | T77: Impact 2017 TEST 2 vs. 2016 Test 1 | W77: 2018 Test Year 3 Proposed | AA77: Impact 2018 TEST 3 vs. 2017 Test 2 | AD77: 2019 Test Year 4 Proposed | AH77: Impact 2019 TEST 4 vs. 2018 Test 3 | AK77: 2020 Test Year 5 Proposed | AO77: Impact 2019 TEST 5 vs. 2019 Test 4
C78: Charge Unit | E78: Rate | F78: Volume | G78: Charge | I78: Rate | J78: Volume | K78: Charge | M78: $ Change | N78: % Change | P78: Rate | Q78: Volume | R78: Charge | T78: $ Change | U78: % Change | W78: Rate | X78: Volume | Y78: Charge | AA78: $ Change | AB78: % Change | AD78: Rate | AE78: Volume | AF78: Charge | AH78: $ Change | AI78: % Change | AK78: Rate | AL78: Volume | AM78: Charge | AO78: $ Change | AP78: % Change
E79: ($) | G79: ($) | I79: ($) | K79: ($) | P79: ($) | R79: ($) | W79: ($) | Y79: ($) | AD79: ($) | AF79: ($) | AK79: ($) | AM79: ($)
A80: Monthly Service Charge | C80: Monthly | E80: 1.02 | F80: =$E$17 -> 5000 | G80: =F80*E80 -> 5100 | I80: 0.9 | J80: =$E$17 -> 5000 | K80: =J80*I80 -> 4500 | M80: =K80-G80 -> -600 | N80: =IF((G80)=0,"",(M80/G80)) -> -0.1176470588 | P80: 1.03 | Q80: =$E$17 -> 5000 | R80: =Q80*P80 -> 5150 | T80: =R80-K80 -> 650 | U80: =IF((K80)=0,"",(T80/K80)) -> 0.1444444444 | W80: 1.16 | X80: =$E$17 -> 5000 | Y80: =X80*W80 -> 5800 | AA80: =Y80-R80 -> 650 | AB80: =IF((R80)=0,"",(AA80/R80)) -> 0.1262135922 | AD80: 1.28 | AE80: =$E$17 -> 5000 | AF80: =AE80*AD80 -> 6400 | AH80: =AF80-Y80 -> 600 | AI80: =IF((Y80)=0,"",(AH80/Y80)) -> 0.1034482759 | AK80: 1.39 | AL80: =$E$17 -> 5000 | AM80: =AL80*AK80 -> 6950 | AO80: =AM80-AF80 -> 550 | AP80: =IF((AF80)=0,"",(AO80/AF80)) -> 0.0859375
A81: Distribution Volumetric Rate | C81: per kW | E81: 4.675 | F81: =$E$19 -> 375 | G81: =F81*E81 -> 1753.125 | I81: 9.5484 | J81: =$E$19 -> 375 | K81: =J81*I81 -> 3580.65 | M81: =K81-G81 -> 1827.525 | N81: =IF((G81)=0,"",(M81/G81)) -> 1.042438503 | P81: 10.9179 | Q81: =$E$19 -> 375 | R81: =Q81*P81 -> 4094.2125 | T81: 513.5625 | U81: =IF((K81)=0,"",(T81/K81)) -> 0.143427171 | W81: 12.2662 | X81: =$E$19 -> 375 | Y81: =X81*W81 -> 4599.825 | AA81: 505.6125 | AB81: =IF((R81)=0,"",(AA81/R81)) -> 0.1234944449 | AD81: 13.5517 | AE81: =$E$19 -> 375 | AF81: =AE81*AD81 -> 5081.8875 | AH81: 482.0625 | AI81: =IF((Y81)=0,"",(AH81/Y81)) -> 0.1048001826 | AK81: 14.7615 | AL81: =$E$19 -> 375 | AM81: =AL81*AK81 -> 5535.5625 | AO81: 453.675 | AP81: =IF((AF81)=0,"",(AO81/AF81)) -> 0.08927293255
A82: "Regular" Distribution Only | G82: =SUM(G80:G81) -> 6853.125 | K82: =SUM(K80:K81) -> 8080.65 | M82: 1227.525 | N82: 0.179119015 | R82: =SUM(R80:R81) -> 9244.2125 | T82: 1163.5625 | U82: 0.1439936763 | Y82: =SUM(Y80:Y81) -> 10399.825 | AA82: 1155.6125 | AB82: 0.1250092964 | AF82: =SUM(AF80:AF81) -> 11481.8875 | AH82: 1082.0625 | AI82: 0.1040462219 | AM82: =SUM(AM80:AM81) -> 12485.5625 | AO82: 1003.675 | AP82: 0.08741376363
B85: Residential (kWh) - 100, 250, 500, 800, 1000, 1500, 2000
B86: GS<50kW (kWh) - 1000, 2000, 5000, 10000, 15000
B87: GS>50kW (kW) - 60, 100, 500, 1000
B88: Large User - range appropriate for utility
B89: Lighting Classes and USL - 150 kWh and 1 kW, range appropriate for utility.
C91: Note that cells with the highlighted color shown to the left indicate quantities that are loss adjusted.

Sheet App.2-AA_Capital Projects
G1: File Number: | H1: =EBNUMBER -> EB-2015-0083
G2: Exhibit:
G3: Tab:
G4: Schedule:
G5: Page:
G7: Date:
A9: Appendix 2-AA
A10: Capital Projects Table
A13: Projects | B13: =C13-1 -> 2011 | C13: =D13-1 -> 2012 | D13: =E13-1 -> 2013 | E13: =BridgeYear - 1 -> 2014 | F13: =BridgeYear & " Bridge Year" -> 2015 Bridge Year | G13: =TestYear & " Test Year" -> 2016 Test Year
A14: Reporting Basis
A15: Project Name #1
A21: Sub-Total | B21: =SUM(B16:B20) -> 0 | C21: 0 | D21: 0 | E21: 0 | F21: 0 | G21: 0
A22: Project Name #2
A28: Sub-Total | B28: =SUM(B23:B27) -> 0 | C28: 0 | D28: 0 | E28: 0 | F28: 0 | G28: 0
A29: Project Name #3
A35: Sub-Total | B35: =SUM(B30:B34) -> 0 | C35: 0 | D35: 0 | E35: 0 | F35: 0 | G35: 0
A36: Project Name #4
A42: Sub-Total | B42: =SUM(B37:B41) -> 0 | C42: 0 | D42: 0 | E42: 0 | F42: 0 | G42: 0
A43: Miscellaneous
A44: Total | B44: =SUMPRODUCT(--($A15:$A43="Sub-Total"), B$15:B$43)+B43 -> 0 | C44: 0 | D44: 0 | E44: 0 | F44: 0 | G44: 0
A45: Less Renewable Generation Facility Assets and Other Non Rate-Regulated Utility Assets (input as negative)
A46: Total | B46: =B44+B45 -> 0 | C46: 0 | D46: 0 | E46: 0 | F46: 0 | G46: 0
A50: Notes:
A52: 1 Please provide a breakdown of the major components of each capital project undertaken in each year. Please ensure that all projects below the materiality threshold are included in the miscellaneous line. Add more projects as required.
A53: 2 The applicant should group projects appropriately and avoid presentations that result in classification of significant components of the capital budget in the miscellaneous category.

Sheet App.2-AB_Capital Expenditures
S1: File Number: | U1: =EBNUMBER -> EB-2015-0083
S2: Exhibit:
S3: Tab:
S4: Schedule:
S5: Page:
S7: Date:
A9: Appendix 2-AB
A10: Table 2 - Capital Expenditure Summary from Chapter 5 Consolidated Distribution System Plan Filing Requirements
A12: First year of Forecast Period: | B12: =TestYear -> 2016
A13: CATEGORY | B13: Historical Period (previous plan1 & actual) | Q13: Forecast Period (planned)
B14: =E14-1 -> 2011 | E14: =H14-1 -> 2012 | H14: =K14-1 -> 2013 | K14: =N14-1 -> 2014 | N14: =Q14-1 -> 2015 | Q14: =B12 -> 2016 | R14: =Q14+1 -> 2017 | S14: =R14+1 -> 2018 | T14: 2019 | U14: 2020
B15: Plan | C15: Actual | D15: Var | E15: Plan | F15: Actual | G15: Var | H15: Plan | I15: Actual | J15: Var | K15: Plan | L15: Actual | M15: Var | N15: Plan | O15: Actual2 | P15: Var
B16: $ '000 | D16: % | E16: $ '000 | G16: % | H16: $ '000 | J16: % | K16: $ '000 | M16: % | N16: $ '000 | P16: % | Q16: $ '000
A17: System Access | D17: =IF(ISERROR((C17-B17)/B17),"--",(C17-B17)/B17) -> -- | G17: =IF(ISERROR((F17-E17)/E17),"--",(F17-E17)/E17) -> -- | J17: =IF(ISERROR((I17-H17)/H17),"--",(I17-H17)/H17) -> -- | M17: =IF(ISERROR((L17-K17)/K17),"--",(L17-K17)/K17) -> -- | P17: =IF(ISERROR((O17-N17)/N17),"--",(O17-N17)/N17) -> --
A18: System Renewal | D18: =IF(ISERROR((C18-B18)/B18),"--",(C18-B18)/B18) -> -- | G18: =IF(ISERROR((F18-E18)/E18),"--",(F18-E18)/E18) -> -- | J18: =IF(ISERROR((I18-H18)/H18),"--",(I18-H18)/H18) -> -- | M18: =IF(ISERROR((L18-K18)/K18),"--",(L18-K18)/K18) -> -- | P18: =IF(ISERROR((O18-N18)/N18),"--",(O18-N18)/N18) -> --
A19: System Service | D19: -- | G19: -- | J19: -- | M19: -- | P19: --
A20: General Plant | D20: -- | G20: -- | J20: -- | M20: -- | P20: --
A21: TOTAL EXPENDITURE | B21: =SUM(B17:B20) -> 0 | C21: =SUM(C17:C20) -> 0 | D21: -- | E21: 0 | F21: 0 | G21: -- | H21: 0 | I21: 0 | J21: -- | K21: 0 | L21: 0 | M21: -- | N21: 0 | O21: 0 | P21: -- | Q21: 0 | R21: 0 | S21: 0 | T21: 0 | U21: =SUM(U17:U20) -> 0
A22: System O&M | D22: -- | G22: -- | J22: -- | M22: -- | P22: --
A24: Notes to the Table:
A25: 1. Historical “previous plan” data is not required unless a plan has previously been filed
A26: 2. Indicate the number of months of 'actual' data included in the last year of the Historical Period (normally a 'bridge' year):
A28: Explanatory Notes on Variances (complete only if applicable)
A29: Notes on shifts in forecast vs. historical budgets by category
A32: Notes on year over year Plan vs. Actual variances for Total Expenditures
A35: Notes on Plan vs. Actual variance trends for individual expenditure categories

Sheet App. 2-AC_Customer Engagement
B1: File Number: | C1: =EBNUMBER -> EB-2015-0083
B2: Exhibit:
B3: Tab:
B4: Schedule:
B5: Page:
B7: Date:
A9: Appendix 2-AC
A10: Customer Engagement Activities Summary
A12: Provide a list of customer engagement activities | B12: Provide a list of customer needs and preferences identified through each engagement activity | C12: Actions taken to respond to identified needs and preferences. If no action was taken, explain why.
B13: 1, 2.
B14: 1, 2.
B15: 1, 2.
B16: 1, 2.
B17: 1, 2.
A45: Note: Use "ALT-ENTER" to go to the next line within a cell

Sheet App.2-B_Acct Instructions
A1: General Instructions to MIFRS Appendices
A2: Types of Schedules to File
A4: The purpose of this tab is to provide general instructions. The specific instructions to each appendix are listed in footnotes of each appendix.
A6: The typical applicant is expected to have made capitalization and depreciation policy changes under CGAAP as permitted by the Board on January 1, 2012 or mandated by the Board by January 1, 2013, and adopts IFRS for reporting purposes on January 1, 2015 (transition date January 1, 2014). In general, applicants under the two scenarios should provide the following information in the appendices:
E9: Accounting Policy Changes in 2012 and Adopts IFRS in 2015 | F9: Accounting Policy Changes in 2013 and Adopts IFRS in 2015
E10: (Date of Transition to IFRS 2014)
A11: Information to be filed in 2015 CoS Application | B11: 2015 | C11: Test | E11: MIFRS | F11: MIFRS
B12: 2014 | C12: Bridge | E12: MIFRS and Revised CGAAP* | F12: MIFRS and Revised CGAAP*
B13: 2013 | C13: Historical | E13: Revised CGAAP | F13: CGAAP and Revised CGAAP
B14: 2012 | C14: Historical | E14: CGAAP and Revised CGAAP | F14: CGAAP
B15: 2011 and Prior | C15: Historical | E15: CGAAP | F15: CGAAP
A17: 1) For the year that the applicant implemented changes to its capitalization and depreciation policies (2012 or 2013), the applicant must file two appendices, one before and one after the policy changes.
A20: 2) For the transition year (2014), the applicant may file two appendices, one under Revised CGAAP and one under MIFRS depending, on the materiality of impacts. See the specific instructions under each appendix below for further details.
A25: Appendix 2-BA - Fixed Asset Schedule
A27: Applicants are to provide Appendix 2-BA in accordance with the years and corresponding accounting standards noted in the above table to provide a year over year continuity in fixed assets.
A28: *For the transition year (2014), the applicant should file two appendices, one under Revised CGAAP and one under MIFRS if the change between Revised CGAAP and MIFRS is material. If the change from the accounting standards is not material, the applicant may choose to only provide one appendix under MIFRS. The applicant must also indicate the fixed asset net book value balance under Revised CGAAP, the total dollar value of the change and explain why it is not material.
A32: Regulatory Gross Assets of Property, Plant and Equipment
A34: For an applicant that is adopting IFRS on January 1, 2015 for financial reporting purposes, the applicant must establish the continuity of historic cost by using the December 31, 2013 regulatory gross assets of property, plant and equipment as the opening January 1, 2014 regulatory gross assets. The applicant must provide schedules (including Appendix 2-BA, Fixed Asset Continuity Schedule) which must identify the following details to substantiate the continuity of historic cost for regulatory purposes:
A37: · December 31, 2013 regulatory gross assets of property, plant and equipment, by asset class; and
A38: · January 1, 2014 regulatory gross assets of property, plant and equipment, by asset class.
A40: Accumulated Depreciation
A42: For an applicant that is adopting IFRS on January 1, 2015 for financial reporting purposes, the applicant must establish the continuity of historic cost by using the December 31, 2013 regulatory accumulated depreciation as the opening January 1, 2014 regulatory accumulated depreciation. The applicant must provide schedules (including Appendix 2-BA, Fixed Asset Continuity Schedule) which must identify the following details to substantiate the continuity of historic cost for regulatory purposes:
A45: · December 31, 2013 regulatory accumulated depreciation, by asset class; and
A46: · January 1, 2014 regulatory accumulated depreciation, by asset class.
A48: Appendix 2-C - Depreciation and Amortization
A50: Applicants are to provide Appendix 2-C starting in the year capitalization and depreciation policy changes were implemented in accordance with the years and corresponding accounting standards listed in the above table.
A51: If an applicant changed capitalization and depreciation policies effective January 1, 2012 and will adopt IFRS for reporting purposes effective January 1, 2015, the applicant must complete Appendix 2-CA to 2-CE (inclusive).
A52: If an applicant changed capitalization and depreciation policies effective January 1, 2013 and will adopt IFRS for reporting purposes effective January 1, 2015, the applicant must complete Appendix 2-CF to 2-CI (inclusive).
A53: *Depreciation accounting policy changes were mandated by the Board by January 1, 2013. These accounting changes should be implemented consistent with the Board’s regulatory accounting policies as set out for MIFRS as contained in the Report of the Board, Transition to International Financial Reporting Standards (EB-2008-0408), the Depreciation Study for Use by Electricity Distributors (EB-2010-0178) and the Revised 2012 Accounting Procedures Handbook for Electricity Distributors. In general, no further changes to an applicant's depreciation policy (i.e. assets' service lives) are expected after the Board mandated changes by January 1, 2013. The set of Appendix CA to CI assumes this to be the case. If the applicant has made any changes to its depreciation policy subsequent to the Board mandated changes, applicants must identify the change, explain the nature of the change, the reason for the change, quantify the impact of the change, and quantify the depreciation expense before and after the change.
A56: Appendix 2-E - Account 1575, IFRS-CGAAP Transitional PP&E Amounts (2-EA), Account 1576, Accounting Changes Under CGAAP (2-EB, 2-EC)
A58: If an applicant changed capitalization and depreciation policies effective January 1, 2012 and will adopt IFRS for reporting purposes effective January 1, 2015, the applicant must complete Appendix 2-EA and 2-EB. If the applicant does not make any further PP&E accounting policy changes beyond the capitalization and depreciation policy changes as permitted by the Board on January 1, 2012 (i.e. no further changes made on transition to IFRS), the applicant must indicate this and does not need to complete Appendix 2-EA.
A60: If an applicant changed capitalization and depreciation policies effective January 1, 2013 and will adopt IFRS for reporting purposes effective January 1, 2015, the applicant must complete Appendix 2-EA and 2-EC. If the applicant does not make any further PP&E accounting policy changes beyond the capitalization and depreciation policy changes as mandated by the Board by January 1, 2013 (i.e. no further changes made on transition to IFRS), the applicant must indicate this and does not need to complete Appendix 2-EA.
A62: Please refer to section 2.12.4 and 2.12.5 of the Filing Requirements for further details.
A64: Appendix 2-YA - Summary of Impacts to Revenue Requirement from Transition to MIFRS
A66: For applicants adopting MIFRS, the applicants must provide a summary of the dollar impacts of MIFRS to each component of the revenue requirement (e.g. rate base, operating costs, etc), including the overall impact on the proposed revenue requirement. Accordingly, the applicants must identify financial differences and resulting revenue requirement impacts arising from the adoption of MIFRS as compared to CGAAP prior to capitalization and depreciation policy changes.

Sheet App.2-BA_Fixed Asset Cont
L1: File Number: | M1: =EBNUMBER -> EB-2015-0083
L2: Exhibit:
L3: Tab:
L4: Schedule:
L5: Page:
L7: Date:
A9: Appendix 2-BA
A10: Fixed Asset Continuity Schedule
E12: Accounting Standard | F12: MIFRS
E13: Year
D15: Cost | J15: Accumulated Depreciation
A16: CCA Class | B16: OEB | C16: Description | D16: Opening Balance | E16: Additions | F16: Disposals | G16: Closing Balance | I16: Opening Balance | J16: Additions | K16: Disposals | L16: Closing Balance | M16: Net Book Value
A17: 12 | B17: 1611 | C17: Computer Software (Formally known as Account 1925) | G17: =D17+E17+F17 -> 0 | L17: =I17+J17+K17 -> 0 | M17: =G17+L17 -> 0
A18: CEC | B18: 1612 | C18: Land Rights (Formally known as Account 1906) | G18: =D18+E18+F18 -> 0 | L18: =I18+J18+K18 -> 0 | M18: =G18+L18 -> 0
A19: N/A | B19: 1805 | C19: Land | G19: =D19+E19+F19 -> 0 | L19: =I19+J19+K19 -> 0 | M19: =G19+L19 -> 0
A20: 47 | B20: 1808 | C20: Buildings | G20: =D20+E20+F20 -> 0 | L20: =I20+J20+K20 -> 0 | M20: =G20+L20 -> 0
A21: 13 | B21: 1810 | C21: Leasehold Improvements | G21: 0 | L21: 0 | M21: 0
A22: 47 | B22: 1815 | C22: Transformer Station Equipment >50 kV | G22: 0 | L22: 0 | M22: 0
A23: 47 | B23: 1820 | C23: Distribution Station Equipment <50 kV | G23: 0 | L23: 0 | M23: 0
A24: 47 | B24: 1825 | C24: Storage Battery Equipment | G24: 0 | L24: 0 | M24: 0
A25: 47 | B25: 1830 | C25: Poles, Towers & Fixtures | G25: 0 | L25: 0 | M25: 0
A26: 47 | B26: 1835 | C26: Overhead Conductors & Devices | G26: 0 | L26: 0 | M26: 0
A27: 47 | B27: 1840 | C27: Underground Conduit | G27: 0 | L27: 0 | M27: 0
A28: 47 | B28: 1845 | C28: Underground Conductors & Devices | G28: 0 | L28: 0 | M28: 0
A29: 47 | B29: 1850 | C29: Line Transformers | G29: 0 | L29: 0 | M29: 0
A30: 47 | B30: 1855 | C30: Services (Overhead & Underground) | G30: 0 | L30: 0 | M30: 0
A31: 47 | B31: 1860 | C31: Meters | G31: 0 | L31: 0 | M31: 0
A32: 47 | B32: 1860 | C32: Meters (Smart Meters) | G32: 0 | L32: 0 | M32: 0
A33: N/A | B33: 1905 | C33: Land | G33: 0 | L33: 0 | M33: 0
A34: 47 | B34: 1908 | C34: Buildings & Fixtures | G34: 0 | L34: 0 | M34: 0
A35: 13 | B35: 1910 | C35: Leasehold Improvements | G35: 0 | L35: 0 | M35: 0
A36: 8 | B36: 1915 | C36: Office Furniture & Equipment (10 years) | G36: 0 | L36: 0 | M36: 0
A37: 8 | B37: 1915 | C37: Office Furniture & Equipment (5 years) | G37: 0 | L37: 0 | M37: 0
A38: 10 | B38: 1920 | C38: Computer Equipment - Hardware | G38: 0 | L38: 0 | M38: 0
A39: 45 | B39: 1920 | C39: Computer Equip.-Hardware(Post Mar. 22/04) | G39: 0 | L39: 0 | M39: 0
A40: 45.1 | B40: 1920 | C40: Computer Equip.-Hardware(Post Mar. 19/07) | G40: 0 | L40: 0 | M40: 0
A41: 10 | B41: 1930 | C41: Transportation Equipment | G41: 0 | L41: 0 | M41: 0
A42: 8 | B42: 1935 | C42: Stores Equipment | G42: 0 | L42: 0 | M42: 0
A43: 8 | B43: 1940 | C43: Tools, Shop & Garage Equipment | G43: 0 | L43: 0 | M43: 0
A44: 8 | B44: 1945 | C44: Measurement & Testing Equipment | G44: 0 | L44: 0 | M44: 0
A45: 8 | B45: 1950 | C45: Power Operated Equipment | G45: 0 | L45: 0 | M45: 0
A46: 8 | B46: 1955 | C46: Communications Equipment | G46: 0 | L46: 0 | M46: 0
A47: 8 | B47: 1955 | C47: Communication Equipment (Smart Meters) | G47: 0 | L47: 0 | M47: 0
A48: 8 | B48: 1960 | C48: Miscellaneous Equipment | G48: 0 | L48: 0 | M48: 0
A49: 47 | B49: 1970 | C49: Load Management Controls Customer Premises | G49: 0 | L49: 0 | M49: 0
A50: 47 | B50: 1975 | C50: Load Management Controls Utility Premises | G50: 0 | L50: 0 | M50: 0
A51: 47 | B51: 1980 | C51: System Supervisor Equipment | G51: 0 | L51: 0 | M51: 0
A52: 47 | B52: 1985 | C52: Miscellaneous Fixed Assets | G52: 0 | L52: 0 | M52: 0
A53: 47 | B53: 1990 | C53: Other Tangible Property | G53: 0 | L53: 0 | M53: 0
A54: 47 | B54: 1995 | C54: Contributions & Grants | G54: 0 | L54: 0 | M54: 0
A55: 47 | B55: 2440 | C55: Deferred Revenue5
G56: 0 | L56: 0 | M56: 0
C57: Sub-Total | D57: =SUM(D17:D56) -> 0 | E57: =SUM(E17:E56) -> 0 | F57: =SUM(F17:F56) -> 0 | G57: =SUM(G17:G56) -> 0 | I57: =SUM(I17:I56) -> 0 | J57: =SUM(J17:J56) -> 0 | K57: =SUM(K17:K56) -> 0 | L57: =SUM(L17:L56) -> 0 | M57: =SUM(M17:M56) -> 0
C58: Less Socialized Renewable Energy Generation Investments (input as negative) | G58: =D58+E58+F58 -> 0 | L58: =I58+J58+K58 -> 0 | M58: =G58+L58 -> 0
C59: Less Other Non Rate-Regulated Utility Assets (input as negative) | G59: 0 | L59: 0 | M59: 0
C60: Total PP&E | D60: =SUM(D57:D59) -> 0 | E60: =SUM(E57:E59) -> 0 | F60: 0 | G60: 0 | I60: =SUM(I57:I59) -> 0 | J60: 0 | K60: 0 | L60: 0 | M60: 0
C61: Depreciation Expense adj. from gain or loss on the retirement of assets (pool of like assets), if applicable6
C62: Total | J62: =J60+J61 -> 0
I64: Less: Fully Allocated Depreciation
A65: 10 | C65: Transportation | I65: Transportation
A66: 8 | C66: Stores Equipment | I66: Stores Equipment
I67: Net Depreciation | K67: =J62-K65-K66 -> 0
A69: Notes:
A71: 1 | B71: Tables in the format outlined above covering all fixed asset accounts should be submitted for the Test Year, Bridge Year and all relevant historical years. At a minimum , the applicant must provide data for the earlier of: 1) all historical years back to its last rebasing; or 2) at least three years of historical actuals, in addition to Bridge Year and Test Year forecasts.
A74: 2 | B74: The "CCA Class" for fixed assets should agree with the CCA Class used for tax purposes in Tax Returns. Fixed Assets sub-components may be used where the underlying asset components are classified under multiple CCA Classes for tax purposes. If an applicant uses any different classes from those shown in the table, an explanation should be provided. (also see note 3 below).
A77: 3 | B77: The table may need to be customized for a utility's asset categories or for any new asset accounts announced or authorized by the Board.
A79: 4 | B79: The additions column (E) must not include construction work in progress (CWIP).
A81: 5 | B81: Effective on the date of IFRS adoption, customer contributions will no longer be recorded in Account 1995 Contributions & Grants, but will be recorded in Account 2440, Deferred Revenues.
A83: 6 | B83: Where a distributor for general financial reporting purposes under IFRS has accounted for the amount of gain or loss on the retirement of assets in a pool of like assets as a charge or credit to income, for reporting and rate application filings the distributor shall reclassify such gains and losses as depreciation expense, and disclose the amount separately.

Sheet Appendix 2-BB Service Life
M1: File Number: | O1: 0
M2: Exhibit:
M3: Tab:
M4: Schedule:
M5: Page:
M7: Date:
A9: Appendix 2-BB
A10: Service Life Comparison
A11: Table F-1 from Kinetrics Report1
C15: Asset Details | F15: Useful Life | J15: USoA Account Number | K15: USoA Account Description | L15: Current | N15: Proposed | P15: Outside Range of Min, Max TUL?
A16: Parent* | B16: # | C16: Category| Component | Type | F16: MIN UL | G16: TUL | H16: MAX UL | L16: Years | M16: Rate | N16: Years | O16: Rate | P16: Below Min TUL | Q16: Above Max TUL
A17: OH | B17: 1 | C17: Fully Dressed Wood Poles | D17: Overall | F17: 35 | G17: 45 | H17: 75 | M17: =IF(ISERROR(1/L17), "", 1/L17) ->  | O17: =IF(ISERROR(1/N17), "", 1/N17) ->  | P17: =IF(ISBLANK(N17),"",IF(N17<F17,"Yes","No")) ->  | Q17: =IF(ISBLANK(N17),"",IF(N17>H17,"Yes","No")) -> 
D18: Cross Arm | E18: Wood | F18: 20 | G18: 40 | H18: 55 | M18: =IF(ISERROR(1/L18), "", 1/L18) ->  | O18: =IF(ISERROR(1/N18), "", 1/N18) ->  | P18: =IF(ISBLANK(N18),"",IF(N18<F18,"Yes","No")) ->  | Q18: =IF(ISBLANK(N18),"",IF(N18>H18,"Yes","No")) -> 
E19: Steel | F19: 30 | G19: 70 | H19: 95
B20: 2 | C20: Fully Dressed Concrete Poles | D20: Overall | F20: 50 | G20: 60 | H20: 80
D21: Cross Arm | E21: Wood | F21: 20 | G21: 40 | H21: 55
E22: Steel | F22: 30 | G22: 70 | H22: 95
B23: 3 | C23: Fully Dressed Steel Poles | D23: Overall | F23: 60 | G23: 60 | H23: 80
D24: Cross Arm | E24: Wood | F24: 20 | G24: 40 | H24: 55
E25: Steel | F25: 30 | G25: 70 | H25: 95
B26: 4 | C26: OH Line Switch | F26: 30 | G26: 45 | H26: 55
B27: 5 | C27: OH Line Switch Motor | F27: 15 | G27: 25 | H27: 25
B28: 6 | C28: OH Line Switch RTU | F28: 15 | G28: 20 | H28: 20
B29: 7 | C29: OH Integral Switches | F29: 35 | G29: 45 | H29: 60
B30: 8 | C30: OH Conductors | F30: 50 | G30: 60 | H30: 75
B31: 9 | C31: OH Transformers & Voltage Regulators | F31: 30 | G31: 40 | H31: 60
B32: 10 | C32: OH Shunt Capacitor Banks | F32: 25 | G32: 30 | H32: 40
B33: 11 | C33: Reclosers | F33: 25 | G33: 40 | H33: 55
A34: TS & MS | B34: 12 | C34: Power Transformers | D34: Overall | F34: 30 | G34: 45 | H34: 60
D35: Bushing | F35: 10 | G35: 20 | H35: 30
D36: Tap Changer | F36: 20 | G36: 30 | H36: 60
B37: 13 | C37: Station Service Transformer | F37: 30 | G37: 45 | H37: 55
B38: 14 | C38: Station Grounding Transformer | F38: 30 | G38: 40 | H38: 40
B39: 15 | C39: Station DC System | D39: Overall | F39: 10 | G39: 20 | H39: 30
D40: Battery Bank | F40: 10 | G40: 15 | H40: 15
D41: Charger | F41: 20 | G41: 20 | H41: 30
B42: 16 | C42: Station Metal Clad Switchgear | D42: Overall | F42: 30 | G42: 40 | H42: 60
D43: Removable Breaker | F43: 25 | G43: 40 | H43: 60
B44: 17 | C44: Station Independent Breakers | F44: 35 | G44: 45 | H44: 65
B45: 18 | C45: Station Switch | F45: 30 | G45: 50 | H45: 60
B46: 19 | C46: Electromechanical Relays | F46: 25 | G46: 35 | H46: 50
B47: 20 | C47: Solid State Relays | F47: 10 | G47: 30 | H47: 45
B48: 21 | C48: Digital & Numeric Relays | F48: 15 | G48: 20 | H48: 20
B49: 22 | C49: Rigid Busbars | F49: 30 | G49: 55 | H49: 60
B50: 23 | C50: Steel Structure | F50: 35 | G50: 50 | H50: 90
A51: UG | B51: 24 | C51: Primary Paper Insulated Lead Covered (PILC) Cables | F51: 60 | G51: 65 | H51: 75
B52: 25 | C52: Primary Ethylene-Propylene Rubber (EPR) Cables | F52: 20 | G52: 25 | H52: 25
B53: 26 | C53: Primary Non-Tree Retardant (TR) Cross Linked Polyethylene (XLPE) Cables Direct Buried | F53: 20 | G53: 25 | H53: 30
B54: 27 | C54: Primary Non-TR XLPE Cables in Duct | F54: 20 | G54: 25 | H54: 30
B55: 30 | C55: Secondary PILC Cables | F55: 70 | G55: 75 | H55: 80
B56: 31 | C56: Secondary Cables Direct Buried | F56: 25 | G56: 35 | H56: 40
B57: 32 | C57: Secondary Cables in Duct | F57: 35 | G57: 40 | H57: 60
B58: 33 | C58: Network Tranformers | D58: Overall | F58: 20 | G58: 35 | H58: 50
D59: Protector | F59: 20 | G59: 35 | H59: 40
B60: 34 | C60: Pad-Mounted Transformers | F60: 25 | G60: 40 | H60: 45
B61: 35 | C61: Submersible/Vault Transformers | F61: 25 | G61: 35 | H61: 45
B62: 36 | C62: UG Foundation | F62: 35 | G62: 55 | H62: 70
B63: 37 | C63: UG Vaults | D63: Overall | F63: 40 | G63: 60 | H63: 80
D64: Roof | F64: 20 | G64: 30 | H64: 45
B65: 38 | C65: UG Vault Switches | F65: 20 | G65: 35 | H65: 50
B66: 39 | C66: Pad-Mounted Switchgear | F66: 20 | G66: 30 | H66: 45
B67: 40 | C67: Ducts | F67: 30 | G67: 50 | H67: 85
B68: 41 | C68: Concrete Encased Duct Banks | F68: 35 | G68: 55 | H68: 80
B69: 42 | C69: Cable Chambers | F69: 50 | G69: 60 | H69: 80
A70: S | B70: 43 | C70: Remote SCADA | F70: 15 | G70: 20 | H70: 30
A73: Table F-2 from Kinetrics Report1
C75: Asset Details | F75: Useful Life Range | J75: USoA Account Number | K75: USoA Account Description | L75: Current | N75: Proposed | P75: Outside Range of Min, Max TUL?
B76: # | C76: Category| Component | Type | L76: Years | M76: Rate | N76: Years | O76: Rate | P76: Below Min Range | Q76: Above Max Range
B77: 1 | C77: Office Equipment | F77: 5 | G77: 15 | M77: =IF(ISERROR(1/L77), "", 1/L77) ->  | O77: =IF(ISERROR(1/N77), "", 1/N77) ->  | P77: =IF(ISBLANK(N77),"",IF(N77<F77,"Yes","No")) ->  | Q77: =IF(ISBLANK(N77),"",IF(N77>G77,"Yes","No")) -> 
B78: 2 | C78: Vehicles | D78: Trucks & Buckets | F78: 5 | G78: 15 | M78: =IF(ISERROR(1/L78), "", 1/L78) ->  | O78: =IF(ISERROR(1/N78), "", 1/N78) ->  | P78: =IF(ISBLANK(N78),"",IF(N78<F78,"Yes","No")) ->  | Q78: =IF(ISBLANK(N78),"",IF(N78>G78,"Yes","No")) -> 
D79: Trailers | F79: 5 | G79: 20
D80: Vans | F80: 5 | G80: 10
B81: 3 | C81: Administrative Buildings | F81: 50 | G81: 75
B82: 4 | C82: Leasehold Improvements | F82: Lease dependent
B83: 5 | C83: Station Buildings | D83: Station Buildings | F83: 50 | G83: 75
D84: Parking | F84: 25 | G84: 30
D85: Fence | F85: 25 | G85: 60
D86: Roof | F86: 20 | G86: 30
B87: 6 | C87: Computer Equipment | D87: Hardware | F87: 3 | G87: 5
D88: Software | F88: 2 | G88: 5
B89: 7 | C89: Equipment | D89: Power Operated | F89: 5 | G89: 10
D90: Stores | F90: 5 | G90: 10
D91: Tools, Shop, Garage Equipment | F91: 5 | G91: 10
D92: Measurement & Testing Equipment | F92: 5 | G92: 10
B93: 8 | C93: Communication | D93: Towers | F93: 60 | G93: 70
D94: Wireless | F94: 2 | G94: 10
B95: 9 | C95: Residential Energy Meters | F95: 25 | G95: 35
B96: 10 | C96: Industrial/Commercial Energy Meters | F96: 25 | G96: 35
B97: 11 | C97: Wholesale Energy Meters | F97: 15 | G97: 30
B98: 12 | C98: Current & Potential Transformer (CT & PT) | F98: 35 | G98: 50
B99: 13 | C99: Smart Meters | F99: 5 | G99: 15
B100: 14 | C100: Repeaters - Smart Metering | F100: 10 | G100: 15
B101: 15 | C101: Data Collectors - Smart Metering | F101: 15 | G101: 20
A104: * TS & MS = Transformer and Municipal Stations UG = Underground Systems S = Monitoring and Control Systems
A106: Note 1: | B106: Tables F-1 and F-2 above are to be used as a reference in order to complete columns J, K, L and N.
B107: See pages 17-19 of Kinetrics Report

Sheet App.2-CA_OldCGAAP_DepExp_2012
K1: File Number: | L1: =EBNUMBER -> EB-2015-0083
K2: Exhibit:
K3: Tab:
K4: Schedule:
K5: Page:
K7: Date:
A9: Appendix 2-CA
A10: Depreciation and Amortization Expense
B11: Assumes the applicant made capitalization and depreciation expense accounting policy changes under CGAAP effective January 1, 2012 and will adopt IFRS for financial reporting purposes effective January 1, 2015.
C13: Year | D13: 2012 | E13: Former CGAAP
A15: Account | B15: Description | C15: Opening Regulatory Gross PP&E as at Jan 1, 2012 | D15: Less Fully Depreciated | E15: Net for Depreciation | F15: Additions | G15: Total for Depreciation | H15: Years | I15: Depreciation Rate | J15: Depreciation Expense | K15: 2012 Depreciation Expense per Appendix 2-BA Fixed Assets, Column J (l) | L15: Variance 2
C16: (a) | D16: (b) | E16: (c) | F16: (d) | G16: (e) = (c) + ½ x (d) 1 | H16: (f) | I16: (g) = 1 / (f) | J16: (h) = (e) / (f) | L16: (m) = (h) - (l)
A17: 1611 | B17: Computer Software (Formally known as Account 1925) | E17: =C17-D17 -> 0 | G17: =E17+0.5*F17 -> 0 | I17: =IF(H17=0,0,1/H17) -> 0 | J17: =IF(H17=0,0,G17/H17) -> 0 | L17: =IF(ISERROR(+J17-K17), 0, +J17-K17) -> 0
A18: 1612 | B18: Land Rights (Formally known as Account 1906) | E18: =C18-D18 -> 0 | G18: =E18+0.5*F18 -> 0 | I18: 0 | J18: 0 | L18: 0
A19: 1805 | B19: Land | E19: 0 | G19: 0 | I19: 0 | J19: 0 | L19: 0
A20: 1808 | B20: Buildings | E20: 0 | G20: 0 | I20: 0 | J20: 0 | L20: 0
A21: 1810 | B21: Leasehold Improvements | E21: 0 | G21: 0 | I21: 0 | J21: 0 | L21: 0
A22: 1815 | B22: Transformer Station Equipment >50 kV | E22: 0 | G22: 0 | I22: 0 | J22: 0 | L22: 0
A23: 1820 | B23: Distribution Station Equipment <50 kV | E23: 0 | G23: 0 | I23: 0 | J23: 0 | L23: 0
A24: 1825 | B24: Storage Battery Equipment | E24: 0 | G24: 0 | I24: 0 | J24: 0 | L24: 0
A25: 1830 | B25: Poles, Towers & Fixtures | E25: 0 | G25: 0 | I25: 0 | J25: 0 | L25: 0
A26: 1835 | B26: Overhead Conductors & Devices | E26: 0 | G26: 0 | I26: 0 | J26: 0 | L26: 0
A27: 1840 | B27: Underground Conduit | E27: 0 | G27: 0 | I27: 0 | J27: 0 | L27: 0
A28: 1845 | B28: Underground Conductors & Devices | E28: 0 | G28: 0 | I28: 0 | J28: 0 | L28: 0
A29: 1850 | B29: Line Transformers | E29: 0 | G29: 0 | I29: 0 | J29: 0 | L29: 0
A30: 1855 | B30: Services (Overhead & Underground) | E30: 0 | G30: 0 | I30: 0 | J30: 0 | L30: 0
A31: 1860 | B31: Meters | E31: 0 | G31: 0 | I31: 0 | J31: 0 | L31: 0
A32: 1860 | B32: Meters (Smart Meters) | E32: 0 | G32: 0 | I32: 0 | J32: 0 | L32: 0
A33: 1905 | B33: Land | E33: 0 | G33: 0 | I33: 0 | J33: 0 | L33: 0
A34: 1908 | B34: Buildings & Fixtures | E34: 0 | G34: 0 | I34: 0 | J34: 0 | L34: 0
A35: 1910 | B35: Leasehold Improvements | E35: 0 | G35: 0 | I35: 0 | J35: 0 | L35: 0
A36: 1915 | B36: Office Furniture & Equipment (10 years) | E36: 0 | G36: 0 | I36: 0 | J36: 0 | L36: 0
A37: 1915 | B37: Office Furniture & Equipment (5 years) | E37: 0 | G37: 0 | I37: 0 | J37: 0 | L37: 0
A38: 1920 | B38: Computer Equipment - Hardware | E38: 0 | G38: 0 | I38: 0 | J38: 0 | L38: 0
A39: 1920 | B39: Computer Equip.-Hardware(Post Mar. 22/04) | E39: 0 | G39: 0 | I39: 0 | J39: 0 | L39: 0
A40: 1920 | B40: Computer Equip.-Hardware(Post Mar. 19/07) | E40: 0 | G40: 0 | I40: 0 | J40: 0 | L40: 0
A41: 1930 | B41: Transportation Equipment | E41: 0 | G41: 0 | I41: 0 | J41: 0 | L41: 0
A42: 1935 | B42: Stores Equipment | E42: 0 | G42: 0 | I42: 0 | J42: 0 | L42: 0
A43: 1940 | B43: Tools, Shop & Garage Equipment | E43: 0 | G43: 0 | I43: 0 | J43: 0 | L43: 0
A44: 1945 | B44: Measurement & Testing Equipment | E44: 0 | G44: 0 | I44: 0 | J44: 0 | L44: 0
A45: 1950 | B45: Power Operated Equipment | E45: 0 | G45: 0 | I45: 0 | J45: 0 | L45: 0
A46: 1955 | B46: Communications Equipment | E46: 0 | G46: 0 | I46: 0 | J46: 0 | L46: 0
A47: 1955 | B47: Communication Equipment (Smart Meters) | E47: 0 | G47: 0 | I47: 0 | J47: 0 | L47: 0
A48: 1960 | B48: Miscellaneous Equipment | E48: 0 | G48: 0 | I48: 0 | J48: 0 | L48: 0
A49: 1970 | B49: Load Management Controls Customer Premises | E49: 0 | G49: 0 | I49: 0 | J49: 0 | L49: 0
A50: 1975 | B50: Load Management Controls Utility Premises | E50: 0 | G50: 0 | I50: 0 | J50: 0 | L50: 0
A51: 1980 | B51: System Supervisor Equipment | E51: 0 | G51: 0 | I51: 0 | J51: 0 | L51: 0
A52: 1985 | B52: Miscellaneous Fixed Assets | E52: 0 | G52: 0 | I52: 0 | J52: 0 | L52: 0
A53: 1990 | B53: Other Tangible Property | E53: 0 | G53: 0 | I53: 0 | J53: 0 | L53: 0
A54: 1995 | B54: Contributions & Grants | E54: 0 | G54: 0 | I54: 0 | J54: 0 | L54: 0
B55: Total | C55: =SUM(C17:C54) -> 0 | D55: =SUM(D17:D54) -> 0 | E55: =SUM(E17:E54) -> 0 | F55: =SUM(F17:F54) -> 0 | G55: =SUM(G17:G54) -> 0 | J55: =SUM(J17:J54) -> 0 | K55: =SUM(K17:K54) -> 0 | L55: =SUM(L17:L54) -> 0
A57: Notes:
A59: 1 | B59: Board policy of the "half-year" rule - the applicant must ensure that additions in the year attract a half-year depreciation expense in the first year. Deviations from this standard practice must be supported in the application.
A60: 2 | B60: The applicant must provide an explanation of material variances in evidence.
A62: General | B62: Applicants must provide a breakdown of depreciation and amortization expense in the above format for all relevant accounts. Asset Retirement Obligations (AROs), depreciation and accretion expense should be disclosed separately consistent with the Notes of historical Audited Financial Statements.

Sheet App.2-CB_NewCGAAP_DepExp_2012
N1: File Number: | O1: =EBNUMBER -> EB-2015-0083
N2: Exhibit:
N3: Tab:
N4: Schedule:
N5: Page:
N7: Date:
A9: Appendix 2-CB
A10: Depreciation and Amortization Expense
A11: Assumes the applicant made capitalization and depreciation expense accounting policy changes under CGAAP effective January 1, 2012 and will adopt IFRS for financial reporting purposes effective January 1, 2015.
C13: Year | D13: 2012 | E13: Revised CGAAP
A15: Account | B15: Description | C15: Opening NBV as at Jan 1, 2012 5 | D15: Additions | E15: Average Remaining Life of Opening NBV 4 | F15: Years (new additions only) 3 | G15: Depreciation Rate on New Additions | H15: Depreciation Expense on Opening NBV | I15: Depreciation Expense on Additions 1 | J15: 2012 Depreciation Expense | K15: 2012 Depreciation Expense per Appendix 2-BA Fixed Assets, Column J (l) | L15: Variance 2 | M15: Depreciation Expense on 2012 Full Year Additions | N15: Less Depreciation Expense on Assets Fully Depreciated during the year (o) | O15: 2012 Full Year Depreciation 6
C16: (a) | D16: (d) | E16: (i) | F16: (f) | G16: (g) = 1 / (f) | H16: (j) = (a) / (i) | I16: (h)=((d)*0.5)/(f) | J16: (k) = (j) + (h) | L16: (m) = (k) - (l) | M16: (n) = (d)/(f) | O16: (p) = (j) + (n) - (o)
A17: 1611 | B17: Computer Software (Formally known as Account 1925) | G17: =IF(F17=0,0,1/F17) -> 0 | H17: =IF(E17=0,0,+C17/E17) -> 0 | I17: =IF(F17=0,0,+(D17*0.5)/F17) -> 0 | J17: =IF(ISERROR(+H17+I17), 0, +H17+I17) -> 0 | L17: =IF(ISERROR(+J17-K17), 0, +J17-K17) -> 0 | M17: =IF(F17=0,0,+(D17)/F17) -> 0 | O17: =IF(ISERROR(+M17+H17-N17), 0, +M17+H17-N17) -> 0
A18: 1612 | B18: Land Rights (Formally known as Account 1906) | G18: 0 | H18: 0 | I18: 0 | J18: 0 | L18: 0 | M18: 0 | O18: =IF(ISERROR(+M18+H18-N18), 0, +M18+H18-N18) -> 0
A19: 1805 | B19: Land | G19: 0 | H19: 0 | I19: 0 | J19: 0 | L19: 0 | M19: 0 | O19: 0
A20: 1808 | B20: Buildings | G20: 0 | H20: 0 | I20: 0 | J20: 0 | L20: 0 | M20: 0 | O20: 0
A21: 1810 | B21: Leasehold Improvements | G21: 0 | H21: 0 | I21: 0 | J21: 0 | L21: 0 | M21: 0 | O21: 0
A22: 1815 | B22: Transformer Station Equipment >50 kV | G22: 0 | H22: 0 | I22: 0 | J22: 0 | L22: 0 | M22: 0 | O22: 0
A23: 1820 | B23: Distribution Station Equipment <50 kV | G23: 0 | H23: 0 | I23: 0 | J23: 0 | L23: 0 | M23: 0 | O23: 0
A24: 1825 | B24: Storage Battery Equipment | G24: 0 | H24: 0 | I24: 0 | J24: 0 | L24: 0 | M24: 0 | O24: 0
A25: 1830 | B25: Poles, Towers & Fixtures | G25: 0 | H25: 0 | I25: 0 | J25: 0 | L25: 0 | M25: 0 | O25: 0
A26: 1835 | B26: Overhead Conductors & Devices | G26: 0 | H26: 0 | I26: 0 | J26: 0 | L26: 0 | M26: 0 | O26: 0
A27: 1840 | B27: Underground Conduit | G27: 0 | H27: 0 | I27: 0 | J27: 0 | L27: 0 | M27: 0 | O27: 0
A28: 1845 | B28: Underground Conductors & Devices | G28: 0 | H28: 0 | I28: 0 | J28: 0 | L28: 0 | M28: 0 | O28: 0
A29: 1850 | B29: Line Transformers | G29: 0 | H29: 0 | I29: 0 | J29: 0 | L29: 0 | M29: 0 | O29: 0
A30: 1855 | B30: Services (Overhead & Underground) | G30: 0 | H30: 0 | I30: 0 | J30: 0 | L30: 0 | M30: 0 | O30: 0
A31: 1860 | B31: Meters | G31: 0 | H31: 0 | I31: 0 | J31: 0 | L31: 0 | M31: 0 | O31: 0
A32: 1860 | B32: Meters (Smart Meters) | G32: 0 | H32: 0 | I32: 0 | J32: 0 | L32: 0 | M32: 0 | O32: 0
A33: 1905 | B33: Land | G33: 0 | H33: 0 | I33: 0 | J33: 0 | L33: 0 | M33: 0 | O33: 0
A34: 1908 | B34: Buildings & Fixtures | G34: 0 | H34: 0 | I34: 0 | J34: 0 | L34: 0 | M34: 0 | O34: 0
A35: 1910 | B35: Leasehold Improvements | G35: 0 | H35: 0 | I35: 0 | J35: 0 | L35: 0 | M35: 0 | O35: 0
A36: 1915 | B36: Office Furniture & Equipment (10 years) | G36: 0 | H36: 0 | I36: 0 | J36: 0 | L36: 0 | M36: 0 | O36: 0
A37: 1915 | B37: Office Furniture & Equipment (5 years) | G37: 0 | H37: 0 | I37: 0 | J37: 0 | L37: 0 | M37: 0 | O37: 0
A38: 1920 | B38: Computer Equipment - Hardware | G38: 0 | H38: 0 | I38: 0 | J38: 0 | L38: 0 | M38: 0 | O38: 0
A39: 1920 | B39: Computer Equip.-Hardware(Post Mar. 22/04) | G39: 0 | H39: 0 | I39: 0 | J39: 0 | L39: 0 | M39: 0 | O39: 0
A40: 1920 | B40: Computer Equip.-Hardware(Post Mar. 19/07) | G40: 0 | H40: 0 | I40: 0 | J40: 0 | L40: 0 | M40: 0 | O40: 0
A41: 1930 | B41: Transportation Equipment | G41: 0 | H41: 0 | I41: 0 | J41: 0 | L41: 0 | M41: 0 | O41: 0
A42: 1935 | B42: Stores Equipment | G42: 0 | H42: 0 | I42: 0 | J42: 0 | L42: 0 | M42: 0 | O42: 0
A43: 1940 | B43: Tools, Shop & Garage Equipment | G43: 0 | H43: 0 | I43: 0 | J43: 0 | L43: 0 | M43: 0 | O43: 0
A44: 1945 | B44: Measurement & Testing Equipment | G44: 0 | H44: 0 | I44: 0 | J44: 0 | L44: 0 | M44: 0 | O44: 0
A45: 1950 | B45: Power Operated Equipment | G45: 0 | H45: 0 | I45: 0 | J45: 0 | L45: 0 | M45: 0 | O45: 0
A46: 1955 | B46: Communications Equipment | G46: 0 | H46: 0 | I46: 0 | J46: 0 | L46: 0 | M46: 0 | O46: 0
A47: 1955 | B47: Communication Equipment (Smart Meters) | G47: 0 | H47: 0 | I47: 0 | J47: 0 | L47: 0 | M47: 0 | O47: 0
A48: 1960 | B48: Miscellaneous Equipment | G48: 0 | H48: 0 | I48: 0 | J48: 0 | L48: 0 | M48: 0 | O48: 0
A49: 1970 | B49: Load Management Controls Customer Premises | G49: 0 | H49: 0 | I49: 0 | J49: 0 | L49: 0 | M49: 0 | O49: 0
A50: 1975 | B50: Load Management Controls Utility Premises | G50: 0 | H50: 0 | I50: 0 | J50: 0 | L50: 0 | M50: 0 | O50: 0
A51: 1980 | B51: System Supervisor Equipment | G51: 0 | H51: 0 | I51: 0 | J51: 0 | L51: 0 | M51: 0 | O51: 0
A52: 1985 | B52: Miscellaneous Fixed Assets | G52: 0 | H52: 0 | I52: 0 | J52: 0 | L52: 0 | M52: 0 | O52: 0
A53: 1990 | B53: Other Tangible Property | G53: 0 | H53: 0 | I53: 0 | J53: 0 | L53: 0 | M53: 0 | O53: 0
A54: 1995 | B54: Contributions & Grants | G54: 0 | H54: 0 | I54: 0 | J54: 0 | L54: 0 | M54: 0 | O54: 0
B55: Total | C55: =SUM(C17:C54) -> 0 | D55: =SUM(D17:D54) -> 0 | H55: =SUM(H17:H54) -> 0 | I55: 0 | J55: 0 | K55: 0 | L55: 0 | M55: 0 | N55: 0 | O55: 0
A57: Notes:
A59: 1 | B59: Board policy of the "half-year" rule - the applicant must ensure that additions in the year attract a half-year depreciation expense in the first year. Deviations from this standard practice must be supported in the application.
A60: 2 | B60: The applicant must provide an explanation of material variances in evidence.
A61: 3 | B61: The applicant should ensure that the years for new additions of assets are the asset useful lives determined by management in accordance with the Board's regulatory accounting policies. The capitalization and depreciation expense accounting changes should be implemented consistent with the Board’s regulatory accounting policies as set out for modified IFRS as contained in the Report of the Board, Transition to International Financial Reporting Standards, EB-2008-0408, the Kinectrics Report, and the Revised 2012 Accounting Procedures Handbook for Electricity Distributors (“APH”).
A62: 4 | B62: A recalculation should be performed to determine the average remaining life of opening balance of assets (i.e. excluding 2012 additions) under the change in policies under CGAAP. For example, Asset A had a useful life of 20 years under CGAAP without the change in policies. On January 1, 2012, the effective date of the changes in policies, Asset A was 3 years depreciated. As a result, Asset A would have a remaining service life of 17 years (20 years less 3 years) as of January 1, 2012. Due to making the change in policies under CGAAP, management re-assessed the asset useful lives and concluded that the revised useful life of Asset A is now 30 years. Therefore, the average remaining useful life of the opening balance of Asset A is determined to be 27 years (30 years less 3 years) under the revised CGAAP as of January 1, 2012.
A63: 5 | B63: NBV must exclude assets still on the books but which have been fully amortized or depreciated.
A64: 6 | B64: This column refers to the calculated full year depreciation but excludes the depreciation expense on assets fully depreciated during the year. This column is used for the purpose of calculating depreciation expense in the following year on the next worksheet.
A66: General: | B66: Applicants must provide a breakdown of depreciation and amortization expense in the above format for all relevant accounts. Asset Retirement Obligations (AROs), depreciation and accretion expense should be disclosed separately consistent with the Notes of historical Audited Financial Statements.

Sheet App.2-CC_NewCGAAP_DepExp_2013
J1: File Number: | K1: =EBNUMBER -> EB-2015-0083
J2: Exhibit:
J3: Tab:
J4: Schedule:
J5: Page:
J7: Date:
A9: Appendix 2-CC
A10: Depreciation and Amortization Expense
A11: Assumes the applicant made capitalization and depreciation expense accounting policy changes under CGAAP effective January 1, 2012 and will adopt IFRS for financial reporting purposes effective January 1, 2015.
C13: 2013 | D13: Revised CGAAP
A15: Account | B15: Description | C15: Additions | D15: Years (new additions only) | E15: Depreciation Rate on New Additions | F15: 2013 Depreciation Expense 1 | G15: 2013 Depreciation Expense per Apppendix 2-BA Fixed Assets, Column J (l) | H15: Variance 2 | I15: Depreciation Expense on 2013 Full Year Additions | J15: Less Depreciation Expense on Assets Fully Depreciated during the year (o) | K15: 2013 Full Year Depreciation 3
C16: (d) | D16: (f) | E16: (g) = 1 / (f) | F16: (h)=2012 Full Year Deprecation + ((d)*0.5)/(f) | H16: (m) = (h) - (l) | I16: (n)=((d))/(f) | K16: (p) = 2012 Full Year Depreciation + (n) - (o)
A17: 1611 | B17: Computer Software (Formally known as Account 1925) | E17: =IF(D17=0,0,1/D17) -> 0 | F17: =IF(D17=0,+'App.2-CB_NewCGAAP_DepExp_2012'!O17,+'App.2-CB_NewCGAAP_DepExp_2012'!O17+((C17*0.5)/D17)) -> 0 | H17: =IF(ISERROR(+F17-G17), 0, +F17-G17) -> 0 | I17: =IF(D17=0,0,+(C17)/D17) -> 0 | K17: =IF(ISERROR(+I17+'App.2-CB_NewCGAAP_DepExp_2012'!O17-J17), 0, +I17+'App.2-CB_NewCGAAP_DepExp_2012'!O17-J17) -> 0
A18: 1612 | B18: Land Rights (Formally known as Account 1906) | E18: 0 | F18: =IF(D18=0,+'App.2-CB_NewCGAAP_DepExp_2012'!O18,+'App.2-CB_NewCGAAP_DepExp_2012'!O18+((C18*0.5)/D18)) -> 0 | H18: 0 | I18: 0 | K18: =IF(ISERROR(+I18+'App.2-CB_NewCGAAP_DepExp_2012'!O18-J18), 0, +I18+'App.2-CB_NewCGAAP_DepExp_2012'!O18-J18) -> 0
A19: 1805 | B19: Land | E19: 0 | F19: =IF(D19=0,+'App.2-CB_NewCGAAP_DepExp_2012'!O19,+'App.2-CB_NewCGAAP_DepExp_2012'!O19+((C19*0.5)/D19)) -> 0 | H19: 0 | I19: 0 | K19: =IF(ISERROR(+I19+'App.2-CB_NewCGAAP_DepExp_2012'!O19-J19), 0, +I19+'App.2-CB_NewCGAAP_DepExp_2012'!O19-J19) -> 0
A20: 1808 | B20: Buildings | E20: 0 | F20: =IF(D20=0,+'App.2-CB_NewCGAAP_DepExp_2012'!O20,+'App.2-CB_NewCGAAP_DepExp_2012'!O20+((C20*0.5)/D20)) -> 0 | H20: 0 | I20: 0 | K20: =IF(ISERROR(+I20+'App.2-CB_NewCGAAP_DepExp_2012'!O20-J20), 0, +I20+'App.2-CB_NewCGAAP_DepExp_2012'!O20-J20) -> 0
A21: 1810 | B21: Leasehold Improvements | E21: 0 | F21: =IF(D21=0,+'App.2-CB_NewCGAAP_DepExp_2012'!O21,+'App.2-CB_NewCGAAP_DepExp_2012'!O21+((C21*0.5)/D21)) -> 0 | H21: 0 | I21: 0 | K21: =IF(ISERROR(+I21+'App.2-CB_NewCGAAP_DepExp_2012'!O21-J21), 0, +I21+'App.2-CB_NewCGAAP_DepExp_2012'!O21-J21) -> 0
A22: 1815 | B22: Transformer Station Equipment >50 kV | E22: 0 | F22: =IF(D22=0,+'App.2-CB_NewCGAAP_DepExp_2012'!O22,+'App.2-CB_NewCGAAP_DepExp_2012'!O22+((C22*0.5)/D22)) -> 0 | H22: 0 | I22: 0 | K22: =IF(ISERROR(+I22+'App.2-CB_NewCGAAP_DepExp_2012'!O22-J22), 0, +I22+'App.2-CB_NewCGAAP_DepExp_2012'!O22-J22) -> 0
A23: 1820 | B23: Distribution Station Equipment <50 kV | E23: 0 | F23: =IF(D23=0,+'App.2-CB_NewCGAAP_DepExp_2012'!O23,+'App.2-CB_NewCGAAP_DepExp_2012'!O23+((C23*0.5)/D23)) -> 0 | H23: 0 | I23: 0 | K23: =IF(ISERROR(+I23+'App.2-CB_NewCGAAP_DepExp_2012'!O23-J23), 0, +I23+'App.2-CB_NewCGAAP_DepExp_2012'!O23-J23) -> 0
A24: 1825 | B24: Storage Battery Equipment | E24: 0 | F24: =IF(D24=0,+'App.2-CB_NewCGAAP_DepExp_2012'!O24,+'App.2-CB_NewCGAAP_DepExp_2012'!O24+((C24*0.5)/D24)) -> 0 | H24: 0 | I24: 0 | K24: =IF(ISERROR(+I24+'App.2-CB_NewCGAAP_DepExp_2012'!O24-J24), 0, +I24+'App.2-CB_NewCGAAP_DepExp_2012'!O24-J24) -> 0
A25: 1830 | B25: Poles, Towers & Fixtures | E25: 0 | F25: =IF(D25=0,+'App.2-CB_NewCGAAP_DepExp_2012'!O25,+'App.2-CB_NewCGAAP_DepExp_2012'!O25+((C25*0.5)/D25)) -> 0 | H25: 0 | I25: 0 | K25: =IF(ISERROR(+I25+'App.2-CB_NewCGAAP_DepExp_2012'!O25-J25), 0, +I25+'App.2-CB_NewCGAAP_DepExp_2012'!O25-J25) -> 0
A26: 1835 | B26: Overhead Conductors & Devices | E26: 0 | F26: =IF(D26=0,+'App.2-CB_NewCGAAP_DepExp_2012'!O26,+'App.2-CB_NewCGAAP_DepExp_2012'!O26+((C26*0.5)/D26)) -> 0 | H26: 0 | I26: 0 | K26: =IF(ISERROR(+I26+'App.2-CB_NewCGAAP_DepExp_2012'!O26-J26), 0, +I26+'App.2-CB_NewCGAAP_DepExp_2012'!O26-J26) -> 0
A27: 1840 | B27: Underground Conduit | E27: 0 | F27: =IF(D27=0,+'App.2-CB_NewCGAAP_DepExp_2012'!O27,+'App.2-CB_NewCGAAP_DepExp_2012'!O27+((C27*0.5)/D27)) -> 0 | H27: 0 | I27: 0 | K27: =IF(ISERROR(+I27+'App.2-CB_NewCGAAP_DepExp_2012'!O27-J27), 0, +I27+'App.2-CB_NewCGAAP_DepExp_2012'!O27-J27) -> 0
A28: 1845 | B28: Underground Conductors & Devices | E28: 0 | F28: =IF(D28=0,+'App.2-CB_NewCGAAP_DepExp_2012'!O28,+'App.2-CB_NewCGAAP_DepExp_2012'!O28+((C28*0.5)/D28)) -> 0 | H28: 0 | I28: 0 | K28: =IF(ISERROR(+I28+'App.2-CB_NewCGAAP_DepExp_2012'!O28-J28), 0, +I28+'App.2-CB_NewCGAAP_DepExp_2012'!O28-J28) -> 0
A29: 1850 | B29: Line Transformers | E29: 0 | F29: =IF(D29=0,+'App.2-CB_NewCGAAP_DepExp_2012'!O29,+'App.2-CB_NewCGAAP_DepExp_2012'!O29+((C29*0.5)/D29)) -> 0 | H29: 0 | I29: 0 | K29: =IF(ISERROR(+I29+'App.2-CB_NewCGAAP_DepExp_2012'!O29-J29), 0, +I29+'App.2-CB_NewCGAAP_DepExp_2012'!O29-J29) -> 0
A30: 1855 | B30: Services (Overhead & Underground) | E30: 0 | F30: =IF(D30=0,+'App.2-CB_NewCGAAP_DepExp_2012'!O30,+'App.2-CB_NewCGAAP_DepExp_2012'!O30+((C30*0.5)/D30)) -> 0 | H30: 0 | I30: 0 | K30: =IF(ISERROR(+I30+'App.2-CB_NewCGAAP_DepExp_2012'!O30-J30), 0, +I30+'App.2-CB_NewCGAAP_DepExp_2012'!O30-J30) -> 0
A31: 1860 | B31: Meters | E31: 0 | F31: =IF(D31=0,+'App.2-CB_NewCGAAP_DepExp_2012'!O31,+'App.2-CB_NewCGAAP_DepExp_2012'!O31+((C31*0.5)/D31)) -> 0 | H31: 0 | I31: 0 | K31: =IF(ISERROR(+I31+'App.2-CB_NewCGAAP_DepExp_2012'!O31-J31), 0, +I31+'App.2-CB_NewCGAAP_DepExp_2012'!O31-J31) -> 0
A32: 1860 | B32: Meters (Smart Meters) | E32: 0 | F32: =IF(D32=0,+'App.2-CB_NewCGAAP_DepExp_2012'!O32,+'App.2-CB_NewCGAAP_DepExp_2012'!O32+((C32*0.5)/D32)) -> 0 | H32: 0 | I32: 0 | K32: =IF(ISERROR(+I32+'App.2-CB_NewCGAAP_DepExp_2012'!O32-J32), 0, +I32+'App.2-CB_NewCGAAP_DepExp_2012'!O32-J32) -> 0
A33: 1905 | B33: Land | E33: 0 | F33: =IF(D33=0,+'App.2-CB_NewCGAAP_DepExp_2012'!O33,+'App.2-CB_NewCGAAP_DepExp_2012'!O33+((C33*0.5)/D33)) -> 0 | H33: 0 | I33: 0 | K33: =IF(ISERROR(+I33+'App.2-CB_NewCGAAP_DepExp_2012'!O33-J33), 0, +I33+'App.2-CB_NewCGAAP_DepExp_2012'!O33-J33) -> 0
A34: 1908 | B34: Buildings & Fixtures | E34: 0 | F34: =IF(D34=0,+'App.2-CB_NewCGAAP_DepExp_2012'!O34,+'App.2-CB_NewCGAAP_DepExp_2012'!O34+((C34*0.5)/D34)) -> 0 | H34: 0 | I34: 0 | K34: =IF(ISERROR(+I34+'App.2-CB_NewCGAAP_DepExp_2012'!O34-J34), 0, +I34+'App.2-CB_NewCGAAP_DepExp_2012'!O34-J34) -> 0
A35: 1910 | B35: Leasehold Improvements | E35: 0 | F35: =IF(D35=0,+'App.2-CB_NewCGAAP_DepExp_2012'!O35,+'App.2-CB_NewCGAAP_DepExp_2012'!O35+((C35*0.5)/D35)) -> 0 | H35: 0 | I35: 0 | K35: =IF(ISERROR(+I35+'App.2-CB_NewCGAAP_DepExp_2012'!O35-J35), 0, +I35+'App.2-CB_NewCGAAP_DepExp_2012'!O35-J35) -> 0
A36: 1915 | B36: Office Furniture & Equipment (10 years) | E36: 0 | F36: =IF(D36=0,+'App.2-CB_NewCGAAP_DepExp_2012'!O36,+'App.2-CB_NewCGAAP_DepExp_2012'!O36+((C36*0.5)/D36)) -> 0 | H36: 0 | I36: 0 | K36: =IF(ISERROR(+I36+'App.2-CB_NewCGAAP_DepExp_2012'!O36-J36), 0, +I36+'App.2-CB_NewCGAAP_DepExp_2012'!O36-J36) -> 0
A37: 1915 | B37: Office Furniture & Equipment (5 years) | E37: 0 | F37: =IF(D37=0,+'App.2-CB_NewCGAAP_DepExp_2012'!O37,+'App.2-CB_NewCGAAP_DepExp_2012'!O37+((C37*0.5)/D37)) -> 0 | H37: 0 | I37: 0 | K37: =IF(ISERROR(+I37+'App.2-CB_NewCGAAP_DepExp_2012'!O37-J37), 0, +I37+'App.2-CB_NewCGAAP_DepExp_2012'!O37-J37) -> 0
A38: 1920 | B38: Computer Equipment - Hardware | E38: 0 | F38: =IF(D38=0,+'App.2-CB_NewCGAAP_DepExp_2012'!O38,+'App.2-CB_NewCGAAP_DepExp_2012'!O38+((C38*0.5)/D38)) -> 0 | H38: 0 | I38: 0 | K38: =IF(ISERROR(+I38+'App.2-CB_NewCGAAP_DepExp_2012'!O38-J38), 0, +I38+'App.2-CB_NewCGAAP_DepExp_2012'!O38-J38) -> 0
A39: 1920 | B39: Computer Equip.-Hardware(Post Mar. 22/04) | E39: 0 | F39: =IF(D39=0,+'App.2-CB_NewCGAAP_DepExp_2012'!O39,+'App.2-CB_NewCGAAP_DepExp_2012'!O39+((C39*0.5)/D39)) -> 0 | H39: 0 | I39: 0 | K39: =IF(ISERROR(+I39+'App.2-CB_NewCGAAP_DepExp_2012'!O39-J39), 0, +I39+'App.2-CB_NewCGAAP_DepExp_2012'!O39-J39) -> 0
A40: 1920 | B40: Computer Equip.-Hardware(Post Mar. 19/07) | E40: 0 | F40: =IF(D40=0,+'App.2-CB_NewCGAAP_DepExp_2012'!O40,+'App.2-CB_NewCGAAP_DepExp_2012'!O40+((C40*0.5)/D40)) -> 0 | H40: 0 | I40: 0 | K40: =IF(ISERROR(+I40+'App.2-CB_NewCGAAP_DepExp_2012'!O40-J40), 0, +I40+'App.2-CB_NewCGAAP_DepExp_2012'!O40-J40) -> 0
A41: 1930 | B41: Transportation Equipment | E41: 0 | F41: =IF(D41=0,+'App.2-CB_NewCGAAP_DepExp_2012'!O41,+'App.2-CB_NewCGAAP_DepExp_2012'!O41+((C41*0.5)/D41)) -> 0 | H41: 0 | I41: 0 | K41: =IF(ISERROR(+I41+'App.2-CB_NewCGAAP_DepExp_2012'!O41-J41), 0, +I41+'App.2-CB_NewCGAAP_DepExp_2012'!O41-J41) -> 0
A42: 1935 | B42: Stores Equipment | E42: 0 | F42: =IF(D42=0,+'App.2-CB_NewCGAAP_DepExp_2012'!O42,+'App.2-CB_NewCGAAP_DepExp_2012'!O42+((C42*0.5)/D42)) -> 0 | H42: 0 | I42: 0 | K42: =IF(ISERROR(+I42+'App.2-CB_NewCGAAP_DepExp_2012'!O42-J42), 0, +I42+'App.2-CB_NewCGAAP_DepExp_2012'!O42-J42) -> 0
A43: 1940 | B43: Tools, Shop & Garage Equipment | E43: 0 | F43: =IF(D43=0,+'App.2-CB_NewCGAAP_DepExp_2012'!O43,+'App.2-CB_NewCGAAP_DepExp_2012'!O43+((C43*0.5)/D43)) -> 0 | H43: 0 | I43: 0 | K43: =IF(ISERROR(+I43+'App.2-CB_NewCGAAP_DepExp_2012'!O43-J43), 0, +I43+'App.2-CB_NewCGAAP_DepExp_2012'!O43-J43) -> 0
A44: 1945 | B44: Measurement & Testing Equipment | E44: 0 | F44: =IF(D44=0,+'App.2-CB_NewCGAAP_DepExp_2012'!O44,+'App.2-CB_NewCGAAP_DepExp_2012'!O44+((C44*0.5)/D44)) -> 0 | H44: 0 | I44: 0 | K44: =IF(ISERROR(+I44+'App.2-CB_NewCGAAP_DepExp_2012'!O44-J44), 0, +I44+'App.2-CB_NewCGAAP_DepExp_2012'!O44-J44) -> 0
A45: 1950 | B45: Power Operated Equipment | E45: 0 | F45: =IF(D45=0,+'App.2-CB_NewCGAAP_DepExp_2012'!O45,+'App.2-CB_NewCGAAP_DepExp_2012'!O45+((C45*0.5)/D45)) -> 0 | H45: 0 | I45: 0 | K45: =IF(ISERROR(+I45+'App.2-CB_NewCGAAP_DepExp_2012'!O45-J45), 0, +I45+'App.2-CB_NewCGAAP_DepExp_2012'!O45-J45) -> 0
A46: 1955 | B46: Communications Equipment | E46: 0 | F46: =IF(D46=0,+'App.2-CB_NewCGAAP_DepExp_2012'!O46,+'App.2-CB_NewCGAAP_DepExp_2012'!O46+((C46*0.5)/D46)) -> 0 | H46: 0 | I46: 0 | K46: =IF(ISERROR(+I46+'App.2-CB_NewCGAAP_DepExp_2012'!O46-J46), 0, +I46+'App.2-CB_NewCGAAP_DepExp_2012'!O46-J46) -> 0
A47: 1955 | B47: Communication Equipment (Smart Meters) | E47: 0 | F47: =IF(D47=0,+'App.2-CB_NewCGAAP_DepExp_2012'!O47,+'App.2-CB_NewCGAAP_DepExp_2012'!O47+((C47*0.5)/D47)) -> 0 | H47: 0 | I47: 0 | K47: =IF(ISERROR(+I47+'App.2-CB_NewCGAAP_DepExp_2012'!O47-J47), 0, +I47+'App.2-CB_NewCGAAP_DepExp_2012'!O47-J47) -> 0
A48: 1960 | B48: Miscellaneous Equipment | E48: 0 | F48: =IF(D48=0,+'App.2-CB_NewCGAAP_DepExp_2012'!O48,+'App.2-CB_NewCGAAP_DepExp_2012'!O48+((C48*0.5)/D48)) -> 0 | H48: 0 | I48: 0 | K48: =IF(ISERROR(+I48+'App.2-CB_NewCGAAP_DepExp_2012'!O48-J48), 0, +I48+'App.2-CB_NewCGAAP_DepExp_2012'!O48-J48) -> 0
A49: 1970 | B49: Load Management Controls Customer Premises | E49: 0 | F49: =IF(D49=0,+'App.2-CB_NewCGAAP_DepExp_2012'!O49,+'App.2-CB_NewCGAAP_DepExp_2012'!O49+((C49*0.5)/D49)) -> 0 | H49: 0 | I49: 0 | K49: =IF(ISERROR(+I49+'App.2-CB_NewCGAAP_DepExp_2012'!O49-J49), 0, +I49+'App.2-CB_NewCGAAP_DepExp_2012'!O49-J49) -> 0
A50: 1975 | B50: Load Management Controls Utility Premises | E50: 0 | F50: =IF(D50=0,+'App.2-CB_NewCGAAP_DepExp_2012'!O50,+'App.2-CB_NewCGAAP_DepExp_2012'!O50+((C50*0.5)/D50)) -> 0 | H50: 0 | I50: 0 | K50: =IF(ISERROR(+I50+'App.2-CB_NewCGAAP_DepExp_2012'!O50-J50), 0, +I50+'App.2-CB_NewCGAAP_DepExp_2012'!O50-J50) -> 0
A51: 1980 | B51: System Supervisor Equipment | E51: 0 | F51: =IF(D51=0,+'App.2-CB_NewCGAAP_DepExp_2012'!O51,+'App.2-CB_NewCGAAP_DepExp_2012'!O51+((C51*0.5)/D51)) -> 0 | H51: 0 | I51: 0 | K51: =IF(ISERROR(+I51+'App.2-CB_NewCGAAP_DepExp_2012'!O51-J51), 0, +I51+'App.2-CB_NewCGAAP_DepExp_2012'!O51-J51) -> 0
A52: 1985 | B52: Miscellaneous Fixed Assets | E52: 0 | F52: =IF(D52=0,+'App.2-CB_NewCGAAP_DepExp_2012'!O52,+'App.2-CB_NewCGAAP_DepExp_2012'!O52+((C52*0.5)/D52)) -> 0 | H52: 0 | I52: 0 | K52: =IF(ISERROR(+I52+'App.2-CB_NewCGAAP_DepExp_2012'!O52-J52), 0, +I52+'App.2-CB_NewCGAAP_DepExp_2012'!O52-J52) -> 0
A53: 1990 | B53: Other Tangible Property | E53: 0 | F53: =IF(D53=0,+'App.2-CB_NewCGAAP_DepExp_2012'!O53,+'App.2-CB_NewCGAAP_DepExp_2012'!O53+((C53*0.5)/D53)) -> 0 | H53: 0 | I53: 0 | K53: =IF(ISERROR(+I53+'App.2-CB_NewCGAAP_DepExp_2012'!O53-J53), 0, +I53+'App.2-CB_NewCGAAP_DepExp_2012'!O53-J53) -> 0
A54: 1995 | B54: Contributions & Grants | E54: 0 | F54: =IF(D54=0,+'App.2-CB_NewCGAAP_DepExp_2012'!O54,+'App.2-CB_NewCGAAP_DepExp_2012'!O54+((C54*0.5)/D54)) -> 0 | H54: 0 | I54: 0 | K54: =IF(ISERROR(+I54+'App.2-CB_NewCGAAP_DepExp_2012'!O54-J54), 0, +I54+'App.2-CB_NewCGAAP_DepExp_2012'!O54-J54) -> 0
B55: Total | C55: =SUM(C17:C54) -> 0 | F55: =SUM(F17:F54) -> 0 | G55: 0 | H55: 0 | I55: 0 | J55: 0 | K55: 0
A57: Notes:
A58: 1 | B58: Board policy of the "half-year" rule - the applicant must ensure that additions in the year attract a half-year depreciation expense in the first year. Deviations from this standard practice must be supported in the application.
A59: 2 | B59: The applicant must provide an explanation of material variances in evidence.
A60: 3 | B60: This column refers to the calculated full year depreciation but excludes the depreciation expense on assets fully depreciated during the year. This column is used for the purpose of calculating depreciation expense in the following year on the next worksheet.
A62: General: | B62: Applicants must provide a breakdown of depreciation and amortization expense in the above format for all relevant accounts. Asset Retirement Obligations (AROs), depreciation and accretion expense should be disclosed separately consistent with the Notes of historical Audited Financial Statements.

Sheet App.2-CD_MIFRS_DepExp_2014
J1: File Number: | K1: =EBNUMBER -> EB-2015-0083
J2: Exhibit:
J3: Tab:
J4: Schedule:
J5: Page:
J7: Date:
A9: Appendix 2-CD
A10: Depreciation and Amortization Expense
A11: Assumes the applicant made capitalization and depreciation expense accounting policy changes under CGAAP effective January 1, 2012 and will adopt IFRS for financial reporting purposes effective January 1, 2015.
E13: 2014 | F13: MIFRS
A15: Account | B15: Description | C15: Additions | D15: Years (new additions only) | E15: Depreciation Rate on New Additions | F15: 2014 Depreciation Expense 1 | G15: 2014 Depreciation Expense per Apppendix 2-BA Fixed Assets, Column J (l) | H15: Variance 2 | I15: Depreciation Expense on 2014 Full Year Additions | J15: Less Depreciation Expense on Assets Fully Depreciated during the year (o) | K15: 2014 Full Year Depreciation 3
C16: (d) | D16: (f) | E16: (g) = 1 / (f) | F16: (h)=2013 Full Year Deprecation + ((d)*0.5)/(f) | H16: (m) = (h) - (l) | I16: (n)=((d))/(f) | K16: (p) = 2013 Full Year Depreciation + (n) - (o)
A17: 1611 | B17: Computer Software (Formally known as Account 1925) | E17: =IF(D17=0,0,1/D17) -> 0 | F17: =IF(D17=0,+'App.2-CC_NewCGAAP_DepExp_2013'!K17,+'App.2-CC_NewCGAAP_DepExp_2013'!K17+((C17*0.5)/D17)) -> 0 | H17: =IF(ISERROR(+F17-G17), 0, +F17-G17) -> 0 | I17: =IF(D17=0,0,+(C17)/D17) -> 0 | K17: =IF(ISERROR(+I17+'App.2-CC_NewCGAAP_DepExp_2013'!K17-J17), 0, +I17+'App.2-CC_NewCGAAP_DepExp_2013'!K17-J17) -> 0
A18: 1612 | B18: Land Rights (Formally known as Account 1906) | E18: 0 | F18: =IF(D18=0,+'App.2-CC_NewCGAAP_DepExp_2013'!K18,+'App.2-CC_NewCGAAP_DepExp_2013'!K18+((C18*0.5)/D18)) -> 0 | H18: 0 | I18: 0 | K18: =IF(ISERROR(+I18+'App.2-CC_NewCGAAP_DepExp_2013'!K18-J18), 0, +I18+'App.2-CC_NewCGAAP_DepExp_2013'!K18-J18) -> 0
A19: 1805 | B19: Land | E19: 0 | F19: =IF(D19=0,+'App.2-CC_NewCGAAP_DepExp_2013'!K19,+'App.2-CC_NewCGAAP_DepExp_2013'!K19+((C19*0.5)/D19)) -> 0 | H19: 0 | I19: 0 | K19: =IF(ISERROR(+I19+'App.2-CC_NewCGAAP_DepExp_2013'!K19-J19), 0, +I19+'App.2-CC_NewCGAAP_DepExp_2013'!K19-J19) -> 0
A20: 1808 | B20: Buildings | E20: 0 | F20: =IF(D20=0,+'App.2-CC_NewCGAAP_DepExp_2013'!K20,+'App.2-CC_NewCGAAP_DepExp_2013'!K20+((C20*0.5)/D20)) -> 0 | H20: 0 | I20: 0 | K20: =IF(ISERROR(+I20+'App.2-CC_NewCGAAP_DepExp_2013'!K20-J20), 0, +I20+'App.2-CC_NewCGAAP_DepExp_2013'!K20-J20) -> 0
A21: 1810 | B21: Leasehold Improvements | E21: 0 | F21: =IF(D21=0,+'App.2-CC_NewCGAAP_DepExp_2013'!K21,+'App.2-CC_NewCGAAP_DepExp_2013'!K21+((C21*0.5)/D21)) -> 0 | H21: 0 | I21: 0 | K21: =IF(ISERROR(+I21+'App.2-CC_NewCGAAP_DepExp_2013'!K21-J21), 0, +I21+'App.2-CC_NewCGAAP_DepExp_2013'!K21-J21) -> 0
A22: 1815 | B22: Transformer Station Equipment >50 kV | E22: 0 | F22: =IF(D22=0,+'App.2-CC_NewCGAAP_DepExp_2013'!K22,+'App.2-CC_NewCGAAP_DepExp_2013'!K22+((C22*0.5)/D22)) -> 0 | H22: 0 | I22: 0 | K22: =IF(ISERROR(+I22+'App.2-CC_NewCGAAP_DepExp_2013'!K22-J22), 0, +I22+'App.2-CC_NewCGAAP_DepExp_2013'!K22-J22) -> 0
A23: 1820 | B23: Distribution Station Equipment <50 kV | E23: 0 | F23: =IF(D23=0,+'App.2-CC_NewCGAAP_DepExp_2013'!K23,+'App.2-CC_NewCGAAP_DepExp_2013'!K23+((C23*0.5)/D23)) -> 0 | H23: 0 | I23: 0 | K23: =IF(ISERROR(+I23+'App.2-CC_NewCGAAP_DepExp_2013'!K23-J23), 0, +I23+'App.2-CC_NewCGAAP_DepExp_2013'!K23-J23) -> 0
A24: 1825 | B24: Storage Battery Equipment | E24: 0 | F24: =IF(D24=0,+'App.2-CC_NewCGAAP_DepExp_2013'!K24,+'App.2-CC_NewCGAAP_DepExp_2013'!K24+((C24*0.5)/D24)) -> 0 | H24: 0 | I24: 0 | K24: =IF(ISERROR(+I24+'App.2-CC_NewCGAAP_DepExp_2013'!K24-J24), 0, +I24+'App.2-CC_NewCGAAP_DepExp_2013'!K24-J24) -> 0
A25: 1830 | B25: Poles, Towers & Fixtures | E25: 0 | F25: =IF(D25=0,+'App.2-CC_NewCGAAP_DepExp_2013'!K25,+'App.2-CC_NewCGAAP_DepExp_2013'!K25+((C25*0.5)/D25)) -> 0 | H25: 0 | I25: 0 | K25: =IF(ISERROR(+I25+'App.2-CC_NewCGAAP_DepExp_2013'!K25-J25), 0, +I25+'App.2-CC_NewCGAAP_DepExp_2013'!K25-J25) -> 0
A26: 1835 | B26: Overhead Conductors & Devices | E26: 0 | F26: =IF(D26=0,+'App.2-CC_NewCGAAP_DepExp_2013'!K26,+'App.2-CC_NewCGAAP_DepExp_2013'!K26+((C26*0.5)/D26)) -> 0 | H26: 0 | I26: 0 | K26: =IF(ISERROR(+I26+'App.2-CC_NewCGAAP_DepExp_2013'!K26-J26), 0, +I26+'App.2-CC_NewCGAAP_DepExp_2013'!K26-J26) -> 0
A27: 1840 | B27: Underground Conduit | E27: 0 | F27: =IF(D27=0,+'App.2-CC_NewCGAAP_DepExp_2013'!K27,+'App.2-CC_NewCGAAP_DepExp_2013'!K27+((C27*0.5)/D27)) -> 0 | H27: 0 | I27: 0 | K27: =IF(ISERROR(+I27+'App.2-CC_NewCGAAP_DepExp_2013'!K27-J27), 0, +I27+'App.2-CC_NewCGAAP_DepExp_2013'!K27-J27) -> 0
A28: 1845 | B28: Underground Conductors & Devices | E28: 0 | F28: =IF(D28=0,+'App.2-CC_NewCGAAP_DepExp_2013'!K28,+'App.2-CC_NewCGAAP_DepExp_2013'!K28+((C28*0.5)/D28)) -> 0 | H28: 0 | I28: 0 | K28: =IF(ISERROR(+I28+'App.2-CC_NewCGAAP_DepExp_2013'!K28-J28), 0, +I28+'App.2-CC_NewCGAAP_DepExp_2013'!K28-J28) -> 0
A29: 1850 | B29: Line Transformers | E29: 0 | F29: =IF(D29=0,+'App.2-CC_NewCGAAP_DepExp_2013'!K29,+'App.2-CC_NewCGAAP_DepExp_2013'!K29+((C29*0.5)/D29)) -> 0 | H29: 0 | I29: 0 | K29: =IF(ISERROR(+I29+'App.2-CC_NewCGAAP_DepExp_2013'!K29-J29), 0, +I29+'App.2-CC_NewCGAAP_DepExp_2013'!K29-J29) -> 0
A30: 1855 | B30: Services (Overhead & Underground) | E30: 0 | F30: =IF(D30=0,+'App.2-CC_NewCGAAP_DepExp_2013'!K30,+'App.2-CC_NewCGAAP_DepExp_2013'!K30+((C30*0.5)/D30)) -> 0 | H30: 0 | I30: 0 | K30: =IF(ISERROR(+I30+'App.2-CC_NewCGAAP_DepExp_2013'!K30-J30), 0, +I30+'App.2-CC_NewCGAAP_DepExp_2013'!K30-J30) -> 0
A31: 1860 | B31: Meters | E31: 0 | F31: =IF(D31=0,+'App.2-CC_NewCGAAP_DepExp_2013'!K31,+'App.2-CC_NewCGAAP_DepExp_2013'!K31+((C31*0.5)/D31)) -> 0 | H31: 0 | I31: 0 | K31: =IF(ISERROR(+I31+'App.2-CC_NewCGAAP_DepExp_2013'!K31-J31), 0, +I31+'App.2-CC_NewCGAAP_DepExp_2013'!K31-J31) -> 0
A32: 1860 | B32: Meters (Smart Meters) | E32: 0 | F32: =IF(D32=0,+'App.2-CC_NewCGAAP_DepExp_2013'!K32,+'App.2-CC_NewCGAAP_DepExp_2013'!K32+((C32*0.5)/D32)) -> 0 | H32: 0 | I32: 0 | K32: =IF(ISERROR(+I32+'App.2-CC_NewCGAAP_DepExp_2013'!K32-J32), 0, +I32+'App.2-CC_NewCGAAP_DepExp_2013'!K32-J32) -> 0
A33: 1905 | B33: Land | E33: 0 | F33: =IF(D33=0,+'App.2-CC_NewCGAAP_DepExp_2013'!K33,+'App.2-CC_NewCGAAP_DepExp_2013'!K33+((C33*0.5)/D33)) -> 0 | H33: 0 | I33: 0 | K33: =IF(ISERROR(+I33+'App.2-CC_NewCGAAP_DepExp_2013'!K33-J33), 0, +I33+'App.2-CC_NewCGAAP_DepExp_2013'!K33-J33) -> 0
A34: 1908 | B34: Buildings & Fixtures | E34: 0 | F34: =IF(D34=0,+'App.2-CC_NewCGAAP_DepExp_2013'!K34,+'App.2-CC_NewCGAAP_DepExp_2013'!K34+((C34*0.5)/D34)) -> 0 | H34: 0 | I34: 0 | K34: =IF(ISERROR(+I34+'App.2-CC_NewCGAAP_DepExp_2013'!K34-J34), 0, +I34+'App.2-CC_NewCGAAP_DepExp_2013'!K34-J34) -> 0
A35: 1910 | B35: Leasehold Improvements | E35: 0 | F35: =IF(D35=0,+'App.2-CC_NewCGAAP_DepExp_2013'!K35,+'App.2-CC_NewCGAAP_DepExp_2013'!K35+((C35*0.5)/D35)) -> 0 | H35: 0 | I35: 0 | K35: =IF(ISERROR(+I35+'App.2-CC_NewCGAAP_DepExp_2013'!K35-J35), 0, +I35+'App.2-CC_NewCGAAP_DepExp_2013'!K35-J35) -> 0
A36: 1915 | B36: Office Furniture & Equipment (10 years) | E36: 0 | F36: =IF(D36=0,+'App.2-CC_NewCGAAP_DepExp_2013'!K36,+'App.2-CC_NewCGAAP_DepExp_2013'!K36+((C36*0.5)/D36)) -> 0 | H36: 0 | I36: 0 | K36: =IF(ISERROR(+I36+'App.2-CC_NewCGAAP_DepExp_2013'!K36-J36), 0, +I36+'App.2-CC_NewCGAAP_DepExp_2013'!K36-J36) -> 0
A37: 1915 | B37: Office Furniture & Equipment (5 years) | E37: 0 | F37: =IF(D37=0,+'App.2-CC_NewCGAAP_DepExp_2013'!K37,+'App.2-CC_NewCGAAP_DepExp_2013'!K37+((C37*0.5)/D37)) -> 0 | H37: 0 | I37: 0 | K37: =IF(ISERROR(+I37+'App.2-CC_NewCGAAP_DepExp_2013'!K37-J37), 0, +I37+'App.2-CC_NewCGAAP_DepExp_2013'!K37-J37) -> 0
A38: 1920 | B38: Computer Equipment - Hardware | E38: 0 | F38: =IF(D38=0,+'App.2-CC_NewCGAAP_DepExp_2013'!K38,+'App.2-CC_NewCGAAP_DepExp_2013'!K38+((C38*0.5)/D38)) -> 0 | H38: 0 | I38: 0 | K38: =IF(ISERROR(+I38+'App.2-CC_NewCGAAP_DepExp_2013'!K38-J38), 0, +I38+'App.2-CC_NewCGAAP_DepExp_2013'!K38-J38) -> 0
A39: 1920 | B39: Computer Equip.-Hardware(Post Mar. 22/04) | E39: 0 | F39: =IF(D39=0,+'App.2-CC_NewCGAAP_DepExp_2013'!K39,+'App.2-CC_NewCGAAP_DepExp_2013'!K39+((C39*0.5)/D39)) -> 0 | H39: 0 | I39: 0 | K39: =IF(ISERROR(+I39+'App.2-CC_NewCGAAP_DepExp_2013'!K39-J39), 0, +I39+'App.2-CC_NewCGAAP_DepExp_2013'!K39-J39) -> 0
A40: 1920 | B40: Computer Equip.-Hardware(Post Mar. 19/07) | E40: 0 | F40: =IF(D40=0,+'App.2-CC_NewCGAAP_DepExp_2013'!K40,+'App.2-CC_NewCGAAP_DepExp_2013'!K40+((C40*0.5)/D40)) -> 0 | H40: 0 | I40: 0 | K40: =IF(ISERROR(+I40+'App.2-CC_NewCGAAP_DepExp_2013'!K40-J40), 0, +I40+'App.2-CC_NewCGAAP_DepExp_2013'!K40-J40) -> 0
A41: 1930 | B41: Transportation Equipment | E41: 0 | F41: =IF(D41=0,+'App.2-CC_NewCGAAP_DepExp_2013'!K41,+'App.2-CC_NewCGAAP_DepExp_2013'!K41+((C41*0.5)/D41)) -> 0 | H41: 0 | I41: 0 | K41: =IF(ISERROR(+I41+'App.2-CC_NewCGAAP_DepExp_2013'!K41-J41), 0, +I41+'App.2-CC_NewCGAAP_DepExp_2013'!K41-J41) -> 0
A42: 1935 | B42: Stores Equipment | E42: 0 | F42: =IF(D42=0,+'App.2-CC_NewCGAAP_DepExp_2013'!K42,+'App.2-CC_NewCGAAP_DepExp_2013'!K42+((C42*0.5)/D42)) -> 0 | H42: 0 | I42: 0 | K42: =IF(ISERROR(+I42+'App.2-CC_NewCGAAP_DepExp_2013'!K42-J42), 0, +I42+'App.2-CC_NewCGAAP_DepExp_2013'!K42-J42) -> 0
A43: 1940 | B43: Tools, Shop & Garage Equipment | E43: 0 | F43: =IF(D43=0,+'App.2-CC_NewCGAAP_DepExp_2013'!K43,+'App.2-CC_NewCGAAP_DepExp_2013'!K43+((C43*0.5)/D43)) -> 0 | H43: 0 | I43: 0 | K43: =IF(ISERROR(+I43+'App.2-CC_NewCGAAP_DepExp_2013'!K43-J43), 0, +I43+'App.2-CC_NewCGAAP_DepExp_2013'!K43-J43) -> 0
A44: 1945 | B44: Measurement & Testing Equipment | E44: 0 | F44: =IF(D44=0,+'App.2-CC_NewCGAAP_DepExp_2013'!K44,+'App.2-CC_NewCGAAP_DepExp_2013'!K44+((C44*0.5)/D44)) -> 0 | H44: 0 | I44: 0 | K44: =IF(ISERROR(+I44+'App.2-CC_NewCGAAP_DepExp_2013'!K44-J44), 0, +I44+'App.2-CC_NewCGAAP_DepExp_2013'!K44-J44) -> 0
A45: 1950 | B45: Power Operated Equipment | E45: 0 | F45: =IF(D45=0,+'App.2-CC_NewCGAAP_DepExp_2013'!K45,+'App.2-CC_NewCGAAP_DepExp_2013'!K45+((C45*0.5)/D45)) -> 0 | H45: 0 | I45: 0 | K45: =IF(ISERROR(+I45+'App.2-CC_NewCGAAP_DepExp_2013'!K45-J45), 0, +I45+'App.2-CC_NewCGAAP_DepExp_2013'!K45-J45) -> 0
A46: 1955 | B46: Communications Equipment | E46: 0 | F46: =IF(D46=0,+'App.2-CC_NewCGAAP_DepExp_2013'!K46,+'App.2-CC_NewCGAAP_DepExp_2013'!K46+((C46*0.5)/D46)) -> 0 | H46: 0 | I46: 0 | K46: =IF(ISERROR(+I46+'App.2-CC_NewCGAAP_DepExp_2013'!K46-J46), 0, +I46+'App.2-CC_NewCGAAP_DepExp_2013'!K46-J46) -> 0
A47: 1955 | B47: Communication Equipment (Smart Meters) | E47: 0 | F47: =IF(D47=0,+'App.2-CC_NewCGAAP_DepExp_2013'!K47,+'App.2-CC_NewCGAAP_DepExp_2013'!K47+((C47*0.5)/D47)) -> 0 | H47: 0 | I47: 0 | K47: =IF(ISERROR(+I47+'App.2-CC_NewCGAAP_DepExp_2013'!K47-J47), 0, +I47+'App.2-CC_NewCGAAP_DepExp_2013'!K47-J47) -> 0
A48: 1960 | B48: Miscellaneous Equipment | E48: 0 | F48: =IF(D48=0,+'App.2-CC_NewCGAAP_DepExp_2013'!K48,+'App.2-CC_NewCGAAP_DepExp_2013'!K48+((C48*0.5)/D48)) -> 0 | H48: 0 | I48: 0 | K48: =IF(ISERROR(+I48+'App.2-CC_NewCGAAP_DepExp_2013'!K48-J48), 0, +I48+'App.2-CC_NewCGAAP_DepExp_2013'!K48-J48) -> 0
A49: 1970 | B49: Load Management Controls Customer Premises | E49: 0 | F49: =IF(D49=0,+'App.2-CC_NewCGAAP_DepExp_2013'!K49,+'App.2-CC_NewCGAAP_DepExp_2013'!K49+((C49*0.5)/D49)) -> 0 | H49: 0 | I49: 0 | K49: =IF(ISERROR(+I49+'App.2-CC_NewCGAAP_DepExp_2013'!K49-J49), 0, +I49+'App.2-CC_NewCGAAP_DepExp_2013'!K49-J49) -> 0
A50: 1975 | B50: Load Management Controls Utility Premises | E50: 0 | F50: =IF(D50=0,+'App.2-CC_NewCGAAP_DepExp_2013'!K50,+'App.2-CC_NewCGAAP_DepExp_2013'!K50+((C50*0.5)/D50)) -> 0 | H50: 0 | I50: 0 | K50: =IF(ISERROR(+I50+'App.2-CC_NewCGAAP_DepExp_2013'!K50-J50), 0, +I50+'App.2-CC_NewCGAAP_DepExp_2013'!K50-J50) -> 0
A51: 1980 | B51: System Supervisor Equipment | E51: 0 | F51: =IF(D51=0,+'App.2-CC_NewCGAAP_DepExp_2013'!K51,+'App.2-CC_NewCGAAP_DepExp_2013'!K51+((C51*0.5)/D51)) -> 0 | H51: 0 | I51: 0 | K51: =IF(ISERROR(+I51+'App.2-CC_NewCGAAP_DepExp_2013'!K51-J51), 0, +I51+'App.2-CC_NewCGAAP_DepExp_2013'!K51-J51) -> 0
A52: 1985 | B52: Miscellaneous Fixed Assets | E52: 0 | F52: =IF(D52=0,+'App.2-CC_NewCGAAP_DepExp_2013'!K52,+'App.2-CC_NewCGAAP_DepExp_2013'!K52+((C52*0.5)/D52)) -> 0 | H52: 0 | I52: 0 | K52: =IF(ISERROR(+I52+'App.2-CC_NewCGAAP_DepExp_2013'!K52-J52), 0, +I52+'App.2-CC_NewCGAAP_DepExp_2013'!K52-J52) -> 0
A53: 1990 | B53: Other Tangible Property | E53: 0 | F53: =IF(D53=0,+'App.2-CC_NewCGAAP_DepExp_2013'!K53,+'App.2-CC_NewCGAAP_DepExp_2013'!K53+((C53*0.5)/D53)) -> 0 | H53: 0 | I53: 0 | K53: =IF(ISERROR(+I53+'App.2-CC_NewCGAAP_DepExp_2013'!K53-J53), 0, +I53+'App.2-CC_NewCGAAP_DepExp_2013'!K53-J53) -> 0
E54: 0 | F54: =IF(D54=0,+'App.2-CC_NewCGAAP_DepExp_2013'!K54,+'App.2-CC_NewCGAAP_DepExp_2013'!K54+((C54*0.5)/D54)) -> 0 | H54: 0 | I54: 0 | K54: =IF(ISERROR(+I54+'App.2-CC_NewCGAAP_DepExp_2013'!K54-J54), 0, +I54+'App.2-CC_NewCGAAP_DepExp_2013'!K54-J54) -> 0
B55: Total | C55: =SUM(C17:C54) -> 0 | F55: =SUM(F17:F54) -> 0 | G55: 0 | H55: 0 | I55: 0 | J55: 0 | K55: 0
B56: Depreciation exp. adj. from gain or loss on the retirement of assets (pool of like assets) | F56: 0
B57: Total Depreciation Expense | F57: =+F56+F55 -> 0
A59: Notes:
A60: 1 | B60: Board policy of the "half-year" rule - the applicant must ensure that additions in the year attract a half-year depreciation expense in the first year. Deviations from this standard practice must be supported in the application.
A61: 2 | B61: The applicant must provide an explanation of material variances in evidence.
A62: 3 | B62: This column refers to the calculated full year depreciation but excludes the depreciation expense on assets fully depreciated during the year. This column is used for the purpose of calculating depreciation expense in the following year on the next worksheet.
A64: General: | B64: Applicants must provide a breakdown of depreciation and amortization expense in the above format for all relevant accounts. Asset Retirement Obligations (AROs), depreciation and accretion expense should be disclosed separately consistent with the Notes of historical Audited Financial Statements.

Sheet App.2-CE_MIFRS_DepExp_2015
G1: File Number: | H1: =EBNUMBER -> EB-2015-0083
G2: Exhibit:
G3: Tab:
G4: Schedule:
G5: Page:
G7: Date:
A9: Appendix 2-CE
A10: Depreciation and Amortization Expense
A11: Assumes the applicant made capitalization and depreciation expense accounting policy changes under CGAAP effective January 1, 2012 and will adopt IFRS for financial reporting purposes effective January 1, 2015.
C13: 2015 | D13: MIFRS
A15: Account | B15: Description | C15: Additions | D15: Years (new additions only) | E15: Depreciation Rate on New Additions | F15: 2015 Depreciation Expense 1 | G15: 2015 Depreciation Expense per Appendix 2-BA Fixed Assets, Column J (l) | H15: Variance 2
C16: (d) | D16: (f) | E16: (g) = 1 / (f) | F16: (h)=2014 Full Year Depreciation + ((d)*0.5)/(f) | H16: (m) = (h) - (l)
A17: 1611 | B17: Computer Software (Formally known as Account 1925) | E17: =IF(D17=0,0,1/D17) -> 0 | F17: =IF(D17=0,'App.2-CD_MIFRS_DepExp_2014'!K17,+'App.2-CD_MIFRS_DepExp_2014'!K17+((C17*0.5)/D17)) -> 0 | H17: =IF(ISERROR(+F17-G17), 0, +F17-G17) -> 0
A18: 1612 | B18: Land Rights (Formally known as Account 1906) | E18: 0 | F18: =IF(D18=0,'App.2-CD_MIFRS_DepExp_2014'!K18,+'App.2-CD_MIFRS_DepExp_2014'!K18+((C18*0.5)/D18)) -> 0 | H18: 0
A19: 1805 | B19: Land | E19: 0 | F19: =IF(D19=0,'App.2-CD_MIFRS_DepExp_2014'!K19,+'App.2-CD_MIFRS_DepExp_2014'!K19+((C19*0.5)/D19)) -> 0 | H19: 0
A20: 1808 | B20: Buildings | E20: 0 | F20: =IF(D20=0,'App.2-CD_MIFRS_DepExp_2014'!K20,+'App.2-CD_MIFRS_DepExp_2014'!K20+((C20*0.5)/D20)) -> 0 | H20: 0
A21: 1810 | B21: Leasehold Improvements | E21: 0 | F21: =IF(D21=0,'App.2-CD_MIFRS_DepExp_2014'!K21,+'App.2-CD_MIFRS_DepExp_2014'!K21+((C21*0.5)/D21)) -> 0 | H21: 0
A22: 1815 | B22: Transformer Station Equipment >50 kV | E22: 0 | F22: =IF(D22=0,'App.2-CD_MIFRS_DepExp_2014'!K22,+'App.2-CD_MIFRS_DepExp_2014'!K22+((C22*0.5)/D22)) -> 0 | H22: 0
A23: 1820 | B23: Distribution Station Equipment <50 kV | E23: 0 | F23: =IF(D23=0,'App.2-CD_MIFRS_DepExp_2014'!K23,+'App.2-CD_MIFRS_DepExp_2014'!K23+((C23*0.5)/D23)) -> 0 | H23: 0
A24: 1825 | B24: Storage Battery Equipment | E24: 0 | F24: =IF(D24=0,'App.2-CD_MIFRS_DepExp_2014'!K24,+'App.2-CD_MIFRS_DepExp_2014'!K24+((C24*0.5)/D24)) -> 0 | H24: 0
A25: 1830 | B25: Poles, Towers & Fixtures | E25: 0 | F25: =IF(D25=0,'App.2-CD_MIFRS_DepExp_2014'!K25,+'App.2-CD_MIFRS_DepExp_2014'!K25+((C25*0.5)/D25)) -> 0 | H25: 0
A26: 1835 | B26: Overhead Conductors & Devices | E26: 0 | F26: =IF(D26=0,'App.2-CD_MIFRS_DepExp_2014'!K26,+'App.2-CD_MIFRS_DepExp_2014'!K26+((C26*0.5)/D26)) -> 0 | H26: 0
A27: 1840 | B27: Underground Conduit | E27: 0 | F27: =IF(D27=0,'App.2-CD_MIFRS_DepExp_2014'!K27,+'App.2-CD_MIFRS_DepExp_2014'!K27+((C27*0.5)/D27)) -> 0 | H27: 0
A28: 1845 | B28: Underground Conductors & Devices | E28: 0 | F28: =IF(D28=0,'App.2-CD_MIFRS_DepExp_2014'!K28,+'App.2-CD_MIFRS_DepExp_2014'!K28+((C28*0.5)/D28)) -> 0 | H28: 0
A29: 1850 | B29: Line Transformers | E29: 0 | F29: =IF(D29=0,'App.2-CD_MIFRS_DepExp_2014'!K29,+'App.2-CD_MIFRS_DepExp_2014'!K29+((C29*0.5)/D29)) -> 0 | H29: 0
A30: 1855 | B30: Services (Overhead & Underground) | E30: 0 | F30: =IF(D30=0,'App.2-CD_MIFRS_DepExp_2014'!K30,+'App.2-CD_MIFRS_DepExp_2014'!K30+((C30*0.5)/D30)) -> 0 | H30: 0
A31: 1860 | B31: Meters | E31: 0 | F31: =IF(D31=0,'App.2-CD_MIFRS_DepExp_2014'!K31,+'App.2-CD_MIFRS_DepExp_2014'!K31+((C31*0.5)/D31)) -> 0 | H31: 0
A32: 1860 | B32: Meters (Smart Meters) | E32: 0 | F32: =IF(D32=0,'App.2-CD_MIFRS_DepExp_2014'!K32,+'App.2-CD_MIFRS_DepExp_2014'!K32+((C32*0.5)/D32)) -> 0 | H32: 0
A33: 1905 | B33: Land | E33: 0 | F33: =IF(D33=0,'App.2-CD_MIFRS_DepExp_2014'!K33,+'App.2-CD_MIFRS_DepExp_2014'!K33+((C33*0.5)/D33)) -> 0 | H33: 0
A34: 1908 | B34: Buildings & Fixtures | E34: 0 | F34: =IF(D34=0,'App.2-CD_MIFRS_DepExp_2014'!K34,+'App.2-CD_MIFRS_DepExp_2014'!K34+((C34*0.5)/D34)) -> 0 | H34: 0
A35: 1910 | B35: Leasehold Improvements | E35: 0 | F35: =IF(D35=0,'App.2-CD_MIFRS_DepExp_2014'!K35,+'App.2-CD_MIFRS_DepExp_2014'!K35+((C35*0.5)/D35)) -> 0 | H35: 0
A36: 1915 | B36: Office Furniture & Equipment (10 years) | E36: 0 | F36: =IF(D36=0,'App.2-CD_MIFRS_DepExp_2014'!K36,+'App.2-CD_MIFRS_DepExp_2014'!K36+((C36*0.5)/D36)) -> 0 | H36: 0
A37: 1915 | B37: Office Furniture & Equipment (5 years) | E37: 0 | F37: =IF(D37=0,'App.2-CD_MIFRS_DepExp_2014'!K37,+'App.2-CD_MIFRS_DepExp_2014'!K37+((C37*0.5)/D37)) -> 0 | H37: 0
A38: 1920 | B38: Computer Equipment - Hardware | E38: 0 | F38: =IF(D38=0,'App.2-CD_MIFRS_DepExp_2014'!K38,+'App.2-CD_MIFRS_DepExp_2014'!K38+((C38*0.5)/D38)) -> 0 | H38: 0
A39: 1920 | B39: Computer Equip.-Hardware(Post Mar. 22/04) | E39: 0 | F39: =IF(D39=0,'App.2-CD_MIFRS_DepExp_2014'!K39,+'App.2-CD_MIFRS_DepExp_2014'!K39+((C39*0.5)/D39)) -> 0 | H39: 0
A40: 1920 | B40: Computer Equip.-Hardware(Post Mar. 19/07) | E40: 0 | F40: =IF(D40=0,'App.2-CD_MIFRS_DepExp_2014'!K40,+'App.2-CD_MIFRS_DepExp_2014'!K40+((C40*0.5)/D40)) -> 0 | H40: 0
A41: 1930 | B41: Transportation Equipment | E41: 0 | F41: =IF(D41=0,'App.2-CD_MIFRS_DepExp_2014'!K41,+'App.2-CD_MIFRS_DepExp_2014'!K41+((C41*0.5)/D41)) -> 0 | H41: 0
A42: 1935 | B42: Stores Equipment | E42: 0 | F42: =IF(D42=0,'App.2-CD_MIFRS_DepExp_2014'!K42,+'App.2-CD_MIFRS_DepExp_2014'!K42+((C42*0.5)/D42)) -> 0 | H42: 0
A43: 1940 | B43: Tools, Shop & Garage Equipment | E43: 0 | F43: =IF(D43=0,'App.2-CD_MIFRS_DepExp_2014'!K43,+'App.2-CD_MIFRS_DepExp_2014'!K43+((C43*0.5)/D43)) -> 0 | H43: 0
A44: 1945 | B44: Measurement & Testing Equipment | E44: 0 | F44: =IF(D44=0,'App.2-CD_MIFRS_DepExp_2014'!K44,+'App.2-CD_MIFRS_DepExp_2014'!K44+((C44*0.5)/D44)) -> 0 | H44: 0
A45: 1950 | B45: Power Operated Equipment | E45: 0 | F45: =IF(D45=0,'App.2-CD_MIFRS_DepExp_2014'!K45,+'App.2-CD_MIFRS_DepExp_2014'!K45+((C45*0.5)/D45)) -> 0 | H45: 0
A46: 1955 | B46: Communications Equipment | E46: 0 | F46: =IF(D46=0,'App.2-CD_MIFRS_DepExp_2014'!K46,+'App.2-CD_MIFRS_DepExp_2014'!K46+((C46*0.5)/D46)) -> 0 | H46: 0
A47: 1955 | B47: Communication Equipment (Smart Meters) | E47: 0 | F47: =IF(D47=0,'App.2-CD_MIFRS_DepExp_2014'!K47,+'App.2-CD_MIFRS_DepExp_2014'!K47+((C47*0.5)/D47)) -> 0 | H47: 0
A48: 1960 | B48: Miscellaneous Equipment | E48: 0 | F48: =IF(D48=0,'App.2-CD_MIFRS_DepExp_2014'!K48,+'App.2-CD_MIFRS_DepExp_2014'!K48+((C48*0.5)/D48)) -> 0 | H48: 0
A49: 1970 | B49: Load Management Controls Customer Premises | E49: 0 | F49: =IF(D49=0,'App.2-CD_MIFRS_DepExp_2014'!K49,+'App.2-CD_MIFRS_DepExp_2014'!K49+((C49*0.5)/D49)) -> 0 | H49: 0
A50: 1975 | B50: Load Management Controls Utility Premises | E50: 0 | F50: =IF(D50=0,'App.2-CD_MIFRS_DepExp_2014'!K50,+'App.2-CD_MIFRS_DepExp_2014'!K50+((C50*0.5)/D50)) -> 0 | H50: 0
A51: 1980 | B51: System Supervisor Equipment | E51: 0 | F51: =IF(D51=0,'App.2-CD_MIFRS_DepExp_2014'!K51,+'App.2-CD_MIFRS_DepExp_2014'!K51+((C51*0.5)/D51)) -> 0 | H51: 0
A52: 1985 | B52: Miscellaneous Fixed Assets | E52: 0 | F52: =IF(D52=0,'App.2-CD_MIFRS_DepExp_2014'!K52,+'App.2-CD_MIFRS_DepExp_2014'!K52+((C52*0.5)/D52)) -> 0 | H52: 0
A53: 1990 | B53: Other Tangible Property | E53: 0 | F53: =IF(D53=0,'App.2-CD_MIFRS_DepExp_2014'!K53,+'App.2-CD_MIFRS_DepExp_2014'!K53+((C53*0.5)/D53)) -> 0 | H53: 0
E54: 0 | F54: =IF(D54=0,'App.2-CD_MIFRS_DepExp_2014'!K54,+'App.2-CD_MIFRS_DepExp_2014'!K54+((C54*0.5)/D54)) -> 0 | H54: 0
B55: Total | C55: =SUM(C17:C54) -> 0 | F55: =SUM(F17:F54) -> 0 | G55: =SUM(G17:G54) -> 0 | H55: =SUM(H17:H54) -> 0
B56: Depreciation exp. adj. from gain or loss on the retirement of assets (pool of like assets)
B57: Total Depreciation expense to be included in the test year revenue requirement | F57: =SUM(F55:F56) -> 0
A58: Notes:
A59: 1 | B59: Board policy of the "half-year" rule - the applicant must ensure that additions in the year attract a half-year depreciation expense in the first year. Deviations from this standard practice must be supported in the application.
A60: 2 | B60: The applicant must provide an explanation of material variances in evidence.
A63: General: | B63: Applicants must provide a breakdown of depreciation and amortization expense in the above format for all relevant accounts. Asset Retirement Obligations (AROs), depreciation and accretion expense should be disclosed separately consistent with the Notes of historical Audited Financial Statements.

Sheet App.2-CF_OldCGAAP_DepExp_2013
K1: File Number: | L1: =EBNUMBER -> EB-2015-0083
K2: Exhibit:
K3: Tab:
K4: Schedule:
K5: Page:
K7: Date:
A9: Appendix 2-CF
A10: Depreciation and Amortization Expense
B11: Assumes the applicant made capitalization and depreciation expense accounting policy changes under CGAAP effective January 1, 2013 and will adopt IFRS for financial reporting purposes effective January 1, 2015.
C13: Year | D13: 2013 | E13: Former CGAAP
A15: Account | B15: Description | C15: Opening Regulatory Gross PP&E as at Jan 1, 2013 | D15: Less Fully Depreciated | E15: Net for Depreciation | F15: Additions | G15: Total for Depreciation | H15: Years | I15: Depreciation Rate | J15: Depreciation Expense | K15: 2013 Depreciation Expense per Appendix 2-BA Fixed Assets, Column J (l) | L15: Variance 2
C16: (a) | D16: (b) | E16: (c) | F16: (d) | G16: (e) = (c) + ½ x (d) 1 | H16: (f) | I16: (g) = 1 / (f) | J16: (h) = (e) / (f) | L16: (m) = (h) - (l)
A17: 1611 | B17: Computer Software (Formally known as Account 1925) | E17: =C17-D17 -> 0 | G17: =E17+0.5*F17 -> 0 | I17: =IF(H17=0,0,1/H17) -> 0 | J17: =IF(H17=0,0,G17/H17) -> 0 | L17: =IF(ISERROR(+J17-K17), 0, +J17-K17) -> 0
A18: 1612 | B18: Land Rights (Formally known as Account 1906) | E18: =C18-D18 -> 0 | G18: =E18+0.5*F18 -> 0 | I18: 0 | J18: 0 | L18: 0
A19: 1805 | B19: Land | E19: 0 | G19: 0 | I19: 0 | J19: 0 | L19: 0
A20: 1808 | B20: Buildings | E20: 0 | G20: 0 | I20: 0 | J20: 0 | L20: 0
A21: 1810 | B21: Leasehold Improvements | E21: 0 | G21: 0 | I21: 0 | J21: 0 | L21: 0
A22: 1815 | B22: Transformer Station Equipment >50 kV | E22: 0 | G22: 0 | I22: 0 | J22: 0 | L22: 0
A23: 1820 | B23: Distribution Station Equipment <50 kV | E23: 0 | G23: 0 | I23: 0 | J23: 0 | L23: 0
A24: 1825 | B24: Storage Battery Equipment | E24: 0 | G24: 0 | I24: 0 | J24: 0 | L24: 0
A25: 1830 | B25: Poles, Towers & Fixtures | E25: 0 | G25: 0 | I25: 0 | J25: 0 | L25: 0
A26: 1835 | B26: Overhead Conductors & Devices | E26: 0 | G26: 0 | I26: 0 | J26: 0 | L26: 0
A27: 1840 | B27: Underground Conduit | E27: 0 | G27: 0 | I27: 0 | J27: 0 | L27: 0
A28: 1845 | B28: Underground Conductors & Devices | E28: 0 | G28: 0 | I28: 0 | J28: 0 | L28: 0
A29: 1850 | B29: Line Transformers | E29: 0 | G29: 0 | I29: 0 | J29: 0 | L29: 0
A30: 1855 | B30: Services (Overhead & Underground) | E30: 0 | G30: 0 | I30: 0 | J30: 0 | L30: 0
A31: 1860 | B31: Meters | E31: 0 | G31: 0 | I31: 0 | J31: 0 | L31: 0
A32: 1860 | B32: Meters (Smart Meters) | E32: 0 | G32: 0 | I32: 0 | J32: 0 | L32: 0
A33: 1905 | B33: Land | E33: 0 | G33: 0 | I33: 0 | J33: 0 | L33: 0
A34: 1908 | B34: Buildings & Fixtures | E34: 0 | G34: 0 | I34: 0 | J34: 0 | L34: 0
A35: 1910 | B35: Leasehold Improvements | E35: 0 | G35: 0 | I35: 0 | J35: 0 | L35: 0
A36: 1915 | B36: Office Furniture & Equipment (10 years) | E36: 0 | G36: 0 | I36: 0 | J36: 0 | L36: 0
A37: 1915 | B37: Office Furniture & Equipment (5 years) | E37: 0 | G37: 0 | I37: 0 | J37: 0 | L37: 0
A38: 1920 | B38: Computer Equipment - Hardware | E38: 0 | G38: 0 | I38: 0 | J38: 0 | L38: 0
A39: 1920 | B39: Computer Equip.-Hardware(Post Mar. 22/04) | E39: 0 | G39: 0 | I39: 0 | J39: 0 | L39: 0
A40: 1920 | B40: Computer Equip.-Hardware(Post Mar. 19/07) | E40: 0 | G40: 0 | I40: 0 | J40: 0 | L40: 0
A41: 1930 | B41: Transportation Equipment | E41: 0 | G41: 0 | I41: 0 | J41: 0 | L41: 0
A42: 1935 | B42: Stores Equipment | E42: 0 | G42: 0 | I42: 0 | J42: 0 | L42: 0
A43: 1940 | B43: Tools, Shop & Garage Equipment | E43: 0 | G43: 0 | I43: 0 | J43: 0 | L43: 0
A44: 1945 | B44: Measurement & Testing Equipment | E44: 0 | G44: 0 | I44: 0 | J44: 0 | L44: 0
A45: 1950 | B45: Power Operated Equipment | E45: 0 | G45: 0 | I45: 0 | J45: 0 | L45: 0
A46: 1955 | B46: Communications Equipment | E46: 0 | G46: 0 | I46: 0 | J46: 0 | L46: 0
A47: 1955 | B47: Communication Equipment (Smart Meters) | E47: 0 | G47: 0 | I47: 0 | J47: 0 | L47: 0
A48: 1960 | B48: Miscellaneous Equipment | E48: 0 | G48: 0 | I48: 0 | J48: 0 | L48: 0
A49: 1970 | B49: Load Management Controls - Customer Premises | E49: 0 | G49: 0 | I49: 0 | J49: 0 | L49: 0
A50: 1975 | B50: Load Management Controls Utility Premises | E50: 0 | G50: 0 | I50: 0 | J50: 0 | L50: 0
A51: 1980 | B51: System Supervisor Equipment | E51: 0 | G51: 0 | I51: 0 | J51: 0 | L51: 0
A52: 1985 | B52: Miscellaneous Fixed Assets | E52: 0 | G52: 0 | I52: 0 | J52: 0 | L52: 0
A53: 1990 | B53: Other Tangible Property | E53: 0 | G53: 0 | I53: 0 | J53: 0 | L53: 0
A54: 1995 | B54: Contributions & Grants | E54: 0 | G54: 0 | I54: 0 | J54: 0 | L54: 0
B55: Total | C55: =SUM(C17:C54) -> 0 | D55: =SUM(D17:D54) -> 0 | E55: =SUM(E17:E54) -> 0 | F55: =SUM(F17:F54) -> 0 | G55: =SUM(G17:G54) -> 0 | J55: =SUM(J17:J54) -> 0 | K55: =SUM(K17:K54) -> 0 | L55: =SUM(L17:L54) -> 0
A57: Notes:
A59: 1 | B59: Board policy of the "half-year" rule - the applicant must ensure that additions in the year attract a half-year depreciation expense in the first year. Deviations from this standard practice must be supported in the application.
A60: 2 | B60: The applicant must provide an explanation of material variances in evidence.
A62: General | B62: Applicants must provide a breakdown of depreciation and amortization expense in the above format for all relevant accounts. Asset Retirement Obligations (AROs), depreciation and accretion expense should be disclosed separately consistent with the Notes of historical Audited Financial Statements.

Sheet App.2-CG_NewCGAAP_DepExp_2013
N1: File Number: | O1: =EBNUMBER -> EB-2015-0083
N2: Exhibit:
N3: Tab:
N4: Schedule:
N5: Page:
N7: Date:
A9: Appendix 2-CO
A10: Depreciation and Amortization Expense
A11: Assumes the applicant made capitalization and depreciation expense accounting policy changes under CGAAP effective January 1, 2013 and will adopt IFRS for financial reporting purposes effective January 1, 2015.
C13: Year | D13: 2013 | E13: Revised CGAAP
A15: Account | B15: Description | C15: Opening NBV as at Jan 1, 2013 5 | D15: Additions | E15: Average Remaining Life of Opening NBV 4 | F15: Years (new additions only) 3 | G15: Depreciation Rate on New Additions | H15: Depreciation Expense on Opening NBV | I15: Depreciation Expense on Additions 1 | J15: 2013 Depreciation Expense | K15: 2013 Depreciation Expense per Appendix 2-BA Fixed Assets, Column J (l) | L15: Variance 2 | M15: Depreciation Expense on 2013 Full Year Additions | N15: Less Depreciation Expense on Assets Fully Depreciated during the year (o) | O15: 2013 Full Year Depreciation 6
C16: (a) | D16: (d) | E16: (i) | F16: (f) | G16: (g) = 1 / (f) | H16: (j) = (a) / (i) | I16: (h)=((d)*0.5)/(f) | J16: (k) = (j) + (h) | L16: (m) = (k) - (l) | M16: (n) = (d)/(f) | O16: (p) = (j) + (n) - (o)
A17: 1611 | B17: Computer Software (Formally known as Account 1925) | G17: =IF(F17=0,0,1/F17) -> 0 | H17: =IF(E17=0,0,+C17/E17) -> 0 | I17: =IF(F17=0,0,+(D17*0.5)/F17) -> 0 | J17: =IF(ISERROR(+H17+I17), 0, +H17+I17) -> 0 | L17: =IF(ISERROR(+J17-K17), 0, +J17-K17) -> 0 | M17: =IF(F17=0,0,+(D17)/F17) -> 0 | O17: =IF(ISERROR(+M17+H17-N17), 0, +M17+H17-N17) -> 0
A18: 1612 | B18: Land Rights (Formally known as Account 1906) | G18: 0 | H18: 0 | I18: 0 | J18: 0 | L18: 0 | M18: 0 | O18: =IF(ISERROR(+M18+H18-N18), 0, +M18+H18-N18) -> 0
A19: 1805 | B19: Land | G19: 0 | H19: 0 | I19: 0 | J19: 0 | L19: 0 | M19: 0 | O19: 0
A20: 1808 | B20: Buildings | G20: 0 | H20: 0 | I20: 0 | J20: 0 | L20: 0 | M20: 0 | O20: 0
A21: 1810 | B21: Leasehold Improvements | G21: 0 | H21: 0 | I21: 0 | J21: 0 | L21: 0 | M21: 0 | O21: 0
A22: 1815 | B22: Transformer Station Equipment >50 kV | G22: 0 | H22: 0 | I22: 0 | J22: 0 | L22: 0 | M22: 0 | O22: 0
A23: 1820 | B23: Distribution Station Equipment <50 kV | G23: 0 | H23: 0 | I23: 0 | J23: 0 | L23: 0 | M23: 0 | O23: 0
A24: 1825 | B24: Storage Battery Equipment | G24: 0 | H24: 0 | I24: 0 | J24: 0 | L24: 0 | M24: 0 | O24: 0
A25: 1830 | B25: Poles, Towers & Fixtures | G25: 0 | H25: 0 | I25: 0 | J25: 0 | L25: 0 | M25: 0 | O25: 0
A26: 1835 | B26: Overhead Conductors & Devices | G26: 0 | H26: 0 | I26: 0 | J26: 0 | L26: 0 | M26: 0 | O26: 0
A27: 1840 | B27: Underground Conduit | G27: 0 | H27: 0 | I27: 0 | J27: 0 | L27: 0 | M27: 0 | O27: 0
A28: 1845 | B28: Underground Conductors & Devices | G28: 0 | H28: 0 | I28: 0 | J28: 0 | L28: 0 | M28: 0 | O28: 0
A29: 1850 | B29: Line Transformers | G29: 0 | H29: 0 | I29: 0 | J29: 0 | L29: 0 | M29: 0 | O29: 0
A30: 1855 | B30: Services (Overhead & Underground) | G30: 0 | H30: 0 | I30: 0 | J30: 0 | L30: 0 | M30: 0 | O30: 0
A31: 1860 | B31: Meters | G31: 0 | H31: 0 | I31: 0 | J31: 0 | L31: 0 | M31: 0 | O31: 0
A32: 1860 | B32: Meters (Smart Meters) | G32: 0 | H32: 0 | I32: 0 | J32: 0 | L32: 0 | M32: 0 | O32: 0
A33: 1905 | B33: Land | G33: 0 | H33: 0 | I33: 0 | J33: 0 | L33: 0 | M33: 0 | O33: 0
A34: 1908 | B34: Buildings & Fixtures | G34: 0 | H34: 0 | I34: 0 | J34: 0 | L34: 0 | M34: 0 | O34: 0
A35: 1910 | B35: Leasehold Improvements | G35: 0 | H35: 0 | I35: 0 | J35: 0 | L35: 0 | M35: 0 | O35: 0
A36: 1915 | B36: Office Furniture & Equipment (10 years) | G36: 0 | H36: 0 | I36: 0 | J36: 0 | L36: 0 | M36: 0 | O36: 0
A37: 1915 | B37: Office Furniture & Equipment (5 years) | G37: 0 | H37: 0 | I37: 0 | J37: 0 | L37: 0 | M37: 0 | O37: 0
A38: 1920 | B38: Computer Equipment - Hardware | G38: 0 | H38: 0 | I38: 0 | J38: 0 | L38: 0 | M38: 0 | O38: 0
A39: 1920 | B39: Computer Equip.-Hardware(Post Mar. 22/04) | G39: 0 | H39: 0 | I39: 0 | J39: 0 | L39: 0 | M39: 0 | O39: 0
A40: 1920 | B40: Computer Equip.-Hardware(Post Mar. 19/07) | G40: 0 | H40: 0 | I40: 0 | J40: 0 | L40: 0 | M40: 0 | O40: 0
A41: 1930 | B41: Transportation Equipment | G41: 0 | H41: 0 | I41: 0 | J41: 0 | L41: 0 | M41: 0 | O41: 0
A42: 1935 | B42: Stores Equipment | G42: 0 | H42: 0 | I42: 0 | J42: 0 | L42: 0 | M42: 0 | O42: 0
A43: 1940 | B43: Tools, Shop & Garage Equipment | G43: 0 | H43: 0 | I43: 0 | J43: 0 | L43: 0 | M43: 0 | O43: 0
A44: 1945 | B44: Measurement & Testing Equipment | G44: 0 | H44: 0 | I44: 0 | J44: 0 | L44: 0 | M44: 0 | O44: 0
A45: 1950 | B45: Power Operated Equipment | G45: 0 | H45: 0 | I45: 0 | J45: 0 | L45: 0 | M45: 0 | O45: 0
A46: 1955 | B46: Communications Equipment | G46: 0 | H46: 0 | I46: 0 | J46: 0 | L46: 0 | M46: 0 | O46: 0
A47: 1955 | B47: Communication Equipment (Smart Meters) | G47: 0 | H47: 0 | I47: 0 | J47: 0 | L47: 0 | M47: 0 | O47: 0
A48: 1960 | B48: Miscellaneous Equipment | G48: 0 | H48: 0 | I48: 0 | J48: 0 | L48: 0 | M48: 0 | O48: 0
A49: 1970 | B49: Load Management Controls - Customer Premises | G49: 0 | H49: 0 | I49: 0 | J49: 0 | L49: 0 | M49: 0 | O49: 0
A50: 1975 | B50: Load Management Controls Utility Premises | G50: 0 | H50: 0 | I50: 0 | J50: 0 | L50: 0 | M50: 0 | O50: 0
A51: 1980 | B51: System Supervisor Equipment | G51: 0 | H51: 0 | I51: 0 | J51: 0 | L51: 0 | M51: 0 | O51: 0
A52: 1985 | B52: Miscellaneous Fixed Assets | G52: 0 | H52: 0 | I52: 0 | J52: 0 | L52: 0 | M52: 0 | O52: 0
A53: 1990 | B53: Other Tangible Property | G53: 0 | H53: 0 | I53: 0 | J53: 0 | L53: 0 | M53: 0 | O53: 0
A54: 1995 | B54: Contributions & Grants | G54: 0 | H54: 0 | I54: 0 | J54: 0 | L54: 0 | M54: 0 | O54: 0
B55: Total | C55: =SUM(C17:C54) -> 0 | D55: =SUM(D17:D54) -> 0 | H55: =SUM(H17:H54) -> 0 | I55: 0 | J55: 0 | K55: 0 | L55: 0 | M55: 0 | N55: 0 | O55: 0
A57: Notes:
A59: 1 | B59: Board policy of the "half-year" rule - the applicant must ensure that additions in the year attract a half-year depreciation expense in the first year. Deviations from this standard practice must be supported in the application.
A60: 2 | B60: The applicant must provide an explanation of material variances in evidence.
A61: 3 | B61: The applicant should ensure that the years for new additions of assets are the asset useful lives determined by management in accordance with the Board's regulatory accounting policies. The capitalization and depreciation expense accounting changes should be implemented consistent with the Board’s regulatory accounting policies as set out for MIFRS as contained in the Report of the Board, Transition to International Financial Reporting Standards, EB-2008-0408, the Kinectrics Report, and the Revised 2012 Accounting Procedures Handbook for Electricity Distributors.
A62: 4 | B62: A recalculation should be performed to determine the average remaining life of opening balance of assets (i.e. excluding 2013 additions) under the change in policies under CGAAP. For example, Asset A had a useful life of 20 years under CGAAP without the change in policies. On January 1, 2013, the effective date of the changes in policies, Asset A was 3 years depreciated. As a result, Asset A would have a remaining service life of 17 years (20 years less 3 years) as of January 1, 2013. Due to making the change in policies under CGAAP, management re-assessed the asset useful lives and concluded that the revised useful life of Asset A is now 30 years. Therefore, the average remaining useful life of the opening balance of Asset A is determined to be 27 years (30 years less 3 years) under the revised CGAAP as of January 1, 2013.
A63: 5 | B63: NBV must exclude assets still on the books but which have been fully amortized or depreciated.
A64: 6 | B64: This column refers to the calculated full year depreciation but excludes the depreciation expense on assets fully depreciated during the year. This column is used for the purpose of calculating depreciation expense in the following year on the next worksheet.
A66: General: | B66: Applicants must provide a breakdown of depreciation and amortization expense in the above format for all relevant accounts. Asset Retirement Obligations (AROs), depreciation and accretion expense should be disclosed separately consistent with the Notes of historical Audited Financial Statements.

Sheet App.2-CH_MIFRS_DepExp_2014
J1: File Number: | K1: =EBNUMBER -> EB-2015-0083
J2: Exhibit:
J3: Tab:
J4: Schedule:
J5: Page:
J7: Date:
A9: Appendix 2-CP
A10: Depreciation and Amortization Expense
A11: Assumes the applicant made capitalization and depreciation expense accounting policy changes under CGAAP effective January 1, 2013 and will adopt IFRS for financial reporting purposes effective January 1, 2015.
E13: 2014 | F13: MIFRS
A15: Account | B15: Description | C15: Additions | D15: Years (new additions only) | E15: Depreciation Rate on New Additions | F15: 2014 Depreciation Expense 1 | G15: 2014 Depreciation Expense per Apppendix 2-BA Fixed Assets, Column J (l) | H15: Variance 2 | I15: Depreciation Expense on 2014 Full Year Additions | J15: Less Depreciation Expense on Assets Fully Depreciated during the year (o) | K15: 2014 Full Year Depreciation 3
C16: (d) | D16: (f) | E16: (g) = 1 / (f) | F16: (h)=2013 Full Year Deprecation + ((d)*0.5)/(f) | H16: (m) = (h) - (l) | I16: (n)=((d))/(f) | K16: (p) = 2013 Full Year Depreciation + (n) - (o)
A17: 1611 | B17: Computer Software (Formally known as Account 1925) | E17: =IF(D17=0,0,1/D17) -> 0 | F17: =IF(D17=0,+'App.2-CG_NewCGAAP_DepExp_2013'!O17,+'App.2-CG_NewCGAAP_DepExp_2013'!O17+((C17*0.5)/D17)) -> 0 | H17: =IF(ISERROR(+F17-G17), 0, +F17-G17) -> 0 | I17: =IF(D17=0,0,+(C17)/D17) -> 0 | K17: =IF(ISERROR(+I17+'App.2-CG_NewCGAAP_DepExp_2013'!O17-J17), 0, +I17+'App.2-CG_NewCGAAP_DepExp_2013'!O17-J17) -> 0
A18: 1612 | B18: Land Rights (Formally known as Account 1906) | E18: 0 | F18: =IF(D18=0,+'App.2-CG_NewCGAAP_DepExp_2013'!O18,+'App.2-CG_NewCGAAP_DepExp_2013'!O18+((C18*0.5)/D18)) -> 0 | H18: 0 | I18: 0 | K18: =IF(ISERROR(+I18+'App.2-CG_NewCGAAP_DepExp_2013'!O18-J18), 0, +I18+'App.2-CG_NewCGAAP_DepExp_2013'!O18-J18) -> 0
A19: 1805 | B19: Land | E19: 0 | F19: =IF(D19=0,+'App.2-CG_NewCGAAP_DepExp_2013'!O19,+'App.2-CG_NewCGAAP_DepExp_2013'!O19+((C19*0.5)/D19)) -> 0 | H19: 0 | I19: 0 | K19: =IF(ISERROR(+I19+'App.2-CG_NewCGAAP_DepExp_2013'!O19-J19), 0, +I19+'App.2-CG_NewCGAAP_DepExp_2013'!O19-J19) -> 0
A20: 1808 | B20: Buildings | E20: 0 | F20: =IF(D20=0,+'App.2-CG_NewCGAAP_DepExp_2013'!O20,+'App.2-CG_NewCGAAP_DepExp_2013'!O20+((C20*0.5)/D20)) -> 0 | H20: 0 | I20: 0 | K20: =IF(ISERROR(+I20+'App.2-CG_NewCGAAP_DepExp_2013'!O20-J20), 0, +I20+'App.2-CG_NewCGAAP_DepExp_2013'!O20-J20) -> 0
A21: 1810 | B21: Leasehold Improvements | E21: 0 | F21: =IF(D21=0,+'App.2-CG_NewCGAAP_DepExp_2013'!O21,+'App.2-CG_NewCGAAP_DepExp_2013'!O21+((C21*0.5)/D21)) -> 0 | H21: 0 | I21: 0 | K21: =IF(ISERROR(+I21+'App.2-CG_NewCGAAP_DepExp_2013'!O21-J21), 0, +I21+'App.2-CG_NewCGAAP_DepExp_2013'!O21-J21) -> 0
A22: 1815 | B22: Transformer Station Equipment >50 kV | E22: 0 | F22: =IF(D22=0,+'App.2-CG_NewCGAAP_DepExp_2013'!O22,+'App.2-CG_NewCGAAP_DepExp_2013'!O22+((C22*0.5)/D22)) -> 0 | H22: 0 | I22: 0 | K22: =IF(ISERROR(+I22+'App.2-CG_NewCGAAP_DepExp_2013'!O22-J22), 0, +I22+'App.2-CG_NewCGAAP_DepExp_2013'!O22-J22) -> 0
A23: 1820 | B23: Distribution Station Equipment <50 kV | E23: 0 | F23: =IF(D23=0,+'App.2-CG_NewCGAAP_DepExp_2013'!O23,+'App.2-CG_NewCGAAP_DepExp_2013'!O23+((C23*0.5)/D23)) -> 0 | H23: 0 | I23: 0 | K23: =IF(ISERROR(+I23+'App.2-CG_NewCGAAP_DepExp_2013'!O23-J23), 0, +I23+'App.2-CG_NewCGAAP_DepExp_2013'!O23-J23) -> 0
A24: 1825 | B24: Storage Battery Equipment | E24: 0 | F24: =IF(D24=0,+'App.2-CG_NewCGAAP_DepExp_2013'!O24,+'App.2-CG_NewCGAAP_DepExp_2013'!O24+((C24*0.5)/D24)) -> 0 | H24: 0 | I24: 0 | K24: =IF(ISERROR(+I24+'App.2-CG_NewCGAAP_DepExp_2013'!O24-J24), 0, +I24+'App.2-CG_NewCGAAP_DepExp_2013'!O24-J24) -> 0
A25: 1830 | B25: Poles, Towers & Fixtures | E25: 0 | F25: =IF(D25=0,+'App.2-CG_NewCGAAP_DepExp_2013'!O25,+'App.2-CG_NewCGAAP_DepExp_2013'!O25+((C25*0.5)/D25)) -> 0 | H25: 0 | I25: 0 | K25: =IF(ISERROR(+I25+'App.2-CG_NewCGAAP_DepExp_2013'!O25-J25), 0, +I25+'App.2-CG_NewCGAAP_DepExp_2013'!O25-J25) -> 0
A26: 1835 | B26: Overhead Conductors & Devices | E26: 0 | F26: =IF(D26=0,+'App.2-CG_NewCGAAP_DepExp_2013'!O26,+'App.2-CG_NewCGAAP_DepExp_2013'!O26+((C26*0.5)/D26)) -> 0 | H26: 0 | I26: 0 | K26: =IF(ISERROR(+I26+'App.2-CG_NewCGAAP_DepExp_2013'!O26-J26), 0, +I26+'App.2-CG_NewCGAAP_DepExp_2013'!O26-J26) -> 0
A27: 1840 | B27: Underground Conduit | E27: 0 | F27: =IF(D27=0,+'App.2-CG_NewCGAAP_DepExp_2013'!O27,+'App.2-CG_NewCGAAP_DepExp_2013'!O27+((C27*0.5)/D27)) -> 0 | H27: 0 | I27: 0 | K27: =IF(ISERROR(+I27+'App.2-CG_NewCGAAP_DepExp_2013'!O27-J27), 0, +I27+'App.2-CG_NewCGAAP_DepExp_2013'!O27-J27) -> 0
A28: 1845 | B28: Underground Conductors & Devices | E28: 0 | F28: =IF(D28=0,+'App.2-CG_NewCGAAP_DepExp_2013'!O28,+'App.2-CG_NewCGAAP_DepExp_2013'!O28+((C28*0.5)/D28)) -> 0 | H28: 0 | I28: 0 | K28: =IF(ISERROR(+I28+'App.2-CG_NewCGAAP_DepExp_2013'!O28-J28), 0, +I28+'App.2-CG_NewCGAAP_DepExp_2013'!O28-J28) -> 0
A29: 1850 | B29: Line Transformers | E29: 0 | F29: =IF(D29=0,+'App.2-CG_NewCGAAP_DepExp_2013'!O29,+'App.2-CG_NewCGAAP_DepExp_2013'!O29+((C29*0.5)/D29)) -> 0 | H29: 0 | I29: 0 | K29: =IF(ISERROR(+I29+'App.2-CG_NewCGAAP_DepExp_2013'!O29-J29), 0, +I29+'App.2-CG_NewCGAAP_DepExp_2013'!O29-J29) -> 0
A30: 1855 | B30: Services (Overhead & Underground) | E30: 0 | F30: =IF(D30=0,+'App.2-CG_NewCGAAP_DepExp_2013'!O30,+'App.2-CG_NewCGAAP_DepExp_2013'!O30+((C30*0.5)/D30)) -> 0 | H30: 0 | I30: 0 | K30: =IF(ISERROR(+I30+'App.2-CG_NewCGAAP_DepExp_2013'!O30-J30), 0, +I30+'App.2-CG_NewCGAAP_DepExp_2013'!O30-J30) -> 0
A31: 1860 | B31: Meters | E31: 0 | F31: =IF(D31=0,+'App.2-CG_NewCGAAP_DepExp_2013'!O31,+'App.2-CG_NewCGAAP_DepExp_2013'!O31+((C31*0.5)/D31)) -> 0 | H31: 0 | I31: 0 | K31: =IF(ISERROR(+I31+'App.2-CG_NewCGAAP_DepExp_2013'!O31-J31), 0, +I31+'App.2-CG_NewCGAAP_DepExp_2013'!O31-J31) -> 0
A32: 1860 | B32: Meters (Smart Meters) | E32: 0 | F32: =IF(D32=0,+'App.2-CG_NewCGAAP_DepExp_2013'!O32,+'App.2-CG_NewCGAAP_DepExp_2013'!O32+((C32*0.5)/D32)) -> 0 | H32: 0 | I32: 0 | K32: =IF(ISERROR(+I32+'App.2-CG_NewCGAAP_DepExp_2013'!O32-J32), 0, +I32+'App.2-CG_NewCGAAP_DepExp_2013'!O32-J32) -> 0
A33: 1905 | B33: Land | E33: 0 | F33: =IF(D33=0,+'App.2-CG_NewCGAAP_DepExp_2013'!O33,+'App.2-CG_NewCGAAP_DepExp_2013'!O33+((C33*0.5)/D33)) -> 0 | H33: 0 | I33: 0 | K33: =IF(ISERROR(+I33+'App.2-CG_NewCGAAP_DepExp_2013'!O33-J33), 0, +I33+'App.2-CG_NewCGAAP_DepExp_2013'!O33-J33) -> 0
A34: 1908 | B34: Buildings & Fixtures | E34: 0 | F34: =IF(D34=0,+'App.2-CG_NewCGAAP_DepExp_2013'!O34,+'App.2-CG_NewCGAAP_DepExp_2013'!O34+((C34*0.5)/D34)) -> 0 | H34: 0 | I34: 0 | K34: =IF(ISERROR(+I34+'App.2-CG_NewCGAAP_DepExp_2013'!O34-J34), 0, +I34+'App.2-CG_NewCGAAP_DepExp_2013'!O34-J34) -> 0
A35: 1910 | B35: Leasehold Improvements | E35: 0 | F35: =IF(D35=0,+'App.2-CG_NewCGAAP_DepExp_2013'!O35,+'App.2-CG_NewCGAAP_DepExp_2013'!O35+((C35*0.5)/D35)) -> 0 | H35: 0 | I35: 0 | K35: =IF(ISERROR(+I35+'App.2-CG_NewCGAAP_DepExp_2013'!O35-J35), 0, +I35+'App.2-CG_NewCGAAP_DepExp_2013'!O35-J35) -> 0
A36: 1915 | B36: Office Furniture & Equipment (10 years) | E36: 0 | F36: =IF(D36=0,+'App.2-CG_NewCGAAP_DepExp_2013'!O36,+'App.2-CG_NewCGAAP_DepExp_2013'!O36+((C36*0.5)/D36)) -> 0 | H36: 0 | I36: 0 | K36: =IF(ISERROR(+I36+'App.2-CG_NewCGAAP_DepExp_2013'!O36-J36), 0, +I36+'App.2-CG_NewCGAAP_DepExp_2013'!O36-J36) -> 0
A37: 1915 | B37: Office Furniture & Equipment (5 years) | E37: 0 | F37: =IF(D37=0,+'App.2-CG_NewCGAAP_DepExp_2013'!O37,+'App.2-CG_NewCGAAP_DepExp_2013'!O37+((C37*0.5)/D37)) -> 0 | H37: 0 | I37: 0 | K37: =IF(ISERROR(+I37+'App.2-CG_NewCGAAP_DepExp_2013'!O37-J37), 0, +I37+'App.2-CG_NewCGAAP_DepExp_2013'!O37-J37) -> 0
A38: 1920 | B38: Computer Equipment - Hardware | E38: 0 | F38: =IF(D38=0,+'App.2-CG_NewCGAAP_DepExp_2013'!O38,+'App.2-CG_NewCGAAP_DepExp_2013'!O38+((C38*0.5)/D38)) -> 0 | H38: 0 | I38: 0 | K38: =IF(ISERROR(+I38+'App.2-CG_NewCGAAP_DepExp_2013'!O38-J38), 0, +I38+'App.2-CG_NewCGAAP_DepExp_2013'!O38-J38) -> 0
A39: 1920 | B39: Computer Equip.-Hardware(Post Mar. 22/04) | E39: 0 | F39: =IF(D39=0,+'App.2-CG_NewCGAAP_DepExp_2013'!O39,+'App.2-CG_NewCGAAP_DepExp_2013'!O39+((C39*0.5)/D39)) -> 0 | H39: 0 | I39: 0 | K39: =IF(ISERROR(+I39+'App.2-CG_NewCGAAP_DepExp_2013'!O39-J39), 0, +I39+'App.2-CG_NewCGAAP_DepExp_2013'!O39-J39) -> 0
A40: 1920 | B40: Computer Equip.-Hardware(Post Mar. 19/07) | E40: 0 | F40: =IF(D40=0,+'App.2-CG_NewCGAAP_DepExp_2013'!O40,+'App.2-CG_NewCGAAP_DepExp_2013'!O40+((C40*0.5)/D40)) -> 0 | H40: 0 | I40: 0 | K40: =IF(ISERROR(+I40+'App.2-CG_NewCGAAP_DepExp_2013'!O40-J40), 0, +I40+'App.2-CG_NewCGAAP_DepExp_2013'!O40-J40) -> 0
A41: 1930 | B41: Transportation Equipment | E41: 0 | F41: =IF(D41=0,+'App.2-CG_NewCGAAP_DepExp_2013'!O41,+'App.2-CG_NewCGAAP_DepExp_2013'!O41+((C41*0.5)/D41)) -> 0 | H41: 0 | I41: 0 | K41: =IF(ISERROR(+I41+'App.2-CG_NewCGAAP_DepExp_2013'!O41-J41), 0, +I41+'App.2-CG_NewCGAAP_DepExp_2013'!O41-J41) -> 0
A42: 1935 | B42: Stores Equipment | E42: 0 | F42: =IF(D42=0,+'App.2-CG_NewCGAAP_DepExp_2013'!O42,+'App.2-CG_NewCGAAP_DepExp_2013'!O42+((C42*0.5)/D42)) -> 0 | H42: 0 | I42: 0 | K42: =IF(ISERROR(+I42+'App.2-CG_NewCGAAP_DepExp_2013'!O42-J42), 0, +I42+'App.2-CG_NewCGAAP_DepExp_2013'!O42-J42) -> 0
A43: 1940 | B43: Tools, Shop & Garage Equipment | E43: 0 | F43: =IF(D43=0,+'App.2-CG_NewCGAAP_DepExp_2013'!O43,+'App.2-CG_NewCGAAP_DepExp_2013'!O43+((C43*0.5)/D43)) -> 0 | H43: 0 | I43: 0 | K43: =IF(ISERROR(+I43+'App.2-CG_NewCGAAP_DepExp_2013'!O43-J43), 0, +I43+'App.2-CG_NewCGAAP_DepExp_2013'!O43-J43) -> 0
A44: 1945 | B44: Measurement & Testing Equipment | E44: 0 | F44: =IF(D44=0,+'App.2-CG_NewCGAAP_DepExp_2013'!O44,+'App.2-CG_NewCGAAP_DepExp_2013'!O44+((C44*0.5)/D44)) -> 0 | H44: 0 | I44: 0 | K44: =IF(ISERROR(+I44+'App.2-CG_NewCGAAP_DepExp_2013'!O44-J44), 0, +I44+'App.2-CG_NewCGAAP_DepExp_2013'!O44-J44) -> 0
A45: 1950 | B45: Power Operated Equipment | E45: 0 | F45: =IF(D45=0,+'App.2-CG_NewCGAAP_DepExp_2013'!O45,+'App.2-CG_NewCGAAP_DepExp_2013'!O45+((C45*0.5)/D45)) -> 0 | H45: 0 | I45: 0 | K45: =IF(ISERROR(+I45+'App.2-CG_NewCGAAP_DepExp_2013'!O45-J45), 0, +I45+'App.2-CG_NewCGAAP_DepExp_2013'!O45-J45) -> 0
A46: 1955 | B46: Communications Equipment | E46: 0 | F46: =IF(D46=0,+'App.2-CG_NewCGAAP_DepExp_2013'!O46,+'App.2-CG_NewCGAAP_DepExp_2013'!O46+((C46*0.5)/D46)) -> 0 | H46: 0 | I46: 0 | K46: =IF(ISERROR(+I46+'App.2-CG_NewCGAAP_DepExp_2013'!O46-J46), 0, +I46+'App.2-CG_NewCGAAP_DepExp_2013'!O46-J46) -> 0
A47: 1955 | B47: Communication Equipment (Smart Meters) | E47: 0 | F47: =IF(D47=0,+'App.2-CG_NewCGAAP_DepExp_2013'!O47,+'App.2-CG_NewCGAAP_DepExp_2013'!O47+((C47*0.5)/D47)) -> 0 | H47: 0 | I47: 0 | K47: =IF(ISERROR(+I47+'App.2-CG_NewCGAAP_DepExp_2013'!O47-J47), 0, +I47+'App.2-CG_NewCGAAP_DepExp_2013'!O47-J47) -> 0
A48: 1960 | B48: Miscellaneous Equipment | E48: 0 | F48: =IF(D48=0,+'App.2-CG_NewCGAAP_DepExp_2013'!O48,+'App.2-CG_NewCGAAP_DepExp_2013'!O48+((C48*0.5)/D48)) -> 0 | H48: 0 | I48: 0 | K48: =IF(ISERROR(+I48+'App.2-CG_NewCGAAP_DepExp_2013'!O48-J48), 0, +I48+'App.2-CG_NewCGAAP_DepExp_2013'!O48-J48) -> 0
A49: 1970 | B49: Load Management Controls - Customer Premises | E49: 0 | F49: =IF(D49=0,+'App.2-CG_NewCGAAP_DepExp_2013'!O49,+'App.2-CG_NewCGAAP_DepExp_2013'!O49+((C49*0.5)/D49)) -> 0 | H49: 0 | I49: 0 | K49: =IF(ISERROR(+I49+'App.2-CG_NewCGAAP_DepExp_2013'!O49-J49), 0, +I49+'App.2-CG_NewCGAAP_DepExp_2013'!O49-J49) -> 0
A50: 1975 | B50: Load Management Controls Utility Premises | E50: 0 | F50: =IF(D50=0,+'App.2-CG_NewCGAAP_DepExp_2013'!O50,+'App.2-CG_NewCGAAP_DepExp_2013'!O50+((C50*0.5)/D50)) -> 0 | H50: 0 | I50: 0 | K50: =IF(ISERROR(+I50+'App.2-CG_NewCGAAP_DepExp_2013'!O50-J50), 0, +I50+'App.2-CG_NewCGAAP_DepExp_2013'!O50-J50) -> 0
A51: 1980 | B51: System Supervisor Equipment | E51: 0 | F51: =IF(D51=0,+'App.2-CG_NewCGAAP_DepExp_2013'!O51,+'App.2-CG_NewCGAAP_DepExp_2013'!O51+((C51*0.5)/D51)) -> 0 | H51: 0 | I51: 0 | K51: =IF(ISERROR(+I51+'App.2-CG_NewCGAAP_DepExp_2013'!O51-J51), 0, +I51+'App.2-CG_NewCGAAP_DepExp_2013'!O51-J51) -> 0
A52: 1985 | B52: Miscellaneous Fixed Assets | E52: 0 | F52: =IF(D52=0,+'App.2-CG_NewCGAAP_DepExp_2013'!O52,+'App.2-CG_NewCGAAP_DepExp_2013'!O52+((C52*0.5)/D52)) -> 0 | H52: 0 | I52: 0 | K52: =IF(ISERROR(+I52+'App.2-CG_NewCGAAP_DepExp_2013'!O52-J52), 0, +I52+'App.2-CG_NewCGAAP_DepExp_2013'!O52-J52) -> 0
A53: 1990 | B53: Other Tangible Property | E53: 0 | F53: =IF(D53=0,+'App.2-CG_NewCGAAP_DepExp_2013'!O53,+'App.2-CG_NewCGAAP_DepExp_2013'!O53+((C53*0.5)/D53)) -> 0 | H53: 0 | I53: 0 | K53: =IF(ISERROR(+I53+'App.2-CG_NewCGAAP_DepExp_2013'!O53-J53), 0, +I53+'App.2-CG_NewCGAAP_DepExp_2013'!O53-J53) -> 0
E54: 0 | F54: =IF(D54=0,+'App.2-CG_NewCGAAP_DepExp_2013'!O54,+'App.2-CG_NewCGAAP_DepExp_2013'!O54+((C54*0.5)/D54)) -> 0 | H54: 0 | I54: 0 | K54: =IF(ISERROR(+I54+'App.2-CG_NewCGAAP_DepExp_2013'!O54-J54), 0, +I54+'App.2-CG_NewCGAAP_DepExp_2013'!O54-J54) -> 0
B55: Total | C55: =SUM(C17:C54) -> 0 | F55: =SUM(F17:F54) -> 0 | G55: 0 | H55: 0 | I55: 0 | J55: 0 | K55: 0
B56: Depreciation exp. adj. from gain or loss on the retirement of assets (pool of like assets)
B57: Total Depreciation Expense | F57: =SUM(F55:F56) -> 0
A59: Notes:
A60: 1 | B60: Board policy of the "half-year" rule - the applicant must ensure that additions in the year attract a half-year depreciation expense in the first year. Deviations from this standard practice must be supported in the application.
A61: 2 | B61: The applicant must provide an explanation of material variances in evidence.
A62: 3 | B62: This column refers to the calculated full year depreciation but excludes the depreciation expense on assets fully depreciated during the year. This column is used for the purpose of calculating depreciation expense in the following year on the next worksheet.
A64: General: | B64: Applicants must provide a breakdown of depreciation and amortization expense in the above format for all relevant accounts. Asset Retirement Obligations (AROs), depreciation and accretion expense should be disclosed separately consistent with the Notes of historical Audited Financial Statements.

Sheet App.2-CI MIFRS_DepExp_2015
G1: File Number: | H1: =EBNUMBER -> EB-2015-0083
G2: Exhibit:
G3: Tab:
G4: Schedule:
G5: Page:
G7: Date:
A9: Appendix 2-CQ
A10: Depreciation and Amortization Expense
A11: Assumes the applicant made capitalization and depreciation expense accounting policy changes under CGAAP effective January 1, 2013 and will adopt IFRS for financial reporting purposes effective January 1, 2015.
D13: 2015 | E13: MIFRS
A15: Account | B15: Description | C15: Additions | D15: Years (new additions only) | E15: Depreciation Rate on New Additions | F15: 2015 Depreciation Expense 1 | G15: 2015 Depreciation Expense per Appendix 2-BA Fixed Assets, Column J (l) | H15: Variance 2
C16: (d) | D16: (f) | E16: (g) = 1 / (f) | F16: (h)=2014 Full Year Depreciation + ((d)*0.5)/(f) | H16: (m) = (h) - (l)
A17: 1611 | B17: Computer Software (Formally known as Account 1925) | E17: =IF(D17=0,0,1/D17) -> 0 | F17: =IF(D17=0,'App.2-CH_MIFRS_DepExp_2014'!K17,+'App.2-CH_MIFRS_DepExp_2014'!K17+((C17*0.5)/D17)) -> 0 | H17: =IF(ISERROR(+F17-G17), 0, +F17-G17) -> 0
A18: 1612 | B18: Land Rights (Formally known as Account 1906) | E18: 0 | F18: =IF(D18=0,'App.2-CH_MIFRS_DepExp_2014'!K18,+'App.2-CH_MIFRS_DepExp_2014'!K18+((C18*0.5)/D18)) -> 0 | H18: 0
A19: 1805 | B19: Land | E19: 0 | F19: =IF(D19=0,'App.2-CH_MIFRS_DepExp_2014'!K19,+'App.2-CH_MIFRS_DepExp_2014'!K19+((C19*0.5)/D19)) -> 0 | H19: 0
A20: 1808 | B20: Buildings | E20: 0 | F20: =IF(D20=0,'App.2-CH_MIFRS_DepExp_2014'!K20,+'App.2-CH_MIFRS_DepExp_2014'!K20+((C20*0.5)/D20)) -> 0 | H20: 0
A21: 1810 | B21: Leasehold Improvements | E21: 0 | F21: =IF(D21=0,'App.2-CH_MIFRS_DepExp_2014'!K21,+'App.2-CH_MIFRS_DepExp_2014'!K21+((C21*0.5)/D21)) -> 0 | H21: 0
A22: 1815 | B22: Transformer Station Equipment >50 kV | E22: 0 | F22: =IF(D22=0,'App.2-CH_MIFRS_DepExp_2014'!K22,+'App.2-CH_MIFRS_DepExp_2014'!K22+((C22*0.5)/D22)) -> 0 | H22: 0
A23: 1820 | B23: Distribution Station Equipment <50 kV | E23: 0 | F23: =IF(D23=0,'App.2-CH_MIFRS_DepExp_2014'!K23,+'App.2-CH_MIFRS_DepExp_2014'!K23+((C23*0.5)/D23)) -> 0 | H23: 0
A24: 1825 | B24: Storage Battery Equipment | E24: 0 | F24: =IF(D24=0,'App.2-CH_MIFRS_DepExp_2014'!K24,+'App.2-CH_MIFRS_DepExp_2014'!K24+((C24*0.5)/D24)) -> 0 | H24: 0
A25: 1830 | B25: Poles, Towers & Fixtures | E25: 0 | F25: =IF(D25=0,'App.2-CH_MIFRS_DepExp_2014'!K25,+'App.2-CH_MIFRS_DepExp_2014'!K25+((C25*0.5)/D25)) -> 0 | H25: 0
A26: 1835 | B26: Overhead Conductors & Devices | E26: 0 | F26: =IF(D26=0,'App.2-CH_MIFRS_DepExp_2014'!K26,+'App.2-CH_MIFRS_DepExp_2014'!K26+((C26*0.5)/D26)) -> 0 | H26: 0
A27: 1840 | B27: Underground Conduit | E27: 0 | F27: =IF(D27=0,'App.2-CH_MIFRS_DepExp_2014'!K27,+'App.2-CH_MIFRS_DepExp_2014'!K27+((C27*0.5)/D27)) -> 0 | H27: 0
A28: 1845 | B28: Underground Conductors & Devices | E28: 0 | F28: =IF(D28=0,'App.2-CH_MIFRS_DepExp_2014'!K28,+'App.2-CH_MIFRS_DepExp_2014'!K28+((C28*0.5)/D28)) -> 0 | H28: 0
A29: 1850 | B29: Line Transformers | E29: 0 | F29: =IF(D29=0,'App.2-CH_MIFRS_DepExp_2014'!K29,+'App.2-CH_MIFRS_DepExp_2014'!K29+((C29*0.5)/D29)) -> 0 | H29: 0
A30: 1855 | B30: Services (Overhead & Underground) | E30: 0 | F30: =IF(D30=0,'App.2-CH_MIFRS_DepExp_2014'!K30,+'App.2-CH_MIFRS_DepExp_2014'!K30+((C30*0.5)/D30)) -> 0 | H30: 0
A31: 1860 | B31: Meters | E31: 0 | F31: =IF(D31=0,'App.2-CH_MIFRS_DepExp_2014'!K31,+'App.2-CH_MIFRS_DepExp_2014'!K31+((C31*0.5)/D31)) -> 0 | H31: 0
A32: 1860 | B32: Meters (Smart Meters) | E32: 0 | F32: =IF(D32=0,'App.2-CH_MIFRS_DepExp_2014'!K32,+'App.2-CH_MIFRS_DepExp_2014'!K32+((C32*0.5)/D32)) -> 0 | H32: 0
A33: 1905 | B33: Land | E33: 0 | F33: =IF(D33=0,'App.2-CH_MIFRS_DepExp_2014'!K33,+'App.2-CH_MIFRS_DepExp_2014'!K33+((C33*0.5)/D33)) -> 0 | H33: 0
A34: 1908 | B34: Buildings & Fixtures | E34: 0 | F34: =IF(D34=0,'App.2-CH_MIFRS_DepExp_2014'!K34,+'App.2-CH_MIFRS_DepExp_2014'!K34+((C34*0.5)/D34)) -> 0 | H34: 0
A35: 1910 | B35: Leasehold Improvements | E35: 0 | F35: =IF(D35=0,'App.2-CH_MIFRS_DepExp_2014'!K35,+'App.2-CH_MIFRS_DepExp_2014'!K35+((C35*0.5)/D35)) -> 0 | H35: 0
A36: 1915 | B36: Office Furniture & Equipment (10 years) | E36: 0 | F36: =IF(D36=0,'App.2-CH_MIFRS_DepExp_2014'!K36,+'App.2-CH_MIFRS_DepExp_2014'!K36+((C36*0.5)/D36)) -> 0 | H36: 0
A37: 1915 | B37: Office Furniture & Equipment (5 years) | E37: 0 | F37: =IF(D37=0,'App.2-CH_MIFRS_DepExp_2014'!K37,+'App.2-CH_MIFRS_DepExp_2014'!K37+((C37*0.5)/D37)) -> 0 | H37: 0
A38: 1920 | B38: Computer Equipment - Hardware | E38: 0 | F38: =IF(D38=0,'App.2-CH_MIFRS_DepExp_2014'!K38,+'App.2-CH_MIFRS_DepExp_2014'!K38+((C38*0.5)/D38)) -> 0 | H38: 0
A39: 1920 | B39: Computer Equip.-Hardware(Post Mar. 22/04) | E39: 0 | F39: =IF(D39=0,'App.2-CH_MIFRS_DepExp_2014'!K39,+'App.2-CH_MIFRS_DepExp_2014'!K39+((C39*0.5)/D39)) -> 0 | H39: 0
A40: 1920 | B40: Computer Equip.-Hardware(Post Mar. 19/07) | E40: 0 | F40: =IF(D40=0,'App.2-CH_MIFRS_DepExp_2014'!K40,+'App.2-CH_MIFRS_DepExp_2014'!K40+((C40*0.5)/D40)) -> 0 | H40: 0
A41: 1930 | B41: Transportation Equipment | E41: 0 | F41: =IF(D41=0,'App.2-CH_MIFRS_DepExp_2014'!K41,+'App.2-CH_MIFRS_DepExp_2014'!K41+((C41*0.5)/D41)) -> 0 | H41: 0
A42: 1935 | B42: Stores Equipment | E42: 0 | F42: =IF(D42=0,'App.2-CH_MIFRS_DepExp_2014'!K42,+'App.2-CH_MIFRS_DepExp_2014'!K42+((C42*0.5)/D42)) -> 0 | H42: 0
A43: 1940 | B43: Tools, Shop & Garage Equipment | E43: 0 | F43: =IF(D43=0,'App.2-CH_MIFRS_DepExp_2014'!K43,+'App.2-CH_MIFRS_DepExp_2014'!K43+((C43*0.5)/D43)) -> 0 | H43: 0
A44: 1945 | B44: Measurement & Testing Equipment | E44: 0 | F44: =IF(D44=0,'App.2-CH_MIFRS_DepExp_2014'!K44,+'App.2-CH_MIFRS_DepExp_2014'!K44+((C44*0.5)/D44)) -> 0 | H44: 0
A45: 1950 | B45: Power Operated Equipment | E45: 0 | F45: =IF(D45=0,'App.2-CH_MIFRS_DepExp_2014'!K45,+'App.2-CH_MIFRS_DepExp_2014'!K45+((C45*0.5)/D45)) -> 0 | H45: 0
A46: 1955 | B46: Communications Equipment | E46: 0 | F46: =IF(D46=0,'App.2-CH_MIFRS_DepExp_2014'!K46,+'App.2-CH_MIFRS_DepExp_2014'!K46+((C46*0.5)/D46)) -> 0 | H46: 0
A47: 1955 | B47: Communication Equipment (Smart Meters) | E47: 0 | F47: =IF(D47=0,'App.2-CH_MIFRS_DepExp_2014'!K47,+'App.2-CH_MIFRS_DepExp_2014'!K47+((C47*0.5)/D47)) -> 0 | H47: 0
A48: 1960 | B48: Miscellaneous Equipment | E48: 0 | F48: =IF(D48=0,'App.2-CH_MIFRS_DepExp_2014'!K48,+'App.2-CH_MIFRS_DepExp_2014'!K48+((C48*0.5)/D48)) -> 0 | H48: 0
A49: 1970 | B49: Load Management Controls - Customer Premises | E49: 0 | F49: =IF(D49=0,'App.2-CH_MIFRS_DepExp_2014'!K49,+'App.2-CH_MIFRS_DepExp_2014'!K49+((C49*0.5)/D49)) -> 0 | H49: 0
A50: 1975 | B50: Load Management Controls Utility Premises | E50: 0 | F50: =IF(D50=0,'App.2-CH_MIFRS_DepExp_2014'!K50,+'App.2-CH_MIFRS_DepExp_2014'!K50+((C50*0.5)/D50)) -> 0 | H50: 0
A51: 1980 | B51: System Supervisor Equipment | E51: 0 | F51: =IF(D51=0,'App.2-CH_MIFRS_DepExp_2014'!K51,+'App.2-CH_MIFRS_DepExp_2014'!K51+((C51*0.5)/D51)) -> 0 | H51: 0
A52: 1985 | B52: Miscellaneous Fixed Assets | E52: 0 | F52: =IF(D52=0,'App.2-CH_MIFRS_DepExp_2014'!K52,+'App.2-CH_MIFRS_DepExp_2014'!K52+((C52*0.5)/D52)) -> 0 | H52: 0
A53: 1990 | B53: Other Tangible Property | E53: 0 | F53: =IF(D53=0,'App.2-CH_MIFRS_DepExp_2014'!K53,+'App.2-CH_MIFRS_DepExp_2014'!K53+((C53*0.5)/D53)) -> 0 | H53: 0
A54: 1995 | B54: Contributions & Grants | E54: 0 | F54: =IF(D54=0,'App.2-CH_MIFRS_DepExp_2014'!K54,+'App.2-CH_MIFRS_DepExp_2014'!K54+((C54*0.5)/D54)) -> 0 | H54: 0
B55: Total | C55: =SUM(C17:C54) -> 0 | F55: =SUM(F17:F54) -> 0 | G55: =SUM(G17:G54) -> 0 | H55: =SUM(H17:H54) -> 0
B56: Depreciation exp. adj. from gain or loss on the retirement of assets (pool of like assets)
B57: Total Depreciation expense to be included in the test year revenue requirement | F57: =SUM(F55:F56) -> 0
A58: Notes:
A59: 1 | B59: Board policy of the "half-year" rule - the applicant must ensure that additions in the year attract a half-year depreciation expense in the first year. Deviations from this standard practice must be supported in the application.
A60: 2 | B60: The applicant must provide an explanation of material variances in evidence.
A62: General: | B62: Applicants must provide a breakdown of depreciation and amortization expense in the above format for all relevant accounts. Asset Retirement Obligations (AROs), depreciation and accretion expense should be disclosed separately consistent with the Notes of historical Audited Financial Statements.

Sheet App.2-D_Overhead
F1: File Number: | G1: =EBNUMBER -> EB-2015-0083
F2: Exhibit:
F3: Tab:
F4: Schedule:
F5: Page:
F7: Date:
A9: Appendix 2-D
A10: Overhead Expense
A12: Applicants are to provide a breakdown of OM&A before capitalization in the below table. OM&A before capitalization may be broken down by cost center, program, drivers or another format best suited to focus on capitalized vs. uncapitalized OM&A.
A14: OM&A Before Capitalization
B15: 2011 | C15: 2012 | D15: 2013 | E15: 2014 | F15: 2015
B16: Historical Year | C16: Historical Year | D16: Historical Year | E16: Bridge Year | F16: Test Year
A27: Total OM&A Before Capitalization (B) | B27: =SUM(B17:B26) -> 0 | C27: =SUM(C17:C26) -> 0 | D27: 0 | E27: 0 | F27: 0
A29: Applicants are to provide a breakdown of capitalized OM&A in the below table. Capitalized OM&A may be broken down using the categories listed in the table below if possible. Otherwise, applicants are to provide its own break down of capitalized OM&A.
A31: Capitalized OM&A | G31: Directly | H31: Explanation for Change in Overhead Capitalized
B32: 2011 | C32: 2012 | D32: 2013 | E32: 2014 | F32: 2015 | G32: Attributable?
B33: Historical Year | C33: Historical Year | D33: Historical Year | E33: Bridge Year | F33: Test Year | G33: (Y/N)
A34: employee benefits
A35: costs of site preparation
A36: initial delivery and handling costs
A37: costs of testing whether the asset is functioning properly
A38: professional fees
A40: costs of opening a new facility
A41: costs of introducing a new product or service (including costs of advertising and promotional activities)
A42: costs of conducting business in a new location or with a new class of customer (including costs of staff training)
A43: administration and other general overhead costs
A45: Insert description of additional item(s) and new rows if needed
A47: Total Capitalized OM&A (A) | B47: =SUM(B34:B46) -> 0 | C47: =SUM(C34:C46) -> 0 | D47: =SUM(D34:D46) -> 0 | E47: =SUM(E34:E46) -> 0 | F47: =SUM(F34:F46) -> 0
A49: % of Capitalized OM&A (=A/B) | B49: =IF(ISERROR(B47/B27),"0%",B47/B27) -> 0% | C49: =IF(ISERROR(C47/C27),"0%",C47/C27) -> 0% | D49: 0% | E49: 0% | F49: 0%

Sheet App.2-EA_1575 (2015)
I1: File Number: | J1: =EBNUMBER -> EB-2015-0083
I2: Exhibit:
I3: Tab:
I4: Schedule:
I5: Page:
I7: Date:
A9: Appendix 2-EA
A10: Account 1575 - IFRS-CGAAP Transitional PP&E Amounts
A11: 2015 Adopters of IFRS for Financial Reporting Purposes
A13: For applicants that will adopt IFRS on January 1, 2015 for financial reporting purposes
B17: =RebaseYear &" Rebasing Year" -> 2011 Rebasing Year | C17: 2011 | D17: 2012 | E17: 2013 | F17: 2014 | G17: 2015 Rebasing Year
A18: Reporting Basis | B18: CGAAP | C18: IRM | D18: IRM | E18: IRM | F18: IRM | G18: MIFRS
B19: Forecast | C19: Actual | D19: Actual | E19: Actual | F19: Forecast | G19: Forecast
F20: $ | G20: $
A21: PP&E Values under CGAAP
A22: Opening net PP&E - Note 1
A23: Net Additions - Note 4
A24: Net Depreciation (amounts should be negative) - Note 4
A25: Closing net PP&E (1) | F25: =SUM(F22:F24) -> 0
A27: PP&E Values under MIFRS (Starts from 2014, the transition year)
A28: Opening net PP&E - Note 1
A29: Net Additions - Note 4
A30: Net Depreciation (amounts should be negative) - Note 4
A31: Closing net PP&E (2) | F31: =SUM(F28:F30) -> 0
A33: Difference in Closing net PP&E, CGAAP vs. MIFRS | F33: =F25-F31 -> 0
A36: Effect on Deferral and Variance Account Rate Riders
A37: Closing balance in deferral account | G37: =IF(ISERROR(F33), 0, F33) -> 0 | I37: WACC
A38: Return on Rate Base Associated with deferred PP&E balance at WACC - Note 2 | G38: =F33*J37*J38 -> 0 | H38: # of years of rate rider disposition period
A39: Amount included in Deferral and Variance Account Rate Rider Calculation | G39: =G37+G38 -> 0
A41: Notes:
A42: 1 For an applicant that adopts IFRS on January 1, 2015, the PP&E values as of January 1, 2014 under both CGAAP and MIFRS should be the same.
A43: 2 Return on rate base associated with deferred balance is calculated as:
A44: the deferral account opening balance as of 2015 rebasing year x WACC X # of years of rate rider disposition period
A45: * Please note that the calculation should be adjusted once WACC is updated and finalized in the rate application.
A46: 3 The PP&E deferral account is cleared by including the total balance in the deferral and variance account rate rider calculation.
A47: 4 Net additions are additions net of disposals; Net depreciation is additions to depreciation net of disposals.

Sheet App.2-EB_Account 1576 (2012)
I1: File Number: | J1: =EBNUMBER -> EB-2015-0083
I2: Exhibit:
I3: Tab:
I4: Schedule:
I5: Page:
I7: Date:
A9: Appendix 2-EB
A10: Account 1576 - Accounting Changes under CGAAP
A11: 2012 Changes in Accounting Policies under CGAAP
A13: For applicants that made capitalization and depreciation expense accounting policy changes under CGAAP effective January 1, 2012
B17: =RebaseYear &" Rebasing Year" -> 2011 Rebasing Year | C17: 2011 | D17: 2012 | E17: 2013 | F17: 2014 | G17: 2015 Rebasing Year
A18: Reporting Basis | B18: CGAAP | C18: IRM | D18: IRM | E18: IRM | F18: IRM | G18: MIFRS
B19: Forecast | C19: Actual | D19: Actual | E19: Actual | F19: Forecast | G19: Forecast
D20: $ | F20: $ | G20: $
A21: PP&E Values under former CGAAP
A22: Opening net PP&E - Note 1 | E22: =+D25 -> 0 | F22: =+E25 -> 0
A23: Net Additions - Note 4
A24: Net Depreciation (amounts should be negative) - Note 4
A25: Closing net PP&E (1) | D25: =D22+D23+D24 -> 0 | E25: =E22+E23+E24 -> 0 | F25: =F22+F23+F24 -> 0
A27: PP&E Values under revised CGAAP (Starts from 2012)
A28: Opening net PP&E - Note 1 | E28: =+D31 -> 0 | F28: =+E31 -> 0
A29: Net Additions - Note 4
A30: Net Depreciation (amounts should be negative) - Note 4
A31: Closing net PP&E (2) | D31: =SUM(D28:D30) -> 0 | E31: =SUM(E28:E30) -> 0 | F31: =SUM(F28:F30) -> 0
A33: Difference in Closing net PP&E, former CGAAP vs. revised CGAAP | D33: =D25-D31 -> 0 | E33: =E25-E31 -> 0 | F33: =F25-F31 -> 0
A36: Effect on Deferral and Variance Account Rate Riders
A37: Closing balance in Account 1576 | G37: =IF(ISERROR(F33), 0, F33) -> 0 | I37: WACC
A38: Return on Rate Base Associated with Account 1576 balance at WACC - Note 2 | G38: =F33*J37*J38 -> 0 | H38: # of years of rate rider disposition period
A39: Amount included in Deferral and Variance Account Rate Rider Calculation | G39: =G37+G38 -> 0
A41: Notes:
A42: 1 For an applicant that made the capitalization and depreciation expense accounting policy changes on January 1, 2012, the PP&E values as of January 1, 2012 under both former CGAAP and revised CGAAP should be the same.
A43: 2 Return on rate base associated with Account 1576 balance is calculated as:
A44: the variance account opening balance as of 2015 rebasing year x WACC X # of years of rate rider disposition period
A45: * Please note that the calculation should be adjusted once WACC is updated and finalized in the rate application.
A46: 3 Account 1576 is cleared by including the total balance in the deferral and variance account rate rider calculation.
A47: 4 Net additions are additions net of disposals; Net depreciation is additions to depreciation net of disposals.

Sheet App.2-EC_Account 1576 (2013)
I1: File Number: | J1: =EBNUMBER -> EB-2015-0083
I2: Exhibit:
I3: Tab:
I4: Schedule:
I5: Page:
I7: Date:
A9: Appendix 2-EC
A10: Account 1576 - Accounting Changes under CGAAP
A11: 2013 Changes in Accounting Policies under CGAAP
A13: For applicants that made capitalization and depreciation expense accounting policy changes under CGAAP effective January 1, 2013
B17: =RebaseYear &" Rebasing Year" -> 2011 Rebasing Year | C17: 2011 | D17: 2012 | E17: 2013 | F17: 2014 | G17: 2015 Rebasing Year
A18: Reporting Basis | B18: CGAAP | C18: IRM | D18: IRM | E18: IRM | F18: IRM | G18: MIFRS
B19: Forecast | C19: Actual | D19: Actual | E19: Actual | F19: Forecast | G19: Forecast
F20: $ | G20: $
A21: PP&E Values under former CGAAP
A22: Opening net PP&E - Note 1 | F22: =+E25 -> 0
A23: Net Additions - Note 4
A24: Net Depreciation (amounts should be negative) - Note 4
A25: Closing net PP&E (1) | E25: =E22+E23+E24 -> 0 | F25: =SUM(F22:F24) -> 0
A27: PP&E Values under revised CGAAP (Starts from 2013)
A28: Opening net PP&E - Note 1 | F28: =+E31 -> 0
A29: Net Additions - Note 4
A30: Net Depreciation (amounts should be negative) - Note 4
A31: Closing net PP&E (2) | E31: =SUM(E28:E30) -> 0 | F31: =SUM(F28:F30) -> 0
A33: Difference in Closing net PP&E, former CGAAP vs. revised CGAAP | E33: =E25-E31 -> 0 | F33: =F25-F31 -> 0
A36: Effect on Deferral and Variance Account Rate Riders
A37: Closing balance in Account 1576 | G37: =IF(ISERROR(F33), 0, F33) -> 0 | I37: WACC
A38: Return on Rate Base Associated with Account 1576 balance at WACC - Note 2 | G38: =F33*J37*J38 -> 0 | H38: # of years of rate rider disposition period
A39: Amount included in Deferral and Variance Account Rate Rider Calculation | G39: =G37+G38 -> 0
A41: Notes:
A42: 1 For an applicant that made the capitalization and depreciation expense accounting policy changes on January 1, 2013, the PP&E values as of January 1, 2013 under both former CGAAP and revised CGAAP should be the same.
A43: 2 Return on rate base associated with Account 1576 balance is calculated as:
A44: the variance account opening balance as of 2015 rebasing year x WACC X # of years of rate rider disposition period
A45: * Please note that the calculation should be adjusted once WACC is updated and finalized in the rate application.
A46: 3 Account 1576 is cleared by including the total balance in the deferral and variance account rate rider calculation.
A47: 4 Net additions are additions net of disposals; Net depreciation is additions to depreciation net of disposals.

Sheet App.2-FA Proposed REG Invest.
J1: File Number: | K1: =EBNUMBER -> EB-2015-0083
J2: Exhibit:
J3: Tab:
J4: Schedule:
J5: Page:
J7: Date:
A9: Appendix 2-FA
A10: Renewable Generation Connection Investment Summary (past investments or over the future rate setting period)
A12: Enter the details of the Renewable Generation Connection projects as described in the appropriate section of the Filing Requirements.
A13: All costs entered on this page will be transferred to the appropriate cells in the appendices that follow.
A14: For Part A, Renewable Enabling Improvements (REI), these amounts will be transferred to Appendix 2 - FB
A15: For Part B, Expansions, these amounts will be transferred to Appendix 2 - FC
A17: If there are more than five projects proposed to be in-service in a certain year, please amend the tables below and ensure that the formulae for the Total Amounts in any given rate year are updated.
A18: Based on the current methodology and allocation, amounts allocated represent 6% for REI Connection Investments and 17% for Expansion Investments. (pg 15, EB-2009-0349)
A20: There are two scenarios described below. Separate sets of spreadsheets (2-FA, 2-FB, 2-FC) should be submited for each scenario as required.
A21: Scenario 1: Past Investments with No Recovery. The distributor has made investments in the past (during the IRM Years), but has not received approval for these projects and therefore did not receive
A22: revenue from the IESO under Regulation 330/09 and did not receive ratepayer revenue for the direct benefit portion of the investment.
A23: The WCA percentage, debt percentages, interest rates, kWh, tax rates, amortization period, CCA Class and percentage should correspond to the distributor's last Cost of Service approval.
A24: The Direct Benefit portion of the calculated Revenue Requirement for each year should be summed and can be applied for recovery from the distributor's ratepayers through a rate rider.
A25: The Provincial Recovery portion of the calculated Revenue Requirement for each year should be summed and can be applied for recovery from the IESO through a separate order.
A27: Scenario 2: Investments in the Test Year and Beyond. Distributor plans to make investments in 2015 and/or beyond. These investments should be added to 2-FA in the appropriate year.
A28: The WCA percentage, debt percentages, interest rates, kWh, tax rates, amortization period, CCA Class and percentage should correspond to the distributor's current application.
A30: Part A
A31: REI Investments (Direct Benefit at 6%) | C31: 2011 | D31: 2012 | E31: 2013 | F31: 2014 | G31: 2015 | H31: =G31+1 -> 2016 | I31: =H31+1 -> 2017 | J31: 2018 | K31: 2019
A32: Project 1
A33: Name: REI Connection Project
A34: Capital Costs | C34: 0 | D34: 0 | E34: 0 | F34: 0 | G34: 0 | H34: 0 | I34: 0 | J34: 0 | K34: 0
A35: OM&A (Start-Up) | C35: 0 | D35: 0 | E35: 0 | F35: 0 | G35: 0 | H35: 0 | I35: 0 | J35: 0 | K35: 0
A36: OM&A (Ongoing) | C36: 0 | D36: 0 | E36: 0 | F36: 0 | G36: 0 | H36: 0 | I36: 0 | J36: 0 | K36: 0
A38: Project 2
A39: Name: REI Connection Project
A40: Capital Costs | C40: 0 | D40: 0 | E40: 0 | F40: 0 | G40: 0 | H40: 0 | I40: 0 | J40: 0 | K40: 0
A41: OM&A (Start-Up) | C41: 0 | D41: 0 | E41: 0 | F41: 0 | G41: 0 | H41: 0 | I41: 0 | J41: 0 | K41: 0
A42: OM&A (Ongoing) | C42: 0 | D42: 0 | E42: 0 | F42: 0 | G42: 0 | H42: 0 | I42: 0 | J42: 0 | K42: 0
A44: Project 3
A45: Name: REI Connection Project
A46: Capital Costs | C46: 0 | D46: 0 | E46: 0 | F46: 0 | G46: 0 | H46: 0 | I46: 0 | J46: 0 | K46: 0
A47: OM&A (Start-Up) | C47: 0 | D47: 0 | E47: 0 | F47: 0 | G47: 0 | H47: 0 | I47: 0 | J47: 0 | K47: 0
A48: OM&A (Ongoing) | C48: 0 | D48: 0 | E48: 0 | F48: 0 | G48: 0 | H48: 0 | I48: 0 | J48: 0 | K48: 0
A50: Project 4
A51: Name: REI Connection Project
A52: Capital Costs | C52: 0 | D52: 0 | E52: 0 | F52: 0 | G52: 0 | H52: 0 | I52: 0 | J52: 0 | K52: 0
A53: OM&A (Start-Up) | C53: 0 | D53: 0 | E53: 0 | F53: 0 | G53: 0 | H53: 0 | I53: 0 | J53: 0 | K53: 0
A54: OM&A (Ongoing) | C54: 0 | D54: 0 | E54: 0 | F54: 0 | G54: 0 | H54: 0 | I54: 0 | J54: 0 | K54: 0
A56: Project 5
A57: Name: REI Connection Project
A58: Capital Costs | C58: 0 | D58: 0 | E58: 0 | F58: 0 | G58: 0 | H58: 0 | I58: 0 | J58: 0 | K58: 0
A59: OM&A (Start-Up) | C59: 0 | D59: 0 | E59: 0 | F59: 0 | G59: 0 | H59: 0 | I59: 0 | J59: 0 | K59: 0
A60: OM&A (Ongoing) | C60: 0 | D60: 0 | E60: 0 | F60: 0 | G60: 0 | H60: 0 | I60: 0 | J60: 0 | K60: 0
A62: Total Capital Costs | C62: =SUM(C58,C52,C46,C40,C34) -> 0 | D62: 0 | E62: 0 | F62: 0 | G62: =SUM(G58,G52,G46,G40,G34) -> 0 | H62: =SUM(H58,H52,H46,H40,H34) -> 0 | I62: 0 | J62: 0 | K62: 0
A63: Total OM&A (Start-Up) | C63: 0 | D63: 0 | E63: 0 | F63: 0 | G63: =SUM(G59,G53,G47,G41,G35) -> 0 | H63: 0 | I63: 0 | J63: 0 | K63: 0
A64: Total OM&A (Ongoing) | C64: 0 | D64: 0 | E64: 0 | F64: 0 | G64: =SUM(G60,G54,G48,G42,G36) -> 0 | H64: 0 | I64: 0 | J64: 0 | K64: 0
A67: Part B
A68: Expansion Investments (Direct Benefit at 17%) | C68: 2011 | D68: 2012 | E68: 2013 | F68: 2014 | G68: 2015 | H68: =G68+1 -> 2016 | I68: =H68+1 -> 2017 | J68: 2018 | K68: 2019
A69: Project 1
A70: Name: Expansion Connection Project
A71: Capital Costs | C71: 0 | D71: 0 | E71: 0 | F71: 0 | G71: 0 | H71: 0 | I71: 0 | J71: 0 | K71: 0
A72: OM&A (Start-Up) | C72: 0 | D72: 0 | E72: 0 | F72: 0 | G72: 0 | H72: 0 | I72: 0 | J72: 0 | K72: 0
A73: OM&A (Ongoing) | C73: 0 | D73: 0 | E73: 0 | F73: 0 | G73: 0 | H73: 0 | I73: 0 | J73: 0 | K73: 0
A75: Project 2
A76: Name: Expansion Connection Project
A77: Capital Costs | C77: 0 | D77: 0 | E77: 0 | F77: 0 | G77: 0 | H77: 0 | I77: 0 | J77: 0 | K77: 0
A78: OM&A (Start-Up) | C78: 0 | D78: 0 | E78: 0 | F78: 0 | G78: 0 | H78: 0 | I78: 0 | J78: 0 | K78: 0
A79: OM&A (Ongoing) | C79: 0 | D79: 0 | E79: 0 | F79: 0 | G79: 0 | H79: 0 | I79: 0 | J79: 0 | K79: 0
A81: Project 3
A82: Name: Expansion Connection Project
A83: Capital Costs | C83: 0 | D83: 0 | E83: 0 | F83: 0 | G83: 0 | H83: 0 | I83: 0 | J83: 0 | K83: 0
A84: OM&A (Start-Up) | C84: 0 | D84: 0 | E84: 0 | F84: 0 | G84: 0 | H84: 0 | I84: 0 | J84: 0 | K84: 0
A85: OM&A (Ongoing) | C85: 0 | D85: 0 | E85: 0 | F85: 0 | G85: 0 | H85: 0 | I85: 0 | J85: 0 | K85: 0
A87: Project 4
A88: Name: Expansion Connection Project
A89: Capital Costs | C89: 0 | D89: 0 | E89: 0 | F89: 0 | G89: 0 | H89: 0 | I89: 0 | J89: 0 | K89: 0
A90: OM&A (Start-Up) | C90: 0 | D90: 0 | E90: 0 | F90: 0 | G90: 0 | H90: 0 | I90: 0 | J90: 0 | K90: 0
A91: OM&A (Ongoing) | C91: 0 | D91: 0 | E91: 0 | F91: 0 | G91: 0 | H91: 0 | I91: 0 | J91: 0 | K91: 0
A93: Project 5
A94: Name: Expansion Connection Project
A95: Capital Costs | C95: 0 | D95: 0 | E95: 0 | F95: 0 | G95: 0 | H95: 0 | I95: 0 | J95: 0 | K95: 0
A96: OM&A (Start-Up) | C96: 0 | D96: 0 | E96: 0 | F96: 0 | G96: 0 | H96: 0 | I96: 0 | J96: 0 | K96: 0
A97: OM&A (Ongoing) | C97: 0 | D97: 0 | E97: 0 | F97: 0 | G97: 0 | H97: 0 | I97: 0 | J97: 0 | K97: 0
A99: Total Capital Costs | C99: =SUM(C95,C89,C83,C77,C71) -> 0 | D99: 0 | E99: 0 | F99: 0 | G99: =SUM(G95,G89,G83,G77,G71) -> 0 | H99: =SUM(H95,H89,H83,H77,H71) -> 0 | I99: 0 | J99: 0 | K99: 0
A100: Total OM&A (Start-Up) | C100: 0 | D100: 0 | E100: 0 | F100: 0 | G100: =SUM(G96,G90,G84,G78,G72) -> 0 | H100: 0 | I100: 0 | J100: 0 | K100: 0
A101: Total OM&A (Ongoing) | C101: 0 | D101: 0 | E101: 0 | F101: 0 | G101: =SUM(G97,G91,G85,G79,G73) -> 0 | H101: 0 | I101: 0 | J101: 0 | K101: 0

Sheet App.2-FB Calc of REG Improvemnt
N1: File Number: | O1: =EBNUMBER -> EB-2015-0083
N2: Exhibit:
N3: Tab:
N4: Schedule:
N5: Page:
N7: Date:
A9: Appendix 2-FB
A10: Calculation of Renewable Generation Connection Direct Benefits/Provincial Amount: Renewable Enabling Improvement Investments
A12: This table will calculate the distributor/provincial shares of the investments entered in Part A of Appendix 2-FA.
A13: Enter values in green shaded cells: WCA percentage, debt percentages, interest rates, kWh, tax rates, amortization period, CCA Class and percentage.
A14: For historical investments, enter these variables for your last cost of service test year. For 2015 and beyond, enter variables as in the application.
A15: Rate Riders are not calculated for Test Year as these assets and costs are already in the distributor's rate base/revenue requirement.
C17: 2011 | F17: 2012 | I17: 2013 | L17: 2014 | O17: 2015 Test Year | R17: 2016 | U17: 2017 | V17: 2016 | X17: 2018 | AA17: 2019
D18: Direct Benefit | E18: Provincial | G18: Direct Benefit | H18: Provincial | J18: Direct Benefit | K18: Provincial | M18: Direct Benefit | N18: Provincial | P18: Direct Benefit | Q18: Provincial | S18: Direct Benefit | T18: Provincial | V18: Direct Benefit | W18: Provincial | Y18: Direct Benefit | Z18: Provincial | AB18: Direct Benefit | AC18: Provincial
C19: Total | D19: 0.06 | E19: 0.94 | F19: Total | G19: 0.06 | H19: 0.94 | I19: Total | J19: 0.06 | K19: 0.94 | L19: Total | M19: 0.06 | N19: 0.94 | O19: Total | P19: 0.06 | Q19: 0.94 | R19: Total | S19: 0.06 | T19: 0.94 | U19: Total | V19: 0.06 | W19: 0.94 | X19: Total | Y19: 0.06 | Z19: 0.94 | AA19: Total | AB19: 0.06 | AC19: 0.94
A20: Net Fixed Assets (average) | C20: =D82 -> 0 | D20: =C20*D19 -> 0 | E20: =C20*E19 -> 0 | F20: =E82 -> 0 | G20: =F20*G19 -> 0 | H20: =F20*H19 -> 0 | I20: =F82 -> 0 | J20: =I20*J19 -> 0 | K20: =I20*K19 -> 0 | L20: =G82 -> 0 | M20: =L20*M19 -> 0 | N20: =L20*N19 -> 0 | O20: =H82 -> 0 | P20: =O20*P19 -> 0 | Q20: =O20*Q19 -> 0 | R20: =I82 -> 0 | S20: =R20*S19 -> 0 | T20: =R20*T19 -> 0 | U20: =J82 -> 0 | V20: =U20*V19 -> 0 | W20: =U20*W19 -> 0 | X20: =K82 -> 0 | Y20: =X20*Y19 -> 0 | Z20: =X20*Z19 -> 0 | AA20: =L82 -> 0 | AB20: =AA20*AB19 -> 0 | AC20: =AA20*AC19 -> 0
A21: Incremental OM&A (on-going, N/A for Provincial Recovery) | C21: ='App.2-FA Proposed REG Invest.'!C64 -> 0 | D21: =C21 -> 0 | F21: ='App.2-FA Proposed REG Invest.'!D64 -> 0 | G21: =F21 -> 0 | I21: ='App.2-FA Proposed REG Invest.'!E64 -> 0 | J21: =I21 -> 0 | L21: ='App.2-FA Proposed REG Invest.'!F64 -> 0 | M21: =L21 -> 0 | O21: ='App.2-FA Proposed REG Invest.'!G64 -> 0 | P21: =O21 -> 0 | R21: ='App.2-FA Proposed REG Invest.'!H64 -> 0 | S21: =R21 -> 0 | U21: ='App.2-FA Proposed REG Invest.'!I64 -> 0 | V21: =U21 -> 0 | X21: ='App.2-FA Proposed REG Invest.'!J64 -> 0 | Y21: =X21 -> 0 | AA21: ='App.2-FA Proposed REG Invest.'!K64 -> 0 | AB21: =AA21 -> 0
A22: Incremental OM&A (start-up, applicable for Provincial Recovery) | C22: ='App.2-FA Proposed REG Invest.'!C63 -> 0 | D22: =C22*D19 -> 0 | E22: =C22*E19 -> 0 | F22: ='App.2-FA Proposed REG Invest.'!D63 -> 0 | G22: =F22*G19 -> 0 | H22: =F22*H19 -> 0 | I22: ='App.2-FA Proposed REG Invest.'!E63 -> 0 | J22: =I22*J19 -> 0 | K22: =I22*K19 -> 0 | L22: ='App.2-FA Proposed REG Invest.'!F63 -> 0 | M22: =L22*M19 -> 0 | N22: =L22*N19 -> 0 | O22: ='App.2-FA Proposed REG Invest.'!G63 -> 0 | P22: =O22*P19 -> 0 | Q22: =O22*Q19 -> 0 | R22: ='App.2-FA Proposed REG Invest.'!H63 -> 0 | S22: =R22*S19 -> 0 | T22: =R22*T19 -> 0 | U22: ='App.2-FA Proposed REG Invest.'!I63 -> 0 | V22: =U22*V19 -> 0 | W22: =U22*W19 -> 0 | X22: ='App.2-FA Proposed REG Invest.'!J63 -> 0 | Y22: =X22*Y19 -> 0 | Z22: =X22*Z19 -> 0 | AA22: ='App.2-FA Proposed REG Invest.'!K63 -> 0 | AB22: =AA22*AB19 -> 0 | AC22: =AA22*AC19 -> 0
A23: WCA | D23: =(D21+D22)*$B$23 -> 0 | E23: =E22*$B$23 -> 0 | G23: =(G21+G22)*$B$23 -> 0 | H23: =H22*$B$23 -> 0 | J23: =(J21+J22)*$B$23 -> 0 | K23: =K22*$B$23 -> 0 | M23: =(M21+M22)*$B$23 -> 0 | N23: =N22*$B$23 -> 0 | P23: =(P21+P22)*$B$23 -> 0 | Q23: =Q22*$B$23 -> 0 | S23: =(S21+S22)*$B$23 -> 0 | T23: =T22*$B$23 -> 0 | V23: =(V21+V22)*$B$23 -> 0 | W23: =W22*$B$23 -> 0 | Y23: =(Y21+Y22)*$B$23 -> 0 | Z23: =Z22*$B$23 -> 0 | AB23: =(AB21+AB22)*$B$23 -> 0 | AC23: =AC22*$B$23 -> 0
A24: Rate Base | D24: =SUM(D20+D23) -> 0 | E24: =SUM(E20+E23) -> 0 | G24: =SUM(G20+G23) -> 0 | H24: =SUM(H20+H23) -> 0 | J24: =SUM(J20+J23) -> 0 | K24: =SUM(K20+K23) -> 0 | M24: =SUM(M20+M23) -> 0 | N24: =SUM(N20+N23) -> 0 | P24: =SUM(P20+P23) -> 0 | Q24: =SUM(Q20+Q23) -> 0 | S24: =SUM(S20+S23) -> 0 | T24: =SUM(T20+T23) -> 0 | V24: =SUM(V20+V23) -> 0 | W24: =SUM(W20+W23) -> 0 | Y24: =SUM(Y20+Y23) -> 0 | Z24: =SUM(Z20+Z23) -> 0 | AB24: =SUM(AB20+AB23) -> 0 | AC24: =SUM(AC20+AC23) -> 0
A27: Deemed ST Debt | D27: =D24*$B$27 -> 0 | E27: =E24*$B$27 -> 0 | G27: =G24*$B$27 -> 0 | H27: =H24*$B$27 -> 0 | J27: =J24*$B$27 -> 0 | K27: =K24*$B$27 -> 0 | M27: =M24*$B$27 -> 0 | N27: =N24*$B$27 -> 0 | P27: =P24*$B$27 -> 0 | Q27: =Q24*$B$27 -> 0 | S27: =S24*$B$27 -> 0 | T27: =T24*$B$27 -> 0 | V27: =V24*$B$27 -> 0 | W27: =W24*$B$27 -> 0 | Y27: =Y24*$B$27 -> 0 | Z27: =Z24*$B$27 -> 0 | AB27: =AB24*$B$27 -> 0 | AC27: =AC24*$B$27 -> 0
A28: Deemed LT Debt | D28: =D24*$B$28 -> 0 | E28: =E24*$B$28 -> 0 | G28: =G24*$B$28 -> 0 | H28: =H24*$B$28 -> 0 | J28: =J24*$B$28 -> 0 | K28: =K24*$B$28 -> 0 | M28: =M24*$B$28 -> 0 | N28: =N24*$B$28 -> 0 | P28: =P24*$B$28 -> 0 | Q28: =Q24*$B$28 -> 0 | S28: =S24*$B$28 -> 0 | T28: =T24*$B$28 -> 0 | V28: =V24*$B$28 -> 0 | W28: =W24*$B$28 -> 0 | Y28: =Y24*$B$28 -> 0 | Z28: =Z24*$B$28 -> 0 | AB28: =AB24*$B$28 -> 0 | AC28: =AC24*$B$28 -> 0
A29: Deemed Equity | D29: =D24*$B$29 -> 0 | E29: =E24*$B$29 -> 0 | G29: =G24*$B$29 -> 0 | H29: =H24*$B$29 -> 0 | J29: =J24*$B$29 -> 0 | K29: =K24*$B$29 -> 0 | M29: =M24*$B$29 -> 0 | N29: =N24*$B$29 -> 0 | P29: =P24*$B$29 -> 0 | Q29: =Q24*$B$29 -> 0 | S29: =S24*$B$29 -> 0 | T29: =T24*$B$29 -> 0 | V29: =V24*$B$29 -> 0 | W29: =W24*$B$29 -> 0 | Y29: =Y24*$B$29 -> 0 | Z29: =Z24*$B$29 -> 0 | AB29: =AB24*$B$29 -> 0 | AC29: =AC24*$B$29 -> 0
A31: ST Interest | D31: =D27*$B31 -> 0 | E31: =E27*$B31 -> 0 | G31: =G27*$B31 -> 0 | H31: =H27*$B31 -> 0 | J31: =J27*$B31 -> 0 | K31: =K27*$B31 -> 0 | M31: =M27*$B31 -> 0 | N31: =N27*$B31 -> 0 | P31: =P27*$B31 -> 0 | Q31: =Q27*$B31 -> 0 | S31: =S27*$B31 -> 0 | T31: =T27*$B31 -> 0 | V31: =V27*$B31 -> 0 | W31: =W27*$B31 -> 0 | Y31: =Y27*$B31 -> 0 | Z31: =Z27*$B31 -> 0 | AB31: =AB27*$B31 -> 0 | AC31: =AC27*$B31 -> 0
A32: LT Interest | D32: =D28*$B32 -> 0 | E32: 0 | G32: =G28*$B32 -> 0 | H32: 0 | J32: =J28*$B32 -> 0 | K32: 0 | M32: =M28*$B32 -> 0 | N32: 0 | P32: =P28*$B32 -> 0 | Q32: 0 | S32: =S28*$B32 -> 0 | T32: 0 | V32: =V28*$B32 -> 0 | W32: 0 | Y32: =Y28*$B32 -> 0 | Z32: 0 | AB32: =AB28*$B32 -> 0 | AC32: 0
A33: ROE | D33: 0 | E33: 0 | G33: 0 | H33: 0 | J33: 0 | K33: 0 | M33: 0 | N33: 0 | P33: 0 | Q33: 0 | S33: 0 | T33: 0 | V33: 0 | W33: 0 | Y33: 0 | Z33: 0 | AB33: 0 | AC33: 0
A34: Cost of Capital Total | D34: =SUM(D31:D33) -> 0 | E34: =SUM(E31:E33) -> 0 | G34: =SUM(G31:G33) -> 0 | H34: =SUM(H31:H33) -> 0 | J34: =SUM(J31:J33) -> 0 | K34: =SUM(K31:K33) -> 0 | M34: =SUM(M31:M33) -> 0 | N34: =SUM(N31:N33) -> 0 | P34: =SUM(P31:P33) -> 0 | Q34: =SUM(Q31:Q33) -> 0 | S34: =SUM(S31:S33) -> 0 | T34: =SUM(T31:T33) -> 0 | V34: =SUM(V31:V33) -> 0 | W34: =SUM(W31:W33) -> 0 | Y34: =SUM(Y31:Y33) -> 0 | Z34: =SUM(Z31:Z33) -> 0 | AB34: =SUM(AB31:AB33) -> 0 | AC34: =SUM(AC31:AC33) -> 0
A36: OM&A | D36: =D21+D22 -> 0 | E36: =E22 -> 0 | G36: =G21+G22 -> 0 | H36: =H22 -> 0 | J36: =J21+J22 -> 0 | K36: =K22 -> 0 | M36: =M21+M22 -> 0 | N36: =N22 -> 0 | P36: =P21+P22 -> 0 | Q36: =Q22 -> 0 | S36: =S21+S22 -> 0 | T36: =T22 -> 0 | V36: =V21+V22 -> 0 | W36: =W22 -> 0 | Y36: =Y21+Y22 -> 0 | Z36: =Z22 -> 0 | AB36: =AB21+AB22 -> 0 | AC36: =AC22 -> 0
A37: Amortization | C37: =D77 -> 0 | D37: =C37*D$19 -> 0 | E37: =C37*E$19 -> 0 | F37: =E77 -> 0 | G37: =F37*G$19 -> 0 | H37: =F37*H$19 -> 0 | I37: =F77 -> 0 | J37: =I37*J$19 -> 0 | K37: =I37*K$19 -> 0 | L37: =G77 -> 0 | M37: =L37*M$19 -> 0 | N37: =L37*N$19 -> 0 | O37: =H77 -> 0 | P37: =O37*P$19 -> 0 | Q37: =O37*Q$19 -> 0 | R37: =I76+I77 -> 0 | S37: =R37*S$19 -> 0 | T37: =R37*T$19 -> 0 | U37: =J76+J77 -> 0 | V37: =U37*V$19 -> 0 | W37: =U37*W$19 -> 0 | X37: =K76+K77 -> 0 | Y37: =X37*Y$19 -> 0 | Z37: =X37*Z$19 -> 0 | AA37: =L76+L77 -> 0 | AB37: =AA37*AB$19 -> 0 | AC37: =AA37*AC$19 -> 0
A38: Grossed-up PILs | D38: =D65 -> 0 | E38: =E65 -> 0 | G38: =G65 -> 0 | H38: =H65 -> 0 | J38: =J65 -> 0 | K38: =K65 -> 0 | M38: =M65 -> 0 | N38: =N65 -> 0 | P38: =P65 -> 0 | Q38: =Q65 -> 0 | S38: =S65 -> 0 | T38: =T65 -> 0 | V38: =V65 -> 0 | W38: =W65 -> 0 | Y38: =Y65 -> 0 | Z38: =Z65 -> 0 | AB38: =AB65 -> 0 | AC38: =AC65 -> 0
A40: Revenue Requirement | D40: =SUM(D34:D38) -> 0 | E40: =SUM(E34:E38) -> 0 | G40: =SUM(G34:G38) -> 0 | H40: =SUM(H34:H38) -> 0 | J40: =SUM(J34:J38) -> 0 | K40: =SUM(K34:K38) -> 0 | M40: =SUM(M34:M38) -> 0 | N40: =SUM(N34:N38) -> 0 | P40: =SUM(P34:P38) -> 0 | Q40: =SUM(Q34:Q38) -> 0 | S40: =SUM(S34:S38) -> 0 | T40: =SUM(T34:T38) -> 0 | V40: =SUM(V34:V38) -> 0 | W40: =SUM(W34:W38) -> 0 | Y40: =SUM(Y34:Y38) -> 0 | Z40: =SUM(Z34:Z38) -> 0 | AB40: =SUM(AB34:AB38) -> 0 | AC40: =SUM(AC34:AC38) -> 0
A43: Provincial Rate Protection | E43: =E40 -> 0 | H43: =H40 -> 0 | K43: =K40 -> 0 | N43: =N40 -> 0 | Q43: =Q40 -> 0 | T43: =T40 -> 0 | W43: =W40 -> 0 | Z43: =Z40 -> 0 | AC43: =AC40 -> 0
A45: Monthly Amount Paid by IESO | E45: =E43/12 -> 0 | H45: =H43/12 -> 0 | K45: =K43/12 -> 0 | N45: =N43/12 -> 0 | Q45: =Q43/12 -> 0 | T45: =T43/12 -> 0 | W45: =W43/12 -> 0 | Z45: =Z43/12 -> 0 | AC45: =AC43/12 -> 0
A47: Note 1: The difference between the actual costs of approved eligible investments and revenue received from the IESO should be recorded in a variance account. The Board may provide
A48: regulatory accounting guidance regarding a variance account either in an individual proceeding or on a generic basis.
A49: Note 2: For the 2015 Test Year, Costs and Revenues of the Direct Benefit are to be included in the test year applicant Rate Base and Revenues.
A51: PILs Calculation
D52: 2011 | G52: 2012 | J52: 2013 | M52: 2014 | P52: 2015 | S52: =P52+1 -> 2016 | V52: =S52+1 -> 2017 | Y52: =V52+1 -> 2018 | AB52: =Y52+1 -> 2019
A53: Income Tax | D53: Direct Benefit | E53: Provincial | G53: Direct Benefit | H53: Provincial | J53: Direct Benefit | K53: Provincial | M53: Direct Benefit | N53: Provincial | P53: Direct Benefit | Q53: Provincial | S53: Direct Benefit | T53: Provincial | V53: Direct Benefit | W53: Provincial | Y53: Direct Benefit | Z53: Provincial | AB53: Direct Benefit | AC53: Provincial
X54: Total | AA54: Total
A55: Net Income - ROE on Rate Base | D55: =D33 -> 0 | E55: =E33 -> 0 | G55: =G33 -> 0 | H55: =H33 -> 0 | J55: =J33 -> 0 | K55: =K33 -> 0 | M55: =M33 -> 0 | N55: =N33 -> 0 | P55: =P33 -> 0 | Q55: =Q33 -> 0 | S55: =S33 -> 0 | T55: =T33 -> 0 | V55: =V33 -> 0 | W55: =W33 -> 0 | Y55: =Y33 -> 0 | Z55: =Z33 -> 0 | AB55: =AB33 -> 0 | AC55: =AC33 -> 0
A56: Amortization (6% DB and 94% P) | D56: =D37 -> 0 | E56: =E37 -> 0 | G56: =G37 -> 0 | H56: =H37 -> 0 | J56: =J37 -> 0 | K56: =K37 -> 0 | M56: =M37 -> 0 | N56: =N37 -> 0 | P56: =P37 -> 0 | Q56: =Q37 -> 0 | S56: =S37 -> 0 | T56: =T37 -> 0 | V56: =V37 -> 0 | W56: =W37 -> 0 | Y56: =Y37 -> 0 | Z56: =Z37 -> 0 | AB56: =AB37 -> 0 | AC56: =AC37 -> 0
A57: CCA (6% DB and 94% P) | D57: =-D94*D$19 -> 0 | E57: =-D94*E$19 -> 0 | G57: =-E94*G19 -> 0 | H57: =-E94*H$19 -> 0 | J57: =-F94*J$19 -> 0 | K57: =-F94*K$19 -> 0 | M57: =-G94*M$19 -> 0 | N57: =-G94*N$19 -> 0 | P57: =-H94*P$19 -> 0 | Q57: =-H94*Q$19 -> 0 | S57: =-I94*S$19 -> 0 | T57: =-I94*T$19 -> 0 | V57: =-J94*V$19 -> 0 | W57: =-J94*W$19 -> 0 | Y57: =-K94*Y$19 -> 0 | Z57: =-K94*Z$19 -> 0 | AB57: =-L94*AB$19 -> 0 | AC57: =-L94*AC$19 -> 0
A58: Taxable income | D58: =SUM(D55:D57) -> 0 | E58: =SUM(E55:E57) -> 0 | G58: =SUM(G55:G57) -> 0 | H58: =SUM(H55:H57) -> 0 | J58: =SUM(J55:J57) -> 0 | K58: =SUM(K55:K57) -> 0 | M58: =SUM(M55:M57) -> 0 | N58: =SUM(N55:N57) -> 0 | P58: =SUM(P55:P57) -> 0 | Q58: =SUM(Q55:Q57) -> 0 | S58: =SUM(S55:S57) -> 0 | T58: =SUM(T55:T57) -> 0 | V58: =SUM(V55:V57) -> 0 | W58: =SUM(W55:W57) -> 0 | Y58: =SUM(Y55:Y57) -> 0 | Z58: =SUM(Z55:Z57) -> 0 | AB58: =SUM(AB55:AB57) -> 0 | AC58: =SUM(AC55:AC57) -> 0
A60: Tax Rate (to be entered)
A62: Income Taxes Payable | D62: =D58*D60 -> 0 | E62: =E58*E60 -> 0 | G62: =G58*G60 -> 0 | H62: =H58*H60 -> 0 | J62: =J58*J60 -> 0 | K62: =K58*K60 -> 0 | M62: =M58*M60 -> 0 | N62: =N58*N60 -> 0 | P62: =P58*P60 -> 0 | Q62: =Q58*Q60 -> 0 | S62: =S58*S60 -> 0 | T62: =T58*T60 -> 0 | V62: =V58*V60 -> 0 | W62: =W58*W60 -> 0 | Y62: =Y58*Y60 -> 0 | Z62: =Z58*Z60 -> 0 | AB62: =AB58*AB60 -> 0 | AC62: =AC58*AC60 -> 0
A63: Gross Up
A64: Income Taxes Payable | D64: =D62/(1-D60) -> 0 | E64: =E62/(1-E60) -> 0 | G64: =G62/(1-G60) -> 0 | H64: =H62/(1-H60) -> 0 | J64: =J62/(1-J60) -> 0 | K64: =K62/(1-K60) -> 0 | M64: =M62/(1-M60) -> 0 | N64: =N62/(1-N60) -> 0 | P64: =P62/(1-P60) -> 0 | Q64: =Q62/(1-Q60) -> 0 | S64: =S62/(1-S60) -> 0 | T64: =T62/(1-T60) -> 0 | V64: =V62/(1-V60) -> 0 | W64: =W62/(1-W60) -> 0 | Y64: =Y62/(1-Y60) -> 0 | Z64: =Z62/(1-Z60) -> 0 | AB64: =AB62/(1-AB60) -> 0 | AC64: =AC62/(1-AC60) -> 0
A65: Grossed Up PILs | D65: =SUM(D64:D64) -> 0 | E65: =SUM(E64:E64) -> 0 | G65: =SUM(G64:G64) -> 0 | H65: =SUM(H64:H64) -> 0 | J65: =SUM(J64:J64) -> 0 | K65: =SUM(K64:K64) -> 0 | M65: =SUM(M64:M64) -> 0 | N65: =SUM(N64:N64) -> 0 | P65: =SUM(P64:P64) -> 0 | Q65: =SUM(Q64:Q64) -> 0 | S65: =SUM(S64:S64) -> 0 | T65: =SUM(T64:T64) -> 0 | V65: =SUM(V64:V64) -> 0 | W65: =SUM(W64:W64) -> 0 | Y65: =SUM(Y64:Y64) -> 0 | Z65: =SUM(Z64:Z64) -> 0 | AB65: =SUM(AB64:AB64) -> 0 | AC65: =SUM(AC64:AC64) -> 0
D68: 2011 | E68: 2012 | F68: 2013 | G68: 2014 | H68: 2015 | I68: =H68+1 -> 2016 | J68: =I68+1 -> 2017 | K68: 2018 | L68: 2019
A69: Net Fixed Assets
B70: Enter applicable amortization in years: | C70: 25
A71: Opening Gross Fixed Assets | E71: =D73 -> 0 | F71: 0 | G71: 0 | H71: 0 | I71: =H73 -> 0 | J71: =I73 -> 0 | K71: =J73 -> 0 | L71: =K73 -> 0
A72: Gross Capital Additions | D72: ='App.2-FA Proposed REG Invest.'!C62 -> 0 | E72: ='App.2-FA Proposed REG Invest.'!D62 -> 0 | F72: ='App.2-FA Proposed REG Invest.'!E62 -> 0 | G72: ='App.2-FA Proposed REG Invest.'!F62 -> 0 | H72: ='App.2-FA Proposed REG Invest.'!G62 -> 0 | I72: ='App.2-FA Proposed REG Invest.'!H62 -> 0 | J72: ='App.2-FA Proposed REG Invest.'!I62 -> 0 | K72: ='App.2-FA Proposed REG Invest.'!J62 -> 0 | L72: ='App.2-FA Proposed REG Invest.'!K62 -> 0
A73: Closing Gross Fixed Assets | D73: =SUM(D71:D72) -> 0 | E73: 0 | F73: 0 | G73: 0 | H73: =SUM(H71:H72) -> 0 | I73: =SUM(I71:I72) -> 0 | J73: 0 | K73: 0 | L73: 0
A75: Opening Accumulated Amortization | E75: =+D78 -> 0 | F75: =E78 -> 0 | G75: 0 | H75: 0 | I75: 0 | J75: 0 | K75: 0 | L75: 0
A76: Current Year Amortization (before additions) | D76: =IF(ISERROR(D71/$C$70), 0, D71/$C$70) -> 0 | E76: 0 | F76: 0 | G76: 0 | H76: 0 | I76: =IF(ISERROR(I71/$C$70), 0, I71/$C$70) -> 0 | J76: =IF(ISERROR(J71/$C$70), 0, J71/$C$70) -> 0 | K76: =IF(ISERROR(K71/$C$70), 0, K71/$C$70) -> 0 | L76: =IF(ISERROR(L71/$C$70), 0, L71/$C$70) -> 0
A77: Additions (half year) | D77: =D72/$C$70/2 -> 0 | E77: =E72/$C$70/2 -> 0 | F77: =F72/$C$70/2 -> 0 | G77: 0 | H77: =H72/$C$70/2 -> 0 | I77: =I72/C70/2 -> 0 | J77: =J72/C70/2 -> 0 | K77: =K72/C70/2 -> 0 | L77: =L72/C70/2 -> 0
A78: Closing Accumulated Amortization | D78: =SUM(D75+D76+D77) -> 0 | E78: =SUM(E75+E76+E77) -> 0 | F78: =SUM(F75+F76+F77) -> 0 | G78: =SUM(G75+G76+G77) -> 0 | H78: =SUM(H75+H76+H77) -> 0 | I78: =SUM(I75:I77) -> 0 | J78: =SUM(J75:J77) -> 0 | K78: =SUM(K75:K77) -> 0 | L78: =SUM(L75:L77) -> 0
A80: Opening Net Fixed Assets | D80: =D71-D75 -> 0 | E80: 0 | F80: =F71-F75 -> 0 | G80: 0 | H80: =H71-H75 -> 0 | I80: =H81 -> 0 | J80: =I81 -> 0 | K80: =J81 -> 0 | L80: =K81 -> 0
A81: Closing Net Fixed Assets | D81: =D73-D78 -> 0 | E81: =E73-E78 -> 0 | F81: 0 | G81: 0 | H81: =H73-H78 -> 0 | I81: =I73-I78 -> 0 | J81: =J73-J78 -> 0 | K81: =K73-K78 -> 0 | L81: =L73-L78 -> 0
A82: Average Net Fixed Assets | D82: =SUM(D80:D81)/2 -> 0 | E82: 0 | F82: 0 | G82: 0 | H82: =SUM(H80:H81)/2 -> 0 | I82: =SUM(I80:I81)/2 -> 0 | J82: =SUM(J80:J81)/2 -> 0 | K82: =SUM(K80:K81)/2 -> 0 | L82: =SUM(L80:L81)/2 -> 0
A84: UCC for PILs Calculation
D85: 2011 | E85: 2012 | F85: 2013 | G85: 2014 | H85: 2015 | I85: =H85+1 -> 2016 | J85: =I85+1 -> 2017 | K85: 2018 | L85: 2019
A87: Opening UCC | E87: =D95 -> 0 | F87: 0 | G87: 0 | H87: 0 | I87: 0 | J87: 0 | K87: 0 | L87: 0
A88: Capital Additions (from Appendix 2-FA) | D88: =D72 -> 0 | E88: 0 | F88: 0 | G88: 0 | H88: =H72 -> 0 | I88: ='App.2-FA Proposed REG Invest.'!H40 -> 0 | J88: ='App.2-FA Proposed REG Invest.'!I40 -> 0 | K88: ='App.2-FA Proposed REG Invest.'!J40 -> 0 | L88: ='App.2-FA Proposed REG Invest.'!K40 -> 0
